{"text_format":"2","workbook":"xlsx","n_sheets":6,"sheets":["单招计划","综评计划","待更新院校","2024汇总","2023","2022"],"not_rendered":{"charts":0,"images":0,"macros":0,"external_links":0,"defined_names":4,"comments":0,"pivot_tables":0},"unopened":[],"bounds":{"document_bytes":16777216,"sheet_cells":100000,"run_cost":"one","rows_first":2000,"rows_last":500,"rows_between":2000,"halvings":0,"cell_chars":16384,"cell_head_chars":4096},"cells_cut":0,"cells_raw":0,"read":"whole","date_system":"1900"}

{"sheet":"单招计划","index":0,"n_rows":1768,"n_cols":9,"rows_kept":1768,"cut":false,"hidden":false,"merged":[]}
["院校名称","专业类别","专业代码","专业名称","专业要求","计划数","学费","备注","章程"]
["菏泽学院","艺术设计",null,"戏曲表演",null,30,null,"女生慎报","https://zsxxw.hezeu.edu.cn/info/1047/3373.htm"]
["青岛远洋船员职业学院","运输",null,"航海技术",null,13,null,"女生慎报","https://www.qmc.edu.cn/zhaosheng/info/1106/1881.htm"]
["青岛远洋船员职业学院","网络技术",null,"航海技术",null,12,null,"女生慎报","https://www.qmc.edu.cn/zhaosheng/info/1106/1881.htm"]
["青岛远洋船员职业学院","机电技术",null,"轮机工程技术",null,7,null,"女生慎报","https://www.qmc.edu.cn/zhaosheng/info/1106/1881.htm"]
["青岛远洋船员职业学院","运输",null,"轮机工程技术",null,8,null,null,"https://www.qmc.edu.cn/zhaosheng/info/1106/1881.htm"]
["青岛远洋船员职业学院","机械制造",null,"船舶工程技术",null,3,null,null,"https://www.qmc.edu.cn/zhaosheng/info/1106/1881.htm"]
["青岛远洋船员职业学院","电气技术",null,"船舶工程技术",null,2,null,null,"https://www.qmc.edu.cn/zhaosheng/info/1106/1881.htm"]
["青岛远洋船员职业学院","物流管理",null,"港口与航运管理",null,3,null,null,"https://www.qmc.edu.cn/zhaosheng/info/1106/1881.htm"]
["青岛远洋船员职业学院","国际商务",null,"港口与航运管理",null,2,null,null,"https://www.qmc.edu.cn/zhaosheng/info/1106/1881.htm"]
["青岛远洋船员职业学院","酒店管理",null,"国际邮轮乘务管理",null,3,null,null,"https://www.qmc.edu.cn/zhaosheng/info/1106/1881.htm"]
["青岛远洋船员职业学院","旅游管理",null,"国际邮轮乘务管理",null,2,null,null,"https://www.qmc.edu.cn/zhaosheng/info/1106/1881.htm"]
["山东职业学院","机械制造",null,"机械制造及自动化",null,10,6300,"智能制造学院","https://www.sdp.edu.cn/zs/info/1027/1782.htm"]
["山东职业学院","机电技术",null,"机电一体化技术",null,10,6300,"智能制造学院","https://www.sdp.edu.cn/zs/info/1027/1782.htm"]
["山东职业学院","自动控制",null,"电气自动化技术",null,5,6300,"智能制造学院","https://www.sdp.edu.cn/zs/info/1027/1782.htm"]
["山东职业学院","自动控制",null,"工业互联网应用",null,5,5500,"智能制造学院","https://www.sdp.edu.cn/zs/info/1027/1782.htm"]
["山东职业学院","网络技术",null,"计算机网络技术",null,20,6300,"新一代信息技术产业学院","https://www.sdp.edu.cn/zs/info/1027/1782.htm"]
["枣庄职业学院","财税","A1","大数据与会计",null,10,4800,null,"https://zsc.sdzzvc.edu.cn/info/1051/2334.htm"]
["枣庄职业学院","物流管理","A2","现代物流管理",null,10,4800,null,"https://zsc.sdzzvc.edu.cn/info/1051/2334.htm"]
["枣庄职业学院","电子商务","A3","电子商务",null,10,4800,null,"https://zsc.sdzzvc.edu.cn/info/1051/2334.htm"]
["枣庄职业学院","软件与应用技术","A4","大数据技术",null,10,5000,null,"https://zsc.sdzzvc.edu.cn/info/1051/2334.htm"]
["枣庄职业学院","软件与应用技术","A5","信息安全技术应用",null,5,5000,null,"https://zsc.sdzzvc.edu.cn/info/1051/2334.htm"]
["枣庄职业学院","旅游管理","B1","旅游管理",null,5,4800,null,"https://zsc.sdzzvc.edu.cn/info/1051/2334.htm"]
["枣庄职业学院","酒店管理","B2","酒店管理与数字化运营",null,5,4800,null,"https://zsc.sdzzvc.edu.cn/info/1051/2334.htm"]
["枣庄职业学院","酒店管理","B3","高速铁路客运服务",null,10,5000,null,"https://zsc.sdzzvc.edu.cn/info/1051/2334.htm"]
["枣庄职业学院","学前教育","B4","婴幼儿托育服务与管理",null,5,5000,null,"https://zsc.sdzzvc.edu.cn/info/1051/2334.htm"]
["枣庄职业学院","酒店管理","B5","空中乘务",null,10,5000,null,"https://zsc.sdzzvc.edu.cn/info/1051/2334.htm"]
["枣庄职业学院","车辆维修","C1","新能源汽车技术",null,10,5000,null,"https://zsc.sdzzvc.edu.cn/info/1051/2334.htm"]
["枣庄职业学院","机电技术","D1","机电一体化技术",null,15,5500,null,"https://zsc.sdzzvc.edu.cn/info/1051/2334.htm"]
["枣庄职业学院","机械制造","D2","数控技术",null,15,5500,null,"https://zsc.sdzzvc.edu.cn/info/1051/2334.htm"]
["威海职业学院","机械制造",null,"机械设计与制造",null,12,5600,"机电学院","https://www.whvc.edu.cn/zhaosheng/2024/0128/c6676a119976/page.htm"]
["威海职业学院","机械制造",null,"数控技术",null,8,5600,"机电学院","https://www.whvc.edu.cn/zhaosheng/2024/0128/c6676a119976/page.htm"]
["威海职业学院","机械制造",null,"智能焊接技术",null,4,5600,"机电学院","https://www.whvc.edu.cn/zhaosheng/2024/0128/c6676a119976/page.htm"]
["威海职业学院","设备维修",null,"智能焊接技术",null,4,5600,"机电学院","https://www.whvc.edu.cn/zhaosheng/2024/0128/c6676a119976/page.htm"]
["威海职业学院","机电技术",null,"工业机器人技术",null,12,5600,"机电学院","https://www.whvc.edu.cn/zhaosheng/2024/0128/c6676a119976/page.htm"]
["威海职业学院","数字媒体",null,"数字媒体艺术设计",null,10,7000,"艺术学院","https://www.whvc.edu.cn/zhaosheng/2024/0128/c6676a119976/page.htm"]
["威海职业学院","服装",null,"服装与服饰设计",null,20,7000,"艺术学院","https://www.whvc.edu.cn/zhaosheng/2024/0128/c6676a119976/page.htm"]
["威海职业学院","数字媒体",null,"动漫设计",null,10,7000,"艺术学院","https://www.whvc.edu.cn/zhaosheng/2024/0128/c6676a119976/page.htm"]
["威海职业学院","学前教育",null,"婴幼儿托育服务与管理",null,30,5000,"教育学院","https://www.whvc.edu.cn/zhaosheng/2024/0128/c6676a119976/page.htm"]
["威海职业学院","退役军人",null,"市场营销",null,20,5200,"经贸学院","https://www.whvc.edu.cn/zhaosheng/2024/0128/c6676a119976/page.htm"]
["威海职业学院","退役军人",null,"机电一体化技术",null,20,5600,"交通学院","https://www.whvc.edu.cn/zhaosheng/2024/0128/c6676a119976/page.htm"]
["济南护理职业学院","药学","01","药学",null,20,6600,null,"https://zs.sdjnwx.com/articles/1572"]
["济南护理职业学院","药学","02","中药学",null,20,6600,null,"https://zs.sdjnwx.com/articles/1572"]
["济南护理职业学院","护理","03","助产(仅限女生)",null,10,6600,null,"https://zs.sdjnwx.com/articles/1572"]
["济南护理职业学院","护理","04","医学美容技术",null,30,6000,null,"https://zs.sdjnwx.com/articles/1572"]
["济南护理职业学院","学前教育","05","婴幼儿托育服务与管理",null,10,6000,null,"https://zs.sdjnwx.com/articles/1572"]
["济南护理职业学院","医学技术","06","口腔医学技术",null,20,6000,null,"https://zs.sdjnwx.com/articles/1572"]
["济南护理职业学院","设备维修","07","智能医疗装备技术",null,20,6000,null,"https://zs.sdjnwx.com/articles/1572"]
["济南护理职业学院","烹饪","08","食品检验检测技术",null,20,6000,null,"https://zs.sdjnwx.com/articles/1572"]
["济南护理职业学院","烹饪","09","医学营养",null,10,6000,null,"https://zs.sdjnwx.com/articles/1572"]
["潍坊护理职业学院","护理","01","护理",null,5,6900,null,"https://zhaosheng.wfhlxy.com/info/1023/1701.htm"]
["潍坊护理职业学院","护理","02","助产",null,5,6600,"只招女生","https://zhaosheng.wfhlxy.com/info/1023/1701.htm"]
["潍坊护理职业学院","药学","03","药学",null,5,6000,null,"https://zhaosheng.wfhlxy.com/info/1023/1701.htm"]
["潍坊护理职业学院","药学","04","中药学",null,5,6000,null,"https://zhaosheng.wfhlxy.com/info/1023/1701.htm"]
["潍坊护理职业学院","医学技术","05","中医康复技术",null,5,6900,null,"https://zhaosheng.wfhlxy.com/info/1023/1701.htm"]
["潍坊护理职业学院","医学技术","06","医学检验技术",null,10,6000,null,"https://zhaosheng.wfhlxy.com/info/1023/1701.htm"]
["潍坊护理职业学院","医学技术","07","医学影像技术",null,10,6000,null,"https://zhaosheng.wfhlxy.com/info/1023/1701.htm"]
["潍坊护理职业学院","医学技术","08","口腔医学技术",null,5,6900,null,"https://zhaosheng.wfhlxy.com/info/1023/1701.htm"]
["潍坊护理职业学院","医学技术","09","医学美容技术",null,5,6900,null,"https://zhaosheng.wfhlxy.com/info/1023/1701.htm"]
["潍坊护理职业学院","医学技术",10,"康复治疗技术",null,10,6900,null,"https://zhaosheng.wfhlxy.com/info/1023/1701.htm"]
["潍坊护理职业学院","烹饪",11,"健康管理",null,5,6900,null,"https://zhaosheng.wfhlxy.com/info/1023/1701.htm"]
["潍坊护理职业学院","医学技术",12,"心理咨询",null,5,6000,null,"https://zhaosheng.wfhlxy.com/info/1023/1701.htm"]
["潍坊护理职业学院","烹饪",13,"医学营养",null,5,6000,null,"https://zhaosheng.wfhlxy.com/info/1023/1701.htm"]
["潍坊护理职业学院","医学技术",14,"眼视光技术",null,10,6000,null,"https://zhaosheng.wfhlxy.com/info/1023/1701.htm"]
["潍坊护理职业学院","软件与应用技术",15,"大数据技术",null,5,5000,null,"https://zhaosheng.wfhlxy.com/info/1023/1701.htm"]
["潍坊护理职业学院","公共服务与管理",16,"智慧健康养老服务与管理",null,5,5500,null,"https://zhaosheng.wfhlxy.com/info/1023/1701.htm"]
["山东交通职业学院","车辆维修",null,"汽车检测与维修技术",null,40,null,"车辆工程系","https://zs.sdjtzyxy.edu.cn/info/1021/1749.htm"]
["山东交通职业学院","建筑",null,"道路与桥梁工程技术",null,20,null,"公路与建筑系","https://zs.sdjtzyxy.edu.cn/info/1021/1749.htm"]
["山东交通职业学院","建筑",null,"建设工程监理",null,20,null,"公路与建筑系","https://zs.sdjtzyxy.edu.cn/info/1021/1749.htm"]
["山东交通职业学院","物流管理",null,"现代物流管理",null,20,null,"管理与信息系","https://zs.sdjtzyxy.edu.cn/info/1021/1749.htm"]
["山东交通职业学院","机电技术",null,"机电一体化技术",null,20,null,"机电工程系","https://zs.sdjtzyxy.edu.cn/info/1021/1749.htm"]
["山东交通职业学院","运输",null,"航海技术",null,20,null,"航海系","https://zs.sdjtzyxy.edu.cn/info/1021/1749.htm"]
["菏泽医学专科学校","药学","C1","药品生产技术",null,15,null,null,"https://www.hzmc.edu.cn/zsb/info/1056/2698.htm"]
["菏泽医学专科学校","药学","C2","药品经营与管理",null,15,null,null,"https://www.hzmc.edu.cn/zsb/info/1056/2698.htm"]
["菏泽医学专科学校","医学技术","C3","老年保健与管理",null,20,null,null,"https://www.hzmc.edu.cn/zsb/info/1056/2698.htm"]
["菏泽医学专科学校","护理","C4","老年保健与管理",null,10,null,null,"https://www.hzmc.edu.cn/zsb/info/1056/2698.htm"]
["菏泽医学专科学校","护理","C5","智慧健康养老服务与管理",null,30,null,null,"https://www.hzmc.edu.cn/zsb/info/1056/2698.htm"]
["菏泽医学专科学校","公共服务与管理","C6","智慧健康养老服务与管理",null,10,null,null,"https://www.hzmc.edu.cn/zsb/info/1056/2698.htm"]
["山东胜利职业学院","酒店管理",null,"酒店管理与数字化运营",null,15,5000,null,"http://zs.sdslvc.cn/info/1014/1615.htm"]
["山东胜利职业学院","烹饪",null,"烹饪工艺与营养",null,15,5000,null,"http://zs.sdslvc.cn/info/1014/1615.htm"]
["山东胜利职业学院","烹饪",null,"中西面点工艺",null,15,5000,null,"http://zs.sdslvc.cn/info/1014/1615.htm"]
["山东胜利职业学院","机械制造",null,"石油工程技术",null,10,5000,"仅限男生报考","http://zs.sdslvc.cn/info/1014/1615.htm"]
["山东胜利职业学院","机电技术",null,"油气储运技术",null,10,5000,null,"http://zs.sdslvc.cn/info/1014/1615.htm"]
["山东胜利职业学院","化工与环境",null,"环境工程技术",null,10,5000,null,"http://zs.sdslvc.cn/info/1014/1615.htm"]
["山东胜利职业学院","机电技术",null,"油气智能开采技术",null,10,5000,"仅限男生报考","http://zs.sdslvc.cn/info/1014/1615.htm"]
["山东胜利职业学院","自动控制",null,"工业互联网应用",null,10,5000,null,"http://zs.sdslvc.cn/info/1014/1615.htm"]
["山东胜利职业学院","电子技术",null,"物联网应用技术",null,10,5000,null,"http://zs.sdslvc.cn/info/1014/1615.htm"]
["山东胜利职业学院","医学技术",null,"康复治疗技术",null,5,6000,null,"http://zs.sdslvc.cn/info/1014/1615.htm"]
["山东胜利职业学院","医学技术",null,"口腔医学技术",null,10,6000,null,"http://zs.sdslvc.cn/info/1014/1615.htm"]
["山东胜利职业学院","护理",null,"口腔医学技术",null,10,6000,null,"http://zs.sdslvc.cn/info/1014/1615.htm"]
["山东科技职业学院","服装","01","服装设计与工艺",null,40,6600,"学费以教育厅审核公布为准。","https://zhaosheng.sdvcst.edu.cn/rules.html?id=18"]
["山东科技职业学院","服装","02","服装设计与工艺",null,30,6600,"(现代学徒制，鲁泰纺织)","https://zhaosheng.sdvcst.edu.cn/rules.html?id=18"]
["山东科技职业学院","服装","03","服装与服饰设计",null,25,6600,"学费以教育厅审核公布为准。","https://zhaosheng.sdvcst.edu.cn/rules.html?id=18"]
["山东科技职业学院","服装","04","服装陈列与展示设计",null,25,6325,"学费以教育厅审核公布为准。","https://zhaosheng.sdvcst.edu.cn/rules.html?id=18"]
["山东科技职业学院","艺术设计","05","人物形象设计",null,20,5500,"学费以教育厅审核公布为准。","https://zhaosheng.sdvcst.edu.cn/rules.html?id=18"]
["山东科技职业学院","数字媒体","06","动漫制作技术",null,25,5500,"学费以教育厅审核公布为准。","https://zhaosheng.sdvcst.edu.cn/rules.html?id=18"]
["山东科技职业学院","网络技术","07","计算机网络技术",null,2,6325,"(运动专长限篮球、足球、排球、武术项目)","https://zhaosheng.sdvcst.edu.cn/rules.html?id=18"]
["山东科技职业学院","机械制造","08","机械制造及自动化",null,5,6325,"(运动专长限篮球、足球、排球、武术项目)","https://zhaosheng.sdvcst.edu.cn/rules.html?id=18"]
["山东科技职业学院","车辆维修","09","汽车检测与维修技术",null,5,5500,"(运动专长限篮球、足球、排球、武术项目)","https://zhaosheng.sdvcst.edu.cn/rules.html?id=18"]
["山东科技职业学院","电子商务","10","电子商务",null,12,5280,"(运动专长限篮球、足球、排球、武术项目)","https://zhaosheng.sdvcst.edu.cn/rules.html?id=18"]
["山东科技职业学院","服装","11","服装设计与工艺",null,6,6600,"(运动专长限篮球、足球、排球、武术项目)","https://zhaosheng.sdvcst.edu.cn/rules.html?id=18"]
["泰山职业技术学院","财税",null,"大数据与会计",null,15,4800,"财经系","http://www.tsvc.edu.cn/zsjy/info/1011/1594.htm"]
["泰山职业技术学院","电子商务",null,"电子商务",null,15,4800,"财经系","http://www.tsvc.edu.cn/zsjy/info/1011/1594.htm"]
["泰山职业技术学院","物流管理",null,"现代物流管理",null,8,4800,"财经系","http://www.tsvc.edu.cn/zsjy/info/1011/1594.htm"]
["泰山职业技术学院","国际商务",null,"国际经济与贸易",null,7,4800,"财经系","http://www.tsvc.edu.cn/zsjy/info/1011/1594.htm"]
["泰山职业技术学院","机电技术",null,"机电一体化技术",null,10,5000,"机电技术工程系","http://www.tsvc.edu.cn/zsjy/info/1011/1594.htm"]
["泰山职业技术学院","机电技术",null,"工业机器人技术",null,5,5000,"机电技术工程系","http://www.tsvc.edu.cn/zsjy/info/1011/1594.htm"]
["泰山职业技术学院","机械制造",null,"数控技术",null,10,5000,"机电技术工程系","http://www.tsvc.edu.cn/zsjy/info/1011/1594.htm"]
["泰山职业技术学院","机械制造",null,"数字化设计与制造技术",null,3,5000,"机电技术工程系","http://www.tsvc.edu.cn/zsjy/info/1011/1594.htm"]
["泰山职业技术学院","建筑",null,"建筑工程技术",null,10,5000,"建筑工程系","http://www.tsvc.edu.cn/zsjy/info/1011/1594.htm"]
["泰山职业技术学院","建筑",null,"工程造价",null,10,5000,"建筑工程系","http://www.tsvc.edu.cn/zsjy/info/1011/1594.htm"]
["泰山职业技术学院","服装",null,"服装与服饰设计",null,3,5000,"教育与艺术系","http://www.tsvc.edu.cn/zsjy/info/1011/1594.htm"]
["泰山职业技术学院","艺术设计",null,"环境艺术设计",null,6,5000,"教育与艺术系","http://www.tsvc.edu.cn/zsjy/info/1011/1594.htm"]
["泰山职业技术学院","艺术设计",null,"首饰设计与工艺",null,1,5000,"教育与艺术系","http://www.tsvc.edu.cn/zsjy/info/1011/1594.htm"]
["泰山职业技术学院","艺术设计",null,"宝玉石鉴定与加工",null,10,5000,"教育与艺术系","http://www.tsvc.edu.cn/zsjy/info/1011/1594.htm"]
["泰山职业技术学院","艺术设计",null,"视觉传达设计",null,10,5000,"教育与艺术系","http://www.tsvc.edu.cn/zsjy/info/1011/1594.htm"]
["泰山职业技术学院","学前教育",null,"早期教育",null,18,5000,"教育与艺术系","http://www.tsvc.edu.cn/zsjy/info/1011/1594.htm"]
["泰山职业技术学院","自动控制",null,"电气自动化技术(高职技师合作，在泰安技师学院就读)",null,50,5000,"汽车与电气工程系","http://www.tsvc.edu.cn/zsjy/info/1011/1594.htm"]
["泰山职业技术学院","电子技术",null,"应用电子技术",null,5,5000,"汽车与电气工程系","http://www.tsvc.edu.cn/zsjy/info/1011/1594.htm"]
["泰山职业技术学院","车辆维修",null,"新能源汽车技术",null,10,5000,"汽车与电气工程系","http://www.tsvc.edu.cn/zsjy/info/1011/1594.htm"]
["泰山职业技术学院","畜牧养殖",null,"畜牧兽医",null,3,5000,"生物技术工程系","http://www.tsvc.edu.cn/zsjy/info/1011/1594.htm"]
["泰山职业技术学院","现代农艺",null,"园艺技术",null,15,5000,"生物技术工程系","http://www.tsvc.edu.cn/zsjy/info/1011/1594.htm"]
["泰山职业技术学院","现代农艺",null,"园林技术",null,5,5000,"生物技术工程系","http://www.tsvc.edu.cn/zsjy/info/1011/1594.htm"]
["泰山职业技术学院","现代农艺",null,"茶叶生产与加工技术",null,3,5000,"生物技术工程系","http://www.tsvc.edu.cn/zsjy/info/1011/1594.htm"]
["泰山职业技术学院","现代农艺",null,"花卉生产与花艺",null,3,5000,"生物技术工程系","http://www.tsvc.edu.cn/zsjy/info/1011/1594.htm"]
["泰山职业技术学院","烹饪",null,"食品检验检测技术",null,5,5000,"生物技术工程系","http://www.tsvc.edu.cn/zsjy/info/1011/1594.htm"]
["泰山职业技术学院","数字媒体",null,"动漫制作技术",null,3,5000,"信息技术工程系","http://www.tsvc.edu.cn/zsjy/info/1011/1594.htm"]
["泰山职业技术学院","电子技术",null,"物联网应用技术",null,2,5000,"信息技术工程系","http://www.tsvc.edu.cn/zsjy/info/1011/1594.htm"]
["泰山职业技术学院","软件与应用技术",null,"计算机应用技术",null,15,5000,"信息技术工程系","http://www.tsvc.edu.cn/zsjy/info/1011/1594.htm"]
["泰山职业技术学院","软件与应用技术",null,"云计算技术应用",null,8,5000,"信息技术工程系","http://www.tsvc.edu.cn/zsjy/info/1011/1594.htm"]
["泰山职业技术学院","软件与应用技术",null,"大数据技术",null,8,5000,"信息技术工程系","http://www.tsvc.edu.cn/zsjy/info/1011/1594.htm"]
["泰山职业技术学院","酒店管理",null,"酒店管理与数字化运营",null,4,4800,"旅游系","http://www.tsvc.edu.cn/zsjy/info/1011/1594.htm"]
["泰山职业技术学院","旅游管理",null,"旅游管理",null,5,4800,"旅游系","http://www.tsvc.edu.cn/zsjy/info/1011/1594.htm"]
["泰山职业技术学院","旅游管理",null,"研学旅行管理与服务",null,4,4800,"旅游系","http://www.tsvc.edu.cn/zsjy/info/1011/1594.htm"]
["泰山职业技术学院","机电技术",null,"机电一体化技术(中外合作，与澳大利亚启思蒙学院合作)",null,11,12500,"国际交流学院","http://www.tsvc.edu.cn/zsjy/info/1011/1594.htm"]
["山东工程职业技术大学","建筑",null,"建筑工程技术",null,65,null,"建筑工程学院","https://www.suet.edu.cn/admission/info/1009/1661.htm"]
["山东工程职业技术大学","车辆维修",null,"汽车制造与试验技术",null,35,null,"交通学院","https://www.suet.edu.cn/admission/info/1009/1661.htm"]
["山东工程职业技术大学","运输",null,"城市轨道交通运营管理",null,35,null,"交通学院","https://www.suet.edu.cn/admission/info/1009/1661.htm"]
["山东工程职业技术大学","网络技术",null,"计算机网络技术",null,90,null,"人工智能学院","https://www.suet.edu.cn/admission/info/1009/1661.htm"]
["山东工程职业技术大学","电子商务",null,"电子商务",null,35,null,"商学院","https://www.suet.edu.cn/admission/info/1009/1661.htm"]
["山东工程职业技术大学","财税",null,"大数据与会计",null,35,null,"数字财金学院","https://www.suet.edu.cn/admission/info/1009/1661.htm"]
["山东工程职业技术大学","学前教育",null,"婴幼儿托育服务与管理",null,35,null,"数字财金学院","https://www.suet.edu.cn/admission/info/1009/1661.htm"]
["山东工程职业技术大学","医学技术",null,"康复治疗技术",null,15,null,"医学技术学院","https://www.suet.edu.cn/admission/info/1009/1661.htm"]
["山东工程职业技术大学","机械制造",null,"机电一体化技术",null,55,null,"智能制造学院","https://www.suet.edu.cn/admission/info/1009/1661.htm"]
["山东商务职业学院","国际商务","01","国际经济与贸易",null,20,5520,null,"https://zs.sdbi.edu.cn/info/1026/3406.htm"]
["山东商务职业学院","市场营销","02","连锁经营与管理",null,27,5520,null,"https://zs.sdbi.edu.cn/info/1026/3406.htm"]
["山东商务职业学院","电子商务","03","电子商务",null,15,5520,null,"https://zs.sdbi.edu.cn/info/1026/3406.htm"]
["山东商务职业学院","电子商务","04","跨境电子商务",null,25,4800,null,"https://zs.sdbi.edu.cn/info/1026/3406.htm"]
["山东商务职业学院","烹 饪","05","食品检验检测技术",null,40,5750,null,"https://zs.sdbi.edu.cn/info/1026/3406.htm"]
["山东商务职业学院","烹 饪","06","粮食工程技术与管理",null,42,5750,null,"https://zs.sdbi.edu.cn/info/1026/3406.htm"]
["山东商务职业学院","机械制造","07","数控技术",null,25,5500,null,"https://zs.sdbi.edu.cn/info/1026/3406.htm"]
["山东商务职业学院","机械制造","08","机械制造及自动化",null,20,5500,null,"https://zs.sdbi.edu.cn/info/1026/3406.htm"]
["山东商务职业学院","机电技术","09","机电一体化技术",null,27,5500,null,"https://zs.sdbi.edu.cn/info/1026/3406.htm"]
["山东商务职业学院","机电技术","10","工业机器人技术",null,15,5750,null,"https://zs.sdbi.edu.cn/info/1026/3406.htm"]
["山东商务职业学院","学前教育","11","婴幼儿托育服务与管理",null,30,6000,null,"https://zs.sdbi.edu.cn/info/1026/3406.htm"]
["山东商务职业学院","旅游管理","12","旅游管理",null,30,4800,null,"https://zs.sdbi.edu.cn/info/1026/3406.htm"]
["山东商务职业学院","酒店管理","13","酒店管理与数字化运营",null,47,4800,null,"https://zs.sdbi.edu.cn/info/1026/3406.htm"]
["山东商务职业学院","数字媒体","14","动漫制作技术",null,22,5000,null,"https://zs.sdbi.edu.cn/info/1026/3406.htm"]
["山东商务职业学院","市场营销","T1","连锁经营与管理",null,3,5520,"（限国家二级及以上运动员报考）","https://zs.sdbi.edu.cn/info/1026/3406.htm"]
["山东商务职业学院","烹 饪","T2","粮食工程技术与管理",null,3,5750,"（限国家二级及以上运动员报考）","https://zs.sdbi.edu.cn/info/1026/3406.htm"]
["山东商务职业学院","机电技术","T3","机电一体化技术",null,3,5500,"（限国家二级及以上运动员报考）","https://zs.sdbi.edu.cn/info/1026/3406.htm"]
["山东商务职业学院","酒店管理","T4","酒店管理与数字化运营",null,3,4800,"（限国家二级及以上运动员报考）","https://zs.sdbi.edu.cn/info/1026/3406.htm"]
["山东商务职业学院","数字媒体","T5","动漫制作技术",null,3,5000,"（限国家二级及以上运动员报考）","https://zs.sdbi.edu.cn/info/1026/3406.htm"]
["山东外国语职业技术大学","学前教育",null,"早期教育",null,30,15800,null,"http://zsb.swut.cn/engine2/d/26084011/3039686/0?t=6496225&p=440501"]
["山东外国语职业技术大学","市场营销",null,"市场营销",null,35,13800,null,"http://zsb.swut.cn/engine2/d/26084011/3039686/0?t=6496225&p=440501"]
["山东外国语职业技术大学","电子商务",null,"电子商务",null,20,13800,null,"http://zsb.swut.cn/engine2/d/26084011/3039686/0?t=6496225&p=440501"]
["山东外国语职业技术大学","国际商务",null,"应用德语",null,15,13800,null,"http://zsb.swut.cn/engine2/d/26084011/3039686/0?t=6496225&p=440501"]
["山东外国语职业技术大学","国际商务",null,"应用西班牙语",null,15,13800,null,"http://zsb.swut.cn/engine2/d/26084011/3039686/0?t=6496225&p=440501"]
["山东外国语职业技术大学","国际商务",null,"应用法语",null,15,13800,null,"http://zsb.swut.cn/engine2/d/26084011/3039686/0?t=6496225&p=440501"]
["山东外国语职业技术大学","国际商务",null,"应用阿拉伯语",null,15,13800,null,"http://zsb.swut.cn/engine2/d/26084011/3039686/0?t=6496225&p=440501"]
["山东外国语职业技术大学","网络技术",null,"计算机网络技术",null,30,14800,null,"http://zsb.swut.cn/engine2/d/26084011/3039686/0?t=6496225&p=440501"]
["山东外国语职业技术大学","建筑",null,"建筑工程技术",null,20,14800,null,"http://zsb.swut.cn/engine2/d/26084011/3039686/0?t=6496225&p=440501"]
["山东外国语职业技术大学","建筑",null,"工程造价",null,20,14800,null,"http://zsb.swut.cn/engine2/d/26084011/3039686/0?t=6496225&p=440501"]
["山东外国语职业技术大学","化工与环境",null,"油气储运技术",null,30,15800,null,"http://zsb.swut.cn/engine2/d/26084011/3039686/0?t=6496225&p=440501"]
["山东外国语职业技术大学","机电技术",null,"工业机器人技术",null,25,15800,null,"http://zsb.swut.cn/engine2/d/26084011/3039686/0?t=6496225&p=440501"]
["山东外国语职业技术大学","自动控制",null,"无人机应用技术",null,25,15800,null,"http://zsb.swut.cn/engine2/d/26084011/3039686/0?t=6496225&p=440501"]
["山东外国语职业技术大学","艺术设计",null,"艺术设计",null,15,15800,null,"http://zsb.swut.cn/engine2/d/26084011/3039686/0?t=6496225&p=440501"]
["山东外国语职业技术大学","旅游管理",null,"旅游管理",null,20,13800,null,"http://zsb.swut.cn/engine2/d/26084011/3039686/0?t=6496225&p=440501"]
["山东外国语职业技术大学","酒店管理",null,"酒店管理与数字化运营",null,45,13800,null,"http://zsb.swut.cn/engine2/d/26084011/3039686/0?t=6496225&p=440501"]
["山东外国语职业技术大学","酒店管理",null,"空中乘务",null,45,15800,null,"http://zsb.swut.cn/engine2/d/26084011/3039686/0?t=6496225&p=440501"]
["山东外贸职业学院","国际商务",null,"国际经济与贸易（三年均在泰安校区就读）",null,48,5520,null,"https://zs.sdwm.edu.cn/info/1020/2009.htm"]
["山东外贸职业学院","财税",null,"大数据与会计（三年均在泰安校区就读）",null,98,5520,null,"https://zs.sdwm.edu.cn/info/1020/2009.htm"]
["山东外贸职业学院","旅游管理",null,"旅游管理（三年均在泰安校区就读）",null,96,5520,null,"https://zs.sdwm.edu.cn/info/1020/2009.htm"]
["山东外贸职业学院","酒店管理",null,"空中乘务（青岛本部就读）",null,48,6900,null,"https://zs.sdwm.edu.cn/info/1020/2009.htm"]
["山东外贸职业学院","退役军人",null,"国际经济与贸易（三年均在泰安校区就读）",null,2,5520,null,"https://zs.sdwm.edu.cn/info/1020/2009.htm"]
["山东外贸职业学院","退役军人",null,"大数据与会计（三年均在泰安校区就读）",null,4,5520,null,"https://zs.sdwm.edu.cn/info/1020/2009.htm"]
["山东外贸职业学院","退役军人",null,"旅游管理（三年均在泰安校区就读）",null,4,5520,null,"https://zs.sdwm.edu.cn/info/1020/2009.htm"]
["山东服装职业学院","服装",null,"服装与服饰设计",null,30,null,null,"https://zsb.svict.com/2024/0125/c287a41084/page.htm"]
["山东服装职业学院","服装",null,"服装与服饰设计(中外合作办学)",null,5,null,null,"https://zsb.svict.com/2024/0125/c287a41084/page.htm"]
["山东服装职业学院","服装",null,"服装陈列与展示设计",null,25,null,null,"https://zsb.svict.com/2024/0125/c287a41084/page.htm"]
["山东服装职业学院","艺术设计",null,"数字媒体艺术设计",null,25,null,null,"https://zsb.svict.com/2024/0125/c287a41084/page.htm"]
["山东服装职业学院","艺术设计",null,"书画艺术",null,20,null,null,"https://zsb.svict.com/2024/0125/c287a41084/page.htm"]
["山东服装职业学院","数字媒体",null,"动漫设计",null,20,null,null,"https://zsb.svict.com/2024/0125/c287a41084/page.htm"]
["山东服装职业学院","市场营销",null,"市场营销",null,25,null,null,"https://zsb.svict.com/2024/0125/c287a41084/page.htm"]
["山东服装职业学院","电子商务",null,"电子商务",null,25,null,null,"https://zsb.svict.com/2024/0125/c287a41084/page.htm"]
["山东服装职业学院","机电技术",null,"机电一体化技术",null,25,null,null,"https://zsb.svict.com/2024/0125/c287a41084/page.htm"]
["山东服装职业学院","软件与应用技术",null,"计算机应用技术",null,25,null,null,"https://zsb.svict.com/2024/0125/c287a41084/page.htm"]
["山东服装职业学院","网络技术",null,"计算机网络技术",null,25,null,null,"https://zsb.svict.com/2024/0125/c287a41084/page.htm"]
["山东服装职业学院","财税",null,"大数据与财务管理",null,25,null,null,"https://zsb.svict.com/2024/0125/c287a41084/page.htm"]
["山东服装职业学院","酒店管理",null,"酒店管理与数字化运营",null,25,null,null,"https://zsb.svict.com/2024/0125/c287a41084/page.htm"]
["青岛港湾职业技术学院","建筑","A1","建筑工程技术",null,12,null,null,"https://zs.qdgw.edu.cn/index.php/danzhaozhengce/detail/228.html"]
["青岛港湾职业技术学院","机械制造","A2","船舶动力工程技术",null,4,null,null,"https://zs.qdgw.edu.cn/index.php/danzhaozhengce/detail/228.html"]
["青岛港湾职业技术学院","机械制造","A3","数字化设计与制造技术",null,8,null,null,"https://zs.qdgw.edu.cn/index.php/danzhaozhengce/detail/228.html"]
["青岛港湾职业技术学院","机械制造","A4","机械制造及自动化",null,10,null,null,"https://zs.qdgw.edu.cn/index.php/danzhaozhengce/detail/228.html"]
["青岛港湾职业技术学院","机电技术","A5","港口机械与智能控制",null,10,null,null,"https://zs.qdgw.edu.cn/index.php/danzhaozhengce/detail/228.html"]
["青岛港湾职业技术学院","机电技术","A6","轮机工程技术",null,2,null,"航海类","https://zs.qdgw.edu.cn/index.php/danzhaozhengce/detail/228.html"]
["青岛港湾职业技术学院","机电技术","A7","机电一体化技术",null,12,null,null,"https://zs.qdgw.edu.cn/index.php/danzhaozhengce/detail/228.html"]
["青岛港湾职业技术学院","电气技术","A8","船舶电气工程技术",null,4,null,null,"https://zs.qdgw.edu.cn/index.php/danzhaozhengce/detail/228.html"]
["青岛港湾职业技术学院","电气技术","A9","电气自动化技术",null,4,null,null,"https://zs.qdgw.edu.cn/index.php/danzhaozhengce/detail/228.html"]
["青岛港湾职业技术学院","电子技术","B1","船舶电子电气技术",null,6,null,"航海类","https://zs.qdgw.edu.cn/index.php/danzhaozhengce/detail/228.html"]
["青岛港湾职业技术学院","电子技术","B2","无人机应用技术",null,2,null,null,"https://zs.qdgw.edu.cn/index.php/danzhaozhengce/detail/228.html"]
["青岛港湾职业技术学院","电子技术","B3","电子信息工程技术",null,14,null,null,"https://zs.qdgw.edu.cn/index.php/danzhaozhengce/detail/228.html"]
["青岛港湾职业技术学院","车辆维修","B4","新能源汽车技术",null,7,null,null,"https://zs.qdgw.edu.cn/index.php/danzhaozhengce/detail/228.html"]
["青岛港湾职业技术学院","车辆维修","B5","汽车检测与维修技术",null,7,null,null,"https://zs.qdgw.edu.cn/index.php/danzhaozhengce/detail/228.html"]
["青岛港湾职业技术学院","运输","B6","航海技术",null,2,null,"航海类","https://zs.qdgw.edu.cn/index.php/danzhaozhengce/detail/228.html"]
["青岛港湾职业技术学院","运输","B7","水路运输安全管理",null,2,null,null,"https://zs.qdgw.edu.cn/index.php/danzhaozhengce/detail/228.html"]
["青岛港湾职业技术学院","数字媒体","B8","数字媒体技术",null,10,null,null,"https://zs.qdgw.edu.cn/index.php/danzhaozhengce/detail/228.html"]
["青岛港湾职业技术学院","网络技术","B9","软件技术",null,7,null,null,"https://zs.qdgw.edu.cn/index.php/danzhaozhengce/detail/228.html"]
["青岛港湾职业技术学院","软件与应用技术","C1","软件技术",null,10,null,null,"https://zs.qdgw.edu.cn/index.php/danzhaozhengce/detail/228.html"]
["青岛港湾职业技术学院","软件与应用技术","C2","智能物流技术",null,3,null,null,"https://zs.qdgw.edu.cn/index.php/danzhaozhengce/detail/228.html"]
["青岛港湾职业技术学院","医学技术","C3","社区康复",null,5,null,null,"https://zs.qdgw.edu.cn/index.php/danzhaozhengce/detail/228.html"]
["青岛港湾职业技术学院","财税","C4","会计信息管理",null,6,null,null,"https://zs.qdgw.edu.cn/index.php/danzhaozhengce/detail/228.html"]
["青岛港湾职业技术学院","市场营销","C5","电子商务",null,6,null,null,"https://zs.qdgw.edu.cn/index.php/danzhaozhengce/detail/228.html"]
["青岛港湾职业技术学院","电子商务","C6","电子商务",null,8,null,null,"https://zs.qdgw.edu.cn/index.php/danzhaozhengce/detail/228.html"]
["青岛港湾职业技术学院","电子商务","C7","跨境电子商务",null,4,null,null,"https://zs.qdgw.edu.cn/index.php/danzhaozhengce/detail/228.html"]
["青岛港湾职业技术学院","国际商务","C8","国际经济与贸易",null,4,null,null,"https://zs.qdgw.edu.cn/index.php/danzhaozhengce/detail/228.html"]
["青岛港湾职业技术学院","国际商务","C9","国际商务",null,4,null,null,"https://zs.qdgw.edu.cn/index.php/danzhaozhengce/detail/228.html"]
["青岛港湾职业技术学院","物流管理","D1","现代物流管理",null,20,null,null,"https://zs.qdgw.edu.cn/index.php/danzhaozhengce/detail/228.html"]
["青岛港湾职业技术学院","酒店管理","D2","国际邮轮乘务管理",null,3,null,null,"https://zs.qdgw.edu.cn/index.php/danzhaozhengce/detail/228.html"]
["青岛港湾职业技术学院","酒店管理","D3","酒店管理与数字化运营",null,4,null,null,"https://zs.qdgw.edu.cn/index.php/danzhaozhengce/detail/228.html"]
["青岛工程职业学院","机电技术",null,"机电一体化技术",null,20,5000,"机电工程学院","https://zs.qdec.edu.cn/2024/0129/c272a7087/page.htm"]
["青岛工程职业学院","机电技术",null,"工业机器人技术",null,15,5000,"机电工程学院","https://zs.qdec.edu.cn/2024/0129/c272a7087/page.htm"]
["青岛工程职业学院","自动控制",null,"工业机器人技术",null,5,5000,"机电工程学院","https://zs.qdec.edu.cn/2024/0129/c272a7087/page.htm"]
["青岛工程职业学院","运输",null,"城市轨道交通运营管理",null,20,5000,"机电工程学院","https://zs.qdec.edu.cn/2024/0129/c272a7087/page.htm"]
["青岛工程职业学院","机电技术",null,"城市轨道车辆应用技术",null,20,5000,"机电工程学院","https://zs.qdec.edu.cn/2024/0129/c272a7087/page.htm"]
["青岛工程职业学院","车辆维修",null,"汽车检测与维修技术",null,15,5000,"机电工程学院","https://zs.qdec.edu.cn/2024/0129/c272a7087/page.htm"]
["青岛工程职业学院","车辆维修",null,"新能源汽车枪测与维修技术",null,15,5000,"机电工程学院","https://zs.qdec.edu.cn/2024/0129/c272a7087/page.htm"]
["青岛工程职业学院","电子技术",null,"智能产品开发与应用",null,20,5000,"机电工程学院","https://zs.qdec.edu.cn/2024/0129/c272a7087/page.htm"]
["青岛工程职业学院","机电技术",null,"电气自动化技术",null,15,5000,"机电工程学院","https://zs.qdec.edu.cn/2024/0129/c272a7087/page.htm"]
["青岛工程职业学院","自动控制",null,"电气自动化技术",null,5,5000,"机电工程学院","https://zs.qdec.edu.cn/2024/0129/c272a7087/page.htm"]
["青岛工程职业学院","机械制造",null,"模具设计与制造",null,5,5000,"智能制造学院","https://zs.qdec.edu.cn/2024/0129/c272a7087/page.htm"]
["青岛工程职业学院","机械制造",null,"材料成型及控制技术",null,15,5000,"智能制造学院","https://zs.qdec.edu.cn/2024/0129/c272a7087/page.htm"]
["青岛工程职业学院","设备维修",null,"智能焊援技术",null,15,5000,"智能制造学院","https://zs.qdec.edu.cn/2024/0129/c272a7087/page.htm"]
["青岛工程职业学院","自动控制",null,"智能控制技术",null,15,5000,"智能制造学院","https://zs.qdec.edu.cn/2024/0129/c272a7087/page.htm"]
["青岛工程职业学院","自动控制",null,"无人机应用技术",null,15,5000,"智能制造学院","https://zs.qdec.edu.cn/2024/0129/c272a7087/page.htm"]
["青岛工程职业学院","机械制造",null,"工业设计",null,10,5000,"智能制造学院","https://zs.qdec.edu.cn/2024/0129/c272a7087/page.htm"]
["青岛工程职业学院","机械制造",null,"机械制造及自动化",null,15,5000,"智能制造学院","https://zs.qdec.edu.cn/2024/0129/c272a7087/page.htm"]
["青岛工程职业学院","机电技术",null,"智能制造装备技术",null,15,5000,"智能制造学院","https://zs.qdec.edu.cn/2024/0129/c272a7087/page.htm"]
["青岛工程职业学院","机械制造",null,"数控技术",null,5,5000,"智能制造学院","https://zs.qdec.edu.cn/2024/0129/c272a7087/page.htm"]
["青岛工程职业学院","软件与应用技术",null,"人工智能技术应用",null,40,5000,"信息工程学院","https://zs.qdec.edu.cn/2024/0129/c272a7087/page.htm"]
["青岛工程职业学院","药学",null,"药品生物技术",null,8,5000,"海洋财经学院","https://zs.qdec.edu.cn/2024/0129/c272a7087/page.htm"]
["青岛工程职业学院","财税",null,"大数掘与财务管理",null,9,4800,"海洋财经学院","https://zs.qdec.edu.cn/2024/0129/c272a7087/page.htm"]
["青岛工程职业学院","物流管理",null,"现代物流管理",null,9,4800,"海洋财经学院","https://zs.qdec.edu.cn/2024/0129/c272a7087/page.htm"]
["青岛工程职业学院","电子商务",null,"跨境电子商务",null,9,4800,"海洋财经学院","https://zs.qdec.edu.cn/2024/0129/c272a7087/page.htm"]
["青岛工程职业学院","退役军人",null,"机电一体化技术",null,1,5000,"机电工程学院","https://zs.qdec.edu.cn/2024/0129/c272a7087/page.htm"]
["青岛工程职业学院","退役军人",null,"工业机器人技术",null,1,5000,"机电工程学院","https://zs.qdec.edu.cn/2024/0129/c272a7087/page.htm"]
["青岛工程职业学院","退役军人",null,"城市轨道交通运营管理",null,1,5000,"机电工程学院","https://zs.qdec.edu.cn/2024/0129/c272a7087/page.htm"]
["青岛工程职业学院","退役军人",null,"城市轨道车辆应用技术",null,1,5000,"机电工程学院","https://zs.qdec.edu.cn/2024/0129/c272a7087/page.htm"]
["青岛工程职业学院","退役军人",null,"汽车检测与维修技术",null,1,5000,"机电工程学院","https://zs.qdec.edu.cn/2024/0129/c272a7087/page.htm"]
["青岛工程职业学院","退役军人",null,"电气自动化技术",null,1,5000,"机电工程学院","https://zs.qdec.edu.cn/2024/0129/c272a7087/page.htm"]
["青岛工程职业学院","退役军人",null,"模具设计与制造",null,1,5000,"智能制造学院","https://zs.qdec.edu.cn/2024/0129/c272a7087/page.htm"]
["青岛工程职业学院","退役军人",null,"智能焊接技术",null,1,5000,"智能制造学院","https://zs.qdec.edu.cn/2024/0129/c272a7087/page.htm"]
["青岛工程职业学院","退役军人",null,"智能控制技术",null,1,5000,"智能制造学院","https://zs.qdec.edu.cn/2024/0129/c272a7087/page.htm"]
["青岛工程职业学院","退役军人",null,"无人机应用技术",null,1,5000,"智能制造学院","https://zs.qdec.edu.cn/2024/0129/c272a7087/page.htm"]
["青岛工程职业学院","退役军人",null,"机械制造及自动化",null,1,5000,"智能制造学院","https://zs.qdec.edu.cn/2024/0129/c272a7087/page.htm"]
["青岛工程职业学院","退役军人",null,"现代移动通信技术",null,1,5000,"信息工程学院","https://zs.qdec.edu.cn/2024/0129/c272a7087/page.htm"]
["青岛工程职业学院","退役军人",null,"德联网应用技术",null,1,5000,"信息工程学院","https://zs.qdec.edu.cn/2024/0129/c272a7087/page.htm"]
["青岛工程职业学院","退役军人",null,"人工智能技术应用",null,1,5000,"信息工程学院","https://zs.qdec.edu.cn/2024/0129/c272a7087/page.htm"]
["青岛工程职业学院","退役军人",null,"集成电路技术",null,1,5000,"信息工程学院","https://zs.qdec.edu.cn/2024/0129/c272a7087/page.htm"]
["青岛工程职业学院","退役军人",null,"药品生物技术",null,1,5000,"海洋财经学院","https://zs.qdec.edu.cn/2024/0129/c272a7087/page.htm"]
["青岛工程职业学院","退役军人",null,"健康管理",null,1,5000,"海洋财经学院","https://zs.qdec.edu.cn/2024/0129/c272a7087/page.htm"]
["青岛工程职业学院","退役军人",null,"大数掘与财务管理",null,1,4800,"海洋财经学院","https://zs.qdec.edu.cn/2024/0129/c272a7087/page.htm"]
["青岛工程职业学院","退役军人",null,"现代物流管理",null,1,4800,"海洋财经学院","https://zs.qdec.edu.cn/2024/0129/c272a7087/page.htm"]
["青岛工程职业学院","退役军人",null,"跨境电子商务",null,1,4800,"海洋财经学院","https://zs.qdec.edu.cn/2024/0129/c272a7087/page.htm"]
["潍坊理工学院","国际商务","A1","国际经济与贸易",null,15,12800,null,"http://www.zsb.wfit.edu.cn/html/zhpj/2024/0120/17563.html"]
["潍坊理工学院","财税","A2","大数据与会计",null,20,12800,null,"http://www.zsb.wfit.edu.cn/html/zhpj/2024/0120/17563.html"]
["潍坊理工学院","电子商务","A3","电子商务",null,45,12800,null,"http://www.zsb.wfit.edu.cn/html/zhpj/2024/0120/17563.html"]
["潍坊理工学院","自动控制","A4","电气自动化技术",null,15,12800,null,"http://www.zsb.wfit.edu.cn/html/zhpj/2024/0120/17563.html"]
["潍坊理工学院","建筑","A5","城市燃气工程技术",null,10,12800,null,"http://www.zsb.wfit.edu.cn/html/zhpj/2024/0120/17563.html"]
["潍坊理工学院","数字媒体","A6","动漫设计",null,10,13800,null,"http://www.zsb.wfit.edu.cn/html/zhpj/2024/0120/17563.html"]
["潍坊理工学院","数字媒体","A7","融媒体技术与运营",null,10,12800,null,"http://www.zsb.wfit.edu.cn/html/zhpj/2024/0120/17563.html"]
["潍坊理工学院","数字媒体","A8","动漫制作技术",null,15,12800,null,"http://www.zsb.wfit.edu.cn/html/zhpj/2024/0120/17563.html"]
["潍坊理工学院","艺术设计","A9","艺术设计",null,5,13800,null,"http://www.zsb.wfit.edu.cn/html/zhpj/2024/0120/17563.html"]
["潍坊理工学院","酒店管理","B1","空中乘务",null,40,15800,null,"http://www.zsb.wfit.edu.cn/html/zhpj/2024/0120/17563.html"]
["潍坊理工学院","酒店管理","B2","酒店管理与数字化运营",null,10,12800,null,"http://www.zsb.wfit.edu.cn/html/zhpj/2024/0120/17563.html"]
["潍坊理工学院","旅游管理","B3","旅游管理",null,5,12800,null,"http://www.zsb.wfit.edu.cn/html/zhpj/2024/0120/17563.html"]
["潍坊理工学院","自动控制","B4","智能控制技术",null,5,12800,null,"http://www.zsb.wfit.edu.cn/html/zhpj/2024/0120/17563.html"]
["潍坊理工学院","自动控制","B5","智能机器人技术",null,10,12800,null,"http://www.zsb.wfit.edu.cn/html/zhpj/2024/0120/17563.html"]
["潍坊理工学院","机电技术","B6","工业机器人技术",null,10,12800,null,"http://www.zsb.wfit.edu.cn/html/zhpj/2024/0120/17563.html"]
["潍坊理工学院","公共服务与管理","B7","现代文秘",null,5,12800,null,"http://www.zsb.wfit.edu.cn/html/zhpj/2024/0120/17563.html"]
["潍坊理工学院","软件与应用技术","B8","大数据技术",null,10,15800,null,"http://www.zsb.wfit.edu.cn/html/zhpj/2024/0120/17563.html"]
["潍坊理工学院","公共服务与管理","B9","党务工作",null,10,12800,null,"http://www.zsb.wfit.edu.cn/html/zhpj/2024/0120/17563.html"]
["潍坊理工学院","退役军人","T1","党务工作",null,30,12800,null,"http://www.zsb.wfit.edu.cn/html/zhpj/2024/0120/17563.html"]
["山东城市建设职业学院","建筑","02","装配式建筑工程技术",null,25,null,null,"https://zs.sduc.edu.cn/info/1016/2100.htm"]
["山东城市建设职业学院","建筑","10","园林工程技术",null,10,null,null,"https://zs.sduc.edu.cn/info/1016/2100.htm"]
["山东城市建设职业学院","现代农艺","45","园林工程技术",null,10,null,null,"https://zs.sduc.edu.cn/info/1016/2100.htm"]
["山东城市建设职业学院","电气技术","14","建筑电气工程技术",null,10,null,null,"https://zs.sduc.edu.cn/info/1016/2100.htm"]
["山东城市建设职业学院","建筑","47","建筑电气工程技术",null,15,null,null,"https://zs.sduc.edu.cn/info/1016/2100.htm"]
["山东城市建设职业学院","建筑","15","供热通风与空调工程技术",null,25,null,null,"https://zs.sduc.edu.cn/info/1016/2100.htm"]
["山东城市建设职业学院","建筑","18","市政工程技术",null,25,null,null,"https://zs.sduc.edu.cn/info/1016/2100.htm"]
["山东城市建设职业学院","建筑","22","城市轨道交通工程技术",null,5,null,null,"https://zs.sduc.edu.cn/info/1016/2100.htm"]
["山东城市建设职业学院","运输","49","城市轨道交通工程技术",null,5,null,null,"https://zs.sduc.edu.cn/info/1016/2100.htm"]
["山东城市建设职业学院","建筑","27","房地产经营与管理",null,25,null,null,"https://zs.sduc.edu.cn/info/1016/2100.htm"]
["山东城市建设职业学院","建筑","30","建筑经济信息化管理",null,25,null,null,"https://zs.sduc.edu.cn/info/1016/2100.htm"]
["山东城市建设职业学院","电子商务","32","电子商务",null,20,null,null,"https://zs.sduc.edu.cn/info/1016/2100.htm"]
["山东城市建设职业学院","化工与环境","33","环境工程技术",null,10,null,null,"https://zs.sduc.edu.cn/info/1016/2100.htm"]
["山东城市建设职业学院","建筑","51","环境工程技术",null,10,null,null,"https://zs.sduc.edu.cn/info/1016/2100.htm"]
["山东城市建设职业学院","建筑","37","给排水工程技术",null,20,null,null,"https://zs.sduc.edu.cn/info/1016/2100.htm"]
["山东城市建设职业学院","艺术设计","39","环境艺术设计",null,20,null,null,"https://zs.sduc.edu.cn/info/1016/2100.htm"]
["山东城市建设职业学院","艺术设计","40","展示艺术设计",null,20,null,null,"https://zs.sduc.edu.cn/info/1016/2100.htm"]
["山东城市建设职业学院","退役军人","T1","建设工程管理",null,40,null,null,"https://zs.sduc.edu.cn/info/1016/2100.htm"]
["山东电子职业技术学院","电子技术",null,"电子信息工程技术",null,5,null,null,"https://www.sdcet.edu.cn/zsxxw/2024/0123/c722a30910/page.htm"]
["山东电子职业技术学院","电子技术",null,"集成电路技术",null,1,null,null,"https://www.sdcet.edu.cn/zsxxw/2024/0123/c722a30910/page.htm"]
["山东电子职业技术学院","电子技术",null,"智能医疗装备技术",null,3,null,null,"https://www.sdcet.edu.cn/zsxxw/2024/0123/c722a30910/page.htm"]
["山东电子职业技术学院","电子技术",null,"现代通信技术",null,4,null,null,"https://www.sdcet.edu.cn/zsxxw/2024/0123/c722a30910/page.htm"]
["山东电子职业技术学院","电子技术",null,"通信工程设计与监理",null,2,null,null,"https://www.sdcet.edu.cn/zsxxw/2024/0123/c722a30910/page.htm"]
["山东电子职业技术学院","电子技术",null,"物联网应用技术",null,4,null,null,"https://www.sdcet.edu.cn/zsxxw/2024/0123/c722a30910/page.htm"]
["山东电子职业技术学院","电子技术",null,"智能产品开发与应用",null,2,null,null,"https://www.sdcet.edu.cn/zsxxw/2024/0123/c722a30910/page.htm"]
["山东电子职业技术学院","电子技术",null,"无人机应用技术",null,4,null,null,"https://www.sdcet.edu.cn/zsxxw/2024/0123/c722a30910/page.htm"]
["山东电子职业技术学院","电子技术",null,"新能源汽车技术",null,2,null,null,"https://www.sdcet.edu.cn/zsxxw/2024/0123/c722a30910/page.htm"]
["山东电子职业技术学院","运输",null,"城市轨道交通运营管理",null,13,null,null,"https://www.sdcet.edu.cn/zsxxw/2024/0123/c722a30910/page.htm"]
["山东电子职业技术学院","网络技术",null,"计算机网络技术",null,15,null,null,"https://www.sdcet.edu.cn/zsxxw/2024/0123/c722a30910/page.htm"]
["山东电子职业技术学院","软件与应用技术",null,"软件技术(中外合作办学）",null,24,null,null,"https://www.sdcet.edu.cn/zsxxw/2024/0123/c722a30910/page.htm"]
["山东电子职业技术学院","软件与应用技术",null,"信息安全技术应用",null,5,null,null,"https://www.sdcet.edu.cn/zsxxw/2024/0123/c722a30910/page.htm"]
["山东电子职业技术学院","软件与应用技术",null,"计算机应用技术",null,5,null,null,"https://www.sdcet.edu.cn/zsxxw/2024/0123/c722a30910/page.htm"]
["山东电子职业技术学院","软件与应用技术",null,"云计算技术应用",null,5,null,null,"https://www.sdcet.edu.cn/zsxxw/2024/0123/c722a30910/page.htm"]
["山东电子职业技术学院","软件与应用技术",null,"移动应用开发",null,5,null,null,"https://www.sdcet.edu.cn/zsxxw/2024/0123/c722a30910/page.htm"]
["山东电子职业技术学院","软件与应用技术",null,"大数据技术",null,5,null,null,"https://www.sdcet.edu.cn/zsxxw/2024/0123/c722a30910/page.htm"]
["山东电子职业技术学院","软件与应用技术",null,"人工智能技术应用",null,5,null,null,"https://www.sdcet.edu.cn/zsxxw/2024/0123/c722a30910/page.htm"]
["山东电子职业技术学院","软件与应用技术",null,"虚拟现实技术应用",null,8,null,null,"https://www.sdcet.edu.cn/zsxxw/2024/0123/c722a30910/page.htm"]
["山东电子职业技术学院","电气技术",null,"电子信息工程技术",null,3,null,null,"https://www.sdcet.edu.cn/zsxxw/2024/0123/c722a30910/page.htm"]
["山东电子职业技术学院","电气技术",null,"物联网应用技术",null,2,null,null,"https://www.sdcet.edu.cn/zsxxw/2024/0123/c722a30910/page.htm"]
["山东电子职业技术学院","电气技术",null,"工业机器人技术",null,4,null,null,"https://www.sdcet.edu.cn/zsxxw/2024/0123/c722a30910/page.htm"]
["山东电子职业技术学院","机电技术",null,"集成电路技术",null,1,null,null,"https://www.sdcet.edu.cn/zsxxw/2024/0123/c722a30910/page.htm"]
["山东电子职业技术学院","机电技术",null,"智能医疗装备技术",null,3,null,null,"https://www.sdcet.edu.cn/zsxxw/2024/0123/c722a30910/page.htm"]
["山东电子职业技术学院","机电技术",null,"智能产品开发与应用",null,3,null,null,"https://www.sdcet.edu.cn/zsxxw/2024/0123/c722a30910/page.htm"]
["山东电子职业技术学院","机电技术",null,"建筑智能化工程技术",null,3,null,null,"https://www.sdcet.edu.cn/zsxxw/2024/0123/c722a30910/page.htm"]
["山东电子职业技术学院","机电技术",null,"机电一体化技术",null,2,null,null,"https://www.sdcet.edu.cn/zsxxw/2024/0123/c722a30910/page.htm"]
["山东电子职业技术学院","机电技术",null,"无人机应用技术",null,4,null,null,"https://www.sdcet.edu.cn/zsxxw/2024/0123/c722a30910/page.htm"]
["山东电子职业技术学院","机电技术",null,"工业机器人技术",null,3,null,null,"https://www.sdcet.edu.cn/zsxxw/2024/0123/c722a30910/page.htm"]
["山东电子职业技术学院","建筑",null,"建筑智能化工程技术",null,2,null,null,"https://www.sdcet.edu.cn/zsxxw/2024/0123/c722a30910/page.htm"]
["山东电子职业技术学院","机械制造",null,"机电一体化技术",null,3,null,null,"https://www.sdcet.edu.cn/zsxxw/2024/0123/c722a30910/page.htm"]
["山东电子职业技术学院","车辆维修",null,"新能源汽车技术",null,3,null,null,"https://www.sdcet.edu.cn/zsxxw/2024/0123/c722a30910/page.htm"]
["山东电子职业技术学院","电子商务",null,"电子商务",null,10,null,null,"https://www.sdcet.edu.cn/zsxxw/2024/0123/c722a30910/page.htm"]
["山东电子职业技术学院","电子商务",null,"电子商务（中外合作办学）",null,5,null,null,"https://www.sdcet.edu.cn/zsxxw/2024/0123/c722a30910/page.htm"]
["山东电子职业技术学院","电子商务",null,"网络营销与直播电商",null,18,null,null,"https://www.sdcet.edu.cn/zsxxw/2024/0123/c722a30910/page.htm"]
["山东电子职业技术学院","财税",null,"大数据与会计",null,16,null,null,"https://www.sdcet.edu.cn/zsxxw/2024/0123/c722a30910/page.htm"]
["山东电子职业技术学院","财税",null,"大数据与财务管理",null,10,null,null,"https://www.sdcet.edu.cn/zsxxw/2024/0123/c722a30910/page.htm"]
["山东电子职业技术学院","市场营销",null,"连锁经营与管理",null,10,null,null,"https://www.sdcet.edu.cn/zsxxw/2024/0123/c722a30910/page.htm"]
["山东电子职业技术学院","市场营销",null,"市场营销",null,10,null,null,"https://www.sdcet.edu.cn/zsxxw/2024/0123/c722a30910/page.htm"]
["山东电子职业技术学院","数字媒体",null,"数字媒体艺术设计",null,3,null,null,"https://www.sdcet.edu.cn/zsxxw/2024/0123/c722a30910/page.htm"]
["山东电子职业技术学院","数字媒体",null,"游戏艺术设计",null,10,null,null,"https://www.sdcet.edu.cn/zsxxw/2024/0123/c722a30910/page.htm"]
["山东电子职业技术学院","数字媒体",null,"虚拟现实技术应用",null,12,null,null,"https://www.sdcet.edu.cn/zsxxw/2024/0123/c722a30910/page.htm"]
["山东电子职业技术学院","艺术设计",null,"数字媒体艺术设计",null,3,null,null,"https://www.sdcet.edu.cn/zsxxw/2024/0123/c722a30910/page.htm"]
["山东电子职业技术学院","艺术设计",null,"游戏艺术设计",null,10,null,null,"https://www.sdcet.edu.cn/zsxxw/2024/0123/c722a30910/page.htm"]
["山东电子职业技术学院","退役军人",null,"电子信息工程技术",null,2,null,null,"https://www.sdcet.edu.cn/zsxxw/2024/0123/c722a30910/page.htm"]
["山东电子职业技术学院","退役军人",null,"现代通信技术",null,1,null,null,"https://www.sdcet.edu.cn/zsxxw/2024/0123/c722a30910/page.htm"]
["山东电子职业技术学院","退役军人",null,"通信工程设计与监理",null,1,null,null,"https://www.sdcet.edu.cn/zsxxw/2024/0123/c722a30910/page.htm"]
["山东电子职业技术学院","退役军人",null,"计算机应用技术",null,5,null,null,"https://www.sdcet.edu.cn/zsxxw/2024/0123/c722a30910/page.htm"]
["山东电子职业技术学院","退役军人",null,"新能源汽车技术",null,2,null,null,"https://www.sdcet.edu.cn/zsxxw/2024/0123/c722a30910/page.htm"]
["山东电子职业技术学院","退役军人",null,"网络营销与直播电商",null,3,null,null,"https://www.sdcet.edu.cn/zsxxw/2024/0123/c722a30910/page.htm"]
["山东电子职业技术学院","退役军人",null,"市场营销",null,2,null,null,"https://www.sdcet.edu.cn/zsxxw/2024/0123/c722a30910/page.htm"]
["山东电子职业技术学院","退役军人",null,"数字媒体技术",null,4,null,null,"https://www.sdcet.edu.cn/zsxxw/2024/0123/c722a30910/page.htm"]
["德州职业技术学院","机械制造","01","智能焊接技术",null,15,5500,null,"https://zsxxw.dzvc.edu.cn/info/1002/2121.htm"]
["德州职业技术学院","自动控制","02","电气自动化技术",null,10,5500,null,"https://zsxxw.dzvc.edu.cn/info/1002/2121.htm"]
["德州职业技术学院","数字媒体","03","数字媒体技术",null,30,5500,null,"https://zsxxw.dzvc.edu.cn/info/1002/2121.htm"]
["德州职业技术学院","软件与应用","04","计算机应用技术",null,30,5500,null,"https://zsxxw.dzvc.edu.cn/info/1002/2121.htm"]
["德州职业技术学院","电子商务","05","电子商务",null,10,5280,null,"https://zsxxw.dzvc.edu.cn/info/1002/2121.htm"]
["德州职业技术学院","网络技术","06","计算机网络技术",null,30,5500,null,"https://zsxxw.dzvc.edu.cn/info/1002/2121.htm"]
["德州职业技术学院","艺术设计","07","环境艺术设计",null,10,5500,null,"https://zsxxw.dzvc.edu.cn/info/1002/2121.htm"]
["德州职业技术学院","财税","08","大数据与会计",null,10,5280,null,"https://zsxxw.dzvc.edu.cn/info/1002/2121.htm"]
["德州职业技术学院","烹饪","09","烹饪工艺与营养",null,15,6070,null,"https://zsxxw.dzvc.edu.cn/info/1002/2121.htm"]
["德州职业技术学院","物流管理","10","现代物流管理",null,10,5280,null,"https://zsxxw.dzvc.edu.cn/info/1002/2121.htm"]
["德州职业技术学院","酒店管理","11","酒店管理与数字化运营",null,15,5280,null,"https://zsxxw.dzvc.edu.cn/info/1002/2121.htm"]
["德州职业技术学院","市场营销","12","市场营销",null,10,5280,null,"https://zsxxw.dzvc.edu.cn/info/1002/2121.htm"]
["德州职业技术学院","车辆维修","13","汽车检测与维修技术",null,10,5500,null,"https://zsxxw.dzvc.edu.cn/info/1002/2121.htm"]
["德州职业技术学院","设备维修","14","动车组检修技术",null,10,5500,null,"https://zsxxw.dzvc.edu.cn/info/1002/2121.htm"]
["德州职业技术学院","电子技术","15","集成电路技术",null,10,5500,null,"https://zsxxw.dzvc.edu.cn/info/1002/2121.htm"]
["德州职业技术学院","机电技术","16","光伏工程技术",null,20,6320,null,"https://zsxxw.dzvc.edu.cn/info/1002/2121.htm"]
["德州职业技术学院","建筑","17","建筑工程技术",null,10,5500,null,"https://zsxxw.dzvc.edu.cn/info/1002/2121.htm"]
["德州职业技术学院","现代农艺","18","园林工程技术",null,15,5500,null,"https://zsxxw.dzvc.edu.cn/info/1002/2121.htm"]
["德州职业技术学院","药学","19","药品生物技术",null,20,5500,null,"https://zsxxw.dzvc.edu.cn/info/1002/2121.htm"]
["德州职业技术学院","化工与环境","20","应用化工技术",null,10,5500,null,"https://zsxxw.dzvc.edu.cn/info/1002/2121.htm"]
["德州职业技术学院","学前教育","21","婴幼儿托育服务与管理",null,40,5280,null,"https://zsxxw.dzvc.edu.cn/info/1002/2121.htm"]
["德州职业技术学院","护理","22","智慧健康养老服务与管理",null,60,6070,null,"https://zsxxw.dzvc.edu.cn/info/1002/2121.htm"]
["青岛恒星科技学院","车辆维修",null,"汽车检测与维修技术",null,10,null,"机械与汽车工程学院","http://zs.hx.cn/content/tzgg/cc9c23f085cf41cb84ec04628fbef97f"]
["青岛恒星科技学院","电子技术",null,"电子产品检测技术",null,10,null,"机械与汽车工程学院","http://zs.hx.cn/content/tzgg/cc9c23f085cf41cb84ec04628fbef97f"]
["青岛恒星科技学院","设备维修",null,"汽车技术服务与营销",null,10,null,"机械与汽车工程学院","http://zs.hx.cn/content/tzgg/cc9c23f085cf41cb84ec04628fbef97f"]
["青岛恒星科技学院","车辆维修",null,"汽车技术服务与营销",null,10,null,"机械与汽车工程学院","http://zs.hx.cn/content/tzgg/cc9c23f085cf41cb84ec04628fbef97f"]
["青岛恒星科技学院","自动控制",null,"电气自动化技术",null,10,null,"机械与汽车工程学院","http://zs.hx.cn/content/tzgg/cc9c23f085cf41cb84ec04628fbef97f"]
["青岛恒星科技学院","电气技术",null,"电气自动化技术",null,20,null,"机械与汽车工程学院","http://zs.hx.cn/content/tzgg/cc9c23f085cf41cb84ec04628fbef97f"]
["青岛恒星科技学院","机电技术",null,"机电一体化技术",null,60,null,"机械与汽车工程学院","http://zs.hx.cn/content/tzgg/cc9c23f085cf41cb84ec04628fbef97f"]
["青岛恒星科技学院","电子技术",null,"应用电子技术",null,10,null,"机械与汽车工程学院","http://zs.hx.cn/content/tzgg/cc9c23f085cf41cb84ec04628fbef97f"]
["青岛恒星科技学院","网络技术",null,"计算机网络技术",null,40,null,"信息工程学院","http://zs.hx.cn/content/tzgg/cc9c23f085cf41cb84ec04628fbef97f"]
["青岛恒星科技学院","软件与应用技术",null,"软件技术",null,40,null,"信息工程学院","http://zs.hx.cn/content/tzgg/cc9c23f085cf41cb84ec04628fbef97f"]
["青岛恒星科技学院","软件与应用技术",null,"大数据技术",null,40,null,"信息工程学院","http://zs.hx.cn/content/tzgg/cc9c23f085cf41cb84ec04628fbef97f"]
["青岛恒星科技学院","建筑",null,"建筑室内设计",null,10,null,"建筑工程学院","http://zs.hx.cn/content/tzgg/cc9c23f085cf41cb84ec04628fbef97f"]
["青岛恒星科技学院","建筑",null,"建筑消防技术",null,10,null,"建筑工程学院","http://zs.hx.cn/content/tzgg/cc9c23f085cf41cb84ec04628fbef97f"]
["青岛恒星科技学院","建筑",null,"建筑工程技术",null,20,null,"建筑工程学院","http://zs.hx.cn/content/tzgg/cc9c23f085cf41cb84ec04628fbef97f"]
["青岛恒星科技学院","艺术设计",null,"环境艺术设计",null,15,null,"建筑工程学院","http://zs.hx.cn/content/tzgg/cc9c23f085cf41cb84ec04628fbef97f"]
["青岛恒星科技学院","建筑",null,"工程造价",null,10,null,"建筑工程学院","http://zs.hx.cn/content/tzgg/cc9c23f085cf41cb84ec04628fbef97f"]
["青岛恒星科技学院","国际商务",null,"国际经济与贸易",null,30,null,"商学院","http://zs.hx.cn/content/tzgg/cc9c23f085cf41cb84ec04628fbef97f"]
["青岛恒星科技学院","国际商务",null,"关务与外贸服务",null,10,null,"商学院","http://zs.hx.cn/content/tzgg/cc9c23f085cf41cb84ec04628fbef97f"]
["青岛恒星科技学院","市场营销",null,"市场营销",null,10,null,"商学院","http://zs.hx.cn/content/tzgg/cc9c23f085cf41cb84ec04628fbef97f"]
["青岛恒星科技学院","电子商务",null,"电子商务",null,60,null,"商学院","http://zs.hx.cn/content/tzgg/cc9c23f085cf41cb84ec04628fbef97f"]
["青岛恒星科技学院","财税",null,"金融服务与管理",null,20,null,"商学院","http://zs.hx.cn/content/tzgg/cc9c23f085cf41cb84ec04628fbef97f"]
["青岛恒星科技学院","物流管理",null,"现代物流管理",null,20,null,"商学院","http://zs.hx.cn/content/tzgg/cc9c23f085cf41cb84ec04628fbef97f"]
["青岛恒星科技学院","财税",null,"大数据与会计",null,30,null,"商学院","http://zs.hx.cn/content/tzgg/cc9c23f085cf41cb84ec04628fbef97f"]
["青岛恒星科技学院","市场营销",null,"连锁经营与管理",null,10,null,"商学院","http://zs.hx.cn/content/tzgg/cc9c23f085cf41cb84ec04628fbef97f"]
["青岛恒星科技学院","烹饪",null,"烹饪工艺与营养",null,15,null,"旅游管理学院","http://zs.hx.cn/content/tzgg/cc9c23f085cf41cb84ec04628fbef97f"]
["青岛恒星科技学院","旅游管理",null,"旅游管理",null,20,null,"旅游管理学院","http://zs.hx.cn/content/tzgg/cc9c23f085cf41cb84ec04628fbef97f"]
["青岛恒星科技学院","酒店管理",null,"空中乘务",null,20,null,"旅游管理学院","http://zs.hx.cn/content/tzgg/cc9c23f085cf41cb84ec04628fbef97f"]
["青岛恒星科技学院","国际商务",null,"应用日语",null,10,null,"国际教育学院","http://zs.hx.cn/content/tzgg/cc9c23f085cf41cb84ec04628fbef97f"]
["青岛恒星科技学院","国际商务",null,"应用韩语",null,10,null,"国际教育学院","http://zs.hx.cn/content/tzgg/cc9c23f085cf41cb84ec04628fbef97f"]
["青岛恒星科技学院","学前教育",null,"早期教育",null,60,null,"教育学院","http://zs.hx.cn/content/tzgg/cc9c23f085cf41cb84ec04628fbef97f"]
["青岛恒星科技学院","学前教育",null,"婴幼儿托育服务与管理",null,30,null,"教育学院","http://zs.hx.cn/content/tzgg/cc9c23f085cf41cb84ec04628fbef97f"]
["青岛恒星科技学院","公共服务与管理",null,"智慧健康养老服务与管理",null,10,null,"健康管理学院","http://zs.hx.cn/content/tzgg/cc9c23f085cf41cb84ec04628fbef97f"]
["青岛恒星科技学院","医学技术",null,"中医康复技术",null,50,null,"健康管理学院","http://zs.hx.cn/content/tzgg/cc9c23f085cf41cb84ec04628fbef97f"]
["青岛恒星科技学院","护理",null,"护理",null,70,null,"健康管理学院","http://zs.hx.cn/content/tzgg/cc9c23f085cf41cb84ec04628fbef97f"]
["青岛恒星科技学院","烹饪",null,"健康管理",null,5,null,"健康管理学院","http://zs.hx.cn/content/tzgg/cc9c23f085cf41cb84ec04628fbef97f"]
["青岛恒星科技学院","艺术设计",null,"包装策划与设计",null,10,null,"艺术与传媒学院","http://zs.hx.cn/content/tzgg/cc9c23f085cf41cb84ec04628fbef97f"]
["青岛恒星科技学院","艺术设计",null,"广告艺术设计",null,15,null,"艺术与传媒学院","http://zs.hx.cn/content/tzgg/cc9c23f085cf41cb84ec04628fbef97f"]
["青岛恒星科技学院","数字媒体",null,"广告艺术设计",null,60,null,"艺术与传媒学院","http://zs.hx.cn/content/tzgg/cc9c23f085cf41cb84ec04628fbef97f"]
["山东旅游职业学院","酒店管理",null,"酒店管理与数字化运营",null,92,5000,"饭店管理系","http://www.sdts.net.cn/zhaoShengXinXiWang/contents/446/440.html"]
["山东旅游职业学院","旅游管理",null,"旅游管理",null,50,5000,"旅游与休闲管理系","http://www.sdts.net.cn/zhaoShengXinXiWang/contents/446/440.html"]
["山东旅游职业学院","旅游管理",null,"导游",null,10,5000,"旅游与休闲管理系","http://www.sdts.net.cn/zhaoShengXinXiWang/contents/446/440.html"]
["山东旅游职业学院","旅游管理",null,"旅行社经营与管理",null,12,5000,"旅游与休闲管理系","http://www.sdts.net.cn/zhaoShengXinXiWang/contents/446/440.html"]
["山东旅游职业学院","旅游管理",null,"研学旅行管理与服务",null,10,5000,"旅游与休闲管理系","http://www.sdts.net.cn/zhaoShengXinXiWang/contents/446/440.html"]
["山东旅游职业学院","公共服务与管理",null,"现代物业管理",null,5,5000,"航空服务系","http://www.sdts.net.cn/zhaoShengXinXiWang/contents/446/440.html"]
["山东旅游职业学院","酒店管理",null,"空中乘务",null,50,5000,"航空服务系","http://www.sdts.net.cn/zhaoShengXinXiWang/contents/446/440.html"]
["山东旅游职业学院","运输",null,"民航安全技术管理",null,20,5000,"航空服务系","http://www.sdts.net.cn/zhaoShengXinXiWang/contents/446/440.html"]
["山东旅游职业学院","运输",null,"民航运输服务",null,5,5000,"航空服务系","http://www.sdts.net.cn/zhaoShengXinXiWang/contents/446/440.html"]
["山东旅游职业学院","烹饪",null,"烹饪工艺与营养",null,40,5000,"营养与烹饪系","http://www.sdts.net.cn/zhaoShengXinXiWang/contents/446/440.html"]
["山东旅游职业学院","烹饪",null,"中西面点工艺",null,15,5000,"营养与烹饪系","http://www.sdts.net.cn/zhaoShengXinXiWang/contents/446/440.html"]
["山东旅游职业学院","烹饪",null,"西式烹饪工艺",null,15,5000,"营养与烹饪系","http://www.sdts.net.cn/zhaoShengXinXiWang/contents/446/440.html"]
["山东旅游职业学院","国际商务",null,"旅游英语",null,8,5000,"旅游外语系","http://www.sdts.net.cn/zhaoShengXinXiWang/contents/446/440.html"]
["山东旅游职业学院","国际商务",null,"旅游日语",null,13,5000,"旅游外语系","http://www.sdts.net.cn/zhaoShengXinXiWang/contents/446/440.html"]
["山东旅游职业学院","国际商务",null,"应用韩语",null,10,5000,"旅游外语系","http://www.sdts.net.cn/zhaoShengXinXiWang/contents/446/440.html"]
["山东旅游职业学院","数字媒体",null,"数字媒体技术",null,35,5000,"工商管理系","http://www.sdts.net.cn/zhaoShengXinXiWang/contents/446/440.html"]
["山东旅游职业学院","电子商务",null,"电子商务",null,30,5000,"工商管理系","http://www.sdts.net.cn/zhaoShengXinXiWang/contents/446/440.html"]
["山东旅游职业学院","旅游管理",null,"智慧旅游技术应用",null,10,5000,"工商管理系","http://www.sdts.net.cn/zhaoShengXinXiWang/contents/446/440.html"]
["山东旅游职业学院","市场营销",null,"市场营销",null,10,5000,"工商管理系","http://www.sdts.net.cn/zhaoShengXinXiWang/contents/446/440.html"]
["山东旅游职业学院","公共服务与管理",null,"公共文化服务与管理",null,10,5000,"艺术系","http://www.sdts.net.cn/zhaoShengXinXiWang/contents/446/440.html"]
["山东信息职业技术学院","机电技术","D1","机电一体化技术",null,50,5500,null,"https://zhaosheng.sdcit.edu.cn/zszc/31055.jhtml"]
["山东信息职业技术学院","数字媒体","D2","数字媒体技术",null,45,5500,null,"https://zhaosheng.sdcit.edu.cn/zszc/31055.jhtml"]
["山东信息职业技术学院","数字媒体","D3","虚拟现实技术应用",null,40,5500,null,"https://zhaosheng.sdcit.edu.cn/zszc/31055.jhtml"]
["山东信息职业技术学院","网络技术","D4","计算机网络技术",null,40,6325,null,"https://zhaosheng.sdcit.edu.cn/zszc/31055.jhtml"]
["山东信息职业技术学院","网络技术","D5","信息安全技术应用",null,35,6325,null,"https://zhaosheng.sdcit.edu.cn/zszc/31055.jhtml"]
["山东信息职业技术学院","网络技术","D6","计算机应用技术",null,25,6050,null,"https://zhaosheng.sdcit.edu.cn/zszc/31055.jhtml"]
["山东信息职业技术学院","软件与应用技术","D7","计算机网络技术",null,10,6325,null,"https://zhaosheng.sdcit.edu.cn/zszc/31055.jhtml"]
["山东信息职业技术学院","软件与应用技术","D8","信息安全技术应用",null,15,6325,null,"https://zhaosheng.sdcit.edu.cn/zszc/31055.jhtml"]
["山东信息职业技术学院","软件与应用技术","D9","计算机应用技术",null,25,6050,null,"https://zhaosheng.sdcit.edu.cn/zszc/31055.jhtml"]
["山东信息职业技术学院","软件与应用技术","DA","虚拟现实技术应用",null,10,5500,null,"https://zhaosheng.sdcit.edu.cn/zszc/31055.jhtml"]
["山东信息职业技术学院","财税","DB","大数据与会计",null,50,5280,null,"https://zhaosheng.sdcit.edu.cn/zszc/31055.jhtml"]
["山东信息职业技术学院","学前教育","DC","早期教育",null,50,5500,null,"https://zhaosheng.sdcit.edu.cn/zszc/31055.jhtml"]
["山东信息职业技术学院","艺术设计","DD","数字媒体技术",null,5,5500,null,"https://zhaosheng.sdcit.edu.cn/zszc/31055.jhtml"]
["临沂职业学院","电气技术","01","电力系统自动化技术",null,120,5000,"临沂电力学校订单班，在临沂电力学校就读。","https://zsjy.lyvc.edu.cn/info/1052/1801.htm"]
["临沂职业学院","机电技术","02","热能动力工程技术",null,80,5000,"临沂电力学校订单班，在临沂电力学校就读。","https://zsjy.lyvc.edu.cn/info/1052/1801.htm"]
["临沂职业学院","建筑","03","建筑工程技术",null,200,5000,"天元建设集团订单班，在临沂市建筑高级技工学校就读。","https://zsjy.lyvc.edu.cn/info/1052/1801.htm"]
["临沂职业学院","退伍军人","B1","社区管理与服务",null,50,4800,null,"https://zsjy.lyvc.edu.cn/info/1052/1801.htm"]
["临沂职业学院","退伍军人","B2","党务工作",null,50,4800,null,"https://zsjy.lyvc.edu.cn/info/1052/1801.htm"]
["莱芜职业技术学院","设备维修","01","钢铁智能冶金技术",null,15,5750,null,"https://zsjy.lwvc.edu.cn/info/1026/4495.htm"]
["莱芜职业技术学院","机电技术","02","机电一体化技术",null,25,5750,null,"https://zsjy.lwvc.edu.cn/info/1026/4495.htm"]
["莱芜职业技术学院","机械制造","03","模具设计与制造",null,25,5750,null,"https://zsjy.lwvc.edu.cn/info/1026/4495.htm"]
["莱芜职业技术学院","机电技术","04","无人机应用技术",null,25,5000,null,"https://zsjy.lwvc.edu.cn/info/1026/4495.htm"]
["莱芜职业技术学院","机械制造","05","材料工程技术(泰钢班，面试通过者可报考面试联系电话：13290144443)",null,45,5750,null,"https://zsjy.lwvc.edu.cn/info/1026/4495.htm"]
["莱芜职业技术学院","软件与应用技术","06","人工智能技术应用(校企合作)",null,25,5000,null,"https://zsjy.lwvc.edu.cn/info/1026/4495.htm"]
["莱芜职业技术学院","软件与应用技术","07","软件技术(含校企合作)",null,25,5000,null,"https://zsjy.lwvc.edu.cn/info/1026/4495.htm"]
["莱芜职业技术学院","护理","08","老年保健与管理",null,30,6000,null,"https://zsjy.lwvc.edu.cn/info/1026/4495.htm"]
["莱芜职业技术学院","烹饪","09","食品检验检测技术",null,15,5000,null,"https://zsjy.lwvc.edu.cn/info/1026/4495.htm"]
["莱芜职业技术学院","市场营销",10,"市场营销",null,15,4800,null,"https://zsjy.lwvc.edu.cn/info/1026/4495.htm"]
["莱芜职业技术学院","物流管理",11,"现代物流管理",null,15,4800,null,"https://zsjy.lwvc.edu.cn/info/1026/4495.htm"]
["莱芜职业技术学院","酒店管理",12,"酒店管理与数字化运营",null,15,4800,null,"https://zsjy.lwvc.edu.cn/info/1026/4495.htm"]
["莱芜职业技术学院","旅游管理",13,"旅游管理",null,15,4800,null,"https://zsjy.lwvc.edu.cn/info/1026/4495.htm"]
["莱芜职业技术学院","财税",14,"大数据与会计",null,25,5280,null,"https://zsjy.lwvc.edu.cn/info/1026/4495.htm"]
["莱芜职业技术学院","艺术设计",15,"文物考古技术",null,10,5520,null,"https://zsjy.lwvc.edu.cn/info/1026/4495.htm"]
["莱芜职业技术学院","建筑",16,"园林工程技术",null,15,5000,null,"https://zsjy.lwvc.edu.cn/info/1026/4495.htm"]
["莱芜职业技术学院","建筑",17,"建筑工程技术",null,25,5000,null,"https://zsjy.lwvc.edu.cn/info/1026/4495.htm"]
["莱芜职业技术学院","车辆维修",18,"新能源汽车技术",null,25,5000,null,"https://zsjy.lwvc.edu.cn/info/1026/4495.htm"]
["莱芜职业技术学院","建筑",19,"建筑装饰工程技术",null,30,5000,null,"https://zsjy.lwvc.edu.cn/info/1026/4495.htm"]
["枣庄科技职业学院","机械制造",null,"智能焊接技术",null,25,5000,null,"http://zs.zzkjxy.edu.cn/zszc/180.html"]
["枣庄科技职业学院","机电技术",null,"机电一体化技术",null,35,5000,null,"http://zs.zzkjxy.edu.cn/zszc/180.html"]
["枣庄科技职业学院","车辆维修",null,"汽车检测与维修技术",null,30,5000,"","http://zs.zzkjxy.edu.cn/zszc/180.html"]
["枣庄科技职业学院","软件与应用技术",null,"计算机应用技术",null,30,5000,null,"http://zs.zzkjxy.edu.cn/zszc/180.html"]
["枣庄科技职业学院","网络技术",null,"计算机应用技术",null,10,5000,null,"http://zs.zzkjxy.edu.cn/zszc/180.html"]
["枣庄科技职业学院","数字媒体",null,"数字媒体技术",null,15,5000,null,"http://zs.zzkjxy.edu.cn/zszc/180.html"]
["枣庄科技职业学院","软件与应用技术",null,"大数据技术",null,30,5000,"订单培养，山东诚智数汇信息技术有限责任公司","http://zs.zzkjxy.edu.cn/zszc/180.html"]
["枣庄科技职业学院","网络技术",null,"大数据技术",null,10,5000,"订单培养，山东诚智数汇信息技术有限责任公司","http://zs.zzkjxy.edu.cn/zszc/180.html"]
["枣庄科技职业学院","建筑",null,"建筑工程技术",null,290,5000,"订单培养，天元建设集团","http://zs.zzkjxy.edu.cn/zszc/180.html"]
["枣庄科技职业学院","建筑",null,"工程造价",null,50,5000,"订单培养，天元建设集团","http://zs.zzkjxy.edu.cn/zszc/180.html"]
["枣庄科技职业学院","护理",null,"智慧健康养老服务与管理",null,25,4800,null,"http://zs.zzkjxy.edu.cn/zszc/180.html"]
["枣庄科技职业学院","电子商务",null,"电子商务",null,25,4800,"订单培养，滕州普利科技集团有限公司","http://zs.zzkjxy.edu.cn/zszc/180.html"]
["枣庄科技职业学院","护理",null,"婴幼儿托育服务与管理",null,25,6000,null,"http://zs.zzkjxy.edu.cn/zszc/180.html"]
["菏泽职业学院","电子商务",null,"电子商务",null,50,4800,null,"https://www.hezevc.edu.cn/zsjybgs/2024/0124/c1104a13032/page.htm"]
["菏泽职业学院","物流管理",null,"现代物流管理",null,30,4800,null,"https://www.hezevc.edu.cn/zsjybgs/2024/0124/c1104a13032/page.htm"]
["菏泽职业学院","化工与环境",null,"应用化工技术",null,30,5000,null,"https://www.hezevc.edu.cn/zsjybgs/2024/0124/c1104a13032/page.htm"]
["菏泽职业学院","药学",null,"药品生物技术",null,20,5000,null,"https://www.hezevc.edu.cn/zsjybgs/2024/0124/c1104a13032/page.htm"]
["菏泽职业学院","旅游管理",null,"旅游管理",null,50,4800,null,"https://www.hezevc.edu.cn/zsjybgs/2024/0124/c1104a13032/page.htm"]
["菏泽职业学院","学前教育",null,"音乐表演",null,50,4800,null,"https://www.hezevc.edu.cn/zsjybgs/2024/0124/c1104a13032/page.htm"]
["菏泽职业学院","酒店管理",null,"酒店管理与数字化运营",null,50,4800,null,"https://www.hezevc.edu.cn/zsjybgs/2024/0124/c1104a13032/page.htm"]
["菏泽职业学院","财税",null,"大数据与会计",null,20,4800,null,"https://www.hezevc.edu.cn/zsjybgs/2024/0124/c1104a13032/page.htm"]
["菏泽职业学院","财税",null,"金融科技应用",null,20,4800,null,"https://www.hezevc.edu.cn/zsjybgs/2024/0124/c1104a13032/page.htm"]
["菏泽职业学院","车辆维修",null,"汽车技术服务与营销",null,30,5000,null,"https://www.hezevc.edu.cn/zsjybgs/2024/0124/c1104a13032/page.htm"]
["菏泽职业学院","运输类",null,"城市轨道交通运营管理",null,30,5000,null,"https://www.hezevc.edu.cn/zsjybgs/2024/0124/c1104a13032/page.htm"]
["菏泽职业学院","建筑类",null,"建筑装饰工程技术",null,30,5000,null,"https://www.hezevc.edu.cn/zsjybgs/2024/0124/c1104a13032/page.htm"]
["菏泽职业学院","建筑类",null,"工程造价",null,20,5000,null,"https://www.hezevc.edu.cn/zsjybgs/2024/0124/c1104a13032/page.htm"]
["菏泽职业学院","建筑类",null,"建筑工程技术",null,50,5000,null,"https://www.hezevc.edu.cn/zsjybgs/2024/0124/c1104a13032/page.htm"]
["菏泽职业学院","机电技术",null,"机电一体化技术",null,40,5000,null,"https://www.hezevc.edu.cn/zsjybgs/2024/0124/c1104a13032/page.htm"]
["菏泽职业学院","自动控制",null,"电气自动化技术",null,20,5000,null,"https://www.hezevc.edu.cn/zsjybgs/2024/0124/c1104a13032/page.htm"]
["菏泽职业学院","软件与应用技术",null,"计算机应用技术",null,40,5000,null,"https://www.hezevc.edu.cn/zsjybgs/2024/0124/c1104a13032/page.htm"]
["菏泽职业学院","数字媒体",null,"计算机应用技术",null,30,5000,null,"https://www.hezevc.edu.cn/zsjybgs/2024/0124/c1104a13032/page.htm"]
["菏泽职业学院","数字媒体",null,"动漫制作技术",null,40,5000,null,"https://www.hezevc.edu.cn/zsjybgs/2024/0124/c1104a13032/page.htm"]
["菏泽职业学院","网络技术",null,"物联网应用技术",null,20,5000,null,"https://www.hezevc.edu.cn/zsjybgs/2024/0124/c1104a13032/page.htm"]
["菏泽职业学院","旅游管理",null,"旅游管理(中外合作办学)",null,10,12000,null,"https://www.hezevc.edu.cn/zsjybgs/2024/0124/c1104a13032/page.htm"]
["聊城职业技术学院","护理",null,"助产",null,10,6000,"护理系","https://zsjyw.lcvtc.edu.cn/info/1011/1646.htm"]
["聊城职业技术学院","医学技术",null,"健康管理","运动专长：5",30,6000,"护理系","https://zsjyw.lcvtc.edu.cn/info/1011/1646.htm"]
["聊城职业技术学院","公共服务与管理",null,"智慧健康养老服务与管理",null,20,5000,"护理系","https://zsjyw.lcvtc.edu.cn/info/1011/1646.htm"]
["聊城职业技术学院","医学技术",null,"智慧健康养老服务与管理",null,20,5000,"护理系","https://zsjyw.lcvtc.edu.cn/info/1011/1646.htm"]
["聊城职业技术学院","机械制造",null,"机械制造及自动化",null,10,5000,"机电工程系","https://zsjyw.lcvtc.edu.cn/info/1011/1646.htm"]
["聊城职业技术学院","机械制造",null,"增材制造技术",null,30,5000,"机电工程系","https://zsjyw.lcvtc.edu.cn/info/1011/1646.htm"]
["聊城职业技术学院","车辆维修",null,"新能源汽车技术","运动专长：5",20,5000,"机电工程系","https://zsjyw.lcvtc.edu.cn/info/1011/1646.htm"]
["聊城职业技术学院","自动控制",null,"工业互联网应用",null,20,5000,"机电工程系","https://zsjyw.lcvtc.edu.cn/info/1011/1646.htm"]
["聊城职业技术学院","自动控制",null,"电气自动化技术",null,10,5000,"机电工程系","https://zsjyw.lcvtc.edu.cn/info/1011/1646.htm"]
["聊城职业技术学院","机电技术",null,"工业机器人技术",null,15,5000,"机电工程系","https://zsjyw.lcvtc.edu.cn/info/1011/1646.htm"]
["聊城职业技术学院","机电技术",null,"机电一体化技术","运动专长：2",18,5000,"机电工程系","https://zsjyw.lcvtc.edu.cn/info/1011/1646.htm"]
["聊城职业技术学院","建筑",null,"建筑工程技术",null,50,5000,"建筑工程系","https://zsjyw.lcvtc.edu.cn/info/1011/1646.htm"]
["聊城职业技术学院","建筑",null,"无人机测绘技术",null,0,5000,"建筑工程系","https://zsjyw.lcvtc.edu.cn/info/1011/1646.htm"]
["聊城职业技术学院","机电技术",null,"建筑消防技术","运动专长：5",80,5000,"应急管理学院","https://zsjyw.lcvtc.edu.cn/info/1011/1646.htm"]
["聊城职业技术学院","机电技术",null,"电梯工程技术",null,20,5000,"应急管理学院","https://zsjyw.lcvtc.edu.cn/info/1011/1646.htm"]
["聊城职业技术学院","酒店管理",null,"酒店管理与数字化运营",null,30,4800,"旅游管理系","https://zsjyw.lcvtc.edu.cn/info/1011/1646.htm"]
["聊城职业技术学院","酒店管理",null,"高速铁路客运服务",null,25,5000,"旅游管理系","https://zsjyw.lcvtc.edu.cn/info/1011/1646.htm"]
["聊城职业技术学院","旅游管理",null,"高速铁路客运服务",null,15,5000,"旅游管理系","https://zsjyw.lcvtc.edu.cn/info/1011/1646.htm"]
["聊城职业技术学院","烹饪",null,"烹饪工艺与营养",null,30,5000,"旅游管理系","https://zsjyw.lcvtc.edu.cn/info/1011/1646.htm"]
["聊城职业技术学院","财税",null,"金融服务与管理",null,40,4800,"经济管理系","https://zsjyw.lcvtc.edu.cn/info/1011/1646.htm"]
["聊城职业技术学院","电子商务",null,"电子商务","运动专长：3",17,5000,"经济管理系","https://zsjyw.lcvtc.edu.cn/info/1011/1646.htm"]
["聊城职业技术学院","市场营销",null,"市场营销",null,30,4800,"经济管理系","https://zsjyw.lcvtc.edu.cn/info/1011/1646.htm"]
["聊城职业技术学院","物流管理",null,"现代物流管理",null,30,4800,"经济管理系","https://zsjyw.lcvtc.edu.cn/info/1011/1646.htm"]
["聊城职业技术学院","现代农艺",null,"绿色食品生产技术",null,35,5000,"农牧科技系","https://zsjyw.lcvtc.edu.cn/info/1011/1646.htm"]
["聊城职业技术学院","现代农艺",null,"园艺技术",null,34,5000,"农牧科技系","https://zsjyw.lcvtc.edu.cn/info/1011/1646.htm"]
["聊城职业技术学院","现代农艺",null,"园林技术",null,26,5000,"农牧科技系","https://zsjyw.lcvtc.edu.cn/info/1011/1646.htm"]
["聊城职业技术学院","畜牧养殖",null,"畜牧兽医",null,25,5000,"农牧科技系","https://zsjyw.lcvtc.edu.cn/info/1011/1646.htm"]
["聊城职业技术学院","医学技术",null,"康复治疗技术","运动专长：10","0",6000,"医学系","https://zsjyw.lcvtc.edu.cn/info/1011/1646.htm"]
["聊城职业技术学院","医学技术",null,"医学生物技术",null,40,6000,"医学系","https://zsjyw.lcvtc.edu.cn/info/1011/1646.htm"]
["聊城职业技术学院","退役军人",null,"建筑消防技术",null,"10",5000,"应急管理学院","https://zsjyw.lcvtc.edu.cn/info/1011/1646.htm"]
["聊城职业技术学院","退役军人",null,"园艺技术",null,"10",5000,"农牧科技系","https://zsjyw.lcvtc.edu.cn/info/1011/1646.htm"]
["济南工程职业技术学院","建筑","01","建筑工程技术",null,5,5750,"土木工程系","https://zsbgs.jngcxy.edu.cn/info/1008/1704.htm"]
["济南工程职业技术学院","建筑","02","道路与桥梁工程技术",null,20,5000,"土木工程系","https://zsbgs.jngcxy.edu.cn/info/1008/1704.htm"]
["济南工程职业技术学院","建筑","03","工程测量技术",null,10,5000,"土木工程系","https://zsbgs.jngcxy.edu.cn/info/1008/1704.htm"]
["济南工程职业技术学院","电气技术","04","光伏工程技术",null,10,5000,"土木工程系","https://zsbgs.jngcxy.edu.cn/info/1008/1704.htm"]
["济南工程职业技术学院","建筑","05","园林工程技术",null,5,5000,"土木工程系","https://zsbgs.jngcxy.edu.cn/info/1008/1704.htm"]
["济南工程职业技术学院","市场营销","08","市场营销",null,10,4800,"工商系","https://zsbgs.jngcxy.edu.cn/info/1008/1704.htm"]
["济南工程职业技术学院","国际商务",10,"国际经济与贸易",null,10,4800,"工商系","https://zsbgs.jngcxy.edu.cn/info/1008/1704.htm"]
["济南工程职业技术学院","服装",11,"服装与服饰设计",null,10,5000,"工商系","https://zsbgs.jngcxy.edu.cn/info/1008/1704.htm"]
["济南工程职业技术学院","服装",12,"服装陈列与展示设计",null,10,5000,"工商系","https://zsbgs.jngcxy.edu.cn/info/1008/1704.htm"]
["济南工程职业技术学院","电子商务",13,"电子商务",null,5,4800,"工商系","https://zsbgs.jngcxy.edu.cn/info/1008/1704.htm"]
["济南工程职业技术学院","物流管理",14,"现代物流管理",null,10,4800,"工商系","https://zsbgs.jngcxy.edu.cn/info/1008/1704.htm"]
["济南工程职业技术学院","机电技术",15,"机电一体化技术",null,10,5500,"机电工程系","https://zsbgs.jngcxy.edu.cn/info/1008/1704.htm"]
["济南工程职业技术学院","机械制造",16,"机械制造及自动化",null,10,5000,"机电工程系","https://zsbgs.jngcxy.edu.cn/info/1008/1704.htm"]
["济南工程职业技术学院","自动控制",17,"电气自动化技术",null,10,5500,"机电工程系","https://zsbgs.jngcxy.edu.cn/info/1008/1704.htm"]
["济南工程职业技术学院","自动控制",18,"电梯工程技术",null,10,5000,"机电工程系","https://zsbgs.jngcxy.edu.cn/info/1008/1704.htm"]
["济南工程职业技术学院","自动控制",19,"工业互联网应用",null,10,5000,"机电工程系","https://zsbgs.jngcxy.edu.cn/info/1008/1704.htm"]
["济南工程职业技术学院","车辆维修",21,"汽车技术服务与营销",null,10,5000,"汽车工程系","https://zsbgs.jngcxy.edu.cn/info/1008/1704.htm"]
["济南工程职业技术学院","车辆维修",23,"智能网联汽车技术",null,10,5000,"汽车工程系","https://zsbgs.jngcxy.edu.cn/info/1008/1704.htm"]
["济南工程职业技术学院","车辆维修",24,"汽车检测与维修技术",null,10,5000,"汽车工程系","https://zsbgs.jngcxy.edu.cn/info/1008/1704.htm"]
["济南工程职业技术学院","建筑",29,"工程造价",null,5,5750,"工程管理系","https://zsbgs.jngcxy.edu.cn/info/1008/1704.htm"]
["济南工程职业技术学院","建筑",30,"建设工程监理",null,20,5000,"工程管理系","https://zsbgs.jngcxy.edu.cn/info/1008/1704.htm"]
["济南工程职业技术学院","建筑",31,"建设工程管理",null,10,5000,"工程管理系","https://zsbgs.jngcxy.edu.cn/info/1008/1704.htm"]
["济南工程职业技术学院","财税",33,"大数据与财务管理",null,10,4800,"经济管理系","https://zsbgs.jngcxy.edu.cn/info/1008/1704.htm"]
["济南工程职业技术学院","财税",34,"大数据与审计",null,10,4800,"经济管理系","https://zsbgs.jngcxy.edu.cn/info/1008/1704.htm"]
["济南工程职业技术学院","财税",35,"财税大数据应用",null,10,4800,"经济管理系","https://zsbgs.jngcxy.edu.cn/info/1008/1704.htm"]
["济南工程职业技术学院","旅游管理",36,"会展策划与管理",null,20,5000,"艺术设计系","https://zsbgs.jngcxy.edu.cn/info/1008/1704.htm"]
["济南工程职业技术学院","数字媒体",37,"动漫制作技术",null,10,5000,"艺术设计系","https://zsbgs.jngcxy.edu.cn/info/1008/1704.htm"]
["济南工程职业技术学院","电子技术",40,"移动互联应用技术",null,10,5000,"信息工程系","https://zsbgs.jngcxy.edu.cn/info/1008/1704.htm"]
["济南工程职业技术学院","软件与应用技术",41,"大数据技术",null,10,5000,"信息工程系","https://zsbgs.jngcxy.edu.cn/info/1008/1704.htm"]
["济南工程职业技术学院","软件与应用技术",42,"人工智能技术应用",null,10,5000,"信息工程系","https://zsbgs.jngcxy.edu.cn/info/1008/1704.htm"]
["济南工程职业技术学院","数字媒体",71,"动漫制作技术（中德合作办学）",null,10,8800,"中外合作","https://zsbgs.jngcxy.edu.cn/info/1008/1704.htm"]
["济南工程职业技术学院","服装",72,"服装设计与工艺（中德合作办学）",null,10,8800,"中外合作","https://zsbgs.jngcxy.edu.cn/info/1008/1704.htm"]
["济南工程职业技术学院","国际商务",73,"国际经济与贸易（中德合作办学）",null,10,8800,"中外合作","https://zsbgs.jngcxy.edu.cn/info/1008/1704.htm"]
["济南工程职业技术学院","退伍军人",51,"机电一体化技术",null,50,5500,"机电工程系","https://zsbgs.jngcxy.edu.cn/info/1008/1704.htm"]
["济南工程职业技术学院","退伍军人",52,"汽车技术服务与营销",null,50,5000,"汽车工程系","https://zsbgs.jngcxy.edu.cn/info/1008/1704.htm"]
["山东畜牧兽医职业学院","畜牧养殖",null,"畜牧兽医",null,10,6000,"动物科技学院","https://zs.sdmy.edu.cn/info/1095/2742.htm"]
["山东畜牧兽医职业学院","畜牧养殖",null,"畜牧兽医(新希望六和班)",null,8,6000,"动物科技学院","https://zs.sdmy.edu.cn/info/1095/2742.htm"]
["山东畜牧兽医职业学院","畜牧养殖",null,"畜牧兽医(养离与离病防治方向)益生班",null,15,6000,"动物科技学院","https://zs.sdmy.edu.cn/info/1095/2742.htm"]
["山东畜牧兽医职业学院","畜牧养殖",null,"畜牧兽医(益客班)",null,5,6000,"动物科技学院","https://zs.sdmy.edu.cn/info/1095/2742.htm"]
["山东畜牧兽医职业学院","畜牧养殖",null,"畜牧兽医(养离与离病防治方向)中慧班",null,3,6000,"动物科技学院","https://zs.sdmy.edu.cn/info/1095/2742.htm"]
["山东畜牧兽医职业学院","畜牧养殖",null,"畜牧兽医(马驯养与疾病防治)",null,10,6000,"动物科技学院","https://zs.sdmy.edu.cn/info/1095/2742.htm"]
["山东畜牧兽医职业学院","畜牧养殖",null,"畜牧兽医(仅限甘孜州职业技术学校考生报考)",null,43,6000,"动物科技学院","https://zs.sdmy.edu.cn/info/1095/2742.htm"]
["山东畜牧兽医职业学院","畜牧养殖",null,"畜离智能化养殖",null,5,6000,"动物科技学院","https://zs.sdmy.edu.cn/info/1095/2742.htm"]
["山东畜牧兽医职业学院","自动控制",null,"畜离智能化养殖",null,5,6000,"动物科技学院","https://zs.sdmy.edu.cn/info/1095/2742.htm"]
["山东畜牧兽医职业学院","畜牧养殖",null,"畜离智能化养殖(凤祥班)",null,8,6000,"动物科技学院","https://zs.sdmy.edu.cn/info/1095/2742.htm"]
["山东畜牧兽医职业学院","畜牧养殖",null,"水产养殖技术",null,5,5000,"动物科技学院","https://zs.sdmy.edu.cn/info/1095/2742.htm"]
["山东畜牧兽医职业学院","畜牧养殖",null,"动物营养与饲料",null,5,6000,"动物科技学院","https://zs.sdmy.edu.cn/info/1095/2742.htm"]
["山东畜牧兽医职业学院","畜牧养殖",null,"动物医学益客班",null,10,6000,"动物医学院","https://zs.sdmy.edu.cn/info/1095/2742.htm"]
["山东畜牧兽医职业学院","畜牧养殖",null,"动物医学益生班",null,10,6000,"动物医学院","https://zs.sdmy.edu.cn/info/1095/2742.htm"]
["山东畜牧兽医职业学院","畜牧养殖",null,"动物医学龙大班",null,5,6000,"动物医学院","https://zs.sdmy.edu.cn/info/1095/2742.htm"]
["山东畜牧兽医职业学院","畜牧养殖",null,"动物医学正大班",null,5,6000,"动物医学院","https://zs.sdmy.edu.cn/info/1095/2742.htm"]
["山东畜牧兽医职业学院","畜牧养殖",null,"动物防疫与检疫民和班",null,5,6000,"动物医学院","https://zs.sdmy.edu.cn/info/1095/2742.htm"]
["山东畜牧兽医职业学院","畜牧养殖",null,"野生动植物资源保护与利用",null,10,5000,"宠物科技学院","https://zs.sdmy.edu.cn/info/1095/2742.htm"]
["山东畜牧兽医职业学院","畜牧养殖",null,"宠物医疗技术",null,5,5750,"宠物科技学院","https://zs.sdmy.edu.cn/info/1095/2742.htm"]
["山东畜牧兽医职业学院","畜牧养殖",null,"宠物养护与驯导",null,15,5000,"宠物科技学院","https://zs.sdmy.edu.cn/info/1095/2742.htm"]
["山东畜牧兽医职业学院","畜牧养殖",null,"动物药学",null,30,5000,"食品与药品科技学院","https://zs.sdmy.edu.cn/info/1095/2742.htm"]
["山东畜牧兽医职业学院","畜牧养殖",null,"中兽医",null,30,5000,"食品与药品科技学院","https://zs.sdmy.edu.cn/info/1095/2742.htm"]
["山东畜牧兽医职业学院","烹饪",null,"食品检验检测技术",null,20,5000,"食品与药品科技学院","https://zs.sdmy.edu.cn/info/1095/2742.htm"]
["山东畜牧兽医职业学院","烹饪",null,"食品药品监督管理",null,10,5000,"食品与药品科技学院","https://zs.sdmy.edu.cn/info/1095/2742.htm"]
["山东畜牧兽医职业学院","药学",null,"药品生产技术",null,10,5000,"食品与药品科技学院","https://zs.sdmy.edu.cn/info/1095/2742.htm"]
["山东畜牧兽医职业学院","药学",null,"药品质量与安全",null,10,5000,"食品与药品科技学院","https://zs.sdmy.edu.cn/info/1095/2742.htm"]
["山东畜牧兽医职业学院","机电技术",null,"智能控制技术",null,10,5000,"农牧工程与智能化学院","https://zs.sdmy.edu.cn/info/1095/2742.htm"]
["山东畜牧兽医职业学院","物流管理",null,"现代物流管理",null,5,4800,"农牧工程与智能化学院","https://zs.sdmy.edu.cn/info/1095/2742.htm"]
["山东畜牧兽医职业学院","电子商务",null,"现代物流管理",null,5,4800,"农牧工程与智能化学院","https://zs.sdmy.edu.cn/info/1095/2742.htm"]
["山东畜牧兽医职业学院","机电技术",null,"工业机器人技术",null,10,5000,"农牧工程与智能化学院","https://zs.sdmy.edu.cn/info/1095/2742.htm"]
["山东畜牧兽医职业学院","财税",null,"大数据与会计",null,11,4800,"经济贸易学院","https://zs.sdmy.edu.cn/info/1095/2742.htm"]
["山东畜牧兽医职业学院","电子商务",null,"电子商务(校企)",null,10,4800,"经济贸易学院","https://zs.sdmy.edu.cn/info/1095/2742.htm"]
["山东畜牧兽医职业学院","电子商务",null,"电子商务",null,10,4800,"经济贸易学院","https://zs.sdmy.edu.cn/info/1095/2742.htm"]
["山东畜牧兽医职业学院","财税",null,"大数据与会计(仅限甘孜州职业技术学校考生报考)",null,42,4800,"经济贸易学院","https://zs.sdmy.edu.cn/info/1095/2742.htm"]
["山东药品食品职业学院","药学",null,"药品生产技术",null,14,5000,"制药工程系","http://zsxxw.wzq.sddfvc.edu.cn/info/1033/1847.htm"]
["山东药品食品职业学院","药学",null,"生物产品检验检疫",null,5,5000,"制药工程系","http://zsxxw.wzq.sddfvc.edu.cn/info/1033/1847.htm"]
["山东药品食品职业学院","市场营销",null,"化妆品经营与管理",null,7,5000,"制药工程系","http://zsxxw.wzq.sddfvc.edu.cn/info/1033/1847.htm"]
["山东药品食品职业学院","化工与环境",null,"化妆品技术",null,7,5000,"制药工程系","http://zsxxw.wzq.sddfvc.edu.cn/info/1033/1847.htm"]
["山东药品食品职业学院","医学技术",null,"医学检验技术",null,10,5000,"质量管理系","http://zsxxw.wzq.sddfvc.edu.cn/info/1033/1847.htm"]
["山东药品食品职业学院","数字媒体",null,"食品质量与安全",null,10,5000,"食品系","http://zsxxw.wzq.sddfvc.edu.cn/info/1033/1847.htm"]
["山东药品食品职业学院","护理",null,"医学营养",null,10,5000,"食品系","http://zsxxw.wzq.sddfvc.edu.cn/info/1033/1847.htm"]
["山东药品食品职业学院","电子商务",null,"电子商务",null,15,4800,"药学系","http://zsxxw.wzq.sddfvc.edu.cn/info/1033/1847.htm"]
["山东药品食品职业学院","药学",null,"中药学",null,10,5750,"中药系","http://zsxxw.wzq.sddfvc.edu.cn/info/1033/1847.htm"]
["山东药品食品职业学院","药学",null,"中药制药",null,8,5750,"中药系","http://zsxxw.wzq.sddfvc.edu.cn/info/1033/1847.htm"]
["山东药品食品职业学院","医学技术",null,"中医养生保健",null,14,5750,"中药系","http://zsxxw.wzq.sddfvc.edu.cn/info/1033/1847.htm"]
["山东药品食品职业学院","医学技术",null,"中医康复技术",null,10,5000,"中药系","http://zsxxw.wzq.sddfvc.edu.cn/info/1033/1847.htm"]
["山东药品食品职业学院","机电技术",null,"医疗器械维护与管理",null,15,5000,"医疗器械系","http://zsxxw.wzq.sddfvc.edu.cn/info/1033/1847.htm"]
["山东药品食品职业学院","机电技术",null,"智能医疗装备技术",null,10,5000,"医疗器械系","http://zsxxw.wzq.sddfvc.edu.cn/info/1033/1847.htm"]
["山东药品食品职业学院","机电技术",null,"制药设备应用技术",null,15,5750,"医疗器械系","http://zsxxw.wzq.sddfvc.edu.cn/info/1033/1847.htm"]
["山东药品食品职业学院","护理",null,"老年保健与管理",null,10,5520,"健康管理系","http://zsxxw.wzq.sddfvc.edu.cn/info/1033/1847.htm"]
["山东药品食品职业学院","医学技术",null,"康复治疗技术",null,10,5750,"健康管理系","http://zsxxw.wzq.sddfvc.edu.cn/info/1033/1847.htm"]
["山东劳动职业技术学院","机械制造","01","数控技术",null,55,5750,null,"http://www.sljzs.cn/index.php?m=Article&a=show&id=480"]
["山东劳动职业技术学院","机械制造","05","机械制造与自动化",null,50,5000,null,"http://www.sljzs.cn/index.php?m=Article&a=show&id=480"]
["山东劳动职业技术学院","车辆维修","09","汽车检测与维修技术",null,50,5000,null,"http://www.sljzs.cn/index.php?m=Article&a=show&id=480"]
["山东劳动职业技术学院","车辆维修",11,"新能源汽车技术",null,50,5000,null,"http://www.sljzs.cn/index.php?m=Article&a=show&id=480"]
["山东劳动职业技术学院","机电技术",13,"电气自动化技术",null,55,5750,null,"http://www.sljzs.cn/index.php?m=Article&a=show&id=480"]
["山东劳动职业技术学院","机电技术",15,"机电一体化技术",null,50,5750,null,"http://www.sljzs.cn/index.php?m=Article&a=show&id=480"]
["山东劳动职业技术学院","网络技术",20,"软件技术",null,50,5750,null,"http://www.sljzs.cn/index.php?m=Article&a=show&id=480"]
["山东劳动职业技术学院","建筑",25,"建筑装饰工程技术",null,50,5000,null,"http://www.sljzs.cn/index.php?m=Article&a=show&id=480"]
["山东劳动职业技术学院","数字媒体",27,"虚拟现实技术应用",null,55,4800,null,"http://www.sljzs.cn/index.php?m=Article&a=show&id=480"]
["山东劳动职业技术学院","电子商务",30,"电子商务",null,55,5280,null,"http://www.sljzs.cn/index.php?m=Article&a=show&id=480"]
["山东劳动职业技术学院","物流管理",32,"现代物流管理",null,50,5280,null,"http://www.sljzs.cn/index.php?m=Article&a=show&id=480"]
["山东劳动职业技术学院","财税",36,"大数据与会计",null,50,4800,null,"http://www.sljzs.cn/index.php?m=Article&a=show&id=480"]
["山东劳动职业技术学院","公共服务管理",39,"人力资源管理",null,50,4800,null,"http://www.sljzs.cn/index.php?m=Article&a=show&id=480"]
["青岛酒店管理职业技术学院","酒店管理",null,"酒店管理与数字化运营",null,82,6600,null,"https://zsxx.qchm.edu.cn/2024/0124/c6086a75430/page.htm"]
["青岛酒店管理职业技术学院","酒店管理",null,"空中乘务",null,30,6050,null,"https://zsxx.qchm.edu.cn/2024/0124/c6086a75430/page.htm"]
["青岛酒店管理职业技术学院","旅游管理",null,"旅游管理",null,60,6320,null,"https://zsxx.qchm.edu.cn/2024/0124/c6086a75430/page.htm"]
["青岛酒店管理职业技术学院","旅游管理",null,"会展策划与管理",null,20,6600,null,"https://zsxx.qchm.edu.cn/2024/0124/c6086a75430/page.htm"]
["青岛酒店管理职业技术学院","旅游管理",null,"研学旅行管理与服务",null,15,5500,null,"https://zsxx.qchm.edu.cn/2024/0124/c6086a75430/page.htm"]
["青岛酒店管理职业技术学院","烹饪",null,"西式烹饪工艺",null,15,6320,null,"https://zsxx.qchm.edu.cn/2024/0124/c6086a75430/page.htm"]
["青岛酒店管理职业技术学院","烹饪",null,"餐饮智能管理",null,15,5500,null,"https://zsxx.qchm.edu.cn/2024/0124/c6086a75430/page.htm"]
["青岛酒店管理职业技术学院","烹饪",null,"中西面点工艺",null,10,6320,null,"https://zsxx.qchm.edu.cn/2024/0124/c6086a75430/page.htm"]
["青岛酒店管理职业技术学院","烹饪",null,"烹饪工艺与营养",null,33,6600,null,"https://zsxx.qchm.edu.cn/2024/0124/c6086a75430/page.htm"]
["青岛酒店管理职业技术学院","建筑",null,"工程造价",null,21,5500,null,"https://zsxx.qchm.edu.cn/2024/0124/c6086a75430/page.htm"]
["青岛酒店管理职业技术学院","建筑",null,"建筑工程技术",null,19,5500,null,"https://zsxx.qchm.edu.cn/2024/0124/c6086a75430/page.htm"]
["青岛酒店管理职业技术学院","建筑",null,"建筑设备工程技术",null,4,5500,null,"https://zsxx.qchm.edu.cn/2024/0124/c6086a75430/page.htm"]
["青岛酒店管理职业技术学院","机电技术",null,"新能源装备技术",null,10,5500,null,"https://zsxx.qchm.edu.cn/2024/0124/c6086a75430/page.htm"]
["青岛酒店管理职业技术学院","机电技术",null,"建筑设备工程技术",null,6,5500,null,"https://zsxx.qchm.edu.cn/2024/0124/c6086a75430/page.htm"]
["青岛酒店管理职业技术学院","公共服务与管理",null,"现代物业管理",null,9,5500,null,"https://zsxx.qchm.edu.cn/2024/0124/c6086a75430/page.htm"]
["青岛酒店管理职业技术学院","市场营销",null,"连锁经营与管理",null,40,6050,null,"https://zsxx.qchm.edu.cn/2024/0124/c6086a75430/page.htm"]
["青岛酒店管理职业技术学院","国际商务",null,"国际经济与贸易",null,15,5267,null,"https://zsxx.qchm.edu.cn/2024/0124/c6086a75430/page.htm"]
["青岛酒店管理职业技术学院","物流管理",null,"现代物流管理",null,15,6320,null,"https://zsxx.qchm.edu.cn/2024/0124/c6086a75430/page.htm"]
["青岛酒店管理职业技术学院","电子商务",null,"电子商务",null,20,6320,null,"https://zsxx.qchm.edu.cn/2024/0124/c6086a75430/page.htm"]
["青岛酒店管理职业技术学院","财税",null,"大数据与会计",null,82,5267,null,"https://zsxx.qchm.edu.cn/2024/0124/c6086a75430/page.htm"]
["青岛酒店管理职业技术学院","财税",null,"财税大数据应用",null,42,5500,null,"https://zsxx.qchm.edu.cn/2024/0124/c6086a75430/page.htm"]
["青岛酒店管理职业技术学院","软件与应用技术",null,"数字媒体技术",null,13,5500,null,"https://zsxx.qchm.edu.cn/2024/0124/c6086a75430/page.htm"]
["青岛酒店管理职业技术学院","软件与应用技术",null,"计算机应用技术",null,22,5500,null,"https://zsxx.qchm.edu.cn/2024/0124/c6086a75430/page.htm"]
["青岛酒店管理职业技术学院","网络技术",null,"计算机应用技术",null,10,5500,null,"https://zsxx.qchm.edu.cn/2024/0124/c6086a75430/page.htm"]
["青岛酒店管理职业技术学院","数字媒体",null,"数字媒体技术",null,22,5500,null,"https://zsxx.qchm.edu.cn/2024/0124/c6086a75430/page.htm"]
["青岛酒店管理职业技术学院","艺术设计",null,"产品艺术设计",null,20,7133,null,"https://zsxx.qchm.edu.cn/2024/0124/c6086a75430/page.htm"]
["青岛酒店管理职业技术学院","退役军人",null,"酒店管理与数字化运营",null,4,"见章程",null,"https://zsxx.qchm.edu.cn/2024/0124/c6086a75430/page.htm"]
["青岛酒店管理职业技术学院","退役军人",null,"旅游管理",null,2,"见章程",null,"https://zsxx.qchm.edu.cn/2024/0124/c6086a75430/page.htm"]
["青岛酒店管理职业技术学院","退役军人",null,"会展策划与管理",null,2,"见章程",null,"https://zsxx.qchm.edu.cn/2024/0124/c6086a75430/page.htm"]
["青岛酒店管理职业技术学院","退役军人",null,"烹饪工艺与营养",null,3,"见章程",null,"https://zsxx.qchm.edu.cn/2024/0124/c6086a75430/page.htm"]
["青岛酒店管理职业技术学院","退役军人",null,"现代物流管理",null,3,"见章程",null,"https://zsxx.qchm.edu.cn/2024/0124/c6086a75430/page.htm"]
["青岛酒店管理职业技术学院","退役军人",null,"数字媒体技术",null,6,"见章程",null,"https://zsxx.qchm.edu.cn/2024/0124/c6086a75430/page.htm"]
["烟台工程职业技术学院","机电技术","3A","安全技术与管理",null,2,5000,null,"https://zs.ytetc.edu.cn/news/show-552.html"]
["烟台工程职业技术学院","电子技术","3B","安全技术与管理",null,3,5000,null,"https://zs.ytetc.edu.cn/news/show-552.html"]
["烟台工程职业技术学院","机电技术","3C","安全智能监测技术",null,2,5000,null,"https://zs.ytetc.edu.cn/news/show-552.html"]
["烟台工程职业技术学院","机械制造","3D","安全智能监测技术",null,3,5000,null,"https://zs.ytetc.edu.cn/news/show-552.html"]
["烟台工程职业技术学院","机电技术","3E","应急救援技术",null,2,5000,null,"https://zs.ytetc.edu.cn/news/show-552.html"]
["烟台工程职业技术学院","车辆维修","3F","应急救援技术",null,3,5000,null,"https://zs.ytetc.edu.cn/news/show-552.html"]
["烟台工程职业技术学院","网络技术","3G","民航安全技术管理",null,2,5000,null,"https://zs.ytetc.edu.cn/news/show-552.html"]
["烟台工程职业技术学院","公共服务与管理","3H","民航安全技术管理",null,3,5000,null,"https://zs.ytetc.edu.cn/news/show-552.html"]
["烟台工程职业技术学院","网络技术","1H","工业互联网技术",null,10,5000,null,"https://zs.ytetc.edu.cn/news/show-552.html"]
["烟台工程职业技术学院","自动控制","1J","工业互联网技术",null,5,5000,null,"https://zs.ytetc.edu.cn/news/show-552.html"]
["烟台工程职业技术学院","机械制造","1F","机械制造及自动化",null,20,5000,null,"https://zs.ytetc.edu.cn/news/show-552.html"]
["烟台工程职业技术学院","机电技术","1G","机械制造及自动化",null,10,5000,null,"https://zs.ytetc.edu.cn/news/show-552.html"]
["烟台工程职业技术学院","机械制造","1A","模具设计与制造",null,10,5000,null,"https://zs.ytetc.edu.cn/news/show-552.html"]
["烟台工程职业技术学院","机电技术","1B","模具设计与制造",null,5,5000,null,"https://zs.ytetc.edu.cn/news/show-552.html"]
["烟台工程职业技术学院","机械制造","1D","数控技术",null,15,5000,null,"https://zs.ytetc.edu.cn/news/show-552.html"]
["烟台工程职业技术学院","机电技术","1E","数控技术",null,5,5000,null,"https://zs.ytetc.edu.cn/news/show-552.html"]
["烟台工程职业技术学院","设备维修","1C","智能焊接技术",null,5,5000,null,"https://zs.ytetc.edu.cn/news/show-552.html"]
["烟台工程职业技术学院","机械制造","1K","增材制造技术",null,15,5000,null,"https://zs.ytetc.edu.cn/news/show-552.html"]
["烟台工程职业技术学院","机电技术","1L","增材制造技术",null,5,5000,null,"https://zs.ytetc.edu.cn/news/show-552.html"]
["烟台工程职业技术学院","机械制造","1M","数字化设计与制造技术",null,20,5000,null,"https://zs.ytetc.edu.cn/news/show-552.html"]
["烟台工程职业技术学院","软件与应用技术","1N","数字化设计与制造技术",null,10,5000,null,"https://zs.ytetc.edu.cn/news/show-552.html"]
["烟台工程职业技术学院","机电技术","2G","工业机器人技术",null,15,5000,null,"https://zs.ytetc.edu.cn/news/show-552.html"]
["烟台工程职业技术学院","机械制造","2H","工业机器人技术",null,5,5000,null,"https://zs.ytetc.edu.cn/news/show-552.html"]
["烟台工程职业技术学院","机电技术","2A","机电一体化技术",null,50,5000,null,"https://zs.ytetc.edu.cn/news/show-552.html"]
["烟台工程职业技术学院","机械制造","2B","机电一体化技术",null,10,5000,null,"https://zs.ytetc.edu.cn/news/show-552.html"]
["烟台工程职业技术学院","软件与应用技术","2J","人工智能技术应用",null,6,5000,null,"https://zs.ytetc.edu.cn/news/show-552.html"]
["烟台工程职业技术学院","电子技术","2K","人工智能技术应用",null,4,5000,null,"https://zs.ytetc.edu.cn/news/show-552.html"]
["烟台工程职业技术学院","电子技术","2C","应用电子技术",null,8,5000,null,"https://zs.ytetc.edu.cn/news/show-552.html"]
["烟台工程职业技术学院","软件与应用技术","2D","应用电子技术",null,5,5000,null,"https://zs.ytetc.edu.cn/news/show-552.html"]
["烟台工程职业技术学院","机电技术","2E","智能控制技术",null,5,5000,null,"https://zs.ytetc.edu.cn/news/show-552.html"]
["烟台工程职业技术学院","软件与应用技术","2F","智能控制技术",null,2,5000,null,"https://zs.ytetc.edu.cn/news/show-552.html"]
["烟台工程职业技术学院","服装","4A","服装与服饰设计",null,5,5000,null,"https://zs.ytetc.edu.cn/news/show-552.html"]
["烟台工程职业技术学院","化工与环境","4E","环境监测技术",null,5,5000,null,"https://zs.ytetc.edu.cn/news/show-552.html"]
["烟台工程职业技术学院","酒店管理","4G","空中乘务",null,40,5000,null,"https://zs.ytetc.edu.cn/news/show-552.html"]
["烟台工程职业技术学院","旅游管理","4H","空中乘务",null,5,5000,null,"https://zs.ytetc.edu.cn/news/show-552.html"]
["烟台工程职业技术学院","烹饪","4B","食品检验检测技术",null,5,5000,null,"https://zs.ytetc.edu.cn/news/show-552.html"]
["烟台工程职业技术学院","学前教育","4D","婴幼儿托育服务与管理",null,80,5000,null,"https://zs.ytetc.edu.cn/news/show-552.html"]
["烟台工程职业技术学院","护理","4C","婴幼儿托育服务与管理",null,20,5000,null,"https://zs.ytetc.edu.cn/news/show-552.html"]
["烟台工程职业技术学院","化工与环境","4F","应用化工技术",null,5,5000,null,"https://zs.ytetc.edu.cn/news/show-552.html"]
["烟台工程职业技术学院","电子商务","5C","电子商务",null,50,4800,null,"https://zs.ytetc.edu.cn/news/show-552.html"]
["烟台工程职业技术学院","电子商务","5D","跨境电子商务",null,20,4800,null,"https://zs.ytetc.edu.cn/news/show-552.html"]
["烟台工程职业技术学院","电子商务","5E","农村电子商务",null,15,4800,null,"https://zs.ytetc.edu.cn/news/show-552.html"]
["烟台工程职业技术学院","市场营销","5A","市场营销",null,20,4800,null,"https://zs.ytetc.edu.cn/news/show-552.html"]
["烟台工程职业技术学院","物流管理","5B","现代物流管理",null,10,4800,null,"https://zs.ytetc.edu.cn/news/show-552.html"]
["烟台工程职业技术学院","车辆维修","6C","城市轨道车辆应用技术",null,5,5000,null,"https://zs.ytetc.edu.cn/news/show-552.html"]
["烟台工程职业技术学院","设备维修","6D","城市轨道车辆应用技术",null,5,5000,null,"https://zs.ytetc.edu.cn/news/show-552.html"]
["烟台工程职业技术学院","机电技术","6F","城市轨道交通供配电技术",null,10,5000,null,"https://zs.ytetc.edu.cn/news/show-552.html"]
["烟台工程职业技术学院","车辆维修",66,"城市轨道交通通信信号技术",null,10,5000,null,"https://zs.ytetc.edu.cn/news/show-552.html"]
["烟台工程职业技术学院","车辆维修","6A","汽车检测与维修技术",null,40,5000,null,"https://zs.ytetc.edu.cn/news/show-552.html"]
["烟台工程职业技术学院","机械制造","6B","汽车检测与维修技术",null,10,5000,null,"https://zs.ytetc.edu.cn/news/show-552.html"]
["烟台工程职业技术学院","车辆维修","6E","新能源汽车技术",null,10,5000,null,"https://zs.ytetc.edu.cn/news/show-552.html"]
["烟台工程职业技术学院","软件与应用技术","7A","计算机应用技术",null,25,5000,null,"https://zs.ytetc.edu.cn/news/show-552.html"]
["烟台工程职业技术学院","数字媒体","7B","动漫制作技术",null,30,5000,null,"https://zs.ytetc.edu.cn/news/show-552.html"]
["烟台工程职业技术学院","电子技术","7C","物联网应用技术",null,15,5000,null,"https://zs.ytetc.edu.cn/news/show-552.html"]
["烟台工程职业技术学院","软件与应用技术","7D","大数据技术",null,10,5000,null,"https://zs.ytetc.edu.cn/news/show-552.html"]
["烟台工程职业技术学院","数字媒体","7E","数字媒体技术",null,50,5000,null,"https://zs.ytetc.edu.cn/news/show-552.html"]
["烟台工程职业技术学院","电子技术","7F","移动互联应用技术",null,15,5000,null,"https://zs.ytetc.edu.cn/news/show-552.html"]
["烟台工程职业技术学院","网络技术","7G","云计算技术应用",null,10,5000,null,"https://zs.ytetc.edu.cn/news/show-552.html"]
["烟台工程职业技术学院","退役军人","B1","安全技术与管理",null,2,null,"安全与应急管理系","https://zs.ytetc.edu.cn/news/show-552.html"]
["烟台工程职业技术学院","退役军人","B2","安全智能检测技术",null,2,null,"安全与应急管理系","https://zs.ytetc.edu.cn/news/show-552.html"]
["烟台工程职业技术学院","退役军人","B3","应急救援技术",null,4,null,"安全与应急管理系","https://zs.ytetc.edu.cn/news/show-552.html"]
["烟台工程职业技术学院","退役军人","B4","民航安全技术管理",null,2,null,"安全与应急管理系","https://zs.ytetc.edu.cn/news/show-552.html"]
["山东水利职业学院","建筑","03","水利水电工程智能管理",null,20,null,"水利工程系","https://www.sdwcvc.edu.cn/zs/info/1082/2901.htm"]
["山东水利职业学院","建筑","05","治河与航道工程技术",null,20,null,"水利工程系","https://www.sdwcvc.edu.cn/zs/info/1082/2901.htm"]
["山东水利职业学院","建筑","07","高速铁路施工与维护",null,50,null,"水利工程系","https://www.sdwcvc.edu.cn/zs/info/1082/2901.htm"]
["山东水利职业学院","建筑","08","城市轨道交通工程技术",null,30,null,"水利工程系","https://www.sdwcvc.edu.cn/zs/info/1082/2901.htm"]
["山东水利职业学院","建筑","09","工程测量技术",null,40,null,"水利工程系","https://www.sdwcvc.edu.cn/zs/info/1082/2901.htm"]
["山东水利职业学院","建筑","C1","水利水电工程智能管理","限招运动专长考生，必须有田径乒乓球、羽毛球、健美操项目对应的国家二级及以上运动员技术等级称号或省级以上比赛名次，详见招生章程。",15,null,"水利工程系","https://www.sdwcvc.edu.cn/zs/info/1082/2901.htm"]
["山东水利职业学院","建筑","C2","工程测量技术","限招运动专长考生，必须有田径乒乓球、羽毛球、健美操项目对应的国家二级及以上运动员技术等级称号或省级以上比赛名次，详见招生章程。",15,null,"水利工程系","https://www.sdwcvc.edu.cn/zs/info/1082/2901.htm"]
["山东水利职业学院","建筑","C3","城市轨道交通工程技术","限招运动专长考生，必须有田径、乒乓球、羽毛球、健美操项目对应的国家二级及以上运动员技术等级称号或省级以上比赛名次，详见招生章程。",10,null,"水利工程系","https://www.sdwcvc.edu.cn/zs/info/1082/2901.htm"]
["山东水利职业学院","建筑",11,"建筑工程技术",null,50,null,"建筑工程系","https://www.sdwcvc.edu.cn/zs/info/1082/2901.htm"]
["山东水利职业学院","建筑",12,"土木工程检测技术",null,50,null,"建筑工程系","https://www.sdwcvc.edu.cn/zs/info/1082/2901.htm"]
["山东水利职业学院","建筑",13,"建设工程监理",null,50,null,"建筑工程系","https://www.sdwcvc.edu.cn/zs/info/1082/2901.htm"]
["山东水利职业学院","建筑",14,"装配式建筑工程技术",null,50,null,"建筑工程系","https://www.sdwcvc.edu.cn/zs/info/1082/2901.htm"]
["山东水利职业学院","建筑",15,"建筑装饰工程技术",null,50,null,"建筑工程系","https://www.sdwcvc.edu.cn/zs/info/1082/2901.htm"]
["山东水利职业学院","建筑",16,"水文与水资源技术",null,50,null,"资源与环境系","https://www.sdwcvc.edu.cn/zs/info/1082/2901.htm"]
["山东水利职业学院","建筑",17,"环境工程技术",null,50,null,"资源与环境系","https://www.sdwcvc.edu.cn/zs/info/1082/2901.htm"]
["山东水利职业学院","建筑",18,"水生态修复技术",null,50,null,"资源与环境系","https://www.sdwcvc.edu.cn/zs/info/1082/2901.htm"]
["山东水利职业学院","建筑",19,"智能水务管理",null,50,null,"资源与环境系","https://www.sdwcvc.edu.cn/zs/info/1082/2901.htm"]
["潍坊工程职业学院","数字媒体","A1","数字媒体技术",null,70,5000,"凤凰艺术学院","http://zs.wfec.cn/info/1006/1712.htm"]
["潍坊工程职业学院","数字媒体","A2","摄影摄像技术",null,30,4800,"凤凰艺术学院","http://zs.wfec.cn/info/1006/1712.htm"]
["潍坊工程职业学院","机电技术","B1","飞机机电设备维修",null,30,5000,"航空工程学院","http://zs.wfec.cn/info/1006/1712.htm"]
["潍坊工程职业学院","酒店管理","B2","空中乘务",null,10,5000,"航空工程学院","http://zs.wfec.cn/info/1006/1712.htm"]
["潍坊工程职业学院","旅游管理","B3","空中乘务",null,10,5000,"航空工程学院","http://zs.wfec.cn/info/1006/1712.htm"]
["潍坊工程职业学院","酒店管理","B4","高速铁路客运服务",null,50,5000,"航空工程学院","http://zs.wfec.cn/info/1006/1712.htm"]
["潍坊工程职业学院","机电技术","C1","工业机器人技术",null,40,5750,"机电工程学院","http://zs.wfec.cn/info/1006/1712.htm"]
["潍坊工程职业学院","机电技术","C2","无人机应用技术",null,40,5000,"机电工程学院","http://zs.wfec.cn/info/1006/1712.htm"]
["潍坊工程职业学院","机电技术","C3","工业互联网应用",null,40,5000,"机电工程学院","http://zs.wfec.cn/info/1006/1712.htm"]
["潍坊工程职业学院","建筑","D1","建筑工程技术",null,50,5000,"建筑工程学院","http://zs.wfec.cn/info/1006/1712.htm"]
["潍坊工程职业学院","建筑","D2","工程造价",null,30,5000,"建筑工程学院","http://zs.wfec.cn/info/1006/1712.htm"]
["潍坊工程职业学院","建筑","D3","建筑装饰工程技术",null,30,5000,"建筑工程学院","http://zs.wfec.cn/info/1006/1712.htm"]
["潍坊工程职业学院","车辆维修","E1","汽车检测与维修技术",null,60,5000,"交通工程学院","http://zs.wfec.cn/info/1006/1712.htm"]
["潍坊工程职业学院","车辆维修","E2","新能源汽车技术",null,50,5000,"交通工程学院","http://zs.wfec.cn/info/1006/1712.htm"]
["潍坊工程职业学院","学前教育","F1","早期教育",null,60,4800,"教师教育学院","http://zs.wfec.cn/info/1006/1712.htm"]
["潍坊工程职业学院","学前教育","F2","婴幼儿托育服务与管理",null,40,4800,"教师教育学院","http://zs.wfec.cn/info/1006/1712.htm"]
["潍坊工程职业学院","现代农艺","G1","园艺技术",null,20,5000,"农林科技学院","http://zs.wfec.cn/info/1006/1712.htm"]
["潍坊工程职业学院","烹饪","G2","食品检验检测技术",null,20,5000,"农林科技学院","http://zs.wfec.cn/info/1006/1712.htm"]
["潍坊工程职业学院","电子商务","G3","电子商务",null,80,4800,"农林科技学院","http://zs.wfec.cn/info/1006/1712.htm"]
["潍坊工程职业学院","财税","H1","大数据与会计",null,50,4800,"商学院","http://zs.wfec.cn/info/1006/1712.htm"]
["潍坊工程职业学院","市场营销","H2","市场营销",null,35,4800,"商学院","http://zs.wfec.cn/info/1006/1712.htm"]
["潍坊工程职业学院","旅游管理","H3","旅游管理",null,15,4800,"商学院","http://zs.wfec.cn/info/1006/1712.htm"]
["潍坊工程职业学院","酒店管理","H4","旅游管理",null,20,4800,"商学院","http://zs.wfec.cn/info/1006/1712.htm"]
["潍坊工程职业学院","软件与应用技术","J1","人工智能技术应用",null,20,5750,"信息工程学院","http://zs.wfec.cn/info/1006/1712.htm"]
["潍坊工程职业学院","电子技术","J2","人工智能技术应用",null,20,5750,"信息工程学院","http://zs.wfec.cn/info/1006/1712.htm"]
["潍坊工程职业学院","电子技术","J3","物联网应用技术",null,"工",5750,"信息工程学院","http://zs.wfec.cn/info/1006/1712.htm"]
["潍坊工程职业学院","软件与应用技术","J4","物联网应用技术",null,25,5750,"信息工程学院","http://zs.wfec.cn/info/1006/1712.htm"]
["潍坊工程职业学院","数字媒体","J5","虚拟现实技术应用",null,20,5750,"信息工程学院","http://zs.wfec.cn/info/1006/1712.htm"]
["潍坊工程职业学院","软件与应用技术","J6","虚拟现实技术应用",null,20,5750,"信息工程学院","http://zs.wfec.cn/info/1006/1712.htm"]
["菏泽家政职业学院","护理",null,"护理",null,160,6000,null,"http://zs.hzjzzyxy.com:8089/acmc-net/zsgl/sycd3_view.do?dataid=dec2b8b7f9c44e9193b2e0c2e42b267d&type=zsgl_zszch"]
["菏泽家政职业学院","护理",null,"助产(只招女生)",null,10,6000,null,"http://zs.hzjzzyxy.com:8089/acmc-net/zsgl/sycd3_view.do?dataid=dec2b8b7f9c44e9193b2e0c2e42b267d&type=zsgl_zszch"]
["菏泽家政职业学院","医学技术",null,"康复治疗技术",null,60,6000,null,"http://zs.hzjzzyxy.com:8089/acmc-net/zsgl/sycd3_view.do?dataid=dec2b8b7f9c44e9193b2e0c2e42b267d&type=zsgl_zszch"]
["菏泽家政职业学院","医学技术",null,"中医康复技术",null,40,6000,null,"http://zs.hzjzzyxy.com:8089/acmc-net/zsgl/sycd3_view.do?dataid=dec2b8b7f9c44e9193b2e0c2e42b267d&type=zsgl_zszch"]
["菏泽家政职业学院","医学技术",null,"口腔医学技术",null,30,6000,null,"http://zs.hzjzzyxy.com:8089/acmc-net/zsgl/sycd3_view.do?dataid=dec2b8b7f9c44e9193b2e0c2e42b267d&type=zsgl_zszch"]
["菏泽家政职业学院","医学技术",null,"医学影像技术",null,30,6000,null,"http://zs.hzjzzyxy.com:8089/acmc-net/zsgl/sycd3_view.do?dataid=dec2b8b7f9c44e9193b2e0c2e42b267d&type=zsgl_zszch"]
["菏泽家政职业学院","医学技术",null,"医学检验技术",null,40,6000,null,"http://zs.hzjzzyxy.com:8089/acmc-net/zsgl/sycd3_view.do?dataid=dec2b8b7f9c44e9193b2e0c2e42b267d&type=zsgl_zszch"]
["菏泽家政职业学院","药学",null,"药学",null,30,6000,null,"http://zs.hzjzzyxy.com:8089/acmc-net/zsgl/sycd3_view.do?dataid=dec2b8b7f9c44e9193b2e0c2e42b267d&type=zsgl_zszch"]
["菏泽家政职业学院","药学",null,"药品生产技术",null,20,5000,null,"http://zs.hzjzzyxy.com:8089/acmc-net/zsgl/sycd3_view.do?dataid=dec2b8b7f9c44e9193b2e0c2e42b267d&type=zsgl_zszch"]
["菏泽家政职业学院","学前教育",null,"早期教育",null,50,4800,null,"http://zs.hzjzzyxy.com:8089/acmc-net/zsgl/sycd3_view.do?dataid=dec2b8b7f9c44e9193b2e0c2e42b267d&type=zsgl_zszch"]
["菏泽家政职业学院","学前教育",null,"婴幼儿托育服务与管理",null,50,4800,null,"http://zs.hzjzzyxy.com:8089/acmc-net/zsgl/sycd3_view.do?dataid=dec2b8b7f9c44e9193b2e0c2e42b267d&type=zsgl_zszch"]
["菏泽家政职业学院","医学技术",null,"老年保健与管理",null,30,4800,null,"http://zs.hzjzzyxy.com:8089/acmc-net/zsgl/sycd3_view.do?dataid=dec2b8b7f9c44e9193b2e0c2e42b267d&type=zsgl_zszch"]
["菏泽家政职业学院","护理",null,"老年保健与管理",null,20,4800,null,"http://zs.hzjzzyxy.com:8089/acmc-net/zsgl/sycd3_view.do?dataid=dec2b8b7f9c44e9193b2e0c2e42b267d&type=zsgl_zszch"]
["菏泽家政职业学院","公共服务与管理",null,"智慧健康养老服务与管理",null,5,4800,null,"http://zs.hzjzzyxy.com:8089/acmc-net/zsgl/sycd3_view.do?dataid=dec2b8b7f9c44e9193b2e0c2e42b267d&type=zsgl_zszch"]
["菏泽家政职业学院","公共服务与管理",null,"现代家政服务与管理",null,5,4800,null,"http://zs.hzjzzyxy.com:8089/acmc-net/zsgl/sycd3_view.do?dataid=dec2b8b7f9c44e9193b2e0c2e42b267d&type=zsgl_zszch"]
["菏泽家政职业学院","护理",null,"现代家政服务与管理",null,150,4800,null,"http://zs.hzjzzyxy.com:8089/acmc-net/zsgl/sycd3_view.do?dataid=dec2b8b7f9c44e9193b2e0c2e42b267d&type=zsgl_zszch"]
["菏泽家政职业学院","公共服务与管理",null,"社会工作",null,5,4800,null,"http://zs.hzjzzyxy.com:8089/acmc-net/zsgl/sycd3_view.do?dataid=dec2b8b7f9c44e9193b2e0c2e42b267d&type=zsgl_zszch"]
["菏泽家政职业学院","医学技术",null,"健康管理",null,5,4800,null,"http://zs.hzjzzyxy.com:8089/acmc-net/zsgl/sycd3_view.do?dataid=dec2b8b7f9c44e9193b2e0c2e42b267d&type=zsgl_zszch"]
["菏泽家政职业学院","护理",null,"健康管理",null,5,4800,null,"http://zs.hzjzzyxy.com:8089/acmc-net/zsgl/sycd3_view.do?dataid=dec2b8b7f9c44e9193b2e0c2e42b267d&type=zsgl_zszch"]
["菏泽家政职业学院","医学技术",null,"健康大数据管理与服务",null,35,4800,null,"http://zs.hzjzzyxy.com:8089/acmc-net/zsgl/sycd3_view.do?dataid=dec2b8b7f9c44e9193b2e0c2e42b267d&type=zsgl_zszch"]
["菏泽家政职业学院","酒店管理",null,"酒店管理与数字化运营",null,20,4800,null,"http://zs.hzjzzyxy.com:8089/acmc-net/zsgl/sycd3_view.do?dataid=dec2b8b7f9c44e9193b2e0c2e42b267d&type=zsgl_zszch"]
["菏泽家政职业学院","退役军人",null,"智慧健康养老服务与管理",null,10,4800,null,"http://zs.hzjzzyxy.com:8089/acmc-net/zsgl/sycd3_view.do?dataid=dec2b8b7f9c44e9193b2e0c2e42b267d&type=zsgl_zszch"]
["菏泽家政职业学院","退役军人",null,"现代家政服务与管理",null,30,4800,null,"http://zs.hzjzzyxy.com:8089/acmc-net/zsgl/sycd3_view.do?dataid=dec2b8b7f9c44e9193b2e0c2e42b267d&type=zsgl_zszch"]
["山东轻工职业学院","电子商务","1A","电子商务",null,45,null,"商务贸易系","http://zhaosheng.sdlivc.edu.cn/info/1024/3794.htm"]
["山东轻工职业学院","市场营销","1C","市场营销",null,45,null,"商务贸易系","http://zhaosheng.sdlivc.edu.cn/info/1024/3794.htm"]
["山东轻工职业学院","化工与环境","2C","应用化工技术",null,45,null,"健康管理系","http://zhaosheng.sdlivc.edu.cn/info/1024/3794.htm"]
["山东轻工职业学院","酒店管理","2A","食品检验检测技术",null,45,null,"健康管理系","http://zhaosheng.sdlivc.edu.cn/info/1024/3794.htm"]
["山东轻工职业学院","机电技术","3B","工业机器人技术",null,45,null,"机电工程系","http://zhaosheng.sdlivc.edu.cn/info/1024/3794.htm"]
["山东轻工职业学院","机电技术","3C","机电设备技术",null,45,null,"机电工程系","http://zhaosheng.sdlivc.edu.cn/info/1024/3794.htm"]
["山东轻工职业学院","机械制造","3A","电气自动化技术",null,45,null,"机电工程系","http://zhaosheng.sdlivc.edu.cn/info/1024/3794.htm"]
["山东轻工职业学院","机械制造","3D","机械设计与制造",null,45,null,"机电工程系","http://zhaosheng.sdlivc.edu.cn/info/1024/3794.htm"]
["山东轻工职业学院","网络技术","5A","大数据技术",null,45,null,"信息工程系","http://zhaosheng.sdlivc.edu.cn/info/1024/3794.htm"]
["山东轻工职业学院","网络技术","9C","物联网应用技术",null,45,null,"嘉环ICT产业学院","http://zhaosheng.sdlivc.edu.cn/info/1024/3794.htm"]
["山东轻工职业学院","网络技术","9E","现代移动通信技术",null,45,null,"嘉环ICT产业学院","http://zhaosheng.sdlivc.edu.cn/info/1024/3794.htm"]
["山东轻工职业学院","软件与应用技术","5D","人工智能技术应用",null,45,null,"信息工程系","http://zhaosheng.sdlivc.edu.cn/info/1024/3794.htm"]
["山东轻工职业学院","软件与应用技术","9B","软件技术",null,45,null,"嘉环ICT产业学院","http://zhaosheng.sdlivc.edu.cn/info/1024/3794.htm"]
["山东轻工职业学院","数字媒体","5B","计算机应用技术",null,45,null,"信息工程系","http://zhaosheng.sdlivc.edu.cn/info/1024/3794.htm"]
["山东轻工职业学院","数字媒体","9A","计算机应用技术(嘉环班)",null,45,null,"嘉环ICT产业学院","http://zhaosheng.sdlivc.edu.cn/info/1024/3794.htm"]
["山东轻工职业学院","数字媒体","6A","动漫制作技术",null,45,null,"艺术设计系","http://zhaosheng.sdlivc.edu.cn/info/1024/3794.htm"]
["山东轻工职业学院","财税","7A","大数据与财务管理",null,45,null,"工商管理系","http://zhaosheng.sdlivc.edu.cn/info/1024/3794.htm"]
["山东轻工职业学院","财税","7C","统计与会计核算",null,45,null,"工商管理系","http://zhaosheng.sdlivc.edu.cn/info/1024/3794.htm"]
["山东轻工职业学院","旅游管理","7D","研学旅行管理与服务",null,45,null,"工商管理系","http://zhaosheng.sdlivc.edu.cn/info/1024/3794.htm"]
["山东轻工职业学院","服装","8A","服装设计与工艺",null,45,null,"国际时尚学院","http://zhaosheng.sdlivc.edu.cn/info/1024/3794.htm"]
["烟台科技学院","机电技术",null,"机械制造及自动化",null,40,null,"海洋工程学院","https://zs.ytkj.edu.cn/info/1013/2253.htm"]
["烟台科技学院","机电技术",null,"工业机器人技术",null,20,null,"海洋工程学院","https://zs.ytkj.edu.cn/info/1013/2253.htm"]
["烟台科技学院","软件与应用技术",null,"计算机应用技术",null,20,null,"数据智能学院","https://zs.ytkj.edu.cn/info/1013/2253.htm"]
["烟台科技学院","软件与应用技术",null,"计算机网络技术",null,5,null,"数据智能学院","https://zs.ytkj.edu.cn/info/1013/2253.htm"]
["烟台科技学院","软件与应用技术",null,"大数据技术",null,5,null,"数据智能学院","https://zs.ytkj.edu.cn/info/1013/2253.htm"]
["烟台科技学院","软件与应用技术",null,"软件技术",null,15,null,"数据智能学院","https://zs.ytkj.edu.cn/info/1013/2253.htm"]
["烟台科技学院","市场营销",null,"电子商务",null,10,null,"管理学院","https://zs.ytkj.edu.cn/info/1013/2253.htm"]
["烟台科技学院","市场营销",null,"市场营销",null,10,null,"管理学院","https://zs.ytkj.edu.cn/info/1013/2253.htm"]
["烟台科技学院","市场营销",null,"旅游管理",null,5,null,"管理学院","https://zs.ytkj.edu.cn/info/1013/2253.htm"]
["烟台科技学院","市场营销",null,"葡萄酒文化与营销",null,5,null,"管理学院","https://zs.ytkj.edu.cn/info/1013/2253.htm"]
["烟台科技学院","财税",null,"大数据与会计",null,25,null,"财经学院","https://zs.ytkj.edu.cn/info/1013/2253.htm"]
["烟台科技学院","财税",null,"大数据与财务管理",null,5,null,"财经学院","https://zs.ytkj.edu.cn/info/1013/2253.htm"]
["烟台科技学院","艺术设计",null,"艺术设计",null,10,null,"艺术设计学院","https://zs.ytkj.edu.cn/info/1013/2253.htm"]
["烟台科技学院","艺术设计",null,"数字媒体艺术设计",null,5,null,"文化传媒学院","https://zs.ytkj.edu.cn/info/1013/2253.htm"]
["烟台科技学院","艺术设计",null,"广告艺术设计",null,5,null,"文化传媒学院","https://zs.ytkj.edu.cn/info/1013/2253.htm"]
["烟台科技学院","数字媒体",null,"新闻采编与制作",null,15,null,"文化传媒学院","https://zs.ytkj.edu.cn/info/1013/2253.htm"]
["烟台科技学院","国际商务",null,"商务英语",null,10,null,"人文学院","https://zs.ytkj.edu.cn/info/1013/2253.htm"]
["烟台科技学院","机械制造",null,"机械制造及自动化",null,30,null,"海洋工程学院","https://zs.ytkj.edu.cn/info/1013/2253.htm"]
["烟台科技学院","自动控制",null,"工业机器人技术",null,5,null,"海洋工程学院","https://zs.ytkj.edu.cn/info/1013/2253.htm"]
["烟台科技学院","网络技术",null,"计算机应用技术",null,20,null,"数据智能学院","https://zs.ytkj.edu.cn/info/1013/2253.htm"]
["烟台科技学院","网络技术",null,"计算机网络技术",null,15,null,"数据智能学院","https://zs.ytkj.edu.cn/info/1013/2253.htm"]
["烟台科技学院","网络技术",null,"大数据技术",null,5,null,"数据智能学院","https://zs.ytkj.edu.cn/info/1013/2253.htm"]
["烟台科技学院","网络技术",null,"软件技术",null,5,null,"数据智能学院","https://zs.ytkj.edu.cn/info/1013/2253.htm"]
["烟台科技学院","电子商务",null,"电子商务",null,20,null,"管理学院","https://zs.ytkj.edu.cn/info/1013/2253.htm"]
["烟台科技学院","电子商务",null,"市场营销",null,10,null,"管理学院","https://zs.ytkj.edu.cn/info/1013/2253.htm"]
["烟台科技学院","旅游管理",null,"旅游管理",null,5,null,"管理学院","https://zs.ytkj.edu.cn/info/1013/2253.htm"]
["烟台科技学院","旅游管理",null,"葡萄酒文化与营销",null,5,null,"管理学院","https://zs.ytkj.edu.cn/info/1013/2253.htm"]
["烟台科技学院","市场营销",null,"大数据与会计",null,10,null,"财经学院","https://zs.ytkj.edu.cn/info/1013/2253.htm"]
["烟台科技学院","电子商务",null,"大数据与财务管理",null,5,null,"财经学院","https://zs.ytkj.edu.cn/info/1013/2253.htm"]
["烟台科技学院","数字媒体",null,"艺术设计",null,5,null,"艺术设计学院","https://zs.ytkj.edu.cn/info/1013/2253.htm"]
["烟台科技学院","数字媒体",null,"数字媒体艺术设计",null,35,null,"文化传媒学院","https://zs.ytkj.edu.cn/info/1013/2253.htm"]
["烟台科技学院","数字媒体",null,"广告艺术设计",null,5,null,"文化传媒学院","https://zs.ytkj.edu.cn/info/1013/2253.htm"]
["烟台科技学院","艺术设计",null,"新闻采编与制作",null,5,null,"文化传媒学院","https://zs.ytkj.edu.cn/info/1013/2253.htm"]
["烟台科技学院","电子商务",null,"商务英语",null,5,null,"人文学院","https://zs.ytkj.edu.cn/info/1013/2253.htm"]
["烟台科技学院","退役军人",null,"计算机应用技术",null,30,null,"数据智能学院","https://zs.ytkj.edu.cn/info/1013/2253.htm"]
["烟台科技学院","退役军人",null,"大数据与会计",null,20,null,"财经学院","https://zs.ytkj.edu.cn/info/1013/2253.htm"]
["泰山科技学院","软件与应用技术",null,"计算机应用技术",null,3,null,"大数据学院","http://zs.tskjxy.edu.cn/page/detail/JBEYJP/9411/58983"]
["泰山科技学院","网络技术",null,"计算机应用技术",null,4,null,"大数据学院","http://zs.tskjxy.edu.cn/page/detail/JBEYJP/9411/58983"]
["泰山科技学院","软件与应用技术",null,"大数据技术",null,3,null,"大数据学院","http://zs.tskjxy.edu.cn/page/detail/JBEYJP/9411/58983"]
["泰山科技学院","网络技术",null,"大数据技术",null,4,null,"大数据学院","http://zs.tskjxy.edu.cn/page/detail/JBEYJP/9411/58983"]
["泰山科技学院","软件与应用技术",null,"虚拟现实技术应用",null,2,null,"大数据学院","http://zs.tskjxy.edu.cn/page/detail/JBEYJP/9411/58983"]
["泰山科技学院","网络技术",null,"虚拟现实技术应用",null,4,null,"大数据学院","http://zs.tskjxy.edu.cn/page/detail/JBEYJP/9411/58983"]
["泰山科技学院","软件与应用技术",null,"软件技术",null,2,null,"大数据学院","http://zs.tskjxy.edu.cn/page/detail/JBEYJP/9411/58983"]
["泰山科技学院","网络技术",null,"软件技术",null,4,null,"大数据学院","http://zs.tskjxy.edu.cn/page/detail/JBEYJP/9411/58983"]
["泰山科技学院","网络技术",null,"计算机网络技术",null,50,null,"大数据学院","http://zs.tskjxy.edu.cn/page/detail/JBEYJP/9411/58983"]
["泰山科技学院","软件与应用技术",null,"计算机网络技术",null,3,null,"大数据学院","http://zs.tskjxy.edu.cn/page/detail/JBEYJP/9411/58983"]
["泰山科技学院","机械制造",null,"机械制造及自动化",null,20,null,"智能工程学院","http://zs.tskjxy.edu.cn/page/detail/JBEYJP/9411/58983"]
["泰山科技学院","机电技术",null,"机械制造及自动化",null,8,null,"智能工程学院","http://zs.tskjxy.edu.cn/page/detail/JBEYJP/9411/58983"]
["泰山科技学院","机电技术",null,"机电一体化技术",null,20,null,"智能工程学院","http://zs.tskjxy.edu.cn/page/detail/JBEYJP/9411/58983"]
["泰山科技学院","机械制造",null,"机电一体化技术",null,10,null,"智能工程学院","http://zs.tskjxy.edu.cn/page/detail/JBEYJP/9411/58983"]
["泰山科技学院","自动控制",null,"电气自动化技术",null,3,null,"智能工程学院","http://zs.tskjxy.edu.cn/page/detail/JBEYJP/9411/58983"]
["泰山科技学院","机电技术",null,"电气自动化技术",null,7,null,"智能工程学院","http://zs.tskjxy.edu.cn/page/detail/JBEYJP/9411/58983"]
["泰山科技学院","自动控制",null,"智能机器人技术",null,2,null,"智能工程学院","http://zs.tskjxy.edu.cn/page/detail/JBEYJP/9411/58983"]
["泰山科技学院","电子技术",null,"智能机器人技术",null,6,null,"智能工程学院","http://zs.tskjxy.edu.cn/page/detail/JBEYJP/9411/58983"]
["泰山科技学院","自动控制",null,"智能控制技术",null,3,null,"智能工程学院","http://zs.tskjxy.edu.cn/page/detail/JBEYJP/9411/58983"]
["泰山科技学院","电气技术",null,"智能控制技术",null,4,null,"智能工程学院","http://zs.tskjxy.edu.cn/page/detail/JBEYJP/9411/58983"]
["泰山科技学院","车辆维修",null,"智能网联汽车技术",null,17,null,"智能工程学院","http://zs.tskjxy.edu.cn/page/detail/JBEYJP/9411/58983"]
["泰山科技学院","电子技术",null,"智能网联汽车技术",null,6,null,"智能工程学院","http://zs.tskjxy.edu.cn/page/detail/JBEYJP/9411/58983"]
["泰山科技学院","建筑",null,"建筑工程技术",null,3,null,"建筑工程学院","http://zs.tskjxy.edu.cn/page/detail/JBEYJP/9411/58983"]
["泰山科技学院","建筑",null,"工程造价",null,2,null,"建筑工程学院","http://zs.tskjxy.edu.cn/page/detail/JBEYJP/9411/58983"]
["泰山科技学院","建筑",null,"智能建造技术",null,2,null,"建筑工程学院","http://zs.tskjxy.edu.cn/page/detail/JBEYJP/9411/58983"]
["泰山科技学院","建筑",null,"市政工程技术",null,2,null,"建筑工程学院","http://zs.tskjxy.edu.cn/page/detail/JBEYJP/9411/58983"]
["泰山科技学院","电子技术",null,"智能互联网络技术",null,10,null,"通信工程学院","http://zs.tskjxy.edu.cn/page/detail/JBEYJP/9411/58983"]
["泰山科技学院","网络技术",null,"智能互联网络技术",null,4,null,"通信工程学院","http://zs.tskjxy.edu.cn/page/detail/JBEYJP/9411/58983"]
["泰山科技学院","财税",null,"大数据与会计",null,13,null,"淬炼商学院","http://zs.tskjxy.edu.cn/page/detail/JBEYJP/9411/58983"]
["泰山科技学院","电子商务",null,"大数据与会计",null,3,null,"淬炼商学院","http://zs.tskjxy.edu.cn/page/detail/JBEYJP/9411/58983"]
["泰山科技学院","财税",null,"大数据与审计",null,4,null,"淬炼商学院","http://zs.tskjxy.edu.cn/page/detail/JBEYJP/9411/58983"]
["泰山科技学院","电子商务",null,"大数据与审计",null,3,null,"淬炼商学院","http://zs.tskjxy.edu.cn/page/detail/JBEYJP/9411/58983"]
["泰山科技学院","财税",null,"大数据与财务管理",null,6,null,"淬炼商学院","http://zs.tskjxy.edu.cn/page/detail/JBEYJP/9411/58983"]
["泰山科技学院","电子商务",null,"大数据与财务管理",null,3,null,"淬炼商学院","http://zs.tskjxy.edu.cn/page/detail/JBEYJP/9411/58983"]
["泰山科技学院","旅游管理",null,"旅游管理",null,3,null,"淬炼商学院","http://zs.tskjxy.edu.cn/page/detail/JBEYJP/9411/58983"]
["泰山科技学院","酒店管理",null,"旅游管理",null,14,null,"淬炼商学院","http://zs.tskjxy.edu.cn/page/detail/JBEYJP/9411/58983"]
["泰山科技学院","国际商务",null,"国际经济与贸易",null,22,null,"淬炼商学院","http://zs.tskjxy.edu.cn/page/detail/JBEYJP/9411/58983"]
["泰山科技学院","电子商务",null,"国际经济与贸易",null,5,null,"淬炼商学院","http://zs.tskjxy.edu.cn/page/detail/JBEYJP/9411/58983"]
["泰山科技学院","市场营销",null,"市场营销",null,27,null,"淬炼商学院","http://zs.tskjxy.edu.cn/page/detail/JBEYJP/9411/58983"]
["泰山科技学院","国际商务",null,"市场营销",null,3,null,"淬炼商学院","http://zs.tskjxy.edu.cn/page/detail/JBEYJP/9411/58983"]
["泰山科技学院","电子商务",null,"电子商务",null,27,null,"淬炼商学院","http://zs.tskjxy.edu.cn/page/detail/JBEYJP/9411/58983"]
["泰山科技学院","数字媒体",null,"电子商务",null,3,null,"淬炼商学院","http://zs.tskjxy.edu.cn/page/detail/JBEYJP/9411/58983"]
["泰山科技学院","公共服务与管理",null,"法律事务",null,12,null,"行政管理学院","http://zs.tskjxy.edu.cn/page/detail/JBEYJP/9411/58983"]
["泰山科技学院","市场营销",null,"法律事务",null,4,null,"行政管理学院","http://zs.tskjxy.edu.cn/page/detail/JBEYJP/9411/58983"]
["泰山科技学院","公共服务与管理",null,"现代文秘",null,8,null,"行政管理学院","http://zs.tskjxy.edu.cn/page/detail/JBEYJP/9411/58983"]
["泰山科技学院","国际商务",null,"现代文秘",null,4,null,"行政管理学院","http://zs.tskjxy.edu.cn/page/detail/JBEYJP/9411/58983"]
["泰山科技学院","艺术设计",null,"数字媒体艺术设计",null,15,null,"艺术传媒学院","http://zs.tskjxy.edu.cn/page/detail/JBEYJP/9411/58983"]
["泰山科技学院","数字媒体",null,"数字媒体艺术设计",null,4,null,"艺术传媒学院","http://zs.tskjxy.edu.cn/page/detail/JBEYJP/9411/58983"]
["泰山科技学院","艺术设计",null,"视觉传达设计",null,5,null,"艺术传媒学院","http://zs.tskjxy.edu.cn/page/detail/JBEYJP/9411/58983"]
["泰山科技学院","数字媒体",null,"视觉传达设计",null,4,null,"艺术传媒学院","http://zs.tskjxy.edu.cn/page/detail/JBEYJP/9411/58983"]
["泰山科技学院","退役军人",null,"计算机应用技术",null,5,null,"大数据学院","http://zs.tskjxy.edu.cn/page/detail/JBEYJP/9411/58983"]
["泰山科技学院","退役军人",null,"大数据技术",null,4,null,"大数据学院","http://zs.tskjxy.edu.cn/page/detail/JBEYJP/9411/58983"]
["泰山科技学院","退役军人",null,"计算机网络技术",null,5,null,"大数据学院","http://zs.tskjxy.edu.cn/page/detail/JBEYJP/9411/58983"]
["泰山科技学院","退役军人",null,"机械制造及自动化",null,4,null,"智能工程学院","http://zs.tskjxy.edu.cn/page/detail/JBEYJP/9411/58983"]
["泰山科技学院","退役军人",null,"机电一体化技术",null,4,null,"智能工程学院","http://zs.tskjxy.edu.cn/page/detail/JBEYJP/9411/58983"]
["泰山科技学院","退役军人",null,"电气自动化技术",null,4,null,"智能工程学院","http://zs.tskjxy.edu.cn/page/detail/JBEYJP/9411/58983"]
["泰山科技学院","退役军人",null,"智能机器人技术",null,2,null,"智能工程学院","http://zs.tskjxy.edu.cn/page/detail/JBEYJP/9411/58983"]
["泰山科技学院","退役军人",null,"建筑工程技术",null,2,null,"建筑工程学院","http://zs.tskjxy.edu.cn/page/detail/JBEYJP/9411/58983"]
["泰山科技学院","退役军人",null,"工程造价",null,2,null,"建筑工程学院","http://zs.tskjxy.edu.cn/page/detail/JBEYJP/9411/58983"]
["泰山科技学院","退役军人",null,"智能建造技术",null,2,null,"建筑工程学院","http://zs.tskjxy.edu.cn/page/detail/JBEYJP/9411/58983"]
["泰山科技学院","退役军人",null,"市政工程技术",null,2,null,"建筑工程学院","http://zs.tskjxy.edu.cn/page/detail/JBEYJP/9411/58983"]
["泰山科技学院","退役军人",null,"智能互联网络技术",null,4,null,"通信工程学院","http://zs.tskjxy.edu.cn/page/detail/JBEYJP/9411/58983"]
["泰山科技学院","退役军人",null,"大数据与会计",null,4,null,"淬炼商学院","http://zs.tskjxy.edu.cn/page/detail/JBEYJP/9411/58983"]
["泰山科技学院","退役军人",null,"大数据与财务管理",null,4,null,"淬炼商学院","http://zs.tskjxy.edu.cn/page/detail/JBEYJP/9411/58983"]
["泰山科技学院","退役军人",null,"法律事务",null,2,null,"行政管理学院","http://zs.tskjxy.edu.cn/page/detail/JBEYJP/9411/58983"]
["山东经贸职业学院","财税",null,"大数据与审计",null,26,5500,"会计系","http://zsw.sdecu.com/cms/article/artMain.html?id=927&classid=51"]
["山东经贸职业学院","财税",null,"大数据与会计",null,160,5500,"会计系","http://zsw.sdecu.com/cms/article/artMain.html?id=927&classid=51"]
["山东经贸职业学院","财税",null,"统计与会计核算",null,27,5200,"会计系","http://zsw.sdecu.com/cms/article/artMain.html?id=927&classid=51"]
["山东经贸职业学院","财税",null,"大数据与会计（中外合作）",null,20,12000,"会计系","http://zsw.sdecu.com/cms/article/artMain.html?id=927&classid=51"]
["山东经贸职业学院","财税",null,"会计信息管理",null,27,4800,"会计系","http://zsw.sdecu.com/cms/article/artMain.html?id=927&classid=51"]
["山东经贸职业学院","财税",null,"金融科技应用",null,20,4800,"财政金融系","http://zsw.sdecu.com/cms/article/artMain.html?id=927&classid=51"]
["山东经贸职业学院","财税",null,"资产评估与管理",null,24,5500,"财政金融系","http://zsw.sdecu.com/cms/article/artMain.html?id=927&classid=51"]
["山东经贸职业学院","财税",null,"证券实务",null,10,5200,"财政金融系","http://zsw.sdecu.com/cms/article/artMain.html?id=927&classid=51"]
["山东经贸职业学院","财税",null,"大数据与财务管理",null,30,5500,"财政金融系","http://zsw.sdecu.com/cms/article/artMain.html?id=927&classid=51"]
["山东经贸职业学院","财税",null,"金融服务与管理",null,32,5500,"财政金融系","http://zsw.sdecu.com/cms/article/artMain.html?id=927&classid=51"]
["山东经贸职业学院","财税",null,"财税大数据应用",null,12,4800,"财政金融系","http://zsw.sdecu.com/cms/article/artMain.html?id=927&classid=51"]
["山东经贸职业学院","自动控制",null,"农村新型经济组织管理",null,30,5000,"工商管理系","http://zsw.sdecu.com/cms/article/artMain.html?id=927&classid=51"]
["山东经贸职业学院","市场营销",null,"市场营销",null,40,4800,"工商管理系","http://zsw.sdecu.com/cms/article/artMain.html?id=927&classid=51"]
["山东经贸职业学院","市场营销",null,"工商企业管理",null,20,4800,"工商管理系","http://zsw.sdecu.com/cms/article/artMain.html?id=927&classid=51"]
["山东经贸职业学院","市场营销",null,"连锁经营与管理",null,30,5500,"工商管理系","http://zsw.sdecu.com/cms/article/artMain.html?id=927&classid=51"]
["山东经贸职业学院","公共服务与管理",null,"人力资源管理",null,20,4800,"工商管理系","http://zsw.sdecu.com/cms/article/artMain.html?id=927&classid=51"]
["山东经贸职业学院","自动控制",null,"无人机应用技术",null,20,5000,"工商管理系","http://zsw.sdecu.com/cms/article/artMain.html?id=927&classid=51"]
["山东经贸职业学院","机电技术",null,"电气自动化技术",null,25,5000,"商务工程技术系","http://zsw.sdecu.com/cms/article/artMain.html?id=927&classid=51"]
["山东经贸职业学院","电子商务",null,"网络营销与直播电商",null,20,4800,"商务工程技术系","http://zsw.sdecu.com/cms/article/artMain.html?id=927&classid=51"]
["山东经贸职业学院","电子商务",null,"电子商务",null,40,5500,"商务工程技术系","http://zsw.sdecu.com/cms/article/artMain.html?id=927&classid=51"]
["山东经贸职业学院","物流管理",null,"冷链物流技术与管理",null,15,4800,"商务工程技术系","http://zsw.sdecu.com/cms/article/artMain.html?id=927&classid=51"]
["山东经贸职业学院","物流管理",null,"现代物流管理",null,20,5500,"商务工程技术系","http://zsw.sdecu.com/cms/article/artMain.html?id=927&classid=51"]
["山东经贸职业学院","电子技术",null,"电子产品制造技术",null,16,5000,"商务工程技术系","http://zsw.sdecu.com/cms/article/artMain.html?id=927&classid=51"]
["山东经贸职业学院","国际商务",null,"关务与外贸服务",null,10,5500,"国际商务系","http://zsw.sdecu.com/cms/article/artMain.html?id=927&classid=51"]
["山东经贸职业学院","酒店管理",null,"酒店管理与数字化运营",null,20,4800,"国际商务系","http://zsw.sdecu.com/cms/article/artMain.html?id=927&classid=51"]
["山东经贸职业学院","旅游管理",null,"旅游管理",null,20,4800,"国际商务系","http://zsw.sdecu.com/cms/article/artMain.html?id=927&classid=51"]
["山东经贸职业学院","国际商务",null,"国际经济与贸易",null,20,4800,"国际商务系","http://zsw.sdecu.com/cms/article/artMain.html?id=927&classid=51"]
["山东经贸职业学院","学前教育",null,"婴幼儿托育服务与管理",null,24,6000,"国际商务系","http://zsw.sdecu.com/cms/article/artMain.html?id=927&classid=51"]
["山东经贸职业学院","电子商务",null,"跨境电子商务",null,20,5500,"国际商务系","http://zsw.sdecu.com/cms/article/artMain.html?id=927&classid=51"]
["山东经贸职业学院","酒店管理",null,"空中乘务",null,20,5000,"国际商务系","http://zsw.sdecu.com/cms/article/artMain.html?id=927&classid=51"]
["山东经贸职业学院","公共服务与管理",null,"智慧健康养老服务与管理",null,10,4800,"国际商务系","http://zsw.sdecu.com/cms/article/artMain.html?id=927&classid=51"]
["山东经贸职业学院","数字媒体",null,"动漫制作技术",null,10,5000,"科学与人文系","http://zsw.sdecu.com/cms/article/artMain.html?id=927&classid=51"]
["山东经贸职业学院","软件与应用技术",null,"计算机应用技术",null,8,5000,"科学与人文系","http://zsw.sdecu.com/cms/article/artMain.html?id=927&classid=51"]
["山东经贸职业学院","软件与应用技术",null,"计算机应用技术(中外合作)",null,34,12000,"科学与人文系","http://zsw.sdecu.com/cms/article/artMain.html?id=927&classid=51"]
["山东经贸职业学院","艺术设计",null,"广告艺术设计",null,20,7000,"科学与人文系","http://zsw.sdecu.com/cms/article/artMain.html?id=927&classid=51"]
["烟台汽车工程职业学院","学前教育","A1","早期教育",null,30,4800,null,"http://zs.ytqcvc.cn/info/1004/1501.htm"]
["烟台汽车工程职业学院","学前教育","A2","婴幼儿托育服务与管理",null,30,5500,null,"http://zs.ytqcvc.cn/info/1004/1501.htm"]
["烟台汽车工程职业学院","酒店管理","A3","民航安全技术管理",null,30,5000,null,"http://zs.ytqcvc.cn/info/1004/1501.htm"]
["烟台汽车工程职业学院","运输","A4","民航运输服务",null,40,5000,null,"http://zs.ytqcvc.cn/info/1004/1501.htm"]
["烟台汽车工程职业学院","酒店管理","A5","空中乘务",null,30,5000,null,"http://zs.ytqcvc.cn/info/1004/1501.htm"]
["烟台汽车工程职业学院","旅游管理","A6","民航空中安全保卫",null,30,5000,null,"http://zs.ytqcvc.cn/info/1004/1501.htm"]
["烟台汽车工程职业学院","化工与环境","A7","安全技术与管理",null,30,5000,null,"http://zs.ytqcvc.cn/info/1004/1501.htm"]
["烟台汽车工程职业学院","自动控制","A8","安全智能监测技术",null,40,5000,null,"http://zs.ytqcvc.cn/info/1004/1501.htm"]
["烟台汽车工程职业学院","电子商务","A9","网络营销与直播电商",null,20,4800,null,"http://zs.ytqcvc.cn/info/1004/1501.htm"]
["烟台汽车工程职业学院","数字媒体","B1","网络营销与直播电商",null,20,4800,null,"http://zs.ytqcvc.cn/info/1004/1501.htm"]
["烟台汽车工程职业学院","市场营销","B2","市场营销",null,30,4800,null,"http://zs.ytqcvc.cn/info/1004/1501.htm"]
["烟台汽车工程职业学院","电子商务","B3","市场营销",null,10,4800,null,"http://zs.ytqcvc.cn/info/1004/1501.htm"]
["烟台汽车工程职业学院","物流管理","B4","现代物流管理",null,30,4800,null,"http://zs.ytqcvc.cn/info/1004/1501.htm"]
["烟台汽车工程职业学院","机械制造","B5","数控技术",null,30,5500,null,"http://zs.ytqcvc.cn/info/1004/1501.htm"]
["烟台汽车工程职业学院","机电技术","B6","机电一体化技术",null,30,5500,null,"http://zs.ytqcvc.cn/info/1004/1501.htm"]
["烟台汽车工程职业学院","机电技术","B7","工业机器人技术",null,30,5500,null,"http://zs.ytqcvc.cn/info/1004/1501.htm"]
["烟台汽车工程职业学院","机械制造","B8","机械制造及自动化",null,20,5500,null,"http://zs.ytqcvc.cn/info/1004/1501.htm"]
["烟台汽车工程职业学院","机械制造","B9","机械设计与制造",null,20,5000,null,"http://zs.ytqcvc.cn/info/1004/1501.htm"]
["烟台汽车工程职业学院","自动控制","C1","工业互联网应用",null,20,5000,null,"http://zs.ytqcvc.cn/info/1004/1501.htm"]
["烟台汽车工程职业学院","机械制造","C2","模具设计与制造",null,20,5000,null,"http://zs.ytqcvc.cn/info/1004/1501.htm"]
["烟台汽车工程职业学院","机械制造","C3","增材制造技术",null,20,5000,null,"http://zs.ytqcvc.cn/info/1004/1501.htm"]
["烟台汽车工程职业学院","电子技术","C4","现代通信技术",null,30,5000,null,"http://zs.ytqcvc.cn/info/1004/1501.htm"]
["烟台汽车工程职业学院","自动控制","C5","电梯工程技术",null,30,5000,null,"http://zs.ytqcvc.cn/info/1004/1501.htm"]
["烟台汽车工程职业学院","自动控制","C6","无人机应用技术",null,30,5000,null,"http://zs.ytqcvc.cn/info/1004/1501.htm"]
["烟台汽车工程职业学院","软件与应用技术","C7","人工智能技术应用",null,30,5000,null,"http://zs.ytqcvc.cn/info/1004/1501.htm"]
["烟台汽车工程职业学院","自动控制","C8","智能控制技术",null,30,5000,null,"http://zs.ytqcvc.cn/info/1004/1501.htm"]
["烟台汽车工程职业学院","电子技术","C9","物联网应用技术",null,20,5500,null,"http://zs.ytqcvc.cn/info/1004/1501.htm"]
["烟台汽车工程职业学院","软件与应用技术","D1","虚拟现实技术应用",null,20,5000,null,"http://zs.ytqcvc.cn/info/1004/1501.htm"]
["烟台汽车工程职业学院","软件与应用技术","D2","大数据技术",null,20,5000,null,"http://zs.ytqcvc.cn/info/1004/1501.htm"]
["烟台汽车工程职业学院","车辆维修","D3","汽车制造与试验技术",null,30,5500,null,"http://zs.ytqcvc.cn/info/1004/1501.htm"]
["烟台汽车工程职业学院","车辆维修","D4","汽车造型与改装技术",null,30,5500,null,"http://zs.ytqcvc.cn/info/1004/1501.htm"]
["烟台汽车工程职业学院","机电技术","D5","智能工程机械运用技术",null,30,5000,null,"http://zs.ytqcvc.cn/info/1004/1501.htm"]
["烟台汽车工程职业学院","车辆维修","D6","汽车技术服务与营销",null,20,5500,null,"http://zs.ytqcvc.cn/info/1004/1501.htm"]
["烟台汽车工程职业学院","车辆维修","D7","新能源汽车技术",null,20,5500,null,"http://zs.ytqcvc.cn/info/1004/1501.htm"]
["烟台汽车工程职业学院","车辆维修","D8","汽车电子技术",null,20,5500,null,"http://zs.ytqcvc.cn/info/1004/1501.htm"]
["烟台汽车工程职业学院","电子技术","D9","汽车智能技术",null,20,5500,null,"http://zs.ytqcvc.cn/info/1004/1501.htm"]
["烟台汽车工程职业学院","车辆维修","E1","新能源汽车检测与维修技术",null,20,5500,null,"http://zs.ytqcvc.cn/info/1004/1501.htm"]
["烟台汽车工程职业学院","车辆维修","E2","智能网联汽车技术",null,20,5000,null,"http://zs.ytqcvc.cn/info/1004/1501.htm"]
["烟台汽车工程职业学院","运输","E3","智能交通技术",null,20,5000,null,"http://zs.ytqcvc.cn/info/1004/1501.htm"]
["山东外事职业大学","建筑","01","建筑柒饰工程技术","威海",20,null,null,"https://zsb.sdws.edu.cn/2024/0129/c410a55354/page.htm"]
["山东外事职业大学","建筑","02","建筑室内设计","底海",30,null,null,"https://zsb.sdws.edu.cn/2024/0129/c410a55354/page.htm"]
["山东外事职业大学","艺术设计","03","建筑室内设计","底海",8,null,null,"https://zsb.sdws.edu.cn/2024/0129/c410a55354/page.htm"]
["山东外事职业大学","建筑","04","工程造价","威海",20,null,null,"https://zsb.sdws.edu.cn/2024/0129/c410a55354/page.htm"]
["山东外事职业大学","机电技术","05","智能机电技术","威海",80,null,null,"https://zsb.sdws.edu.cn/2024/0129/c410a55354/page.htm"]
["山东外事职业大学","酒店管理","06","空中熏务","济南",2,null,null,"https://zsb.sdws.edu.cn/2024/0129/c410a55354/page.htm"]
["山东外事职业大学","电子技术","07","电子信息工程技术","底海",5,null,null,"https://zsb.sdws.edu.cn/2024/0129/c410a55354/page.htm"]
["山东外事职业大学","电气技术","08","电子信息工程技术","底海",10,null,null,"https://zsb.sdws.edu.cn/2024/0129/c410a55354/page.htm"]
["山东外事职业大学","电子技术","09","物联网应用技术","威海",3,null,null,"https://zsb.sdws.edu.cn/2024/0129/c410a55354/page.htm"]
["山东外事职业大学","网络技术",10,"物联网应用技术","威海",60,null,null,"https://zsb.sdws.edu.cn/2024/0129/c410a55354/page.htm"]
["山东外事职业大学","软件与应用技术",11,"计算机应用技术","济南",5,null,null,"https://zsb.sdws.edu.cn/2024/0129/c410a55354/page.htm"]
["山东外事职业大学","网络技术",12,"计算机应用技术","济南",12,null,null,"https://zsb.sdws.edu.cn/2024/0129/c410a55354/page.htm"]
["山东外事职业大学","软件与应用技术",13,"软件技术","威海",30,null,null,"https://zsb.sdws.edu.cn/2024/0129/c410a55354/page.htm"]
["山东外事职业大学","网络技术",14,"软件技术","威海",20,null,null,"https://zsb.sdws.edu.cn/2024/0129/c410a55354/page.htm"]
["山东外事职业大学","数字爆体",15,"数字探体技术","济南",50,null,null,"https://zsb.sdws.edu.cn/2024/0129/c410a55354/page.htm"]
["山东外事职业大学","软件与应用技术",16,"云计算技术应用","威海",1,null,null,"https://zsb.sdws.edu.cn/2024/0129/c410a55354/page.htm"]
["山东外事职业大学","网络技术",17,"云计算技术应用","威海",5,null,null,"https://zsb.sdws.edu.cn/2024/0129/c410a55354/page.htm"]
["山东外事职业大学","数字煤体",18,"动滑制作技术","济南",6,null,null,"https://zsb.sdws.edu.cn/2024/0129/c410a55354/page.htm"]
["山东外事职业大学","护理",19,"护理","底海",300,null,null,"https://zsb.sdws.edu.cn/2024/0129/c410a55354/page.htm"]
["山东外事职业大学","医学技术",20,"护理","底海",30,null,null,"https://zsb.sdws.edu.cn/2024/0129/c410a55354/page.htm"]
["山东外事职业大学","学前教育",21,"婴幼儿托育服务与管理","威海",200,null,null,"https://zsb.sdws.edu.cn/2024/0129/c410a55354/page.htm"]
["山东外事职业大学","财税",22,"国际金融","底海",1,null,null,"https://zsb.sdws.edu.cn/2024/0129/c410a55354/page.htm"]
["山东外事职业大学","电子商务",23,"国际金融","底海",2,null,null,"https://zsb.sdws.edu.cn/2024/0129/c410a55354/page.htm"]
["山东外事职业大学","财税",24,"大数据与会计","威海",20,null,null,"https://zsb.sdws.edu.cn/2024/0129/c410a55354/page.htm"]
["山东外事职业大学","国际商务",25,"国际经济与贸易","威海",12,null,null,"https://zsb.sdws.edu.cn/2024/0129/c410a55354/page.htm"]
["山东外事职业大学","市场营销",26,"工商企业管理","威海",10,null,null,"https://zsb.sdws.edu.cn/2024/0129/c410a55354/page.htm"]
["山东外事职业大学","公共服务与管理",27,"工商企业管理","威海",10,null,null,"https://zsb.sdws.edu.cn/2024/0129/c410a55354/page.htm"]
["山东外事职业大学","市场营销",28,"市场营销","威海",50,null,null,"https://zsb.sdws.edu.cn/2024/0129/c410a55354/page.htm"]
["山东外事职业大学","电子商务",29,"市场营销","威海",5,null,null,"https://zsb.sdws.edu.cn/2024/0129/c410a55354/page.htm"]
["山东外事职业大学","电子商务",30,"电子商务","威海",100,null,null,"https://zsb.sdws.edu.cn/2024/0129/c410a55354/page.htm"]
["山东外事职业大学","国际商务",31,"电子商务","威海",10,null,null,"https://zsb.sdws.edu.cn/2024/0129/c410a55354/page.htm"]
["山东外事职业大学","物流管理",32,"现代物流管理","威海",2,null,null,"https://zsb.sdws.edu.cn/2024/0129/c410a55354/page.htm"]
["山东外事职业大学","旅蔚管理",33,"敏薯管理","威海",8,null,null,"https://zsb.sdws.edu.cn/2024/0129/c410a55354/page.htm"]
["山东外事职业大学","酒店管理",34,"敏薯管理","威海",23,null,null,"https://zsb.sdws.edu.cn/2024/0129/c410a55354/page.htm"]
["山东外事职业大学","艺术设计",35,"视觉传达设计","济南",2,null,null,"https://zsb.sdws.edu.cn/2024/0129/c410a55354/page.htm"]
["山东外事职业大学","数字爆体",36,"视觉传达设计","济南",2,null,null,"https://zsb.sdws.edu.cn/2024/0129/c410a55354/page.htm"]
["山东外事职业大学","艺术设计",37,"书画艺术","济南",2,null,null,"https://zsb.sdws.edu.cn/2024/0129/c410a55354/page.htm"]
["山东外事职业大学","学前教育",38,"书画艺术","济南",5,null,null,"https://zsb.sdws.edu.cn/2024/0129/c410a55354/page.htm"]
["山东外事职业大学","国际商务",39,"商务英语","熊海",5,null,null,"https://zsb.sdws.edu.cn/2024/0129/c410a55354/page.htm"]
["山东外事职业大学","电子商务",40,"商务英语","熊海",2,null,null,"https://zsb.sdws.edu.cn/2024/0129/c410a55354/page.htm"]
["山东外事职业大学","国际商务",41,"应用韩语","威海",2,null,null,"https://zsb.sdws.edu.cn/2024/0129/c410a55354/page.htm"]
["山东外事职业大学","国际商务",42,"商务日语","底海",2,null,null,"https://zsb.sdws.edu.cn/2024/0129/c410a55354/page.htm"]
["山东外事职业大学","公共服务与管理",43,"体商艺术表演","济南",20,null,null,"https://zsb.sdws.edu.cn/2024/0129/c410a55354/page.htm"]
["山东外事职业大学","学前教育",44,"体商艺术表演","济南",2,null,null,"https://zsb.sdws.edu.cn/2024/0129/c410a55354/page.htm"]
["山东外事职业大学","公共服务与管理",45,"法律事务","济南",6,null,null,"https://zsb.sdws.edu.cn/2024/0129/c410a55354/page.htm"]
["德州科技职业学院","畜牧养殖","6A","宠物医疗技术",null,10,null,null,"https://www.dzkjxy.com/zhaosheng/jianzhang/2024-01-26/7696.html"]
["德州科技职业学院","机械制造","6B","航空复合材料成型与加工技术",null,15,null,null,"https://www.dzkjxy.com/zhaosheng/jianzhang/2024-01-26/7696.html"]
["德州科技职业学院","机械制造","6C","数控技术",null,10,null,null,"https://www.dzkjxy.com/zhaosheng/jianzhang/2024-01-26/7696.html"]
["德州科技职业学院","设备维修","6D","智能焊接技术",null,10,null,null,"https://www.dzkjxy.com/zhaosheng/jianzhang/2024-01-26/7696.html"]
["德州科技职业学院","简注","6E","智能焊接技术",null,10,null,null,"https://www.dzkjxy.com/zhaosheng/jianzhang/2024-01-26/7696.html"]
["德州科技职业学院","机电技术","6F","机电一体化技术",null,60,null,null,"https://www.dzkjxy.com/zhaosheng/jianzhang/2024-01-26/7696.html"]
["德州科技职业学院","自动控制","6G","智能控制技术",null,20,null,null,"https://www.dzkjxy.com/zhaosheng/jianzhang/2024-01-26/7696.html"]
["德州科技职业学院","机电技术","6H","工业机器人技术",null,20,null,null,"https://www.dzkjxy.com/zhaosheng/jianzhang/2024-01-26/7696.html"]
["德州科技职业学院","设备维修","6J","飞行器维修技术",null,20,null,null,"https://www.dzkjxy.com/zhaosheng/jianzhang/2024-01-26/7696.html"]
["德州科技职业学院","自动控制","6K","无人机应用技术",null,25,null,null,"https://www.dzkjxy.com/zhaosheng/jianzhang/2024-01-26/7696.html"]
["德州科技职业学院","车辆维修","6L","汽车制造与试验技术",null,20,null,null,"https://www.dzkjxy.com/zhaosheng/jianzhang/2024-01-26/7696.html"]
["德州科技职业学院","车辆维修","6M","新能源汽车技术",null,20,null,null,"https://www.dzkjxy.com/zhaosheng/jianzhang/2024-01-26/7696.html"]
["德州科技职业学院","电子技术","6N","智能网联汽车技术",null,20,null,null,"https://www.dzkjxy.com/zhaosheng/jianzhang/2024-01-26/7696.html"]
["德州科技职业学院","烹饪","6P","食品生物技术",null,10,null,null,"https://www.dzkjxy.com/zhaosheng/jianzhang/2024-01-26/7696.html"]
["德州科技职业学院","烹饪","6Q","食品检验检测技术",null,10,null,null,"https://www.dzkjxy.com/zhaosheng/jianzhang/2024-01-26/7696.html"]
["德州科技职业学院","药学","6R","药品经营与管理",null,10,null,null,"https://www.dzkjxy.com/zhaosheng/jianzhang/2024-01-26/7696.html"]
["德州科技职业学院","车辆维修","6S","铁道机车运用与维护",null,20,null,null,"https://www.dzkjxy.com/zhaosheng/jianzhang/2024-01-26/7696.html"]
["德州科技职业学院","自动控制","6T","铁道供电技术",null,20,null,null,"https://www.dzkjxy.com/zhaosheng/jianzhang/2024-01-26/7696.html"]
["德州科技职业学院","车辆维修","6U","高速铁路综合维修技术",null,20,null,null,"https://www.dzkjxy.com/zhaosheng/jianzhang/2024-01-26/7696.html"]
["德州科技职业学院","酒店管理","6V","高速铁路客运服务",null,20,null,null,"https://www.dzkjxy.com/zhaosheng/jianzhang/2024-01-26/7696.html"]
["德州科技职业学院","酒店管理","6W","空中乘务",null,20,null,null,"https://www.dzkjxy.com/zhaosheng/jianzhang/2024-01-26/7696.html"]
["德州科技职业学院","运输","6X","民航安全技术管理",null,20,null,null,"https://www.dzkjxy.com/zhaosheng/jianzhang/2024-01-26/7696.html"]
["德州科技职业学院","机电技术","6Y","飞机机电设备维修",null,30,null,null,"https://www.dzkjxy.com/zhaosheng/jianzhang/2024-01-26/7696.html"]
["德州科技职业学院","车辆维修","6Z","航空地面设备维修",null,20,null,null,"https://www.dzkjxy.com/zhaosheng/jianzhang/2024-01-26/7696.html"]
["德州科技职业学院","软件与应用技术","7A","计算机应用技术",null,90,null,null,"https://www.dzkjxy.com/zhaosheng/jianzhang/2024-01-26/7696.html"]
["德州科技职业学院","网络技术","7B","计算机网络技术",null,50,null,null,"https://www.dzkjxy.com/zhaosheng/jianzhang/2024-01-26/7696.html"]
["德州科技职业学院","软件与应用技术","7C","软件技术",null,40,null,null,"https://www.dzkjxy.com/zhaosheng/jianzhang/2024-01-26/7696.html"]
["德州科技职业学院","软件与应用技术","7D","大数据技术",null,10,null,null,"https://www.dzkjxy.com/zhaosheng/jianzhang/2024-01-26/7696.html"]
["德州科技职业学院","软件与应用技术","7E","云计算技术应用",null,10,null,null,"https://www.dzkjxy.com/zhaosheng/jianzhang/2024-01-26/7696.html"]
["德州科技职业学院","软件与应用技术","7F","信息安全技术应用",null,10,null,null,"https://www.dzkjxy.com/zhaosheng/jianzhang/2024-01-26/7696.html"]
["德州科技职业学院","数字媒体","7G","动漫制作技术",null,40,null,null,"https://www.dzkjxy.com/zhaosheng/jianzhang/2024-01-26/7696.html"]
["德州科技职业学院","电子技术","7H","集成电路技术",null,10,null,null,"https://www.dzkjxy.com/zhaosheng/jianzhang/2024-01-26/7696.html"]
["德州科技职业学院","护理","7J","护理",null,130,null,null,"https://www.dzkjxy.com/zhaosheng/jianzhang/2024-01-26/7696.html"]
["德州科技职业学院","护理","7K","助产",null,20,null,null,"https://www.dzkjxy.com/zhaosheng/jianzhang/2024-01-26/7696.html"]
["德州科技职业学院","医学技术","7L","医学影响技术",null,30,null,null,"https://www.dzkjxy.com/zhaosheng/jianzhang/2024-01-26/7696.html"]
["德州科技职业学院","医学技术","7M","口腔医学技术",null,30,null,null,"https://www.dzkjxy.com/zhaosheng/jianzhang/2024-01-26/7696.html"]
["德州科技职业学院","医学技术","7M","康复治疗技术",null,10,null,null,"https://www.dzkjxy.com/zhaosheng/jianzhang/2024-01-26/7696.html"]
["德州科技职业学院","学前教育","7P","婴幼儿托育服务与管理",null,20,null,null,"https://www.dzkjxy.com/zhaosheng/jianzhang/2024-01-26/7696.html"]
["德州科技职业学院","财税","7Q","大数据与会计",null,40,null,null,"https://www.dzkjxy.com/zhaosheng/jianzhang/2024-01-26/7696.html"]
["德州科技职业学院","电子商务","7R","电子商务",null,50,null,null,"https://www.dzkjxy.com/zhaosheng/jianzhang/2024-01-26/7696.html"]
["德州科技职业学院","电子商务","7S","跨境电子商务",null,10,null,null,"https://www.dzkjxy.com/zhaosheng/jianzhang/2024-01-26/7696.html"]
["德州科技职业学院","物流管理","7T","现代物流管理",null,10,null,null,"https://www.dzkjxy.com/zhaosheng/jianzhang/2024-01-26/7696.html"]
["德州科技职业学院","酒店管理","7U","酒店管理与数字化运营",null,8,null,null,"https://www.dzkjxy.com/zhaosheng/jianzhang/2024-01-26/7696.html"]
["德州科技职业学院","旅游管理","7V","酒店管理与数字化运营",null,2,null,null,"https://www.dzkjxy.com/zhaosheng/jianzhang/2024-01-26/7696.html"]
["德州科技职业学院","艺术设计","7W","艺术设计",null,10,null,null,"https://www.dzkjxy.com/zhaosheng/jianzhang/2024-01-26/7696.html"]
["德州科技职业学院","艺术设计","7X","视觉传达设计",null,10,null,null,"https://www.dzkjxy.com/zhaosheng/jianzhang/2024-01-26/7696.html"]
["德州科技职业学院","学前教育","7Y","早期教育",null,80,null,null,"https://www.dzkjxy.com/zhaosheng/jianzhang/2024-01-26/7696.html"]
["德州科技职业学院","退役军人","8A","计算机应用技术",null,20,null,null,"https://www.dzkjxy.com/zhaosheng/jianzhang/2024-01-26/7696.html"]
["潍坊环境工程职业学院","化工与环境",null,"环境监测技术",null,15,7800,"生态环境学院","https://www.wfhgzxy.com/"]
["潍坊环境工程职业学院","网络技术",null,"环境监测技术",null,25,7800,"生态环境学院","https://www.wfhgzxy.com/"]
["潍坊环境工程职业学院","化工与环境",null,"环境工程技术",null,15,7800,"生态环境学院","https://www.wfhgzxy.com/"]
["潍坊环境工程职业学院","机电技术",null,"环境工程技术",null,25,7800,"生态环境学院","https://www.wfhgzxy.com/"]
["潍坊环境工程职业学院","化工与环境",null,"环境管理与评价",null,15,7800,"生态环境学院","https://www.wfhgzxy.com/"]
["潍坊环境工程职业学院","公共服务与管理",null,"环境管理与评价",null,15,7800,"生态环境学院","https://www.wfhgzxy.com/"]
["潍坊环境工程职业学院","化工与环境",null,"生态环境修复技术",null,15,7800,"生态环境学院","https://www.wfhgzxy.com/"]
["潍坊环境工程职业学院","现代农艺",null,"生态环境修复技术",null,15,7800,"生态环境学院","https://www.wfhgzxy.com/"]
["潍坊环境工程职业学院","化工与环境",null,"水净化与安全技术",null,10,7800,"生态环境学院","https://www.wfhgzxy.com/"]
["潍坊环境工程职业学院","自动控制",null,"水净化与安全技术",null,20,7800,"生态环境学院","https://www.wfhgzxy.com/"]
["潍坊环境工程职业学院","化工与环境",null,"化工安全技术",null,20,7800,"生态环境学院","https://www.wfhgzxy.com/"]
["潍坊环境工程职业学院","自动控制",null,"化工安全技术",null,20,7800,"生态环境学院","https://www.wfhgzxy.com/"]
["潍坊环境工程职业学院","建筑",null,"建筑工程技术",null,10,8800,"生态环境学院","https://www.wfhgzxy.com/"]
["潍坊环境工程职业学院","车辆维修",null,"建筑工程技术",null,10,8800,"生态环境学院","https://www.wfhgzxy.com/"]
["潍坊环境工程职业学院","建筑",null,"工程造价",null,10,8800,"生态环境学院","https://www.wfhgzxy.com/"]
["潍坊环境工程职业学院","财税",null,"工程造价",null,10,8800,"生态环境学院","https://www.wfhgzxy.com/"]
["潍坊环境工程职业学院","机械制造",null,"机械制造及自动化",null,20,8800,"智能制造学院","https://www.wfhgzxy.com/"]
["潍坊环境工程职业学院","机电技术",null,"机械制造及自动化",null,20,8800,"智能制造学院","https://www.wfhgzxy.com/"]
["潍坊环境工程职业学院","机电技术",null,"工业机器人技术",null,30,8800,"智能制造学院","https://www.wfhgzxy.com/"]
["潍坊环境工程职业学院","机械制造",null,"工业机器人技术",null,30,8800,"智能制造学院","https://www.wfhgzxy.com/"]
["潍坊环境工程职业学院","机电技术",null,"机电一体化技术",null,30,8800,"智能制造学院","https://www.wfhgzxy.com/"]
["潍坊环境工程职业学院","车辆维修",null,"机电一体化技术",null,10,8800,"智能制造学院","https://www.wfhgzxy.com/"]
["潍坊环境工程职业学院","机电技术",null,"智能机电技术",null,25,8800,"智能制造学院","https://www.wfhgzxy.com/"]
["潍坊环境工程职业学院","机械制造",null,"智能机电技术",null,25,8800,"智能制造学院","https://www.wfhgzxy.com/"]
["潍坊环境工程职业学院","自动控制",null,"电气自动化技术",null,10,8800,"智能制造学院","https://www.wfhgzxy.com/"]
["潍坊环境工程职业学院","电气技术",null,"电气自动化技术",null,20,8800,"智能制造学院","https://www.wfhgzxy.com/"]
["潍坊环境工程职业学院","电气技术",null,"光伏工程技术",null,25,8800,"智能制造学院","https://www.wfhgzxy.com/"]
["潍坊环境工程职业学院","机电技术",null,"光伏工程技术",null,25,8800,"智能制造学院","https://www.wfhgzxy.com/"]
["潍坊环境工程职业学院","机电技术",null,"热能动力工程技术",null,20,8800,"智能制造学院","https://www.wfhgzxy.com/"]
["潍坊环境工程职业学院","电气技术",null,"热能动力工程技术",null,20,8800,"智能制造学院","https://www.wfhgzxy.com/"]
["潍坊环境工程职业学院","软件与应用技术",null,"人工智能技术应用",null,20,8800,"智能制造学院","https://www.wfhgzxy.com/"]
["潍坊环境工程职业学院","机电技术",null,"人工智能技术应用",null,40,8800,"智能制造学院","https://www.wfhgzxy.com/"]
["潍坊环境工程职业学院","电子技术",null,"物联网应用技术",null,25,7800,"信息技术学院","https://www.wfhgzxy.com/"]
["潍坊环境工程职业学院","网络技术",null,"物联网应用技术",null,25,7800,"信息技术学院","https://www.wfhgzxy.com/"]
["潍坊环境工程职业学院","数字媒体",null,"计算机应用技术",null,20,8800,"信息技术学院","https://www.wfhgzxy.com/"]
["潍坊环境工程职业学院","网络技术",null,"计算机应用技术",null,20,8800,"信息技术学院","https://www.wfhgzxy.com/"]
["潍坊环境工程职业学院","软件与应用技术",null,"大数据技术",null,20,7800,"信息技术学院","https://www.wfhgzxy.com/"]
["潍坊环境工程职业学院","网络技术",null,"大数据技术",null,20,7800,"信息技术学院","https://www.wfhgzxy.com/"]
["潍坊环境工程职业学院","软件与应用技术",null,"信息安全技术应用",null,25,7800,"信息技术学院","https://www.wfhgzxy.com/"]
["潍坊环境工程职业学院","网络技术",null,"信息安全技术应用",null,25,7800,"信息技术学院","https://www.wfhgzxy.com/"]
["潍坊环境工程职业学院","软件与应用技术",null,"虚拟现实技术应用",null,25,7800,"信息技术学院","https://www.wfhgzxy.com/"]
["潍坊环境工程职业学院","数字媒体",null,"虚拟现实技术应用",null,25,7800,"信息技术学院","https://www.wfhgzxy.com/"]
["潍坊环境工程职业学院","电子商务",null,"电子商务",null,40,8800,"文创商贸学院","https://www.wfhgzxy.com/"]
["潍坊环境工程职业学院","财税",null,"电子商务",null,20,8800,"文创商贸学院","https://www.wfhgzxy.com/"]
["潍坊环境工程职业学院","电子商务",null,"网络直播与运营",null,20,8800,"文创商贸学院","https://www.wfhgzxy.com/"]
["潍坊环境工程职业学院","市场营销",null,"网络直播与运营",null,20,8800,"文创商贸学院","https://www.wfhgzxy.com/"]
["潍坊环境工程职业学院","财税",null,"大数据与财务管理",null,20,8800,"文创商贸学院","https://www.wfhgzxy.com/"]
["潍坊环境工程职业学院","电子商务",null,"大数据与财务管理",null,30,8800,"文创商贸学院","https://www.wfhgzxy.com/"]
["潍坊环境工程职业学院","医学技术",null,"中医康复技术",null,20,8800,"康养服务学院","https://www.wfhgzxy.com/"]
["潍坊环境工程职业学院","护理",null,"中医康复技术",null,40,8800,"康养服务学院","https://www.wfhgzxy.com/"]
["潍坊环境工程职业学院","学前教育",null,"婴幼儿托育服务与管理",null,40,8800,"康养服务学院","https://www.wfhgzxy.com/"]
["潍坊环境工程职业学院","护理",null,"婴幼儿托育服务与管理",null,20,8800,"康养服务学院","https://www.wfhgzxy.com/"]
["潍坊环境工程职业学院","酒店管理",null,"空中乘务",null,10,8800,"康养服务学院","https://www.wfhgzxy.com/"]
["潍坊环境工程职业学院","旅游管理",null,"空中乘务",null,10,8800,"康养服务学院","https://www.wfhgzxy.com/"]
["潍坊环境工程职业学院","药学",null,"中药学",null,20,8800,"康养服务学院","https://www.wfhgzxy.com/"]
["潍坊环境工程职业学院","医学技术",null,"中药学",null,20,8800,"康养服务学院","https://www.wfhgzxy.com/"]
["潍坊环境工程职业学院","医学技术",null,"康复治疗技术",null,10,8800,"康养服务学院","https://www.wfhgzxy.com/"]
["潍坊环境工程职业学院","护理",null,"康复治疗技术",null,30,8800,"康养服务学院","https://www.wfhgzxy.com/"]
["潍坊环境工程职业学院","机械制造",null,"机械制造及自动化(国防)",null,20,9800,"国防教育学院","https://www.wfhgzxy.com/"]
["潍坊环境工程职业学院","机电技术",null,"机械制造及自动化(国防)",null,20,9800,"国防教育学院","https://www.wfhgzxy.com/"]
["潍坊环境工程职业学院","机电技术",null,"机电一体化技术(国防)",null,20,9800,"国防教育学院","https://www.wfhgzxy.com/"]
["潍坊环境工程职业学院","车辆维修",null,"机电一体化技术(国防)",null,10,9800,"国防教育学院","https://www.wfhgzxy.com/"]
["潍坊环境工程职业学院","自动控制",null,"电气自动化技术(国防)",null,10,9800,"国防教育学院","https://www.wfhgzxy.com/"]
["潍坊环境工程职业学院","电气技术",null,"电气自动化技术(国防)",null,10,9800,"国防教育学院","https://www.wfhgzxy.com/"]
["潍坊环境工程职业学院","数字媒体",null,"计算机应用技术(国防)",null,20,9800,"国防教育学院","https://www.wfhgzxy.com/"]
["潍坊环境工程职业学院","网络技术",null,"计算机应用技术(国防)",null,20,9800,"国防教育学院","https://www.wfhgzxy.com/"]
["山东力明科技职业学院","医学技术","01","中医学",null,300,null,null,"http://edu.6789.com.cn/"]
["山东力明科技职业学院","药学","02","中药学",null,50,null,null,"http://edu.6789.com.cn/"]
["山东力明科技职业学院","药学","03","药学",null,50,null,null,"http://edu.6789.com.cn/"]
["山东力明科技职业学院","医学技术","04","针灸推拿",null,50,null,null,"http://edu.6789.com.cn/"]
["山东力明科技职业学院","医学技术","05","医学检验技术",null,40,null,null,"http://edu.6789.com.cn/"]
["山东力明科技职业学院","医学技术","06","医学影像技术",null,40,null,null,"http://edu.6789.com.cn/"]
["山东力明科技职业学院","医学技术","07","康复治疗技术",null,60,null,null,"http://edu.6789.com.cn/"]
["山东力明科技职业学院","护理","08","护理",null,100,null,null,"http://edu.6789.com.cn/"]
["山东力明科技职业学院","公共服务与管理","09","智慧健康养老服务与管理",null,20,null,null,"http://edu.6789.com.cn/"]
["山东力明科技职业学院","软件与应用技术",10,"计算机应用技术",null,25,null,null,"http://edu.6789.com.cn/"]
["山东力明科技职业学院","网络技术",11,"计算机网络技术",null,25,null,null,"http://edu.6789.com.cn/"]
["山东力明科技职业学院","财税",12,"大数据与会计",null,20,null,null,"http://edu.6789.com.cn/"]
["山东力明科技职业学院","酒店管理",13,"空中乘务",null,15,null,null,"http://edu.6789.com.cn/"]
["山东力明科技职业学院","运输",14,"民航安全技术管理",null,5,null,null,"http://edu.6789.com.cn/"]
["山东力明科技职业学院","旅游管理",15,"旅游管理",null,20,null,null,"http://edu.6789.com.cn/"]
["山东力明科技职业学院","市场营销",16,"传播与策划",null,10,null,null,"http://edu.6789.com.cn/"]
["山东力明科技职业学院","艺术设计",17,"文物修复与保护",null,30,null,null,"http://edu.6789.com.cn/"]
["山东力明科技职业学院","机电技术",18,"工业机器人技术",null,20,null,null,"http://edu.6789.com.cn/"]
["山东力明科技职业学院","学前教育",19,"婴幼儿托育服务与管理",null,20,null,null,"http://edu.6789.com.cn/"]
["山东力明科技职业学院","医学技术",20,"银视光技术",null,50,null,null,"http://edu.6789.com.cn/"]
["山东力明科技职业学院","电子商务",21,"电子商务",null,90,null,null,"http://edu.6789.com.cn/"]
["山东力明科技职业学院","医学技术",22,"中医康复技术",null,60,null,null,"http://edu.6789.com.cn/"]
["山东力明科技职业学院","学前教育",23,"早期教育",null,30,null,null,"http://edu.6789.com.cn/"]
["山东力明科技职业学院","医学技术",24,"心理咨询",null,20,null,null,"http://edu.6789.com.cn/"]
["山东力明科技职业学院","酒店管理",25,"高速铁路客运服务",null,20,null,null,"http://edu.6789.com.cn/"]
["山东力明科技职业学院","财税",26,"保险实务",null,20,null,null,"http://edu.6789.com.cn/"]
["山东力明科技职业学院","艺术设计",27,"舞蹈表演",null,80,null,null,"http://edu.6789.com.cn/"]
["山东力明科技职业学院","医学技术",28,"宠物医疗技术",null,30,null,null,"http://edu.6789.com.cn/"]
["山东力明科技职业学院","酒店管理",29,"酒店管理与数字化运营",null,20,null,null,"http://edu.6789.com.cn/"]
["山东力明科技职业学院","建筑",30,"建筑智能化工程技术",null,20,null,null,"http://edu.6789.com.cn/"]
["山东力明科技职业学院","数字煤体",31,"电子竞技运动与管理",null,20,null,null,"http://edu.6789.com.cn/"]
["山东力明科技职业学院","建筑",32,"建筑工程技术",null,20,null,null,"http://edu.6789.com.cn/"]
["山东力明科技职业学院","医学技术",33,"视觉训练与康复",null,20,null,null,"http://edu.6789.com.cn/"]
["山东力明科技职业学院","数字媒体",34,"数字媒体技术",null,30,null,null,"http://edu.6789.com.cn/"]
["山东力明科技职业学院","退役军人","B1","中医学",null,5,null,null,"http://edu.6789.com.cn/"]
["山东力明科技职业学院","退役军人","B2","药学",null,5,null,null,"http://edu.6789.com.cn/"]
["山东力明科技职业学院","退役军人","B3","针灸推拿",null,5,null,null,"http://edu.6789.com.cn/"]
["山东力明科技职业学院","退役军人","B4","医学检验技术",null,5,null,null,"http://edu.6789.com.cn/"]
["山东力明科技职业学院","退役军人","B5","医学影像技术",null,5,null,null,"http://edu.6789.com.cn/"]
["山东力明科技职业学院","退役军人","B6","护理",null,5,null,null,"http://edu.6789.com.cn/"]
["山东化工职业学院","化工与环境","A1","应用化工技术",null,"60",null,null,"http://zsjy.qledu.net/info/1244/3641.htm"]
["山东化工职业学院","化工与环境","A2","石油化工技术",null,60,null,null,"http://zsjy.qledu.net/info/1244/3641.htm"]
["山东化工职业学院","化工与环境","A3","高分子材料智能制造技术",null,"20",null,null,"http://zsjy.qledu.net/info/1244/3641.htm"]
["山东化工职业学院","化工与环境","A4","精细化工技术",null,30,null,null,"http://zsjy.qledu.net/info/1244/3641.htm"]
["山东化工职业学院","化工与环境","A5","化工安全技术",null,"20",null,null,"http://zsjy.qledu.net/info/1244/3641.htm"]
["山东化工职业学院","化工与环境","A6","分析检验技术",null,30,null,null,"http://zsjy.qledu.net/info/1244/3641.htm"]
["山东化工职业学院","化工与环境","A7","海洋化工技术",null,"30",null,null,"http://zsjy.qledu.net/info/1244/3641.htm"]
["山东化工职业学院","化工与环境","A8","环境工程技术",null,20,null,null,"http://zsjy.qledu.net/info/1244/3641.htm"]
["山东化工职业学院","化工与环境","A9","化学制药技术",null,"20",null,null,"http://zsjy.qledu.net/info/1244/3641.htm"]
["山东化工职业学院","药学","A0","化学制药技术",null,10,null,null,"http://zsjy.qledu.net/info/1244/3641.htm"]
["山东化工职业学院","自动控制","B1","电气自动化技术",null,"10",null,null,"http://zsjy.qledu.net/info/1244/3641.htm"]
["山东化工职业学院","自动控制","B2","工业过程自动化技术",null,10,null,null,"http://zsjy.qledu.net/info/1244/3641.htm"]
["山东化工职业学院","自动控制","B3","工业自动化仪表技术",null,"10",null,null,"http://zsjy.qledu.net/info/1244/3641.htm"]
["山东化工职业学院","电气技术","C1","供用电技术",null,20,null,null,"http://zsjy.qledu.net/info/1244/3641.htm"]
["山东化工职业学院","机电技术","D1","机电一体化技术",null,"30",null,null,"http://zsjy.qledu.net/info/1244/3641.htm"]
["山东化工职业学院","机电技术","D2","工业机器人技术",null,10,null,null,"http://zsjy.qledu.net/info/1244/3641.htm"]
["山东化工职业学院","机械制造","E1","工业机器人技术",null,"10",null,null,"http://zsjy.qledu.net/info/1244/3641.htm"]
["山东化工职业学院","机电技术","D3","机械制造及自动化",null,10,null,null,"http://zsjy.qledu.net/info/1244/3641.htm"]
["山东化工职业学院","机械制造","E2","机械制造及自动化",null,"30",null,null,"http://zsjy.qledu.net/info/1244/3641.htm"]
["山东化工职业学院","电子技术","F1","应用电子技术",null,20,null,null,"http://zsjy.qledu.net/info/1244/3641.htm"]
["山东化工职业学院","电子技术","F2","物联网应用技术",null,"10",null,null,"http://zsjy.qledu.net/info/1244/3641.htm"]
["山东化工职业学院","数字媒体","G1","数字媒体技术",null,40,null,null,"http://zsjy.qledu.net/info/1244/3641.htm"]
["山东化工职业学院","数字媒体","G2","软件技术",null,"20",null,null,"http://zsjy.qledu.net/info/1244/3641.htm"]
["山东化工职业学院","软件与应用技术","H1","软件技术",null,20,null,null,"http://zsjy.qledu.net/info/1244/3641.htm"]
["山东化工职业学院","软件与应用技术","H2","人工智能技术应用",null,"10",null,null,"http://zsjy.qledu.net/info/1244/3641.htm"]
["山东化工职业学院","软件与应用技术","H3","大数据技术",null,10,null,null,"http://zsjy.qledu.net/info/1244/3641.htm"]
["山东化工职业学院","网络技术","J1","大数据技术",null,"30",null,null,"http://zsjy.qledu.net/info/1244/3641.htm"]
["山东化工职业学院","网络技术","J2","计算机应用技术",null,30,null,null,"http://zsjy.qledu.net/info/1244/3641.htm"]
["山东化工职业学院","软件与应用技术","H4","计算机应用技术",null,"10",null,null,"http://zsjy.qledu.net/info/1244/3641.htm"]
["山东化工职业学院","财税","K1","大数据与会计",null,40,null,null,"http://zsjy.qledu.net/info/1244/3641.htm"]
["山东化工职业学院","市场营销","L1","市场营销",null,"20",null,null,"http://zsjy.qledu.net/info/1244/3641.htm"]
["山东化工职业学院","物流管理","M1","现代物流管理",null,20,null,null,"http://zsjy.qledu.net/info/1244/3641.htm"]
["山东化工职业学院","电子商务","N1","电子商务",null,"30",null,null,"http://zsjy.qledu.net/info/1244/3641.htm"]
["山东化工职业学院","电子商务","N2","跨境电子商务",null,20,null,null,"http://zsjy.qledu.net/info/1244/3641.htm"]
["山东化工职业学院","电子商务","N3","网络营销与直播电商",null,"10",null,null,"http://zsjy.qledu.net/info/1244/3641.htm"]
["山东化工职业学院","市场营销","L2","网络营销与直播电商",null,10,null,null,"http://zsjy.qledu.net/info/1244/3641.htm"]
["山东化工职业学院","酒店管理","P1","空中乘务",null,"160",null,null,"http://zsjy.qledu.net/info/1244/3641.htm"]
["山东化工职业学院","旅游管理","Q1","空中乘务",null,40,null,null,"http://zsjy.qledu.net/info/1244/3641.htm"]
["山东化工职业学院","酒店管理","P2","高速铁路客运服务",null,"90",null,null,"http://zsjy.qledu.net/info/1244/3641.htm"]
["山东化工职业学院","旅游管理","Q2","高速铁路客运服务",null,40,null,null,"http://zsjy.qledu.net/info/1244/3641.htm"]
["山东化工职业学院","酒店管理","P3","机场运行服务与管理",null,"90",null,null,"http://zsjy.qledu.net/info/1244/3641.htm"]
["山东化工职业学院","运输","R1","机场运行服务与管理",null,40,null,null,"http://zsjy.qledu.net/info/1244/3641.htm"]
["山东化工职业学院","退役军人","T1","大数据与会计",null,"15",null,null,"http://zsjy.qledu.net/info/1244/3641.htm"]
["山东化工职业学院","退役军人","T2","电子商务",null,15,null,null,"http://zsjy.qledu.net/info/1244/3641.htm"]
["山东理工职业学院","机电技术","01","机电一体化技术",null,65,6000,"机电工程学院","http://zsjy.sdpu.edu.cn/info/1009/1821.htm"]
["山东理工职业学院","自动控制","02","工业互联网应用",null,10,5000,"机电工程学院","http://zsjy.sdpu.edu.cn/info/1009/1821.htm"]
["山东理工职业学院","车辆维修","03","汽车检测与维修技术",null,40,6800,"汽车工程学院","http://zsjy.sdpu.edu.cn/info/1009/1821.htm"]
["山东理工职业学院","车辆维修","04","汽车检测与维修技术(中外合作办学)(中德合作办学)",null,20,10800,"汽车工程学院","http://zsjy.sdpu.edu.cn/info/1009/1821.htm"]
["山东理工职业学院","车辆维修","05","汽车技术服务与营销",null,30,6800,"汽车工程学院","http://zsjy.sdpu.edu.cn/info/1009/1821.htm"]
["山东理工职业学院","车辆维修","06","新能源汽车技术",null,30,6800,"汽车工程学院","http://zsjy.sdpu.edu.cn/info/1009/1821.htm"]
["山东理工职业学院","车辆维修","07","智能网联汽车技术",null,30,6800,"汽车工程学院","http://zsjy.sdpu.edu.cn/info/1009/1821.htm"]
["山东理工职业学院","酒店管理","08","空中乘务",null,10,4800,"航空学院","http://zsjy.sdpu.edu.cn/info/1009/1821.htm"]
["山东理工职业学院","机电技术","09","飞机机电设备维修",null,10,6000,"航空学院","http://zsjy.sdpu.edu.cn/info/1009/1821.htm"]
["山东理工职业学院","自动控制",10,"无人机应用技术",null,10,6000,"航空学院","http://zsjy.sdpu.edu.cn/info/1009/1821.htm"]
["山东理工职业学院","运输",11,"航海技术",null,60,5000,"航海学院","http://zsjy.sdpu.edu.cn/info/1009/1821.htm"]
["山东理工职业学院","运输",12,"轮机工程技术",null,50,5000,"航海学院","http://zsjy.sdpu.edu.cn/info/1009/1821.htm"]
["山东理工职业学院","运输",13,"国际邮轮乘务管理",null,60,4800,"航海学院","http://zsjy.sdpu.edu.cn/info/1009/1821.htm"]
["山东理工职业学院","软件与应用技术",14,"计算机应用技术",null,25,5000,"信息工程学院","http://zsjy.sdpu.edu.cn/info/1009/1821.htm"]
["山东理工职业学院","网络技术",15,"计算机网络技术",null,25,5000,"信息工程学院","http://zsjy.sdpu.edu.cn/info/1009/1821.htm"]
["山东理工职业学院","电子技术",16,"物联网应用技术",null,25,5000,"信息工程学院","http://zsjy.sdpu.edu.cn/info/1009/1821.htm"]
["山东理工职业学院","电气技术",17,"光伏工程技术",null,15,6000,"能源与材料工程学院","http://zsjy.sdpu.edu.cn/info/1009/1821.htm"]
["山东理工职业学院","自动控制",18,"电气自动化技术",null,15,6000,"能源与材料工程学院","http://zsjy.sdpu.edu.cn/info/1009/1821.htm"]
["山东理工职业学院","化工与环境",19,"环境工程技术",null,15,5000,"能酒与材料工程学院","http://zsjy.sdpu.edu.cn/info/1009/1821.htm"]
["山东理工职业学院","化工与环境",20,"应用化工技术",null,15,5000,"能酒与材料工程学院","http://zsjy.sdpu.edu.cn/info/1009/1821.htm"]
["山东理工职业学院","化工与环境",21,"药品生产技术",null,15,5000,"能酒与材料工程学院","http://zsjy.sdpu.edu.cn/info/1009/1821.htm"]
["山东理工职业学院","化工与环境",22,"储能材料技术",null,15,5000,"能酒与材料工程学院","http://zsjy.sdpu.edu.cn/info/1009/1821.htm"]
["山东理工职业学院","电气技术",23,"分布式发电与智能微电网技术",null,15,5000,"能酒与材料工程学院","http://zsjy.sdpu.edu.cn/info/1009/1821.htm"]
["山东理工职业学院","机电技术",24,"新能源装备技术",null,15,5000,"能酒与材料工程学院","http://zsjy.sdpu.edu.cn/info/1009/1821.htm"]
["山东理工职业学院","建筑",25,"工程造价",null,15,5000,"建筑工程学院","http://zsjy.sdpu.edu.cn/info/1009/1821.htm"]
["山东理工职业学院","建筑",26,"古建筑工程技术",null,25,5000,"建筑工程学院","http://zsjy.sdpu.edu.cn/info/1009/1821.htm"]
["山东理工职业学院","财税",27,"大数据与会计",null,50,4800,"金融会计学院","http://zsjy.sdpu.edu.cn/info/1009/1821.htm"]
["山东理工职业学院","财税",28,"大数据与财务管理",null,20,4800,"金融会计学院","http://zsjy.sdpu.edu.cn/info/1009/1821.htm"]
["山东理工职业学院","财税",29,"财税大数据应用",null,20,4800,"金融会计学院","http://zsjy.sdpu.edu.cn/info/1009/1821.htm"]
["山东理工职业学院","财税",30,"金融科技应用",null,20,4800,"金融会计学院","http://zsjy.sdpu.edu.cn/info/1009/1821.htm"]
["山东理工职业学院","市场营销",31,"市场营销",null,20,4800,"商学院","http://zsjy.sdpu.edu.cn/info/1009/1821.htm"]
["山东理工职业学院","电子商务",32,"电子商务",null,40,4800,"商学院","http://zsjy.sdpu.edu.cn/info/1009/1821.htm"]
["山东理工职业学院","物流管理",33,"现代物流管理",null,20,4800,"商学院","http://zsjy.sdpu.edu.cn/info/1009/1821.htm"]
["山东理工职业学院","艺术设计",34,"视觉传达设计",null,10,6600,"文化旅游与艺术学院","http://zsjy.sdpu.edu.cn/info/1009/1821.htm"]
["山东理工职业学院","艺术设计",35,"环境艺术设计",null,10,6600,"文化旅游与艺术学院","http://zsjy.sdpu.edu.cn/info/1009/1821.htm"]
["山东理工职业学院","艺术设计","36","宝玉石鉴定与加工",null,5,5000,"文化旅游与艺术学院","http://zsjy.sdpu.edu.cn/info/1009/1821.htm"]
["山东理工职业学院","旅游管理",37,"研学旅行管理与服务",null,15,4800,"文化旅游与艺术学院","http://zsjy.sdpu.edu.cn/info/1009/1821.htm"]
["山东理工职业学院","旅游管理",38,"族游管理",null,60,4800,"文化旅游与艺术学院","http://zsjy.sdpu.edu.cn/info/1009/1821.htm"]
["山东理工职业学院","酒古管理",39,"酒店管理与数字化运营",null,60,4800,"文化旅游与艺术学院","http://zsjy.sdpu.edu.cn/info/1009/1821.htm"]
["山东理工职业学院","公共服务与管理",40,"知识产权管理",null,30,4800,"知识产权学院","http://zsjy.sdpu.edu.cn/info/1009/1821.htm"]
["山东理工职业学院","财税",41,"大数据与会计(中外合作办学)(中溪合作办学)",null,15,12000,"国际教育学院","http://zsjy.sdpu.edu.cn/info/1009/1821.htm"]
["山东理工职业学院","公共服务与管理",42,"竖幼儿托育服务与管理",null,10,4800,"中医康养康育学院","http://zsjy.sdpu.edu.cn/info/1009/1821.htm"]
["山东理工职业学院","医学技术",43,"中医康复技术",null,25,5000,"中医康养康育学院","http://zsjy.sdpu.edu.cn/info/1009/1821.htm"]
["山东理工职业学院","公共服务与管理",44,"智慧健康养老服务与管理",null,10,4800,"中医康养康育学院","http://zsjy.sdpu.edu.cn/info/1009/1821.htm"]
["曲阜远东职业技术学院","建筑",null,"建筑设计",null,13,null,null,"https://www.fareast-edu.net/dept-zsxxw/posts/5050"]
["曲阜远东职业技术学院","艺术设计",null,"建筑设计",null,10,null,null,"https://www.fareast-edu.net/dept-zsxxw/posts/5050"]
["曲阜远东职业技术学院","建筑",null,"古建筑工程技术",null,13,null,null,"https://www.fareast-edu.net/dept-zsxxw/posts/5050"]
["曲阜远东职业技术学院","建筑",null,"工程造价",null,13,null,null,"https://www.fareast-edu.net/dept-zsxxw/posts/5050"]
["曲阜远东职业技术学院","财税",null,"工程造价",null,20,null,null,"https://www.fareast-edu.net/dept-zsxxw/posts/5050"]
["曲阜远东职业技术学院","自动控制",null,"电气自动化技术",null,61,null,null,"https://www.fareast-edu.net/dept-zsxxw/posts/5050"]
["曲阜远东职业技术学院","电气技术",null,"电气自动化技术",null,18,null,null,"https://www.fareast-edu.net/dept-zsxxw/posts/5050"]
["曲阜远东职业技术学院","机械制造",null,"轨道交通通信信号设备制造与维护",null,15,null,null,"https://www.fareast-edu.net/dept-zsxxw/posts/5050"]
["曲阜远东职业技术学院","设备维修",null,"轨道交通通信信号设备制造与维护",null,5,null,null,"https://www.fareast-edu.net/dept-zsxxw/posts/5050"]
["曲阜远东职业技术学院","机电技术",null,"无人机应用技术",null,28,null,null,"https://www.fareast-edu.net/dept-zsxxw/posts/5050"]
["曲阜远东职业技术学院","自动控制",null,"无人机应用技术",null,55,null,null,"https://www.fareast-edu.net/dept-zsxxw/posts/5050"]
["曲阜远东职业技术学院","车辆维修",null,"新能源汽车技术",null,43,null,null,"https://www.fareast-edu.net/dept-zsxxw/posts/5050"]
["曲阜远东职业技术学院","电子技术",null,"汽车电子技术",null,16,null,null,"https://www.fareast-edu.net/dept-zsxxw/posts/5050"]
["曲阜远东职业技术学院","旅游管理",null,"高速铁路客运服务",null,12,null,null,"https://www.fareast-edu.net/dept-zsxxw/posts/5050"]
["曲阜远东职业技术学院","运输",null,"高速铁路客运服务",null,5,null,null,"https://www.fareast-edu.net/dept-zsxxw/posts/5050"]
["曲阜远东职业技术学院","运输",null,"空中乘务",null,6,null,null,"https://www.fareast-edu.net/dept-zsxxw/posts/5050"]
["曲阜远东职业技术学院","旅游管理",null,"空中乘务",null,17,null,null,"https://www.fareast-edu.net/dept-zsxxw/posts/5050"]
["曲阜远东职业技术学院","电子技术",null,"应用电子技术",null,17,null,null,"https://www.fareast-edu.net/dept-zsxxw/posts/5050"]
["曲阜远东职业技术学院","软件与应用技术",null,"计算机应用技术",null,33,null,null,"https://www.fareast-edu.net/dept-zsxxw/posts/5050"]
["曲阜远东职业技术学院","网络技术",null,"计算机应用技术",null,11,null,null,"https://www.fareast-edu.net/dept-zsxxw/posts/5050"]
["曲阜远东职业技术学院","网络技术",null,"计算机网络技术",null,11,null,null,"https://www.fareast-edu.net/dept-zsxxw/posts/5050"]
["曲阜远东职业技术学院","软件与应用技术",null,"计算机网络技术",null,32,null,null,"https://www.fareast-edu.net/dept-zsxxw/posts/5050"]
["曲阜远东职业技术学院","软件与应用技术",null,"软件技术",null,33,null,null,"https://www.fareast-edu.net/dept-zsxxw/posts/5050"]
["曲阜远东职业技术学院","电子技术",null,"现代通信技术",null,17,null,null,"https://www.fareast-edu.net/dept-zsxxw/posts/5050"]
["曲阜远东职业技术学院","软件与应用技术",null,"数据中心运行与管理",null,30,null,null,"https://www.fareast-edu.net/dept-zsxxw/posts/5050"]
["曲阜远东职业技术学院","护理",null,"护理",null,372,null,null,"https://www.fareast-edu.net/dept-zsxxw/posts/5050"]
["曲阜远东职业技术学院","护理",null,"助产",null,30,null,null,"https://www.fareast-edu.net/dept-zsxxw/posts/5050"]
["曲阜远东职业技术学院","药学",null,"药学",null,30,null,null,"https://www.fareast-edu.net/dept-zsxxw/posts/5050"]
["曲阜远东职业技术学院","化工与环境",null,"药学",null,5,null,null,"https://www.fareast-edu.net/dept-zsxxw/posts/5050"]
["曲阜远东职业技术学院","药学",null,"中药学",null,24,null,null,"https://www.fareast-edu.net/dept-zsxxw/posts/5050"]
["曲阜远东职业技术学院","医学技术",null,"中医康复技术",null,51,null,null,"https://www.fareast-edu.net/dept-zsxxw/posts/5050"]
["曲阜远东职业技术学院","医学技术",null,"医学检验技术",null,51,null,null,"https://www.fareast-edu.net/dept-zsxxw/posts/5050"]
["曲阜远东职业技术学院","医学技术",null,"口腔医学技术",null,51,null,null,"https://www.fareast-edu.net/dept-zsxxw/posts/5050"]
["曲阜远东职业技术学院","医学技术",null,"康复治疗技术",null,50,null,null,"https://www.fareast-edu.net/dept-zsxxw/posts/5050"]
["曲阜远东职业技术学院","学前教育",null,"婴幼儿托育服务与管理",null,30,null,null,"https://www.fareast-edu.net/dept-zsxxw/posts/5050"]
["曲阜远东职业技术学院","医学技术",null,"口腔卫生保健",null,50,null,null,"https://www.fareast-edu.net/dept-zsxxw/posts/5050"]
["曲阜远东职业技术学院","财税",null,"财政支出绩效管理",null,17,null,null,"https://www.fareast-edu.net/dept-zsxxw/posts/5050"]
["曲阜远东职业技术学院","财税",null,"金融服务与管理",null,17,null,null,"https://www.fareast-edu.net/dept-zsxxw/posts/5050"]
["曲阜远东职业技术学院","财税",null,"大数据与会计",null,27,null,null,"https://www.fareast-edu.net/dept-zsxxw/posts/5050"]
["曲阜远东职业技术学院","市场营销",null,"工商企业管理",null,15,null,null,"https://www.fareast-edu.net/dept-zsxxw/posts/5050"]
["曲阜远东职业技术学院","物流管理",null,"工商企业管理",null,5,null,null,"https://www.fareast-edu.net/dept-zsxxw/posts/5050"]
["曲阜远东职业技术学院","市场营销",null,"市场营销",null,20,null,null,"https://www.fareast-edu.net/dept-zsxxw/posts/5050"]
["曲阜远东职业技术学院","电子商务",null,"电子商务",null,60,null,null,"https://www.fareast-edu.net/dept-zsxxw/posts/5050"]
["曲阜远东职业技术学院","国际商务",null,"电子商务",null,8,null,null,"https://www.fareast-edu.net/dept-zsxxw/posts/5050"]
["曲阜远东职业技术学院","电子商务",null,"网络营销与直播电商",null,41,null,null,"https://www.fareast-edu.net/dept-zsxxw/posts/5050"]
["曲阜远东职业技术学院","酒店管理",null,"旅游管理",null,15,null,null,"https://www.fareast-edu.net/dept-zsxxw/posts/5050"]
["曲阜远东职业技术学院","旅游管理",null,"旅游管理",null,17,null,null,"https://www.fareast-edu.net/dept-zsxxw/posts/5050"]
["曲阜远东职业技术学院","数字媒体",null,"数字媒体艺术设计",null,30,null,null,"https://www.fareast-edu.net/dept-zsxxw/posts/5050"]
["曲阜远东职业技术学院","艺术设计",null,"环境艺术设计",null,10,null,null,"https://www.fareast-edu.net/dept-zsxxw/posts/5050"]
["曲阜远东职业技术学院","艺术设计",null,"书画艺术",null,9,null,null,"https://www.fareast-edu.net/dept-zsxxw/posts/5050"]
["曲阜远东职业技术学院","数字媒体",null,"动漫设计",null,28,null,null,"https://www.fareast-edu.net/dept-zsxxw/posts/5050"]
["曲阜远东职业技术学院","艺术设计",null,"雕刻艺术设计",null,9,null,null,"https://www.fareast-edu.net/dept-zsxxw/posts/5050"]
["曲阜远东职业技术学院","学前教育",null,"音乐表演",null,5,null,null,"https://www.fareast-edu.net/dept-zsxxw/posts/5050"]
["曲阜远东职业技术学院","学前教育",null,"舞蹈表演",null,5,null,null,"https://www.fareast-edu.net/dept-zsxxw/posts/5050"]
["曲阜远东职业技术学院","学前教育",null,"表演艺术",null,5,null,null,"https://www.fareast-edu.net/dept-zsxxw/posts/5050"]
["曲阜远东职业技术学院","服装",null,"民族美术",null,5,null,null,"https://www.fareast-edu.net/dept-zsxxw/posts/5050"]
["曲阜远东职业技术学院","公共服务与管理",null,"播音与主持",null,6,null,null,"https://www.fareast-edu.net/dept-zsxxw/posts/5050"]
["曲阜远东职业技术学院","数字媒体",null,"融媒体技术与运营",null,28,null,null,"https://www.fareast-edu.net/dept-zsxxw/posts/5050"]
["曲阜远东职业技术学院","网络技术",null,"融媒体技术与运营",null,11,null,null,"https://www.fareast-edu.net/dept-zsxxw/posts/5050"]
["曲阜远东职业技术学院","网络技术",null,"网络直播与运营",null,10,null,null,"https://www.fareast-edu.net/dept-zsxxw/posts/5050"]
["曲阜远东职业技术学院","数字媒体",null,"网络直播与运营",null,25,null,null,"https://www.fareast-edu.net/dept-zsxxw/posts/5050"]
["曲阜远东职业技术学院","学前教育",null,"早期教育",null,132,null,null,"https://www.fareast-edu.net/dept-zsxxw/posts/5050"]
["曲阜远东职业技术学院","公共服务与管理",null,"中文",null,6,null,null,"https://www.fareast-edu.net/dept-zsxxw/posts/5050"]
["曲阜远东职业技术学院","公共服务与管理",null,"电子竞技运动与管理",null,5,null,null,"https://www.fareast-edu.net/dept-zsxxw/posts/5050"]
["曲阜远东职业技术学院","公共服务与管理",null,"社区管理与服务",null,6,null,null,"https://www.fareast-edu.net/dept-zsxxw/posts/5050"]
["曲阜远东职业技术学院","护理",null,"智慧健康养老服务与管理",null,25,null,null,"https://www.fareast-edu.net/dept-zsxxw/posts/5050"]
["山东文化产业职业学院","财税","1A","大数据与会计",null,null,11800,"工商管理学院","https://zs.sdcivc.edu.cn/zxgg/5da1f4e3097f4394b008241b5b5fd1c5.htm"]
["山东文化产业职业学院","市场营销","2A","商务管理",null,null,10800,"工商管理学院","https://zs.sdcivc.edu.cn/zxgg/5da1f4e3097f4394b008241b5b5fd1c5.htm"]
["山东文化产业职业学院","市场营销","4A","市场营销",null,null,9800,"工商管理学院","https://zs.sdcivc.edu.cn/zxgg/5da1f4e3097f4394b008241b5b5fd1c5.htm"]
["山东文化产业职业学院","电子商务","6A","跨境电子商务",null,null,12800,"工商管理学院","https://zs.sdcivc.edu.cn/zxgg/5da1f4e3097f4394b008241b5b5fd1c5.htm"]
["山东文化产业职业学院","旅游管理","8A","旅游管理",null,null,9800,"工商管理学院","https://zs.sdcivc.edu.cn/zxgg/5da1f4e3097f4394b008241b5b5fd1c5.htm"]
["山东文化产业职业学院","酒店管理","1B","酒店管理与数字化运营",null,null,8800,"工商管理学院","https://zs.sdcivc.edu.cn/zxgg/5da1f4e3097f4394b008241b5b5fd1c5.htm"]
["山东文化产业职业学院","公共服务与管理","3B","会展策划与管理",null,null,9800,"工商管理学院","https://zs.sdcivc.edu.cn/zxgg/5da1f4e3097f4394b008241b5b5fd1c5.htm"]
["山东文化产业职业学院","护理","4B","康复治疗技术",null,null,11800,"医养健康学院","https://zs.sdcivc.edu.cn/zxgg/5da1f4e3097f4394b008241b5b5fd1c5.htm"]
["山东文化产业职业学院","药学","6B","健康大数据管理与服务",null,null,11800,"医养健康学院","https://zs.sdcivc.edu.cn/zxgg/5da1f4e3097f4394b008241b5b5fd1c5.htm"]
["山东文化产业职业学院","烹饪","8B","健康管理",null,null,11800,"医养健康学院","https://zs.sdcivc.edu.cn/zxgg/5da1f4e3097f4394b008241b5b5fd1c5.htm"]
["山东文化产业职业学院","学前教育","1C","婴幼儿托育服务与管理",null,null,12800,"医养健康学院","https://zs.sdcivc.edu.cn/zxgg/5da1f4e3097f4394b008241b5b5fd1c5.htm"]
["山东文化产业职业学院","公共服务与管理","2C","民族传统体育",null,null,14800,"医养健康学院","https://zs.sdcivc.edu.cn/zxgg/5da1f4e3097f4394b008241b5b5fd1c5.htm"]
["山东文化产业职业学院","公共服务与管理","3C","公共文化服务与管理",null,null,8800,"传媒学院","https://zs.sdcivc.edu.cn/zxgg/5da1f4e3097f4394b008241b5b5fd1c5.htm"]
["山东文化产业职业学院","数字媒体","4C","新闻采编与制作",null,null,9800,"传媒学院","https://zs.sdcivc.edu.cn/zxgg/5da1f4e3097f4394b008241b5b5fd1c5.htm"]
["山东文化产业职业学院","数字媒体","5C","摄影摄像技术",null,null,12800,"传媒学院","https://zs.sdcivc.edu.cn/zxgg/5da1f4e3097f4394b008241b5b5fd1c5.htm"]
["山东文化产业职业学院","数字媒体","6C","融媒体技术与运营",null,null,11800,"传媒学院","https://zs.sdcivc.edu.cn/zxgg/5da1f4e3097f4394b008241b5b5fd1c5.htm"]
["山东文化产业职业学院","电子商务","8C","网络直播与运营",null,null,12980,"传媒学院","https://zs.sdcivc.edu.cn/zxgg/5da1f4e3097f4394b008241b5b5fd1c5.htm"]
["山东文化产业职业学院","国际商务","9C","应用日语",null,null,9800,"传媒学院","https://zs.sdcivc.edu.cn/zxgg/5da1f4e3097f4394b008241b5b5fd1c5.htm"]
["山东文化产业职业学院","公共服务与管理","2D","党务工作",null,null,8800,"传媒学院","https://zs.sdcivc.edu.cn/zxgg/5da1f4e3097f4394b008241b5b5fd1c5.htm"]
["山东文化产业职业学院","公共服务与管理","3D","现代文秘",null,null,8800,"传媒学院","https://zs.sdcivc.edu.cn/zxgg/5da1f4e3097f4394b008241b5b5fd1c5.htm"]
["山东文化产业职业学院","设备维修","4D","高速铁路动车组制造与维护",null,null,11800,"轨道交通学院","https://zs.sdcivc.edu.cn/zxgg/5da1f4e3097f4394b008241b5b5fd1c5.htm"]
["山东文化产业职业学院","电子技术","6D","铁道通信与信息化技术",null,null,10800,"轨道交通学院","https://zs.sdcivc.edu.cn/zxgg/5da1f4e3097f4394b008241b5b5fd1c5.htm"]
["山东文化产业职业学院","酒店管理","8D","高速铁路客运服务",null,null,12800,"轨道交通学院","https://zs.sdcivc.edu.cn/zxgg/5da1f4e3097f4394b008241b5b5fd1c5.htm"]
["山东文化产业职业学院","酒店管理","1E","空中乘务",null,null,12800,"轨道交通学院","https://zs.sdcivc.edu.cn/zxgg/5da1f4e3097f4394b008241b5b5fd1c5.htm"]
["山东文化产业职业学院","运输","3E","城市轨道交通运营管理",null,null,12800,"轨道交通学院","https://zs.sdcivc.edu.cn/zxgg/5da1f4e3097f4394b008241b5b5fd1c5.htm"]
["山东文化产业职业学院","物流管理","4E","铁路物流管理",null,null,11800,"轨道交通学院","https://zs.sdcivc.edu.cn/zxgg/5da1f4e3097f4394b008241b5b5fd1c5.htm"]
["山东文化产业职业学院","机械制造","6E","机械制造及自动化",null,null,11800,"智能制造学院","https://zs.sdcivc.edu.cn/zxgg/5da1f4e3097f4394b008241b5b5fd1c5.htm"]
["山东文化产业职业学院","机电技术","7E","智能机电技术",null,null,11800,"智能制造学院","https://zs.sdcivc.edu.cn/zxgg/5da1f4e3097f4394b008241b5b5fd1c5.htm"]
["山东文化产业职业学院","机电技术","9E","工业机器人技术",null,null,11800,"智能制造学院","https://zs.sdcivc.edu.cn/zxgg/5da1f4e3097f4394b008241b5b5fd1c5.htm"]
["山东文化产业职业学院","电气技术","2F","电气自动化技术",null,null,15800,"智能制造学院","https://zs.sdcivc.edu.cn/zxgg/5da1f4e3097f4394b008241b5b5fd1c5.htm"]
["山东文化产业职业学院","自动控制","4F","无人机应用技术",null,null,10800,"智能制造学院","https://zs.sdcivc.edu.cn/zxgg/5da1f4e3097f4394b008241b5b5fd1c5.htm"]
["山东文化产业职业学院","车辆维修","6F","新能源汽车技术",null,null,10800,"智能制造学院","https://zs.sdcivc.edu.cn/zxgg/5da1f4e3097f4394b008241b5b5fd1c5.htm"]
["山东文化产业职业学院","建筑","7F","建筑工程技术",null,null,10800,"信息工程学院","https://zs.sdcivc.edu.cn/zxgg/5da1f4e3097f4394b008241b5b5fd1c5.htm"]
["山东文化产业职业学院","建筑","8F","装配式建筑工程技术",null,null,10800,"信息工程学院","https://zs.sdcivc.edu.cn/zxgg/5da1f4e3097f4394b008241b5b5fd1c5.htm"]
["山东文化产业职业学院","软件与应用技术","9F","大数据技术",null,null,12800,"信息工程学院","https://zs.sdcivc.edu.cn/zxgg/5da1f4e3097f4394b008241b5b5fd1c5.htm"]
["山东文化产业职业学院","数字媒体","2G","动漫制作技术",null,null,13800,"信息工程学院","https://zs.sdcivc.edu.cn/zxgg/5da1f4e3097f4394b008241b5b5fd1c5.htm"]
["山东文化产业职业学院","软件与应用技术","4G","通信软件技术",null,null,13800,"信息工程学院","https://zs.sdcivc.edu.cn/zxgg/5da1f4e3097f4394b008241b5b5fd1c5.htm"]
["山东文化产业职业学院","电子技术","6G","物联网应用技术",null,null,12800,"华为现代产业学院","https://zs.sdcivc.edu.cn/zxgg/5da1f4e3097f4394b008241b5b5fd1c5.htm"]
["山东文化产业职业学院","网络技术","8G","计算机网络技术",null,null,12800,"华为现代产业学院","https://zs.sdcivc.edu.cn/zxgg/5da1f4e3097f4394b008241b5b5fd1c5.htm"]
["山东文化产业职业学院","软件与应用技术","1H","人工智能技术应用",null,null,12800,"华为现代产业学院","https://zs.sdcivc.edu.cn/zxgg/5da1f4e3097f4394b008241b5b5fd1c5.htm"]
["山东文化产业职业学院","艺术设计","3H","艺术设计",null,null,13800,"艺术学院","https://zs.sdcivc.edu.cn/zxgg/5da1f4e3097f4394b008241b5b5fd1c5.htm"]
["山东文化产业职业学院","数字媒体","4H","数字媒体艺术设计",null,null,13800,"艺术学院","https://zs.sdcivc.edu.cn/zxgg/5da1f4e3097f4394b008241b5b5fd1c5.htm"]
["山东文化产业职业学院","艺术设计","5H","环境艺术设计",null,null,12800,"艺术学院","https://zs.sdcivc.edu.cn/zxgg/5da1f4e3097f4394b008241b5b5fd1c5.htm"]
["山东文化产业职业学院","旅游管理","6H","音乐表演",null,null,48000,"打击乐学院","https://zs.sdcivc.edu.cn/zxgg/5da1f4e3097f4394b008241b5b5fd1c5.htm"]
["山东文化产业职业学院","电子商务","3A","商务管理",null,null,10800,"工商管理学院","https://zs.sdcivc.edu.cn/zxgg/5da1f4e3097f4394b008241b5b5fd1c5.htm"]
["山东文化产业职业学院","电子商务","5A","市场营销",null,null,9800,"工商管理学院","https://zs.sdcivc.edu.cn/zxgg/5da1f4e3097f4394b008241b5b5fd1c5.htm"]
["山东文化产业职业学院","国际商务","7A","跨境电子商务",null,null,12800,"工商管理学院","https://zs.sdcivc.edu.cn/zxgg/5da1f4e3097f4394b008241b5b5fd1c5.htm"]
["山东文化产业职业学院","酒店管理","9A","旅游管理",null,null,9800,"工商管理学院","https://zs.sdcivc.edu.cn/zxgg/5da1f4e3097f4394b008241b5b5fd1c5.htm"]
["山东文化产业职业学院","旅游管理","2B","酒店管理与数字化运营",null,null,8800,"工商管理学院","https://zs.sdcivc.edu.cn/zxgg/5da1f4e3097f4394b008241b5b5fd1c5.htm"]
["山东文化产业职业学院","医学技术","5B","康复治疗技术",null,null,11800,"医养健康学院","https://zs.sdcivc.edu.cn/zxgg/5da1f4e3097f4394b008241b5b5fd1c5.htm"]
["山东文化产业职业学院","护理","7B","健康大数据管理与服务",null,null,11800,"医养健康学院","https://zs.sdcivc.edu.cn/zxgg/5da1f4e3097f4394b008241b5b5fd1c5.htm"]
["山东文化产业职业学院","医学技术","9B","健康管理",null,null,11800,"医养健康学院","https://zs.sdcivc.edu.cn/zxgg/5da1f4e3097f4394b008241b5b5fd1c5.htm"]
["山东文化产业职业学院","电子商务","7C","融媒体技术与运营",null,null,11800,"传媒学院","https://zs.sdcivc.edu.cn/zxgg/5da1f4e3097f4394b008241b5b5fd1c5.htm"]
["山东文化产业职业学院","电子商务","1D","应用日语",null,null,9800,"传媒学院","https://zs.sdcivc.edu.cn/zxgg/5da1f4e3097f4394b008241b5b5fd1c5.htm"]
["山东文化产业职业学院","车辆维修","5D","高速铁路动车组制造与维护",null,null,11800,"轨道交通学院","https://zs.sdcivc.edu.cn/zxgg/5da1f4e3097f4394b008241b5b5fd1c5.htm"]
["山东文化产业职业学院","机电技术","7D","铁道通信与信息化技术",null,null,10800,"轨道交通学院","https://zs.sdcivc.edu.cn/zxgg/5da1f4e3097f4394b008241b5b5fd1c5.htm"]
["山东文化产业职业学院","运输","9D","高速铁路客运服务",null,null,12800,"轨道交通学院","https://zs.sdcivc.edu.cn/zxgg/5da1f4e3097f4394b008241b5b5fd1c5.htm"]
["山东文化产业职业学院","旅游管理","2E","空中乘务",null,null,12800,"轨道交通学院","https://zs.sdcivc.edu.cn/zxgg/5da1f4e3097f4394b008241b5b5fd1c5.htm"]
["山东文化产业职业学院","电子商务","5E","铁路物流管理",null,null,11800,"轨道交通学院","https://zs.sdcivc.edu.cn/zxgg/5da1f4e3097f4394b008241b5b5fd1c5.htm"]
["山东文化产业职业学院","设备维修","8E","智能机电技术",null,null,11800,"智能制造学院","https://zs.sdcivc.edu.cn/zxgg/5da1f4e3097f4394b008241b5b5fd1c5.htm"]
["山东文化产业职业学院","自动控制","1F","工业机器人技术",null,null,11800,"智能制造学院","https://zs.sdcivc.edu.cn/zxgg/5da1f4e3097f4394b008241b5b5fd1c5.htm"]
["山东文化产业职业学院","机电技术","3F","电气自动化技术",null,null,15800,"智能制造学院","https://zs.sdcivc.edu.cn/zxgg/5da1f4e3097f4394b008241b5b5fd1c5.htm"]
["山东文化产业职业学院","机电技术","5F","无人机应用技术",null,null,10800,"智能制造学院","https://zs.sdcivc.edu.cn/zxgg/5da1f4e3097f4394b008241b5b5fd1c5.htm"]
["山东文化产业职业学院","网络技术","1G","大数据技术",null,null,12800,"信息工程学院","https://zs.sdcivc.edu.cn/zxgg/5da1f4e3097f4394b008241b5b5fd1c5.htm"]
["山东文化产业职业学院","软件与应用技术","3G","动漫制作技术",null,null,13800,"信息工程学院","https://zs.sdcivc.edu.cn/zxgg/5da1f4e3097f4394b008241b5b5fd1c5.htm"]
["山东文化产业职业学院","网络技术","5G","通信软件技术",null,null,13800,"信息工程学院","https://zs.sdcivc.edu.cn/zxgg/5da1f4e3097f4394b008241b5b5fd1c5.htm"]
["山东文化产业职业学院","软件与应用技术","7G","物联网应用技术",null,null,12800,"华为现代产业学院","https://zs.sdcivc.edu.cn/zxgg/5da1f4e3097f4394b008241b5b5fd1c5.htm"]
["山东文化产业职业学院","软件与应用技术","9G","计算机网络技术",null,null,12800,"华为现代产业学院","https://zs.sdcivc.edu.cn/zxgg/5da1f4e3097f4394b008241b5b5fd1c5.htm"]
["山东文化产业职业学院","网络技术","2H","人工智能技术应用",null,null,12800,"华为现代产业学院","https://zs.sdcivc.edu.cn/zxgg/5da1f4e3097f4394b008241b5b5fd1c5.htm"]
["烟台黄金职业学院","电子商务","1A","电子商务",null,null,8800,"黄金经济与管理领域","https://xb.ytgc.edu.cn/info/1061/2072.htm"]
["烟台黄金职业学院","国际商务","1B","电子商务",null,null,8800,"黄金经济与管理领域","https://xb.ytgc.edu.cn/info/1061/2072.htm"]
["烟台黄金职业学院","财税","1C","大数据与财务管理",null,null,9800,"黄金经济与管理领域","https://xb.ytgc.edu.cn/info/1061/2072.htm"]
["烟台黄金职业学院","酒店管理","1D","大数据与财务管理",null,null,9800,"黄金经济与管理领域","https://xb.ytgc.edu.cn/info/1061/2072.htm"]
["烟台黄金职业学院","市场营销","1E","市场营销",null,null,8800,"黄金经济与管理领域","https://xb.ytgc.edu.cn/info/1061/2072.htm"]
["烟台黄金职业学院","物流管理","1F","市场营销",null,null,8800,"黄金经济与管理领域","https://xb.ytgc.edu.cn/info/1061/2072.htm"]
["烟台黄金职业学院","财税","1G","金融服务与管理",null,null,8800,"黄金经济与管理领域","https://xb.ytgc.edu.cn/info/1061/2072.htm"]
["烟台黄金职业学院","酒店管理","1H","金融服务与管理",null,null,8800,"黄金经济与管理领域","https://xb.ytgc.edu.cn/info/1061/2072.htm"]
["烟台黄金职业学院","国际商务","1J","跨境电子商务",null,null,9800,"黄金经济与管理领域","https://xb.ytgc.edu.cn/info/1061/2072.htm"]
["烟台黄金职业学院","电子商务","1K","跨境电子商务",null,null,9800,"黄金经济与管理领域","https://xb.ytgc.edu.cn/info/1061/2072.htm"]
["烟台黄金职业学院","网络技术","1L","计算机网络技术",null,null,9800,"人工智能与互联网信息领域","https://xb.ytgc.edu.cn/info/1061/2072.htm"]
["烟台黄金职业学院","软件与应用技术","1M","计算机网络技术",null,null,9800,"人工智能与互联网信息领域","https://xb.ytgc.edu.cn/info/1061/2072.htm"]
["烟台黄金职业学院","网络技术","1N","大数据技术",null,null,9800,"人工智能与互联网信息领域","https://xb.ytgc.edu.cn/info/1061/2072.htm"]
["烟台黄金职业学院","数字媒体","1P","大数据技术",null,null,9800,"人工智能与互联网信息领域","https://xb.ytgc.edu.cn/info/1061/2072.htm"]
["烟台黄金职业学院","软件与应用技术","1Q","软件技术",null,null,8800,"人工智能与互联网信息领域","https://xb.ytgc.edu.cn/info/1061/2072.htm"]
["烟台黄金职业学院","网络技术","1R","软件技术",null,null,8800,"人工智能与互联网信息领域","https://xb.ytgc.edu.cn/info/1061/2072.htm"]
["烟台黄金职业学院","软件与应用技术","1S","虚拟现实技术应用",null,null,9800,"人工智能与互联网信息领域","https://xb.ytgc.edu.cn/info/1061/2072.htm"]
["烟台黄金职业学院","数字媒体","1T","虚拟现实技术应用",null,null,9800,"人工智能与互联网信息领域","https://xb.ytgc.edu.cn/info/1061/2072.htm"]
["烟台黄金职业学院","软件与应用技术","1U","计算机应用技术",null,null,8800,"人工智能与互联网信息领域","https://xb.ytgc.edu.cn/info/1061/2072.htm"]
["烟台黄金职业学院","数字媒体","1V","计算机应用技术",null,null,8800,"人工智能与互联网信息领域","https://xb.ytgc.edu.cn/info/1061/2072.htm"]
["烟台黄金职业学院","软件与应用技术","1W","云计算技术应用",null,null,8800,"人工智能与互联网信息领域","https://xb.ytgc.edu.cn/info/1061/2072.htm"]
["烟台黄金职业学院","网络技术","1X","云计算技术应用",null,null,8800,"人工智能与互联网信息领域","https://xb.ytgc.edu.cn/info/1061/2072.htm"]
["烟台黄金职业学院","软件与应用技术","1Y","信息安全技术应用",null,null,11800,"人工智能与互联网信息领域","https://xb.ytgc.edu.cn/info/1061/2072.htm"]
["烟台黄金职业学院","网络技术","2A","信息安全技术应用",null,null,11800,"人工智能与互联网信息领域","https://xb.ytgc.edu.cn/info/1061/2072.htm"]
["烟台黄金职业学院","机电技术","2B","机电一体化技术",null,null,8800,"制造智能化领域","https://xb.ytgc.edu.cn/info/1061/2072.htm"]
["烟台黄金职业学院","电子技术","2C","机电一体化技术",null,null,8800,"制造智能化领域","https://xb.ytgc.edu.cn/info/1061/2072.htm"]
["烟台黄金职业学院","机械制造","2D","机械设计与制造",null,null,8800,"制造智能化领域","https://xb.ytgc.edu.cn/info/1061/2072.htm"]
["烟台黄金职业学院","车辆维修","2E","机械设计与制造",null,null,8800,"制造智能化领域","https://xb.ytgc.edu.cn/info/1061/2072.htm"]
["烟台黄金职业学院","机电技术","2F","工业机器人技术",null,null,9800,"制造智能化领域","https://xb.ytgc.edu.cn/info/1061/2072.htm"]
["烟台黄金职业学院","电子技术","2G","工业机器人技术",null,null,9800,"制造智能化领域","https://xb.ytgc.edu.cn/info/1061/2072.htm"]
["烟台黄金职业学院","自动控制","2H","电气自动化技术",null,null,9800,"制造智能化领域","https://xb.ytgc.edu.cn/info/1061/2072.htm"]
["烟台黄金职业学院","电气技术","2J","电气自动化技术",null,null,9800,"制造智能化领域","https://xb.ytgc.edu.cn/info/1061/2072.htm"]
["烟台黄金职业学院","机电技术","2K","智能机电技术",null,null,9800,"制造智能化领域","https://xb.ytgc.edu.cn/info/1061/2072.htm"]
["烟台黄金职业学院","电子技术","2L","智能机电技术",null,null,9800,"制造智能化领域","https://xb.ytgc.edu.cn/info/1061/2072.htm"]
["烟台黄金职业学院","学前教育","2P","表演艺术",null,null,11800,"人文教育领域","https://xb.ytgc.edu.cn/info/1061/2072.htm"]
["烟台黄金职业学院","数字媒体","2Q","表演艺术",null,null,11800,"人文教育领域","https://xb.ytgc.edu.cn/info/1061/2072.htm"]
["烟台黄金职业学院","护理","2R","运动健康指导",null,null,9800,"人文教育领域","https://xb.ytgc.edu.cn/info/1061/2072.htm"]
["烟台黄金职业学院","医学技术","2S","运动健康指导",null,null,9800,"人文教育领域","https://xb.ytgc.edu.cn/info/1061/2072.htm"]
["烟台黄金职业学院","国际商务","2T","商务英语",null,null,8800,"人文教育领域","https://xb.ytgc.edu.cn/info/1061/2072.htm"]
["烟台黄金职业学院","学前教育","2U","商务英语",null,null,8800,"人文教育领域","https://xb.ytgc.edu.cn/info/1061/2072.htm"]
["烟台黄金职业学院","旅游管理","2V","运动训练",null,null,9800,"人文教育领域","https://xb.ytgc.edu.cn/info/1061/2072.htm"]
["烟台黄金职业学院","酒店管理","2W","运动训练",null,null,9800,"人文教育领域","https://xb.ytgc.edu.cn/info/1061/2072.htm"]
["烟台黄金职业学院","学前教育","2M","婴幼儿托育服务与管理",null,null,8800,"人文教育领域","https://xb.ytgc.edu.cn/info/1061/2072.htm"]
["烟台黄金职业学院","护理","2N","婴幼儿托育服务与管理",null,null,8800,"人文教育领域","https://xb.ytgc.edu.cn/info/1061/2072.htm"]
["烟台黄金职业学院","服装","3E","宝玉石鉴定与加工",null,null,8800,"珠宝首饰与艺术设计领域","https://xb.ytgc.edu.cn/info/1061/2072.htm"]
["烟台黄金职业学院","市场营销","3F","宝玉石鉴定与加工",null,null,8800,"珠宝首饰与艺术设计领域","https://xb.ytgc.edu.cn/info/1061/2072.htm"]
["烟台黄金职业学院","艺术设计","3A","首饰设计与工艺",null,null,8800,"珠宝首饰与艺术设计领域","https://xb.ytgc.edu.cn/info/1061/2072.htm"]
["烟台黄金职业学院","电子商务","3B","首饰设计与工艺",null,null,8800,"珠宝首饰与艺术设计领域","https://xb.ytgc.edu.cn/info/1061/2072.htm"]
["烟台黄金职业学院","数字媒体","2X","数字媒体艺术设计",null,null,9800,"珠宝首饰与艺术设计领域","https://xb.ytgc.edu.cn/info/1061/2072.htm"]
["烟台黄金职业学院","艺术设计","2Y","数字媒体艺术设计",null,null,9800,"珠宝首饰与艺术设计领域","https://xb.ytgc.edu.cn/info/1061/2072.htm"]
["烟台黄金职业学院","艺术设计","3C","艺术设计",null,null,9800,"珠宝首饰与艺术设计领域","https://xb.ytgc.edu.cn/info/1061/2072.htm"]
["烟台黄金职业学院","数字媒体","3D","艺术设计",null,null,9800,"珠宝首饰与艺术设计领域","https://xb.ytgc.edu.cn/info/1061/2072.htm"]
["烟台黄金职业学院","数字媒体","3G","融媒体技术与运营",null,null,11800,"珠宝首饰与艺术设计领域","https://xb.ytgc.edu.cn/info/1061/2072.htm"]
["烟台黄金职业学院","软件与应用技术","3H","融媒体技术与运营",null,null,11800,"珠宝首饰与艺术设计领域","https://xb.ytgc.edu.cn/info/1061/2072.htm"]
["烟台黄金职业学院","车辆维修","3J","无人机测绘技术",null,null,9800,"测绘与资源勘查领域","https://xb.ytgc.edu.cn/info/1061/2072.htm"]
["烟台黄金职业学院","网络技术","3K","无人机测绘技术",null,null,9800,"测绘与资源勘查领域","https://xb.ytgc.edu.cn/info/1061/2072.htm"]
["烟台黄金职业学院","建筑","3L","测绘工程技术",null,null,8800,"测绘与资源勘查领域","https://xb.ytgc.edu.cn/info/1061/2072.htm"]
["烟台黄金职业学院","软件与应用技术","3M","测绘工程技术",null,null,8800,"测绘与资源勘查领域","https://xb.ytgc.edu.cn/info/1061/2072.htm"]
["烟台黄金职业学院","建筑","3N","工程地质勘查",null,null,7800,"测绘与资源勘查领域","https://xb.ytgc.edu.cn/info/1061/2072.htm"]
["烟台黄金职业学院","电气技术","3P","工程地质勘查",null,null,7800,"测绘与资源勘查领域","https://xb.ytgc.edu.cn/info/1061/2072.htm"]
["烟台黄金职业学院","旅游管理","3Q","矿产地质勘查",null,null,7800,"测绘与资源勘查领域","https://xb.ytgc.edu.cn/info/1061/2072.htm"]
["烟台黄金职业学院","电子技术","3R","矿产地质勘查",null,null,7800,"测绘与资源勘查领域","https://xb.ytgc.edu.cn/info/1061/2072.htm"]
["烟台黄金职业学院","建筑","3S","建筑工程技术",null,null,8800,"资源与土木工程领域","https://xb.ytgc.edu.cn/info/1061/2072.htm"]
["烟台黄金职业学院","机电技术","3T","建筑工程技术",null,null,8800,"资源与土木工程领域","https://xb.ytgc.edu.cn/info/1061/2072.htm"]
["烟台黄金职业学院","建筑","3U","工程造价",null,null,8800,"资源与土木工程领域","https://xb.ytgc.edu.cn/info/1061/2072.htm"]
["烟台黄金职业学院","财税","3V","工程造价",null,null,8800,"资源与土木工程领域","https://xb.ytgc.edu.cn/info/1061/2072.htm"]
["烟台黄金职业学院","机电技术","3W","矿山智能开采技术(仅限男生)",null,null,7800,"资源与土木工程领域","https://xb.ytgc.edu.cn/info/1061/2072.htm"]
["烟台黄金职业学院","设备维修","3X","矿山智能开采技术(仅限男生)",null,null,7800,"资源与土木工程领域","https://xb.ytgc.edu.cn/info/1061/2072.htm"]
["烟台黄金职业学院","机械制造","3Y","通风技术与安全管理(仅限男生)",null,null,7800,"资源与土木工程领域","https://xb.ytgc.edu.cn/info/1061/2072.htm"]
["烟台黄金职业学院","软件与应用技术","4A","通风技术与安全管理(仅限男生)",null,null,7800,"资源与土木工程领域","https://xb.ytgc.edu.cn/info/1061/2072.htm"]
["烟台黄金职业学院","化工与环境","4B","环境工程技术",null,null,8800,"环境与材料工程领域","https://xb.ytgc.edu.cn/info/1061/2072.htm"]
["烟台黄金职业学院","药学","4C","环境工程技术",null,null,8800,"环境与材料工程领域","https://xb.ytgc.edu.cn/info/1061/2072.htm"]
["烟台黄金职业学院","电子技术","4D","矿物加工技术",null,null,7800,"环境与材料工程领域","https://xb.ytgc.edu.cn/info/1061/2072.htm"]
["烟台黄金职业学院","机电技术","4E","矿物加工技术",null,null,7800,"环境与材料工程领域","https://xb.ytgc.edu.cn/info/1061/2072.htm"]
["烟台黄金职业学院","建筑","4F","新型建筑材料技术",null,null,9800,"环境与材料工程领域","https://xb.ytgc.edu.cn/info/1061/2072.htm"]
["烟台黄金职业学院","机电技术","4G","新型建筑材料技术",null,null,9800,"环境与材料工程领域","https://xb.ytgc.edu.cn/info/1061/2072.htm"]
["烟台黄金职业学院","数字媒体","4H","影视多媒体技术",null,null,12800,"信创产业学院","https://xb.ytgc.edu.cn/info/1061/2072.htm"]
["烟台黄金职业学院","艺术设计","4J","影视多媒体技术",null,null,12800,"信创产业学院","https://xb.ytgc.edu.cn/info/1061/2072.htm"]
["烟台黄金职业学院","退役军人","4K","矿产地质勘查",null,null,7800,"测绘与资源勘查领域","https://xb.ytgc.edu.cn/info/1061/2072.htm"]
["烟台黄金职业学院","退役军人","4L","矿山智能开采技术(仅限男生)",null,null,7800,"资源与土木工程领域","https://xb.ytgc.edu.cn/info/1061/2072.htm"]
["烟台黄金职业学院","退役军人","4M","矿物加工技术",null,null,7800,"环境与材料工程领域","https://xb.ytgc.edu.cn/info/1061/2072.htm"]
["山东圣翰财贸职业学院","车辆维修","01","汽车制造与试验技术",null,null,12800,null,"https://www.sdshxy.cn/"]
["山东圣翰财贸职业学院","电子商务","02","电子商务",null,null,12800,null,"https://www.sdshxy.cn/"]
["山东圣翰财贸职业学院","护理","03","医学影像技术",null,null,15800,null,"https://www.sdshxy.cn/"]
["山东圣翰财贸职业学院","机电技术","04","电气自动化技术",null,null,12800,null,"https://www.sdshxy.cn/"]
["山东圣翰财贸职业学院","机械制造","05","数控技术",null,null,12800,null,"https://www.sdshxy.cn/"]
["山东圣翰财贸职业学院","数字媒体","06","数字媒体技术",null,null,13800,null,"https://www.sdshxy.cn/"]
["山东圣翰财贸职业学院","网络技术","07","软件技术",null,null,12800,null,"https://www.sdshxy.cn/"]
["山东圣翰财贸职业学院","网络技术","08","物联网应用技术",null,null,12800,null,"https://www.sdshxy.cn/"]
["山东圣翰财贸职业学院","学前教育","09","婴幼儿托育服务与管理",null,null,13800,null,"https://www.sdshxy.cn/"]
["山东圣翰财贸职业学院","医学技术",10,"康复治疗技术",null,null,13800,null,"https://www.sdshxy.cn/"]
["山东圣翰财贸职业学院","医学技术",11,"医学美容技术",null,null,13800,null,"https://www.sdshxy.cn/"]
["山东圣翰财贸职业学院","软件与应用技术",12,"物联网应用技术",null,null,12800,null,"https://www.sdshxy.cn/"]
["山东圣翰财贸职业学院","自动控制",13,"软件技术",null,null,12800,null,"https://www.sdshxy.cn/"]
["山东圣翰财贸职业学院","电气技术",14,"电气自动化技术",null,null,12800,null,"https://www.sdshxy.cn/"]
["山东圣翰财贸职业学院","电气技术",15,"机电一体化技术",null,null,9800,null,"https://www.sdshxy.cn/"]
["山东圣翰财贸职业学院","公共服务与管理",16,"婴幼儿托育服务与管理",null,null,13800,null,"https://www.sdshxy.cn/"]
["山东圣翰财贸职业学院","公共服务与管理",17,"酒店管理与数字化运营",null,null,12800,null,"https://www.sdshxy.cn/"]
["山东圣翰财贸职业学院","公共服务与管理",18,"智慧健康养老服务与管理",null,null,10800,null,"https://www.sdshxy.cn/"]
["山东圣翰财贸职业学院","国际商务",19,"金融服务与管理",null,null,12800,null,"https://www.sdshxy.cn/"]
["山东圣翰财贸职业学院","国际商务",20,"电子商务",null,null,12800,null,"https://www.sdshxy.cn/"]
["山东圣翰财贸职业学院","建筑",21,"建筑工程技术",null,null,9800,null,"https://www.sdshxy.cn/"]
["山东圣翰财贸职业学院","建筑",22,"工程造价",null,null,9800,null,"https://www.sdshxy.cn/"]
["山东圣翰财贸职业学院","药学",23,"医学影像技术",null,null,15800,null,"https://www.sdshxy.cn/"]
["日照航海工程职业学院","运输","01","航海技术",null,25,10800,null,"http://www.rzmevc.com/info/1034/3986.htm"]
["日照航海工程职业学院","机械制造","02","航海技术",null,10,10800,null,"http://www.rzmevc.com/info/1034/3986.htm"]
["日照航海工程职业学院","运输","03","轮机工程技术",null,15,10800,null,"http://www.rzmevc.com/info/1034/3986.htm"]
["日照航海工程职业学院","设备维修","04","轮机工程技术",null,10,10800,null,"http://www.rzmevc.com/info/1034/3986.htm"]
["日照航海工程职业学院","运输","05","港口与航运管理",null,35,8800,null,"http://www.rzmevc.com/info/1034/3986.htm"]
["日照航海工程职业学院","机械制造","06","港口与航运管理",null,15,8800,null,"http://www.rzmevc.com/info/1034/3986.htm"]
["日照航海工程职业学院","建筑","07","建筑室内设计",null,20,9800,null,"http://www.rzmevc.com/info/1034/3986.htm"]
["日照航海工程职业学院","艺术设计","08","建筑室内设计",null,7,9800,null,"http://www.rzmevc.com/info/1034/3986.htm"]
["日照航海工程职业学院","建筑","09","建筑工程技术",null,25,8800,null,"http://www.rzmevc.com/info/1034/3986.htm"]
["日照航海工程职业学院","设备维修",10,"建筑工程技术",null,6,8800,null,"http://www.rzmevc.com/info/1034/3986.htm"]
["日照航海工程职业学院","建筑",11,"工程造价",null,13,8800,null,"http://www.rzmevc.com/info/1034/3986.htm"]
["日照航海工程职业学院","自动控制",12,"工程造价",null,4,8800,null,"http://www.rzmevc.com/info/1034/3986.htm"]
["日照航海工程职业学院","自动控制",13,"电梯工程技术",null,12,9800,null,"http://www.rzmevc.com/info/1034/3986.htm"]
["日照航海工程职业学院","设备维修",14,"电梯工程技术",null,6,9800,null,"http://www.rzmevc.com/info/1034/3986.htm"]
["日照航海工程职业学院","机电技术",15,"机电一体化技术",null,150,10800,null,"http://www.rzmevc.com/info/1034/3986.htm"]
["日照航海工程职业学院","机械制造",16,"机电一体化技术",null,30,10800,null,"http://www.rzmevc.com/info/1034/3986.htm"]
["日照航海工程职业学院","机电技术",17,"智能控制技术",null,35,9800,null,"http://www.rzmevc.com/info/1034/3986.htm"]
["日照航海工程职业学院","自动控制",18,"智能控制技术",null,20,9800,null,"http://www.rzmevc.com/info/1034/3986.htm"]
["日照航海工程职业学院","车辆维修",19,"新能源汽车技术",null,100,9800,null,"http://www.rzmevc.com/info/1034/3986.htm"]
["日照航海工程职业学院","电子技术",20,"新能源汽车技术",null,15,9800,null,"http://www.rzmevc.com/info/1034/3986.htm"]
["日照航海工程职业学院","机电技术",21,"应急救援技术",null,40,9800,null,"http://www.rzmevc.com/info/1034/3986.htm"]
["日照航海工程职业学院","化工与环境",22,"应急救援技术",null,20,9800,null,"http://www.rzmevc.com/info/1034/3986.htm"]
["日照航海工程职业学院","建筑",23,"建筑消防技术",null,60,9800,null,"http://www.rzmevc.com/info/1034/3986.htm"]
["日照航海工程职业学院","机电技术",24,"建筑消防技术",null,27,9800,null,"http://www.rzmevc.com/info/1034/3986.htm"]
["日照航海工程职业学院","酒店管理",25,"高速铁路客运服务",null,30,8800,null,"http://www.rzmevc.com/info/1034/3986.htm"]
["日照航海工程职业学院","旅游管理",26,"高速铁路客运服务",null,5,8800,null,"http://www.rzmevc.com/info/1034/3986.htm"]
["日照航海工程职业学院","酒店管理",27,"国际邮轮乘务管理",null,10,9800,null,"http://www.rzmevc.com/info/1034/3986.htm"]
["日照航海工程职业学院","旅游管理",28,"国际邮轮乘务管理",null,5,9800,null,"http://www.rzmevc.com/info/1034/3986.htm"]
["日照航海工程职业学院","学前教育",29,"婴幼儿托育服务与管理",null,180,9800,null,"http://www.rzmevc.com/info/1034/3986.htm"]
["日照航海工程职业学院","旅游管理",30,"婴幼儿托育服务与管理",null,5,9800,null,"http://www.rzmevc.com/info/1034/3986.htm"]
["日照航海工程职业学院","财税",31,"大数据与财务管理",null,30,8800,null,"http://www.rzmevc.com/info/1034/3986.htm"]
["日照航海工程职业学院","市场营销",32,"大数据与财务管理",null,15,8800,null,"http://www.rzmevc.com/info/1034/3986.htm"]
["日照航海工程职业学院","电子商务",33,"电子商务",null,85,9800,null,"http://www.rzmevc.com/info/1034/3986.htm"]
["日照航海工程职业学院","国际商务",34,"电子商务",null,30,9800,null,"http://www.rzmevc.com/info/1034/3986.htm"]
["日照航海工程职业学院","物流管理",35,"现代物流管理",null,20,8800,null,"http://www.rzmevc.com/info/1034/3986.htm"]
["日照航海工程职业学院","化工与环境",36,"现代物流管理",null,10,8800,null,"http://www.rzmevc.com/info/1034/3986.htm"]
["日照航海工程职业学院","酒店管理",37,"酒店管理与数字化运营",null,28,9800,null,"http://www.rzmevc.com/info/1034/3986.htm"]
["日照航海工程职业学院","旅游管理",38,"酒店管理与数字化运营",null,8,9800,null,"http://www.rzmevc.com/info/1034/3986.htm"]
["日照航海工程职业学院","艺术设计",39,"艺术设计",null,18,9800,null,"http://www.rzmevc.com/info/1034/3986.htm"]
["日照航海工程职业学院","软件与应用技术",40,"艺术设计",null,8,9800,null,"http://www.rzmevc.com/info/1034/3986.htm"]
["日照航海工程职业学院","服装",41,"表演艺术",null,10,10800,null,"http://www.rzmevc.com/info/1034/3986.htm"]
["日照航海工程职业学院","公共服务与管理",42,"表演艺术",null,10,10800,null,"http://www.rzmevc.com/info/1034/3986.htm"]
["日照航海工程职业学院","药学",43,"药品经营与管理",null,10,8800,null,"http://www.rzmevc.com/info/1034/3986.htm"]
["日照航海工程职业学院","医学技术",44,"药品经营与管理",null,15,8800,null,"http://www.rzmevc.com/info/1034/3986.htm"]
["日照航海工程职业学院","医学技术",45,"中医养生保健",null,10,8800,null,"http://www.rzmevc.com/info/1034/3986.htm"]
["日照航海工程职业学院","护理",46,"中医养生保健",null,10,8800,null,"http://www.rzmevc.com/info/1034/3986.htm"]
["日照航海工程职业学院","医学技术",47,"医学检验技术",null,30,9800,null,"http://www.rzmevc.com/info/1034/3986.htm"]
["日照航海工程职业学院","护理",48,"医学检验技术",null,30,9800,null,"http://www.rzmevc.com/info/1034/3986.htm"]
["日照航海工程职业学院","医学技术",49,"口腔医学技术",null,30,9800,null,"http://www.rzmevc.com/info/1034/3986.htm"]
["日照航海工程职业学院","护理",50,"口腔医学技术",null,35,9800,null,"http://www.rzmevc.com/info/1034/3986.htm"]
["日照航海工程职业学院","医学技术",51,"康复治疗技术",null,20,9800,null,"http://www.rzmevc.com/info/1034/3986.htm"]
["日照航海工程职业学院","护理",52,"康复治疗技术",null,20,9800,null,"http://www.rzmevc.com/info/1034/3986.htm"]
["日照航海工程职业学院","医学技术",53,"健康管理",null,15,8800,null,"http://www.rzmevc.com/info/1034/3986.htm"]
["日照航海工程职业学院","护理",54,"健康管理",null,25,8800,null,"http://www.rzmevc.com/info/1034/3986.htm"]
["日照航海工程职业学院","医学技术",55,"眼视光技术",null,15,8800,null,"http://www.rzmevc.com/info/1034/3986.htm"]
["日照航海工程职业学院","护理",56,"眼视光技术",null,8,8800,null,"http://www.rzmevc.com/info/1034/3986.htm"]
["日照航海工程职业学院","电子技术",57,"电子信息工程技术",null,20,9800,null,"http://www.rzmevc.com/info/1034/3986.htm"]
["日照航海工程职业学院","设备维修",58,"电子信息工程技术",null,8,9800,null,"http://www.rzmevc.com/info/1034/3986.htm"]
["日照航海工程职业学院","电子技术",59,"物联网应用技术",null,16,9800,null,"http://www.rzmevc.com/info/1034/3986.htm"]
["日照航海工程职业学院","网络技术",60,"物联网应用技术",null,15,9800,null,"http://www.rzmevc.com/info/1034/3986.htm"]
["日照航海工程职业学院","网络技术",61,"计算机网络技术",null,80,10800,null,"http://www.rzmevc.com/info/1034/3986.htm"]
["日照航海工程职业学院","数字媒体",62,"计算机网络技术",null,80,10800,null,"http://www.rzmevc.com/info/1034/3986.htm"]
["日照航海工程职业学院","软件与应用技术",63,"软件技术",null,18,9800,null,"http://www.rzmevc.com/info/1034/3986.htm"]
["日照航海工程职业学院","网络技术",64,"软件技术",null,15,9800,null,"http://www.rzmevc.com/info/1034/3986.htm"]
["日照航海工程职业学院","软件与应用技术",65,"信息安全技术应用",null,40,9800,null,"http://www.rzmevc.com/info/1034/3986.htm"]
["日照航海工程职业学院","网络技术",66,"信息安全技术应用",null,30,9800,null,"http://www.rzmevc.com/info/1034/3986.htm"]
["日照航海工程职业学院","数字媒体",67,"融媒体技术与运营",null,45,9800,null,"http://www.rzmevc.com/info/1034/3986.htm"]
["日照航海工程职业学院","软件与应用技术",68,"融媒体技术与运营",null,8,9800,null,"http://www.rzmevc.com/info/1034/3986.htm"]
["日照航海工程职业学院","数字媒体",69,"网络直播与运营",null,30,9800,null,"http://www.rzmevc.com/info/1034/3986.htm"]
["日照航海工程职业学院","网络技术",70,"网络直播与运营",null,15,9800,null,"http://www.rzmevc.com/info/1034/3986.htm"]
["潍坊工商职业学院","现代农艺","01","生态农业技术",null,30,8600,null,"http://zjc.wfgsxy.com/info/1090/1754.htm"]
["潍坊工商职业学院","现代农艺","02","休闲农业经营与管理",null,30,8600,null,"http://zjc.wfgsxy.com/info/1090/1754.htm"]
["潍坊工商职业学院","现代农艺","03","现代农业经济管理",null,30,8600,null,"http://zjc.wfgsxy.com/info/1090/1754.htm"]
["潍坊工商职业学院","畜牧养殖","04","畜牧兽医",null,40,8600,null,"http://zjc.wfgsxy.com/info/1090/1754.htm"]
["潍坊工商职业学院","烹饪","05","食品智能加工技术",null,20,8600,null,"http://zjc.wfgsxy.com/info/1090/1754.htm"]
["潍坊工商职业学院","烹饪","06","食品质量与安全",null,20,8600,null,"http://zjc.wfgsxy.com/info/1090/1754.htm"]
["潍坊工商职业学院","烹饪","07","食品检验检测技术",null,30,8600,null,"http://zjc.wfgsxy.com/info/1090/1754.htm"]
["潍坊工商职业学院","化工与环境","08","食品检验检测技术",null,20,8600,null,"http://zjc.wfgsxy.com/info/1090/1754.htm"]
["潍坊工商职业学院","酒店管理","09","餐饮智能管理",null,20,8600,null,"http://zjc.wfgsxy.com/info/1090/1754.htm"]
["潍坊工商职业学院","建筑","10","建筑装饰工程技术",null,30,8800,null,"http://zjc.wfgsxy.com/info/1090/1754.htm"]
["潍坊工商职业学院","建筑","11","建筑工程技术",null,30,8800,null,"http://zjc.wfgsxy.com/info/1090/1754.htm"]
["潍坊工商职业学院","建筑","12","建筑智能化工程技术",null,30,8800,null,"http://zjc.wfgsxy.com/info/1090/1754.htm"]
["潍坊工商职业学院","建筑","13","工程造价",null,30,8800,null,"http://zjc.wfgsxy.com/info/1090/1754.htm"]
["潍坊工商职业学院","建筑","14","建设工程监理",null,30,8800,null,"http://zjc.wfgsxy.com/info/1090/1754.htm"]
["潍坊工商职业学院","机械制造","15","数控技术",null,30,8800,null,"http://zjc.wfgsxy.com/info/1090/1754.htm"]
["潍坊工商职业学院","机电技术","16","数控技术",null,30,8800,null,"http://zjc.wfgsxy.com/info/1090/1754.htm"]
["潍坊工商职业学院","机械制造","17","机械制造及自动化",null,20,8800,null,"http://zjc.wfgsxy.com/info/1090/1754.htm"]
["潍坊工商职业学院","机电技术","18","机械制造及自动化",null,20,8800,null,"http://zjc.wfgsxy.com/info/1090/1754.htm"]
["潍坊工商职业学院","机电技术","19","机电一体化技术",null,30,8800,null,"http://zjc.wfgsxy.com/info/1090/1754.htm"]
["潍坊工商职业学院","电气技术","20","机电一体化技术",null,20,8800,null,"http://zjc.wfgsxy.com/info/1090/1754.htm"]
["潍坊工商职业学院","机电技术","21","工业机器人技术",null,20,8800,null,"http://zjc.wfgsxy.com/info/1090/1754.htm"]
["潍坊工商职业学院","电气技术","22","电气自动化技术",null,20,8800,null,"http://zjc.wfgsxy.com/info/1090/1754.htm"]
["潍坊工商职业学院","机电技术","23","电气自动化技术","与山东华源热电股份公司合作",40,12800,null,"http://zjc.wfgsxy.com/info/1090/1754.htm"]
["潍坊工商职业学院","电气技术","24","电气自动化技术","与山东华源热电股份公司合作",20,12800,null,"http://zjc.wfgsxy.com/info/1090/1754.htm"]
["潍坊工商职业学院","旅游管理","25","民航安全技术管理","与山东新锐通用航空公司合作",5,13200,null,"http://zjc.wfgsxy.com/info/1090/1754.htm"]
["潍坊工商职业学院","机电技术","26","通用航空器维修","与山东新锐通用航空公司合作",10,13200,null,"http://zjc.wfgsxy.com/info/1090/1754.htm"]
["潍坊工商职业学院","机电技术","27","通用航空航务技术","与山东新锐通用航空公司合作",15,13200,null,"http://zjc.wfgsxy.com/info/1090/1754.htm"]
["潍坊工商职业学院","车辆维修","28","汽车制造与试验技术",null,30,8800,null,"http://zjc.wfgsxy.com/info/1090/1754.htm"]
["潍坊工商职业学院","车辆维修","29","新能源汽车技术",null,30,8800,null,"http://zjc.wfgsxy.com/info/1090/1754.htm"]
["潍坊工商职业学院","车辆维修","30","汽车技术服务与营销",null,30,8600,null,"http://zjc.wfgsxy.com/info/1090/1754.htm"]
["潍坊工商职业学院","服装","31","服装设计与工艺",null,30,8600,null,"http://zjc.wfgsxy.com/info/1090/1754.htm"]
["潍坊工商职业学院","艺术设计","32","服装设计与工艺",null,10,8600,null,"http://zjc.wfgsxy.com/info/1090/1754.htm"]
["潍坊工商职业学院","学前教育","33","婴幼儿托育服务与管理",null,80,8800,null,"http://zjc.wfgsxy.com/info/1090/1754.htm"]
["潍坊工商职业学院","电子技术","34","电子信息工程技术",null,40,8800,null,"http://zjc.wfgsxy.com/info/1090/1754.htm"]
["潍坊工商职业学院","电子技术","35","物联网应用技术",null,20,8800,null,"http://zjc.wfgsxy.com/info/1090/1754.htm"]
["潍坊工商职业学院","网络技术","36","物联网应用技术",null,20,8800,null,"http://zjc.wfgsxy.com/info/1090/1754.htm"]
["潍坊工商职业学院","电子技术","37","物联网应用技术","黄冈教育谷投资控股有限公司",20,12300,null,"http://zjc.wfgsxy.com/info/1090/1754.htm"]
["潍坊工商职业学院","数字媒体","38","计算机应用技术",null,30,8800,null,"http://zjc.wfgsxy.com/info/1090/1754.htm"]
["潍坊工商职业学院","网络技术","39","计算机应用技术",null,10,8800,null,"http://zjc.wfgsxy.com/info/1090/1754.htm"]
["潍坊工商职业学院","数字媒体","40","计算机应用技术","与青岛漫视数字有限公司合作",10,14700,null,"http://zjc.wfgsxy.com/info/1090/1754.htm"]
["潍坊工商职业学院","数字媒体","41","计算机应用技术",null,30,15000,null,"http://zjc.wfgsxy.com/info/1090/1754.htm"]
["潍坊工商职业学院","软件与应用技术","42","软件技术",null,30,8800,null,"http://zjc.wfgsxy.com/info/1090/1754.htm"]
["潍坊工商职业学院","网络技术","43","软件技术",null,60,8800,null,"http://zjc.wfgsxy.com/info/1090/1754.htm"]
["潍坊工商职业学院","网络技术","44","大数据技术",null,20,8800,null,"http://zjc.wfgsxy.com/info/1090/1754.htm"]
["潍坊工商职业学院","软件与应用技术","45","大数据技术",null,10,8800,null,"http://zjc.wfgsxy.com/info/1090/1754.htm"]
["潍坊工商职业学院","数字媒体","46","动漫制作技术",null,30,8800,null,"http://zjc.wfgsxy.com/info/1090/1754.htm"]
["潍坊工商职业学院","数字媒体","47","动漫制作技术","与青岛漫视数字有限公司合作",10,14700,null,"http://zjc.wfgsxy.com/info/1090/1754.htm"]
["潍坊工商职业学院","医学技术","48","中医养生保健",null,10,8800,null,"http://zjc.wfgsxy.com/info/1090/1754.htm"]
["潍坊工商职业学院","医学技术","49","医学检验技术",null,20,8800,null,"http://zjc.wfgsxy.com/info/1090/1754.htm"]
["潍坊工商职业学院","医学技术","50","医学影像技术",null,20,8800,null,"http://zjc.wfgsxy.com/info/1090/1754.htm"]
["潍坊工商职业学院","医学技术","51","口腔医学技术","与山东牙道医疗科技有限公司",20,8800,null,"http://zjc.wfgsxy.com/info/1090/1754.htm"]
["潍坊工商职业学院","医学技术","52","康复治疗技术",null,10,8800,null,"http://zjc.wfgsxy.com/info/1090/1754.htm"]
["潍坊工商职业学院","医学技术","53","医学营养",null,10,8800,null,"http://zjc.wfgsxy.com/info/1090/1754.htm"]
["潍坊工商职业学院","护理","54","智慧健康养老服务与管理",null,50,8600,null,"http://zjc.wfgsxy.com/info/1090/1754.htm"]
["潍坊工商职业学院","公共服务\n与管理","55","智慧健康养老服务与管理",null,20,8600,null,"http://zjc.wfgsxy.com/info/1090/1754.htm"]
["潍坊工商职业学院","财税","56","金融服务与管理",null,20,8800,null,"http://zjc.wfgsxy.com/info/1090/1754.htm"]
["潍坊工商职业学院","财税","57","大数据与财务管理",null,30,8600,null,"http://zjc.wfgsxy.com/info/1090/1754.htm"]
["潍坊工商职业学院","财税","58","大数据与会计",null,40,8600,null,"http://zjc.wfgsxy.com/info/1090/1754.htm"]
["潍坊工商职业学院","财税","59","大数据与会计",null,20,15000,null,"http://zjc.wfgsxy.com/info/1090/1754.htm"]
["潍坊工商职业学院","市场营销","60","市场营销",null,40,8600,null,"http://zjc.wfgsxy.com/info/1090/1754.htm"]
["潍坊工商职业学院","电子商务","61","电子商务",null,60,8800,null,"http://zjc.wfgsxy.com/info/1090/1754.htm"]
["潍坊工商职业学院","电子商务","62","跨境电子商务",null,10,8800,null,"http://zjc.wfgsxy.com/info/1090/1754.htm"]
["潍坊工商职业学院","国际商务","63","跨境电子商务",null,30,8800,null,"http://zjc.wfgsxy.com/info/1090/1754.htm"]
["潍坊工商职业学院","电子商务","64","跨境电子商务","与山东立欣成智能科技有限公司合作",20,9800,null,"http://zjc.wfgsxy.com/info/1090/1754.htm"]
["潍坊工商职业学院","电子商务","65","电子商务","与青岛漫视数字有限公司合作",10,14700,null,"http://zjc.wfgsxy.com/info/1090/1754.htm"]
["潍坊工商职业学院","运输","66","城市轨道交通运营管理","与山东立欣成智能科技有限公司合作",60,9800,null,"http://zjc.wfgsxy.com/info/1090/1754.htm"]
["潍坊工商职业学院","酒店管理","67","城市轨道交通运营管理","与山东立欣成智能科技有限公司合作",20,9800,null,"http://zjc.wfgsxy.com/info/1090/1754.htm"]
["潍坊工商职业学院","旅游管理","68","旅游管理",null,30,8600,null,"http://zjc.wfgsxy.com/info/1090/1754.htm"]
["潍坊工商职业学院","酒店管理","69","酒店管理与数字化运营",null,30,8600,null,"http://zjc.wfgsxy.com/info/1090/1754.htm"]
["烟台南山学院","软件与应用技术","01","大数据技术",null,25,10800,null,"http://zs.nanshan.edu.cn/info/1015/2694.htm"]
["烟台南山学院","软件与应用技术","02","软件技术",null,50,10800,null,"http://zs.nanshan.edu.cn/info/1015/2694.htm"]
["烟台南山学院","软件与应用技术",36,"动漫制作技术",null,20,9800,null,"http://zs.nanshan.edu.cn/info/1015/2694.htm"]
["烟台南山学院","软件与应用技术",37,"移动互联应用技术",null,10,9800,null,"http://zs.nanshan.edu.cn/info/1015/2694.htm"]
["烟台南山学院","数字媒体","03","动漫制作技术",null,190,9800,null,"http://zs.nanshan.edu.cn/info/1015/2694.htm"]
["烟台南山学院","电子技术","04","移动互联应用技术",null,30,9800,null,"http://zs.nanshan.edu.cn/info/1015/2694.htm"]
["烟台南山学院","网络技术","05","计算机网络技术",null,175,10800,null,"http://zs.nanshan.edu.cn/info/1015/2694.htm"]
["烟台南山学院","网络技术",34,"大数据技术",null,20,10800,null,"http://zs.nanshan.edu.cn/info/1015/2694.htm"]
["烟台南山学院","网络技术",35,"软件技术",null,25,10800,null,"http://zs.nanshan.edu.cn/info/1015/2694.htm"]
["烟台南山学院","自动控制","06","电气自动化技术",null,200,9800,null,"http://zs.nanshan.edu.cn/info/1015/2694.htm"]
["烟台南山学院","医学技术","07","智慧健康养老服务与管理",null,30,9800,null,"http://zs.nanshan.edu.cn/info/1015/2694.htm"]
["烟台南山学院","医学技术","08","社区康复",null,30,9800,null,"http://zs.nanshan.edu.cn/info/1015/2694.htm"]
["烟台南山学院","机电技术","09","机电一体化技术",null,185,9800,null,"http://zs.nanshan.edu.cn/info/1015/2694.htm"]
["烟台南山学院","机械制造",10,"机械制造及自动化",null,95,9800,null,"http://zs.nanshan.edu.cn/info/1015/2694.htm"]
["烟台南山学院","机械制造",11,"材料成型及控制技术",null,45,9800,null,"http://zs.nanshan.edu.cn/info/1015/2694.htm"]
["烟台南山学院","电子商务",12,"电子商务",null,135,9800,null,"http://zs.nanshan.edu.cn/info/1015/2694.htm"]
["烟台南山学院","电子商务",13,"商务数据分析与应用",null,30,9800,null,"http://zs.nanshan.edu.cn/info/1015/2694.htm"]
["烟台南山学院","服装",14,"服装与服饰设计",null,30,11800,null,"http://zs.nanshan.edu.cn/info/1015/2694.htm"]
["烟台南山学院","服装",15,"现代家用纺织品设计",null,30,9800,null,"http://zs.nanshan.edu.cn/info/1015/2694.htm"]
["烟台南山学院","艺术设计",16,"艺术设计",null,45,11800,null,"http://zs.nanshan.edu.cn/info/1015/2694.htm"]
["烟台南山学院","艺术设计",17,"广告艺术设计",null,30,11800,null,"http://zs.nanshan.edu.cn/info/1015/2694.htm"]
["烟台南山学院","艺术设计",41,"工程造价",null,10,9800,null,"http://zs.nanshan.edu.cn/info/1015/2694.htm"]
["烟台南山学院","建筑",18,"工程造价",null,65,9800,null,"http://zs.nanshan.edu.cn/info/1015/2694.htm"]
["烟台南山学院","建筑",39,"艺术设计",null,10,11800,null,"http://zs.nanshan.edu.cn/info/1015/2694.htm"]
["烟台南山学院","建筑",40,"广告艺术设计",null,10,11800,null,"http://zs.nanshan.edu.cn/info/1015/2694.htm"]
["烟台南山学院","护理",19,"护理",null,80,10800,null,"http://zs.nanshan.edu.cn/info/1015/2694.htm"]
["烟台南山学院","护理",38,"智慧健康养老服务与管理",null,30,9800,null,"http://zs.nanshan.edu.cn/info/1015/2694.htm"]
["烟台南山学院","财税",20,"大数据与财务管理",null,25,9800,null,"http://zs.nanshan.edu.cn/info/1015/2694.htm"]
["烟台南山学院","财税",21,"大数据与会计",null,45,10800,null,"http://zs.nanshan.edu.cn/info/1015/2694.htm"]
["烟台南山学院","化工与环境",22,"高分子材料智能制造技术",null,20,9800,null,"http://zs.nanshan.edu.cn/info/1015/2694.htm"]
["烟台南山学院","化工与环境",23,"石油化工技术",null,25,9800,null,"http://zs.nanshan.edu.cn/info/1015/2694.htm"]
["烟台南山学院","酒店管理",24,"酒店管理与数字化运营",null,70,9800,null,"http://zs.nanshan.edu.cn/info/1015/2694.htm"]
["烟台南山学院","酒店管理",25,"空中乘务",null,40,10800,null,"http://zs.nanshan.edu.cn/info/1015/2694.htm"]
["烟台南山学院","酒店管理",42,"旅游管理",null,25,9800,null,"http://zs.nanshan.edu.cn/info/1015/2694.htm"]
["烟台南山学院","旅游管理",26,"旅游管理",null,30,9800,null,"http://zs.nanshan.edu.cn/info/1015/2694.htm"]
["烟台南山学院","烹饪",27,"食品生物技术",null,60,9800,null,"http://zs.nanshan.edu.cn/info/1015/2694.htm"]
["烟台南山学院","市场营销",28,"工商企业管理",null,20,9800,null,"http://zs.nanshan.edu.cn/info/1015/2694.htm"]
["烟台南山学院","市场营销",29,"市场营销",null,50,9800,null,"http://zs.nanshan.edu.cn/info/1015/2694.htm"]
["烟台南山学院","物流管理",30,"现代物流管理",null,200,9800,null,"http://zs.nanshan.edu.cn/info/1015/2694.htm"]
["烟台南山学院","学前教育",31,"婴幼儿托育服务与管理",null,165,10800,null,"http://zs.nanshan.edu.cn/info/1015/2694.htm"]
["烟台南山学院","学前教育",32,"音乐表演",null,45,12800,null,"http://zs.nanshan.edu.cn/info/1015/2694.htm"]
["烟台南山学院","学前教育",33,"舞蹈表演",null,45,12800,null,"http://zs.nanshan.edu.cn/info/1015/2694.htm"]
["滨州科技职业学院","软件与应用技术","01","大数据技术",null,60,null,null,"https://zs.sdbky.cn/info/1011/1772.htm"]
["滨州科技职业学院","财税","03","大数据与会计",null,35,null,null,"https://zs.sdbky.cn/info/1011/1772.htm"]
["滨州科技职业学院","自动控制","05","电气自动化技术",null,10,null,null,"https://zs.sdbky.cn/info/1011/1772.htm"]
["滨州科技职业学院","电子商务","07","电子商务",null,50,null,null,"https://zs.sdbky.cn/info/1011/1772.htm"]
["滨州科技职业学院","酒店管理","09","高速铁路客运服务",null,30,null,null,"https://zs.sdbky.cn/info/1011/1772.htm"]
["滨州科技职业学院","机电技术","10","机电一体化技术",null,50,null,null,"https://zs.sdbky.cn/info/1011/1772.htm"]
["滨州科技职业学院","软件与应用技术","12","计算机应用技术",null,80,null,null,"https://zs.sdbky.cn/info/1011/1772.htm"]
["滨州科技职业学院","医学技术","13","康复治疗技术",null,50,null,null,"https://zs.sdbky.cn/info/1011/1772.htm"]
["滨州科技职业学院","酒店管理","15","空中乘务",null,10,null,null,"https://zs.sdbky.cn/info/1011/1772.htm"]
["滨州科技职业学院","医学技术","16","口腔医学技术",null,35,null,null,"https://zs.sdbky.cn/info/1011/1772.htm"]
["滨州科技职业学院","电子商务","18","跨境电子商务",null,30,null,null,"https://zs.sdbky.cn/info/1011/1772.htm"]
["滨州科技职业学院","旅游管理","20","旅游管理",null,20,null,null,"https://zs.sdbky.cn/info/1011/1772.htm"]
["滨州科技职业学院","软件与应用技术","21","人工智能技术应用",null,40,null,null,"https://zs.sdbky.cn/info/1011/1772.htm"]
["滨州科技职业学院","数字媒体","23","数字媒体技术",null,75,null,null,"https://zs.sdbky.cn/info/1011/1772.htm"]
["滨州科技职业学院","电子商务","24","网络营销与直播电商",null,40,null,null,"https://zs.sdbky.cn/info/1011/1772.htm"]
["滨州科技职业学院","自动控制","26","无人机应用技术",null,30,null,null,"https://zs.sdbky.cn/info/1011/1772.htm"]
["滨州科技职业学院","物流管理","28","现代物流管理",null,10,null,null,"https://zs.sdbky.cn/info/1011/1772.htm"]
["滨州科技职业学院","车辆维修","29","新能源汽车技术",null,40,null,null,"https://zs.sdbky.cn/info/1011/1772.htm"]
["滨州科技职业学院","医学技术","30","眼视光技术",null,30,null,null,"https://zs.sdbky.cn/info/1011/1772.htm"]
["滨州科技职业学院","医学技术","32","医学检验技术",null,30,null,null,"https://zs.sdbky.cn/info/1011/1772.htm"]
["滨州科技职业学院","学前教育","34","婴幼儿托育服务与管理",null,40,null,null,"https://zs.sdbky.cn/info/1011/1772.htm"]
["滨州科技职业学院","自动控制","35","智能控制技术",null,10,null,null,"https://zs.sdbky.cn/info/1011/1772.htm"]
["滨州科技职业学院","药学","37","中药学",null,25,null,null,"https://zs.sdbky.cn/info/1011/1772.htm"]
["滨州科技职业学院","网络技术","02","大数据技术",null,20,null,null,"https://zs.sdbky.cn/info/1011/1772.htm"]
["滨州科技职业学院","电子商务","04","大数据与会计",null,5,null,null,"https://zs.sdbky.cn/info/1011/1772.htm"]
["滨州科技职业学院","机电技术","06","电气自动化技术",null,30,null,null,"https://zs.sdbky.cn/info/1011/1772.htm"]
["滨州科技职业学院","数字媒体","08","电子商务",null,10,null,null,"https://zs.sdbky.cn/info/1011/1772.htm"]
["滨州科技职业学院","电子技术","11","机电一体化技术",null,10,null,null,"https://zs.sdbky.cn/info/1011/1772.htm"]
["滨州科技职业学院","护理","14","康复治疗技术",null,10,null,null,"https://zs.sdbky.cn/info/1011/1772.htm"]
["滨州科技职业学院","护理","17","口腔医学技术",null,5,null,null,"https://zs.sdbky.cn/info/1011/1772.htm"]
["滨州科技职业学院","国际商务","19","跨境电子商务",null,10,null,null,"https://zs.sdbky.cn/info/1011/1772.htm"]
["滨州科技职业学院","网络技术","22","人工智能技术应用",null,10,null,null,"https://zs.sdbky.cn/info/1011/1772.htm"]
["滨州科技职业学院","市场营销","25","网络营销与直播电商",null,10,null,null,"https://zs.sdbky.cn/info/1011/1772.htm"]
["滨州科技职业学院","机电技术","27","无人机应用技术",null,30,null,null,"https://zs.sdbky.cn/info/1011/1772.htm"]
["滨州科技职业学院","护理","31","眼视光技术",null,5,null,null,"https://zs.sdbky.cn/info/1011/1772.htm"]
["滨州科技职业学院","护理","33","医学检验技术",null,5,null,null,"https://zs.sdbky.cn/info/1011/1772.htm"]
["滨州科技职业学院","电气技术","36","智能控制技术",null,10,null,null,"https://zs.sdbky.cn/info/1011/1772.htm"]
["山东城市服务职业学院","烹饪","01","烹饪工艺与营养",null,90,4800,null,"https://sdcc.edu.cn/zhaojiuban/detail/15575"]
["山东城市服务职业学院","烹饪","03","餐饮智能管理",null,90,4800,null,"https://sdcc.edu.cn/zhaojiuban/detail/15575"]
["山东城市服务职业学院","烹饪","05","食品检验检测技术",null,100,4800,null,"https://sdcc.edu.cn/zhaojiuban/detail/15575"]
["山东城市服务职业学院","烹饪","07","食品营养与健康",null,80,4800,null,"https://sdcc.edu.cn/zhaojiuban/detail/15575"]
["山东城市服务职业学院","烹饪","09","食品智能加工技术",null,100,4800,null,"https://sdcc.edu.cn/zhaojiuban/detail/15575"]
["山东城市服务职业学院","烹饪",11,"西式烹饪工艺",null,60,4800,null,"https://sdcc.edu.cn/zhaojiuban/detail/15575"]
["山东城市服务职业学院","烹饪",13,"中西面点工艺",null,100,4800,null,"https://sdcc.edu.cn/zhaojiuban/detail/15575"]
["山东城市服务职业学院","烹饪",15,"营养配餐",null,30,4800,null,"https://sdcc.edu.cn/zhaojiuban/detail/15575"]
["山东城市服务职业学院","酒店管理",17,"葡萄酒文化与营销",null,30,4800,null,"https://sdcc.edu.cn/zhaojiuban/detail/15575"]
["山东城市服务职业学院","机电技术",19,"智能制造装备技术",null,50,5000,null,"https://sdcc.edu.cn/zhaojiuban/detail/15575"]
["山东城市服务职业学院","自动控制",21,"工业互联网应用",null,50,5000,null,"https://sdcc.edu.cn/zhaojiuban/detail/15575"]
["山东城市服务职业学院","电子技术",23,"物联网应用技术",null,50,5000,null,"https://sdcc.edu.cn/zhaojiuban/detail/15575"]
["山东城市服务职业学院","电子技术",25,"智能光电技术应用",null,30,5000,null,"https://sdcc.edu.cn/zhaojiuban/detail/15575"]
["山东城市服务职业学院","电子商务",28,"电子商务",null,40,4800,null,"https://sdcc.edu.cn/zhaojiuban/detail/15575"]
["山东城市服务职业学院","数字媒体",29,"数字媒体技术",null,30,5000,null,"https://sdcc.edu.cn/zhaojiuban/detail/15575"]
["山东城市服务职业学院","艺术设计",31,"美容美体艺术",null,50,7000,null,"https://sdcc.edu.cn/zhaojiuban/detail/15575"]
["山东城市服务职业学院","艺术设计",33,"环境艺术设计",null,50,7000,null,"https://sdcc.edu.cn/zhaojiuban/detail/15575"]
["山东城市服务职业学院","艺术设计",34,"人物形象设计",null,50,7000,null,"https://sdcc.edu.cn/zhaojiuban/detail/15575"]
["山东城市服务职业学院","酒店管理",36,"酒店管理与数字化运营",null,60,4800,null,"https://sdcc.edu.cn/zhaojiuban/detail/15575"]
["山东城市服务职业学院","酒店管理",37,"国际邮轮乘务管理",null,40,4800,null,"https://sdcc.edu.cn/zhaojiuban/detail/15575"]
["山东城市服务职业学院","旅游管理",38,"智慧旅游技术应用",null,40,4800,null,"https://sdcc.edu.cn/zhaojiuban/detail/15575"]
["山东城市服务职业学院","学前教育",40,"婴幼儿托育服务与管理",null,80,4800,null,"https://sdcc.edu.cn/zhaojiuban/detail/15575"]

{"sheet":"综评计划","index":1,"n_rows":1102,"n_cols":8,"rows_kept":1102,"cut":false,"hidden":false,"merged":[]}
["院校名称","专业代码","专业名称","专业要求","计划数","学费","备注","章程"]
["青岛远洋船员职业学院","01","航海技术",null,30,null,"女生慎报","https://www.qmc.edu.cn/zhaosheng/info/1106/1881.htm"]
["青岛远洋船员职业学院","02","轮机工程技术",null,20,null,"女生慎报","https://www.qmc.edu.cn/zhaosheng/info/1106/1882.htm"]
["青岛远洋船员职业学院","04","船舶工程技术",null,5,null,null,"https://www.qmc.edu.cn/zhaosheng/info/1106/1883.htm"]
["青岛远洋船员职业学院","05","港口与航运管理",null,5,null,null,"https://www.qmc.edu.cn/zhaosheng/info/1106/1884.htm"]
["青岛远洋船员职业学院","06","国际邮轮乘务管理",null,5,null,null,"https://www.qmc.edu.cn/zhaosheng/info/1106/1885.htm"]
["山东司法警官职业学院",null,"司法警务","男生",30,null,null,"http://www.zhaosheng.sdsfjy.com/jtzx_deil/42.html"]
["山东司法警官职业学院",null,"司法警务","女生",10,null,null,"http://www.zhaosheng.sdsfjy.com/jtzx_deil/42.html"]
["山东司法警官职业学院",null,"安全保卫管理","男生",50,null,null,"http://www.zhaosheng.sdsfjy.com/jtzx_deil/42.html"]
["山东司法警官职业学院",null,"安全保卫管理","女生",10,null,null,"http://www.zhaosheng.sdsfjy.com/jtzx_deil/42.html"]
["山东职业学院",null,"铁道机车运用与维护","色觉异常者限制报考。本专业就业岗位适宜男生，建议女生慎重报考。",20,6300,"铁道机车车辆学院","https://www.sdp.edu.cn/zs/info/1027/1782.htm"]
["山东职业学院",null,"铁道工程技术(中外合作)","色觉异常者限制报考。本专业就业岗位适宜男生，建议女生慎重报考。",10,30000,"乌拉尔国际轨道交通学院","https://www.sdp.edu.cn/zs/info/1027/1782.htm"]
["山东职业学院",null,"铁道交通运营管理","色觉异常者限制报考。本专业就业岗位适宜男生，建议女生慎重报考。",10,5500,"乌拉尔国际轨道交通学院","https://www.sdp.edu.cn/zs/info/1027/1782.htm"]
["山东职业学院",null,"城市轨道车辆应用技术","色觉异常者限制报考。",10,6600,"城市轨道学院","https://www.sdp.edu.cn/zs/info/1027/1782.htm"]
["山东职业学院",null,"食品检验检测技术",null,10,6000,"生物工程学院","https://www.sdp.edu.cn/zs/info/1027/1782.htm"]
["山东职业学院",null,"建筑工程技术",null,10,5500,"土木工程学院","https://www.sdp.edu.cn/zs/info/1027/1782.htm"]
["山东职业学院",null,"网络营销与直播电商",null,10,5200,"管理学院","https://www.sdp.edu.cn/zs/info/1027/1782.htm"]
["山东职业学院",null,"现代物流管理",null,10,5200,"管理学院","https://www.sdp.edu.cn/zs/info/1027/1782.htm"]
["山东职业学院",null,"港口与航运管理",null,10,5500,"港口学院","https://www.sdp.edu.cn/zs/info/1027/1782.htm"]
["青岛幼儿师范高等专科学校",null,"婴幼儿托育服务与管理",null,20,6000,"学前教育学院","https://www.qdpec.edu.cn/zhaosheng/zszc/202401/t20240124_7806675.shtml"]
["青岛幼儿师范高等专科学校",null,"跨境电子商务",null,20,5000,"商贸学院","https://www.qdpec.edu.cn/zhaosheng/zszc/202401/t20240124_7806675.shtml"]
["青岛幼儿师范高等专科学校",null,"休闲服务与管理",null,10,5000,"文旅学院","https://www.qdpec.edu.cn/zhaosheng/zszc/202401/t20240124_7806675.shtml"]
["青岛幼儿师范高等专科学校",null,"研学旅行管理与服务",null,10,5000,"文旅学院","https://www.qdpec.edu.cn/zhaosheng/zszc/202401/t20240124_7806675.shtml"]
["青岛幼儿师范高等专科学校",null,"首饰设计与工艺",null,45,8000,"珠宝设计学院","https://www.qdpec.edu.cn/zhaosheng/zszc/202401/t20240124_7806675.shtml"]
["青岛幼儿师范高等专科学校",null,"视觉传达设计",null,45,8000,"珠宝设计学院","https://www.qdpec.edu.cn/zhaosheng/zszc/202401/t20240124_7806675.shtml"]
["济南护理职业学院","0A","药学",null,10,6600,null,"https://zs.sdjnwx.com/articles/1572"]
["济南护理职业学院","0B","助产(仅限女生)",null,10,6600,null,"https://zs.sdjnwx.com/articles/1572"]
["济南护理职业学院","0C","婴幼儿托育服务与管理",null,10,6000,null,"https://zs.sdjnwx.com/articles/1572"]
["济南护理职业学院","0D","智能医疗装备技术",null,10,6000,null,"https://zs.sdjnwx.com/articles/1572"]
["济南护理职业学院","0E","智慧健康养老服务与管理",null,10,6900,null,"https://zs.sdjnwx.com/articles/1572"]
["济南护理职业学院","0F","食品检验检测技术",null,10,6000,null,"https://zs.sdjnwx.com/articles/1572"]
["潍坊护理职业学院",30,"助产",null,5,6600,"只招女生","https://zhaosheng.wfhlxy.com/info/1023/1701.htm"]
["潍坊护理职业学院",31,"药学",null,5,6000,null,"https://zhaosheng.wfhlxy.com/info/1023/1701.htm"]
["潍坊护理职业学院",32,"中药学",null,5,6000,null,"https://zhaosheng.wfhlxy.com/info/1023/1701.htm"]
["潍坊护理职业学院",33,"中医康复技术",null,5,6900,null,"https://zhaosheng.wfhlxy.com/info/1023/1701.htm"]
["潍坊护理职业学院",34,"医学检验技术",null,10,6000,null,"https://zhaosheng.wfhlxy.com/info/1023/1701.htm"]
["潍坊护理职业学院",35,"医学影像技术",null,10,6000,null,"https://zhaosheng.wfhlxy.com/info/1023/1701.htm"]
["潍坊护理职业学院",36,"口腔医学技术",null,5,6900,null,"https://zhaosheng.wfhlxy.com/info/1023/1701.htm"]
["潍坊护理职业学院",37,"医学美容技术",null,5,6900,null,"https://zhaosheng.wfhlxy.com/info/1023/1701.htm"]
["潍坊护理职业学院",38,"康复治疗技术",null,10,6900,null,"https://zhaosheng.wfhlxy.com/info/1023/1701.htm"]
["潍坊护理职业学院",39,"健康管理",null,5,6900,null,"https://zhaosheng.wfhlxy.com/info/1023/1701.htm"]
["潍坊护理职业学院",40,"婴幼儿托育服务与管理",null,10,6000,null,"https://zhaosheng.wfhlxy.com/info/1023/1701.htm"]
["潍坊护理职业学院",41,"心理咨询",null,5,6000,null,"https://zhaosheng.wfhlxy.com/info/1023/1701.htm"]
["潍坊护理职业学院",42,"眼视光技术",null,20,6000,null,"https://zhaosheng.wfhlxy.com/info/1023/1701.htm"]
["潍坊护理职业学院",43,"大数据技术",null,5,5000,null,"https://zhaosheng.wfhlxy.com/info/1023/1701.htm"]
["潍坊护理职业学院",44,"社会工作",null,5,4800,null,"https://zhaosheng.wfhlxy.com/info/1023/1701.htm"]
["潍坊护理职业学院",45,"现代家政服务与管理",null,5,5200,null,"https://zhaosheng.wfhlxy.com/info/1023/1701.htm"]
["潍坊护理职业学院",46,"智慧健康养老服务与管理",null,5,5500,null,"https://zhaosheng.wfhlxy.com/info/1023/1701.htm"]
["山东交通职业学院",null,"现代物流管理",null,20,null,"管理与信息系","https://zs.sdjtzyxy.edu.cn/info/1021/1754.htm"]
["山东交通职业学院",null,"机械设计与制造（中外）",null,20,null,"机电工程系","https://zs.sdjtzyxy.edu.cn/info/1021/1754.htm"]
["山东交通职业学院",null,"工业机器人技术（中外）",null,20,null,"机电工程系","https://zs.sdjtzyxy.edu.cn/info/1021/1754.htm"]
["山东交通职业学院",null,"航海技术",null,20,null,"航海系","https://zs.sdjtzyxy.edu.cn/info/1021/1754.htm"]
["山东交通职业学院",null,"国际邮轮乘务管理",null,20,null,"交通工程系","https://zs.sdjtzyxy.edu.cn/info/1021/1754.htm"]
["山东交通职业学院",null,"空中乘务",null,20,null,"交通工程系","https://zs.sdjtzyxy.edu.cn/info/1021/1754.htm"]
["菏泽医学专科学校","A1","医学营养",null,25,null,null,"https://www.hzmc.edu.cn/zsb/info/1056/2698.htm"]
["菏泽医学专科学校","A2","健康管理",null,25,null,null,"https://www.hzmc.edu.cn/zsb/info/1056/2698.htm"]
["菏泽医学专科学校","A3","中医康复技术",null,30,null,null,"https://www.hzmc.edu.cn/zsb/info/1056/2698.htm"]
["菏泽医学专科学校","A4","药品生产技术",null,30,null,null,"https://www.hzmc.edu.cn/zsb/info/1056/2698.htm"]
["菏泽医学专科学校","A5","药品经营与管理",null,30,null,null,"https://www.hzmc.edu.cn/zsb/info/1056/2698.htm"]
["菏泽医学专科学校","A6","老年保健与管理",null,30,null,null,"https://www.hzmc.edu.cn/zsb/info/1056/2698.htm"]
["菏泽医学专科学校","A7","智慧健康养老服务与管理",null,30,null,null,"https://www.hzmc.edu.cn/zsb/info/1056/2698.htm"]
["临沂科技职业学院",null,"现代农业技术",null,10,null,"运动专长：5","https://www.lyvust.cn/info/1023/2618.htm"]
["临沂科技职业学院",null,"休闲农业经营与管理",null,8,null,null,"https://www.lyvust.cn/info/1023/2618.htm"]
["临沂科技职业学院",null,"农产品流通与管理",null,8,null,null,"https://www.lyvust.cn/info/1023/2618.htm"]
["临沂科技职业学院",null,"种子生产与经营",null,8,null,null,"https://www.lyvust.cn/info/1023/2618.htm"]
["临沂科技职业学院",null,"园林技术",null,8,null,null,"https://www.lyvust.cn/info/1023/2618.htm"]
["临沂科技职业学院",null,"动物医学",null,10,null,"运动专长：5","https://www.lyvust.cn/info/1023/2618.htm"]
["临沂科技职业学院",null,"宠物医疗技术",null,8,null,null,"https://www.lyvust.cn/info/1023/2618.htm"]
["临沂科技职业学院",null,"食品质量与安全",null,5,null,"运动专长：5","https://www.lyvust.cn/info/1023/2618.htm"]
["临沂科技职业学院",null,"食品营养与健康",null,5,null,"运动专长：5","https://www.lyvust.cn/info/1023/2618.htm"]
["临沂科技职业学院",null,"食品检验检测技术",null,5,null,"运动专长：5","https://www.lyvust.cn/info/1023/2618.htm"]
["临沂科技职业学院",null,"环境监测技术",null,5,null,"运动专长：5","https://www.lyvust.cn/info/1023/2618.htm"]
["临沂科技职业学院",null,"药品经营与管理",null,5,null,"运动专长：5","https://www.lyvust.cn/info/1023/2618.htm"]
["临沂科技职业学院",null,"跨境电子商务",null,3,null,"运动专长：5","https://www.lyvust.cn/info/1023/2618.htm"]
["临沂科技职业学院",null,"网络营销与直播电商",null,3,null,"运动专长：5","https://www.lyvust.cn/info/1023/2618.htm"]
["临沂科技职业学院",null,"供应链运营",null,7,null,null,"https://www.lyvust.cn/info/1023/2618.htm"]
["临沂科技职业学院",null,"舞蹈表演",null,10,null,null,"https://www.lyvust.cn/info/1023/2618.htm"]
["临沂科技职业学院",null,"视觉传达设计",null,8,null,null,"https://www.lyvust.cn/info/1023/2618.htm"]
["临沂科技职业学院",null,"婴幼儿托育服务与管理",null,8,null,null,"https://www.lyvust.cn/info/1023/2618.htm"]
["临沂科技职业学院",null,"软件技术",null,5,null,"运动专长：5","https://www.lyvust.cn/info/1023/2618.htm"]
["临沂科技职业学院",null,"物联网应用技术",null,5,null,"运动专长：5","https://www.lyvust.cn/info/1023/2618.htm"]
["临沂科技职业学院",null,"计算机网络技术",null,3,null,"运动专长：5","https://www.lyvust.cn/info/1023/2618.htm"]
["临沂科技职业学院",null,"数字媒体技术",null,5,null,"运动专长：5","https://www.lyvust.cn/info/1023/2618.htm"]
["临沂科技职业学院",null,"大数据技术",null,3,null,"运动专长：5","https://www.lyvust.cn/info/1023/2618.htm"]
["临沂科技职业学院",null,"机械制造及自动化",null,5,null,"运动专长：5","https://www.lyvust.cn/info/1023/2618.htm"]
["临沂科技职业学院",null,"机电一体化技术",null,5,null,"运动专长：5","https://www.lyvust.cn/info/1023/2618.htm"]
["临沂科技职业学院",null,"工业机器人技术",null,3,null,"运动专长：5","https://www.lyvust.cn/info/1023/2618.htm"]
["临沂科技职业学院",null,"金属材料检测技术",null,3,null,null,"https://www.lyvust.cn/info/1023/2618.htm"]
["临沂科技职业学院",null,"包装工程技术",null,3,null,"运动专长：5","https://www.lyvust.cn/info/1023/2618.htm"]
["临沂科技职业学院",null,"安全技术与管理",null,3,null,null,"https://www.lyvust.cn/info/1023/2618.htm"]
["临沂科技职业学院",null,"工业互联网应用",null,5,null,null,"https://www.lyvust.cn/info/1023/2618.htm"]
["临沂科技职业学院",null,"汽车检测与维修技术",null,10,null,"运动专长：5","https://www.lyvust.cn/info/1023/2618.htm"]
["临沂科技职业学院",null,"新能源汽车技术",null,8,null,null,"https://www.lyvust.cn/info/1023/2618.htm"]
["临沂科技职业学院",null,"建筑工程技术",null,5,null,"运动专长：5","https://www.lyvust.cn/info/1023/2618.htm"]
["临沂科技职业学院",null,"工程造价",null,5,null,null,"https://www.lyvust.cn/info/1023/2618.htm"]
["山东胜利职业学院",null,"酒店管理与数字化运营",null,30,5000,null,"http://zs.sdslvc.cn/info/1014/1615.htm"]
["山东胜利职业学院",null,"烹饪工艺与营养",null,20,5000,null,"http://zs.sdslvc.cn/info/1014/1615.htm"]
["山东胜利职业学院",null,"中西面点工艺",null,20,5000,null,"http://zs.sdslvc.cn/info/1014/1615.htm"]
["山东胜利职业学院",null,"石油工程技术","仅限男生报考",15,5000,null,"http://zs.sdslvc.cn/info/1014/1615.htm"]
["山东胜利职业学院",null,"油气储运技术",null,10,5000,null,"http://zs.sdslvc.cn/info/1014/1615.htm"]
["山东胜利职业学院",null,"环境工程技术",null,10,5000,null,"http://zs.sdslvc.cn/info/1014/1615.htm"]
["山东胜利职业学院",null,"油气智能开采技术","仅限男生报考",10,5000,null,"http://zs.sdslvc.cn/info/1014/1615.htm"]
["山东胜利职业学院",null,"工业互联网应用",null,15,5000,null,"http://zs.sdslvc.cn/info/1014/1615.htm"]
["山东胜利职业学院",null,"物联网应用技术",null,15,5000,null,"http://zs.sdslvc.cn/info/1014/1615.htm"]
["山东胜利职业学院",null,"药学",null,5,6000,null,"http://zs.sdslvc.cn/info/1014/1615.htm"]
["山东胜利职业学院",null,"口腔医学技术",null,10,6000,null,"http://zs.sdslvc.cn/info/1014/1615.htm"]
["山东胜利职业学院",null,"材料工程技术",null,10,5000,null,"http://zs.sdslvc.cn/info/1014/1615.htm"]
["山东科技职业学院",12,"现代纺织技术",null,25,6600,"学费以教育厅审核公布为准。","https://zhaosheng.sdvcst.edu.cn/rules.html?id=18"]
["山东科技职业学院",13,"商务日语",null,25,5280,"学费以教育厅审核公布为准。","https://zhaosheng.sdvcst.edu.cn/rules.html?id=18"]
["山东科技职业学院",14,"应用韩语",null,20,5280,"学费以教育厅审核公布为准。","https://zhaosheng.sdvcst.edu.cn/rules.html?id=18"]
["山东科技职业学院",15,"应用化工技术",null,45,5500,"学费以教育厅审核公布为准。","https://zhaosheng.sdvcst.edu.cn/rules.html?id=18"]
["山东科技职业学院",16,"动漫制作技术",null,30,5500,"学费以教育厅审核公布为准。","https://zhaosheng.sdvcst.edu.cn/rules.html?id=18"]
["山东科技职业学院",17,"数字媒体技术",null,30,5500,"学费以教育厅审核公布为准。","https://zhaosheng.sdvcst.edu.cn/rules.html?id=18"]
["泰山职业技术学院",null,"大数据与会计",null,5,4800,null,"http://www.tsvc.edu.cn/zsjy/info/1011/1594.htm"]
["泰山职业技术学院",null,"电子商务",null,5,4800,null,"http://www.tsvc.edu.cn/zsjy/info/1011/1594.htm"]
["泰山职业技术学院",null,"现代物流管理",null,2,4800,null,"http://www.tsvc.edu.cn/zsjy/info/1011/1594.htm"]
["泰山职业技术学院",null,"国际经济与贸易",null,3,4800,null,"http://www.tsvc.edu.cn/zsjy/info/1011/1594.htm"]
["泰山职业技术学院",null,"环境艺术设计",null,2,5000,null,"http://www.tsvc.edu.cn/zsjy/info/1011/1594.htm"]
["泰山职业技术学院",null,"视觉传达设计",null,3,5000,null,"http://www.tsvc.edu.cn/zsjy/info/1011/1594.htm"]
["泰山职业技术学院",null,"早期教育",null,2,5000,null,"http://www.tsvc.edu.cn/zsjy/info/1011/1594.htm"]
["泰山职业技术学院",null,"畜牧兽医",null,2,5000,null,"http://www.tsvc.edu.cn/zsjy/info/1011/1594.htm"]
["泰山职业技术学院",null,"园林技术",null,2,5000,null,"http://www.tsvc.edu.cn/zsjy/info/1011/1594.htm"]
["泰山职业技术学院",null,"茶叶生产与加工技术",null,2,5000,null,"http://www.tsvc.edu.cn/zsjy/info/1011/1594.htm"]
["泰山职业技术学院",null,"计算机应用技术",null,10,5000,null,"http://www.tsvc.edu.cn/zsjy/info/1011/1594.htm"]
["泰山职业技术学院",null,"云计算技术应用",null,2,5000,null,"http://www.tsvc.edu.cn/zsjy/info/1011/1594.htm"]
["泰山职业技术学院",null,"大数据技术",null,2,5000,null,"http://www.tsvc.edu.cn/zsjy/info/1011/1594.htm"]
["泰山职业技术学院",null,"应用英语",null,25,4800,null,"http://www.tsvc.edu.cn/zsjy/info/1011/1594.htm"]
["泰山职业技术学院",null,"应用俄语",null,15,4800,null,"http://www.tsvc.edu.cn/zsjy/info/1011/1594.htm"]
["泰山职业技术学院",null,"机电一体化技术(中外合作，与澳大利亚启思蒙学院合作)",null,14,12500,null,"http://www.tsvc.edu.cn/zsjy/info/1011/1594.htm"]
["泰山职业技术学院",null,"健身指导与管理",null,4,4800,null,"http://www.tsvc.edu.cn/zsjy/info/1011/1594.htm"]
["山东外国语职业技术大学",null,"婴幼儿托育服务与管理",null,20,15800,null,"http://zsb.swut.cn/engine2/d/26084011/3039686/0?t=6496225&p=440501"]
["山东外国语职业技术大学",null,"应用德语",null,20,13800,null,"http://zsb.swut.cn/engine2/d/26084011/3039686/0?t=6496225&p=440501"]
["山东外国语职业技术大学",null,"应用西班牙语",null,20,13800,null,"http://zsb.swut.cn/engine2/d/26084011/3039686/0?t=6496225&p=440501"]
["山东外国语职业技术大学",null,"应用法语",null,20,13800,null,"http://zsb.swut.cn/engine2/d/26084011/3039686/0?t=6496225&p=440501"]
["山东外国语职业技术大学",null,"应用阿拉伯语",null,20,13800,null,"http://zsb.swut.cn/engine2/d/26084011/3039686/0?t=6496225&p=440501"]
["山东外国语职业技术大学",null,"大数据技术",null,25,14800,null,"http://zsb.swut.cn/engine2/d/26084011/3039686/0?t=6496225&p=440501"]
["山东外国语职业技术大学",null,"物联网应用技术",null,20,14800,null,"http://zsb.swut.cn/engine2/d/26084011/3039686/0?t=6496225&p=440501"]
["山东外国语职业技术大学",null,"环境艺术设计",null,35,15800,null,"http://zsb.swut.cn/engine2/d/26084011/3039686/0?t=6496225&p=440501"]
["山东外国语职业技术大学",null,"数字媒体艺术设计",null,20,15800,null,"http://zsb.swut.cn/engine2/d/26084011/3039686/0?t=6496225&p=440501"]
["山东外贸职业学院",null,"国际经济与贸易（三年均在泰安校区就读）",null,49,5520,null,"https://zs.sdwm.edu.cn/info/1020/2009.htm"]
["山东外贸职业学院",null,"大数据与会计（三年均在泰安校区就读）",null,49,5520,null,"https://zs.sdwm.edu.cn/info/1020/2009.htm"]
["山东外贸职业学院",null,"电子商务（三年均在泰安校区就读）",null,100,5520,null,"https://zs.sdwm.edu.cn/info/1020/2009.htm"]
["山东外贸职业学院",null,"空中乘务（运动专长计划，只招收羽毛球项目，青岛本部就读）",null,2,6900,null,"https://zs.sdwm.edu.cn/info/1020/2009.htm"]
["山东服装职业学院",null,"服装与服饰设计",null,20,null,null,"https://zsb.svict.com/2024/0125/c287a41084/page.htm"]
["山东服装职业学院",null,"服装与服饰设计(中外合作办学)",null,5,null,null,"https://zsb.svict.com/2024/0125/c287a41084/page.htm"]
["山东服装职业学院",null,"服装陈列与展示设计",null,20,null,null,"https://zsb.svict.com/2024/0125/c287a41084/page.htm"]
["山东服装职业学院",null,"数字媒体艺术设计",null,20,null,null,"https://zsb.svict.com/2024/0125/c287a41084/page.htm"]
["山东服装职业学院",null,"市场营销",null,20,null,null,"https://zsb.svict.com/2024/0125/c287a41084/page.htm"]
["山东服装职业学院",null,"电子商务",null,20,null,null,"https://zsb.svict.com/2024/0125/c287a41084/page.htm"]
["山东服装职业学院",null,"机电一体化技术",null,20,null,null,"https://zsb.svict.com/2024/0125/c287a41084/page.htm"]
["山东服装职业学院",null,"计算机应用技术",null,20,null,null,"https://zsb.svict.com/2024/0125/c287a41084/page.htm"]
["山东服装职业学院",null,"计算机网络技术",null,20,null,null,"https://zsb.svict.com/2024/0125/c287a41084/page.htm"]
["山东服装职业学院",null,"大数据与财务管理",null,20,null,null,"https://zsb.svict.com/2024/0125/c287a41084/page.htm"]
["山东服装职业学院",null,"酒店管理与数字化运营",null,15,null,null,"https://zsb.svict.com/2024/0125/c287a41084/page.htm"]
["青岛港湾职业技术学院",null,"建筑工程技术",null,18,null,null,"https://zs.qdgw.edu.cn/index.php/danzhaozhengce/detail/228.html"]
["青岛港湾职业技术学院",null,"港口机械与智能控制",null,18,null,null,"https://zs.qdgw.edu.cn/index.php/danzhaozhengce/detail/228.html"]
["青岛港湾职业技术学院",null,"航海技术",null,18,null,"航海类","https://zs.qdgw.edu.cn/index.php/danzhaozhengce/detail/228.html"]
["青岛港湾职业技术学院",null,"轮机工程技术",null,18,null,"航海类","https://zs.qdgw.edu.cn/index.php/danzhaozhengce/detail/228.html"]
["青岛港湾职业技术学院",null,"船舶电子电气技术",null,4,null,"航海类","https://zs.qdgw.edu.cn/index.php/danzhaozhengce/detail/228.html"]
["青岛港湾职业技术学院",null,"船舶电气工程技术",null,6,null,null,"https://zs.qdgw.edu.cn/index.php/danzhaozhengce/detail/228.html"]
["青岛港湾职业技术学院",null,"船舶动力工程技术",null,6,null,null,"https://zs.qdgw.edu.cn/index.php/danzhaozhengce/detail/228.html"]
["青岛港湾职业技术学院",null,"水路运输安全管理",null,8,null,null,"https://zs.qdgw.edu.cn/index.php/danzhaozhengce/detail/228.html"]
["青岛港湾职业技术学院",null,"国际邮轮乘务管理",null,8,null,null,"https://zs.qdgw.edu.cn/index.php/danzhaozhengce/detail/228.html"]
["青岛港湾职业技术学院",null,"酒店管理与数字化运营",null,12,null,null,"https://zs.qdgw.edu.cn/index.php/danzhaozhengce/detail/228.html"]
["青岛港湾职业技术学院",null,"社区康复",null,4,null,null,"https://zs.qdgw.edu.cn/index.php/danzhaozhengce/detail/228.html"]
["青岛港湾职业技术学院",null,"现代物流管理",null,14,null,null,"https://zs.qdgw.edu.cn/index.php/danzhaozhengce/detail/228.html"]
["青岛港湾职业技术学院",null,"国际经济与贸易",null,10,null,null,"https://zs.qdgw.edu.cn/index.php/danzhaozhengce/detail/228.html"]
["青岛港湾职业技术学院",null,"国际商务",null,10,null,null,"https://zs.qdgw.edu.cn/index.php/danzhaozhengce/detail/228.html"]
["青岛港湾职业技术学院",null,"电子商务",null,10,null,null,"https://zs.qdgw.edu.cn/index.php/danzhaozhengce/detail/228.html"]
["青岛港湾职业技术学院",null,"跨境电子商务",null,10,null,null,"https://zs.qdgw.edu.cn/index.php/danzhaozhengce/detail/228.html"]
["青岛港湾职业技术学院",null,"会计信息管理",null,10,null,null,"https://zs.qdgw.edu.cn/index.php/danzhaozhengce/detail/228.html"]
["青岛港湾职业技术学院",null,"机电一体化技术",null,14,null,null,"https://zs.qdgw.edu.cn/index.php/danzhaozhengce/detail/228.html"]
["青岛港湾职业技术学院",null,"电气自动化技术",null,20,null,null,"https://zs.qdgw.edu.cn/index.php/danzhaozhengce/detail/228.html"]
["青岛港湾职业技术学院",null,"无人机应用技术",null,14,null,null,"https://zs.qdgw.edu.cn/index.php/danzhaozhengce/detail/228.html"]
["青岛港湾职业技术学院",null,"电子信息工程技术",null,5,null,null,"https://zs.qdgw.edu.cn/index.php/danzhaozhengce/detail/228.html"]
["青岛港湾职业技术学院",null,"软件技术",null,10,null,null,"https://zs.qdgw.edu.cn/index.php/danzhaozhengce/detail/228.html"]
["青岛港湾职业技术学院",null,"数字媒体技术",null,5,null,null,"https://zs.qdgw.edu.cn/index.php/danzhaozhengce/detail/228.html"]
["青岛港湾职业技术学院",null,"智能物流技术",null,8,null,null,"https://zs.qdgw.edu.cn/index.php/danzhaozhengce/detail/228.html"]
["青岛港湾职业技术学院",null,"数字化设计与制造技术",null,10,null,null,"https://zs.qdgw.edu.cn/index.php/danzhaozhengce/detail/228.html"]
["青岛港湾职业技术学院",null,"机械制造及自动化",null,10,null,null,"https://zs.qdgw.edu.cn/index.php/danzhaozhengce/detail/228.html"]
["青岛港湾职业技术学院",null,"新能源汽车技术",null,10,null,null,"https://zs.qdgw.edu.cn/index.php/danzhaozhengce/detail/228.html"]
["青岛港湾职业技术学院",null,"汽车检测与维修技术",null,10,null,null,"https://zs.qdgw.edu.cn/index.php/danzhaozhengce/detail/228.html"]
["青岛工程职业学院",null,"模具设计与制造",null,10,5000,"智能制造学院","https://zs.qdec.edu.cn/2024/0129/c272a7087/page.htm"]
["青岛工程职业学院",null,"材料成型及控制技术",null,5,5000,"智能制造学院","https://zs.qdec.edu.cn/2024/0129/c272a7087/page.htm"]
["青岛工程职业学院",null,"智能焊接技术",null,5,5000,"智能制造学院","https://zs.qdec.edu.cn/2024/0129/c272a7087/page.htm"]
["青岛工程职业学院",null,"智能控制技术",null,5,5000,"智能制造学院","https://zs.qdec.edu.cn/2024/0129/c272a7087/page.htm"]
["青岛工程职业学院",null,"工业设计",null,10,5000,"智能制造学院","https://zs.qdec.edu.cn/2024/0129/c272a7087/page.htm"]
["青岛工程职业学院",null,"智能制造装备技术",null,5,5000,"智能制造学院","https://zs.qdec.edu.cn/2024/0129/c272a7087/page.htm"]
["青岛工程职业学院",null,"现代移动通信技术",null,20,5000,"智能制造学院","https://zs.qdec.edu.cn/2024/0129/c272a7087/page.htm"]
["青岛工程职业学院",null,"物联网应用技术",null,20,5000,"信息工程学院","https://zs.qdec.edu.cn/2024/0129/c272a7087/page.htm"]
["青岛工程职业学院",null,"集成电路技术",null,25,5000,"信息工程学院","https://zs.qdec.edu.cn/2024/0129/c272a7087/page.htm"]
["青岛工程职业学院",null,"药品生物技术",null,10,5000,"信息工程学院","https://zs.qdec.edu.cn/2024/0129/c272a7087/page.htm"]
["青岛工程职业学院",null,"大数据与财务管理",null,10,4800,"海洋财经学院","https://zs.qdec.edu.cn/2024/0129/c272a7087/page.htm"]
["青岛工程职业学院",null,"现代物流管理",null,10,4800,"海洋财经学院","https://zs.qdec.edu.cn/2024/0129/c272a7087/page.htm"]
["青岛工程职业学院",null,"跨境电子商务",null,10,4800,"海洋财经学院","https://zs.qdec.edu.cn/2024/0129/c272a7087/page.htm"]
["潍坊理工学院","AB","大数据技术",null,10,15800,null,"http://www.zsb.wfit.edu.cn/html/zhpj/2024/0120/17563.html"]
["潍坊理工学院","AC","大数据与财务管理",null,30,15800,null,"http://www.zsb.wfit.edu.cn/html/zhpj/2024/0120/17563.html"]
["潍坊理工学院","AD","电气自动化技术",null,25,12800,null,"http://www.zsb.wfit.edu.cn/html/zhpj/2024/0120/17563.html"]
["潍坊理工学院","AF","艺术设计",null,20,13800,null,"http://www.zsb.wfit.edu.cn/html/zhpj/2024/0120/17563.html"]
["潍坊理工学院","AG","国际经济与贸易",null,20,12800,null,"http://www.zsb.wfit.edu.cn/html/zhpj/2024/0120/17563.html"]
["潍坊理工学院","AH","大数据与会计",null,30,12800,null,"http://www.zsb.wfit.edu.cn/html/zhpj/2024/0120/17563.html"]
["潍坊理工学院","AJ","电子商务",null,20,12800,null,"http://www.zsb.wfit.edu.cn/html/zhpj/2024/0120/17563.html"]
["潍坊理工学院","AK","旅游管理",null,10,12800,null,"http://www.zsb.wfit.edu.cn/html/zhpj/2024/0120/17563.html"]
["潍坊理工学院","AL","空中乘务",null,20,15800,null,"http://www.zsb.wfit.edu.cn/html/zhpj/2024/0120/17563.html"]
["潍坊理工学院","AS","体育艺术表演",null,20,13800,null,"http://www.zsb.wfit.edu.cn/html/zhpj/2024/0120/17563.html"]
["潍坊理工学院","AU","工艺美术品设计",null,5,13800,null,"http://www.zsb.wfit.edu.cn/html/zhpj/2024/0120/17563.html"]
["潍坊理工学院","AV","党务工作",null,null,12800,null,"http://www.zsb.wfit.edu.cn/html/zhpj/2024/0120/17563.html"]
["潍坊理工学院","AW","城市燃气工程技术",null,20,12800,null,"http://www.zsb.wfit.edu.cn/html/zhpj/2024/0120/17563.html"]
["山东城市建设职业学院","A1","建筑钢结构工程技术",null,20,null,null,"https://zs.sduc.edu.cn/info/1016/2100.htm"]
["山东城市建设职业学院","A2","智能建造技术",null,20,null,null,"https://zs.sduc.edu.cn/info/1016/2100.htm"]
["山东城市建设职业学院","A3","地下与隧道工程技术",null,20,null,null,"https://zs.sduc.edu.cn/info/1016/2100.htm"]
["山东城市建设职业学院","A4","风景园林设计",null,20,null,null,"https://zs.sduc.edu.cn/info/1016/2100.htm"]
["山东城市建设职业学院","A5","智慧城市管理技术",null,20,null,null,"https://zs.sduc.edu.cn/info/1016/2100.htm"]
["山东城市建设职业学院","A6","环境工程技术",null,20,null,null,"https://zs.sduc.edu.cn/info/1016/2100.htm"]
["山东城市建设职业学院","A7","环境监测技术",null,20,null,null,"https://zs.sduc.edu.cn/info/1016/2100.htm"]
["山东城市建设职业学院","A8","生态环境修复技术",null,20,null,null,"https://zs.sduc.edu.cn/info/1016/2100.htm"]
["山东城市建设职业学院","A9","给排水工程技术",null,20,null,null,"https://zs.sduc.edu.cn/info/1016/2100.htm"]
["山东电子职业技术学院",null,"电子信息工程技术",null,22,null,null,"https://www.sdcet.edu.cn/zsxxw/2024/0123/c722a30910/page.htm"]
["山东电子职业技术学院",null,"集成电路技术",null,5,null,null,"https://www.sdcet.edu.cn/zsxxw/2024/0123/c722a30911/page.htm"]
["山东电子职业技术学院",null,"智能医疗装备技术",null,3,null,null,"https://www.sdcet.edu.cn/zsxxw/2024/0123/c722a30912/page.htm"]
["山东电子职业技术学院",null,"现代通信技术",null,4,null,null,"https://www.sdcet.edu.cn/zsxxw/2024/0123/c722a30913/page.htm"]
["山东电子职业技术学院",null,"城市轨道交通运营管理",null,8,null,null,"https://www.sdcet.edu.cn/zsxxw/2024/0123/c722a30914/page.htm"]
["山东电子职业技术学院",null,"通信工程设计与监理",null,3,null,null,"https://www.sdcet.edu.cn/zsxxw/2024/0123/c722a30915/page.htm"]
["山东电子职业技术学院",null,"物联网应用技术",null,3,null,null,"https://www.sdcet.edu.cn/zsxxw/2024/0123/c722a30916/page.htm"]
["山东电子职业技术学院",null,"智能产品开发与应用",null,3,null,null,"https://www.sdcet.edu.cn/zsxxw/2024/0123/c722a30917/page.htm"]
["山东电子职业技术学院",null,"软件技术(中外合作办学）",null,26,null,null,"https://www.sdcet.edu.cn/zsxxw/2024/0123/c722a30918/page.htm"]
["山东电子职业技术学院",null,"信息安全技术应用",null,10,null,null,"https://www.sdcet.edu.cn/zsxxw/2024/0123/c722a30919/page.htm"]
["山东电子职业技术学院",null,"云计算技术应用",null,10,null,null,"https://www.sdcet.edu.cn/zsxxw/2024/0123/c722a30920/page.htm"]
["山东电子职业技术学院",null,"移动应用开发",null,10,null,null,"https://www.sdcet.edu.cn/zsxxw/2024/0123/c722a30921/page.htm"]
["山东电子职业技术学院",null,"大数据技术",null,10,null,null,"https://www.sdcet.edu.cn/zsxxw/2024/0123/c722a30922/page.htm"]
["山东电子职业技术学院",null,"人工智能技术应用",null,10,null,null,"https://www.sdcet.edu.cn/zsxxw/2024/0123/c722a30923/page.htm"]
["山东电子职业技术学院",null,"建筑智能化工程技术",null,6,null,null,"https://www.sdcet.edu.cn/zsxxw/2024/0123/c722a30924/page.htm"]
["山东电子职业技术学院",null,"机电一体化技术",null,3,null,null,"https://www.sdcet.edu.cn/zsxxw/2024/0123/c722a30925/page.htm"]
["山东电子职业技术学院",null,"工业互联网应用",null,5,null,null,"https://www.sdcet.edu.cn/zsxxw/2024/0123/c722a30926/page.htm"]
["山东电子职业技术学院",null,"无人机应用技术",null,7,null,null,"https://www.sdcet.edu.cn/zsxxw/2024/0123/c722a30927/page.htm"]
["山东电子职业技术学院",null,"工业机器人技术",null,8,null,null,"https://www.sdcet.edu.cn/zsxxw/2024/0123/c722a30928/page.htm"]
["山东电子职业技术学院",null,"新能源汽车技术",null,5,null,null,"https://www.sdcet.edu.cn/zsxxw/2024/0123/c722a30929/page.htm"]
["山东电子职业技术学院",null,"电子商务",null,23,null,null,"https://www.sdcet.edu.cn/zsxxw/2024/0123/c722a30930/page.htm"]
["山东电子职业技术学院",null,"电子商务（中外合作办学）",null,8,null,null,"https://www.sdcet.edu.cn/zsxxw/2024/0123/c722a30931/page.htm"]
["山东电子职业技术学院",null,"跨境电子商务",null,10,null,null,"https://www.sdcet.edu.cn/zsxxw/2024/0123/c722a30932/page.htm"]
["山东电子职业技术学院",null,"现代物流管理",null,7,null,null,"https://www.sdcet.edu.cn/zsxxw/2024/0123/c722a30933/page.htm"]
["山东电子职业技术学院",null,"大数据与会计",null,14,null,null,"https://www.sdcet.edu.cn/zsxxw/2024/0123/c722a30934/page.htm"]
["山东电子职业技术学院",null,"市场营销",null,13,null,null,"https://www.sdcet.edu.cn/zsxxw/2024/0123/c722a30935/page.htm"]
["山东电子职业技术学院",null,"大数据与财务管理",null,13,null,null,"https://www.sdcet.edu.cn/zsxxw/2024/0123/c722a30936/page.htm"]
["山东电子职业技术学院",null,"动漫制作技术（中外合作办学）",null,16,null,null,"https://www.sdcet.edu.cn/zsxxw/2024/0123/c722a30937/page.htm"]
["山东电子职业技术学院",null,"数字媒体艺术设计",null,5,null,null,"https://www.sdcet.edu.cn/zsxxw/2024/0123/c722a30938/page.htm"]
["山东电子职业技术学院",null,"游戏艺术设计",null,20,null,null,"https://www.sdcet.edu.cn/zsxxw/2024/0123/c722a30939/page.htm"]
["山东电子职业技术学院",null,"虚拟现实技术应用",null,10,null,null,"https://www.sdcet.edu.cn/zsxxw/2024/0123/c722a30940/page.htm"]
["德州职业技术学院","A1","智能焊接技术",null,10,5500,null,"https://zsxxw.dzvc.edu.cn/info/1002/2121.htm"]
["德州职业技术学院","A2","电气自动化技术",null,10,5500,null,"https://zsxxw.dzvc.edu.cn/info/1002/2121.htm"]
["德州职业技术学院","A3","数字媒体技术",null,10,5500,null,"https://zsxxw.dzvc.edu.cn/info/1002/2121.htm"]
["德州职业技术学院","A4","计算机应用技术",null,10,5500,null,"https://zsxxw.dzvc.edu.cn/info/1002/2121.htm"]
["德州职业技术学院","A5","电子商务",null,10,5280,null,"https://zsxxw.dzvc.edu.cn/info/1002/2121.htm"]
["德州职业技术学院","A8","大数据与会计",null,10,5280,null,"https://zsxxw.dzvc.edu.cn/info/1002/2121.htm"]
["德州职业技术学院","A9","烹饪工艺与营养",null,15,6070,null,"https://zsxxw.dzvc.edu.cn/info/1002/2121.htm"]
["德州职业技术学院","B0","现代物流管理",null,10,5280,null,"https://zsxxw.dzvc.edu.cn/info/1002/2121.htm"]
["德州职业技术学院","B1","酒店管理与数字化运营",null,15,5280,null,"https://zsxxw.dzvc.edu.cn/info/1002/2121.htm"]
["德州职业技术学院","B2","市场营销",null,10,5280,null,"https://zsxxw.dzvc.edu.cn/info/1002/2121.htm"]
["德州职业技术学院","B3","汽车检测与维修技术",null,10,5500,null,"https://zsxxw.dzvc.edu.cn/info/1002/2121.htm"]
["德州职业技术学院","B5","集成电路技术",null,10,5500,null,"https://zsxxw.dzvc.edu.cn/info/1002/2121.htm"]
["德州职业技术学院","B6","光伏工程技术",null,10,6320,null,"https://zsxxw.dzvc.edu.cn/info/1002/2121.htm"]
["德州职业技术学院","B7","建筑工程技术",null,10,5500,null,"https://zsxxw.dzvc.edu.cn/info/1002/2121.htm"]
["德州职业技术学院","B8","园林工程技术",null,10,5500,null,"https://zsxxw.dzvc.edu.cn/info/1002/2121.htm"]
["德州职业技术学院","B9","药品生物技术",null,10,5500,null,"https://zsxxw.dzvc.edu.cn/info/1002/2121.htm"]
["德州职业技术学院","C0","应用化工技术",null,10,5500,null,"https://zsxxw.dzvc.edu.cn/info/1002/2121.htm"]
["德州职业技术学院","C1","婴幼儿托育服务与管理",null,10,5280,null,"https://zsxxw.dzvc.edu.cn/info/1002/2121.htm"]
["德州职业技术学院","C2","智慧健康养老服务与管理",null,10,6070,null,"https://zsxxw.dzvc.edu.cn/info/1002/2121.htm"]
["青岛恒星科技学院",null,"汽车检测与维修技术",null,5,null,"机械与汽车工程学院","http://zs.hx.cn/content/tzgg/cc9c23f085cf41cb84ec04628fbef97f"]
["青岛恒星科技学院",null,"电气自动化技术",null,5,null,"机械与汽车工程学院","http://zs.hx.cn/content/tzgg/cc9c23f085cf41cb84ec04628fbef97f"]
["青岛恒星科技学院",null,"机电一体化技术",null,5,null,"机械与汽车工程学院","http://zs.hx.cn/content/tzgg/cc9c23f085cf41cb84ec04628fbef97f"]
["青岛恒星科技学院",null,"计算机网络技术",null,5,null,"信息工程学院","http://zs.hx.cn/content/tzgg/cc9c23f085cf41cb84ec04628fbef97f"]
["青岛恒星科技学院",null,"软件技术",null,5,null,"信息工程学院","http://zs.hx.cn/content/tzgg/cc9c23f085cf41cb84ec04628fbef97f"]
["青岛恒星科技学院",null,"大数据技术",null,5,null,"信息工程学院","http://zs.hx.cn/content/tzgg/cc9c23f085cf41cb84ec04628fbef97f"]
["青岛恒星科技学院",null,"建筑室内设计",null,5,null,"建筑工程学院","http://zs.hx.cn/content/tzgg/cc9c23f085cf41cb84ec04628fbef97f"]
["青岛恒星科技学院",null,"建筑工程技术",null,5,null,"建筑工程学院","http://zs.hx.cn/content/tzgg/cc9c23f085cf41cb84ec04628fbef97f"]
["青岛恒星科技学院",null,"工程造价",null,5,null,"建筑工程学院","http://zs.hx.cn/content/tzgg/cc9c23f085cf41cb84ec04628fbef97f"]
["青岛恒星科技学院",null,"国际经济与贸易",null,5,null,"商学院","http://zs.hx.cn/content/tzgg/cc9c23f085cf41cb84ec04628fbef97f"]
["青岛恒星科技学院",null,"市场营销",null,5,null,"商学院","http://zs.hx.cn/content/tzgg/cc9c23f085cf41cb84ec04628fbef97f"]
["青岛恒星科技学院",null,"电子商务",null,5,null,"商学院","http://zs.hx.cn/content/tzgg/cc9c23f085cf41cb84ec04628fbef97f"]
["青岛恒星科技学院",null,"大数据与会计",null,5,null,"商学院","http://zs.hx.cn/content/tzgg/cc9c23f085cf41cb84ec04628fbef97f"]
["青岛恒星科技学院",null,"旅游管理",null,4,null,"旅游管理学院","http://zs.hx.cn/content/tzgg/cc9c23f085cf41cb84ec04628fbef97f"]
["青岛恒星科技学院",null,"空中乘务",null,3,null,"旅游管理学院","http://zs.hx.cn/content/tzgg/cc9c23f085cf41cb84ec04628fbef97f"]
["青岛恒星科技学院",null,"应用日语",null,4,null,"国际教育学院","http://zs.hx.cn/content/tzgg/cc9c23f085cf41cb84ec04628fbef97f"]
["青岛恒星科技学院",null,"应用韩语",null,4,null,"国际教育学院","http://zs.hx.cn/content/tzgg/cc9c23f085cf41cb84ec04628fbef97f"]
["青岛恒星科技学院",null,"早期教育",null,5,null,"教育学院","http://zs.hx.cn/content/tzgg/cc9c23f085cf41cb84ec04628fbef97f"]
["青岛恒星科技学院",null,"中医康复技术",null,5,null,"健康管理学院","http://zs.hx.cn/content/tzgg/cc9c23f085cf41cb84ec04628fbef97f"]
["青岛恒星科技学院",null,"护理",null,5,null,"健康管理学院","http://zs.hx.cn/content/tzgg/cc9c23f085cf41cb84ec04628fbef97f"]
["青岛恒星科技学院",null,"广告艺术设计",null,5,null,"艺术与传媒学院","http://zs.hx.cn/content/tzgg/cc9c23f085cf41cb84ec04628fbef97f"]
["山东旅游职业学院",null,"酒店管理与数字化运营",null,40,5000,"饭店管理系","http://www.sdts.net.cn/zhaoShengXinXiWang/contents/446/440.html"]
["山东旅游职业学院",null,"旅游管理",null,20,5000,"旅游与休闲管理系","http://www.sdts.net.cn/zhaoShengXinXiWang/contents/446/440.html"]
["山东旅游职业学院",null,"导游",null,10,5000,"旅游与休闲管理系","http://www.sdts.net.cn/zhaoShengXinXiWang/contents/446/440.html"]
["山东旅游职业学院",null,"现代物业管理",null,10,5000,"航空服务系","http://www.sdts.net.cn/zhaoShengXinXiWang/contents/446/440.html"]
["山东旅游职业学院",null,"空中乘务",null,30,5000,"航空服务系","http://www.sdts.net.cn/zhaoShengXinXiWang/contents/446/440.html"]
["山东旅游职业学院",null,"民航安全技术管理",null,10,5000,"航空服务系","http://www.sdts.net.cn/zhaoShengXinXiWang/contents/446/440.html"]
["山东旅游职业学院",null,"民航运输服务",null,5,5000,"航空服务系","http://www.sdts.net.cn/zhaoShengXinXiWang/contents/446/440.html"]
["山东旅游职业学院",null,"烹饪工艺与营养",null,12,5000,"营养与烹饪系","http://www.sdts.net.cn/zhaoShengXinXiWang/contents/446/440.html"]
["山东旅游职业学院",null,"中西面点工艺",null,12,5000,"营养与烹饪系","http://www.sdts.net.cn/zhaoShengXinXiWang/contents/446/440.html"]
["山东旅游职业学院",null,"旅游英语",null,6,5000,"旅游外语系","http://www.sdts.net.cn/zhaoShengXinXiWang/contents/446/440.html"]
["山东旅游职业学院",null,"应用韩语",null,5,5000,"旅游外语系","http://www.sdts.net.cn/zhaoShengXinXiWang/contents/446/440.html"]
["山东旅游职业学院",null,"数字媒体技术",null,15,5000,"工商管理系","http://www.sdts.net.cn/zhaoShengXinXiWang/contents/446/440.html"]
["山东旅游职业学院",null,"电子商务",null,10,5000,"工商管理系","http://www.sdts.net.cn/zhaoShengXinXiWang/contents/446/440.html"]
["山东旅游职业学院",null,"市场营销",null,10,5000,"工商管理系","http://www.sdts.net.cn/zhaoShengXinXiWang/contents/446/440.html"]
["山东旅游职业学院",null,"公共文化服务与管理",null,5,5000,"艺术系","http://www.sdts.net.cn/zhaoShengXinXiWang/contents/446/440.html"]
["山东信息职业技术学院","P1","软件技术",null,50,6050,null,"https://zhaosheng.sdcit.edu.cn/zszc/31055.jhtml"]
["山东信息职业技术学院","P2","机电一体化技术",null,50,5500,null,"https://zhaosheng.sdcit.edu.cn/zszc/31055.jhtml"]
["山东信息职业技术学院","P3","电气自动化技术",null,50,5500,null,"https://zhaosheng.sdcit.edu.cn/zszc/31055.jhtml"]
["山东信息职业技术学院","P4","商务管理",null,50,5280,null,"https://zhaosheng.sdcit.edu.cn/zszc/31055.jhtml"]
["山东信息职业技术学院","P5","早期教育",null,50,5500,null,"https://zhaosheng.sdcit.edu.cn/zszc/31055.jhtml"]
["山东信息职业技术学院","P6","婴幼儿托育服务与管理",null,50,5500,null,"https://zhaosheng.sdcit.edu.cn/zszc/31055.jhtml"]
["临沂职业学院","04","软件技术",null,40,5000,null,"https://zsjy.lyvc.edu.cn/info/1052/1801.htm"]
["临沂职业学院","05","数字媒体艺术设计",null,40,4800,null,"https://zsjy.lyvc.edu.cn/info/1052/1801.htm"]
["临沂职业学院","06","机电一体化技术",null,40,5500,null,"https://zsjy.lyvc.edu.cn/info/1052/1801.htm"]
["临沂职业学院","07","大数据与财务管理",null,20,4800,null,"https://zsjy.lyvc.edu.cn/info/1052/1801.htm"]
["临沂职业学院","08","市场营销",null,40,5280,null,"https://zsjy.lyvc.edu.cn/info/1052/1801.htm"]
["临沂职业学院","09","农村电子商务",null,20,4800,null,"https://zsjy.lyvc.edu.cn/info/1052/1801.htm"]
["莱芜职业技术学院",20,"钢铁智能冶金技术",null,20,5750,null,"https://zsjy.lwvc.edu.cn/info/1026/4495.htm"]
["莱芜职业技术学院",21,"机电一体化技术",null,20,5750,null,"https://zsjy.lwvc.edu.cn/info/1026/4495.htm"]
["莱芜职业技术学院",22,"模具设计与制造",null,15,5750,null,"https://zsjy.lwvc.edu.cn/info/1026/4495.htm"]
["莱芜职业技术学院",23,"无人机应用技术",null,15,5000,null,"https://zsjy.lwvc.edu.cn/info/1026/4495.htm"]
["莱芜职业技术学院",24,"材料工程技术(泰钢班，面试通过者可报考面试联系电话：13290144443)",null,5,5750,null,"https://zsjy.lwvc.edu.cn/info/1026/4495.htm"]
["莱芜职业技术学院",25,"人工智能技术应用(校企合作)",null,10,5000,null,"https://zsjy.lwvc.edu.cn/info/1026/4495.htm"]
["莱芜职业技术学院",26,"软件技术(含校企合作)",null,15,5000,null,"https://zsjy.lwvc.edu.cn/info/1026/4495.htm"]
["莱芜职业技术学院",27,"老年保健与管理",null,10,6000,null,"https://zsjy.lwvc.edu.cn/info/1026/4495.htm"]
["莱芜职业技术学院",28,"食品检验检测技术",null,20,5000,null,"https://zsjy.lwvc.edu.cn/info/1026/4495.htm"]
["莱芜职业技术学院",29,"市场营销",null,20,4800,null,"https://zsjy.lwvc.edu.cn/info/1026/4495.htm"]
["莱芜职业技术学院",30,"现代物流管理",null,20,4800,null,"https://zsjy.lwvc.edu.cn/info/1026/4495.htm"]
["莱芜职业技术学院",31,"酒店管理与数字化运营",null,25,4800,null,"https://zsjy.lwvc.edu.cn/info/1026/4495.htm"]
["莱芜职业技术学院",32,"旅游管理",null,20,4800,null,"https://zsjy.lwvc.edu.cn/info/1026/4495.htm"]
["莱芜职业技术学院",33,"大数据与会计",null,15,5280,null,"https://zsjy.lwvc.edu.cn/info/1026/4495.htm"]
["莱芜职业技术学院",34,"文物考古技术",null,10,5520,null,"https://zsjy.lwvc.edu.cn/info/1026/4495.htm"]
["莱芜职业技术学院",35,"园林工程技术",null,20,5000,null,"https://zsjy.lwvc.edu.cn/info/1026/4495.htm"]
["莱芜职业技术学院",36,"建筑工程技术",null,15,5000,null,"https://zsjy.lwvc.edu.cn/info/1026/4495.htm"]
["莱芜职业技术学院",37,"新能源汽车技术",null,15,5000,null,"https://zsjy.lwvc.edu.cn/info/1026/4495.htm"]
["莱芜职业技术学院",38,"建筑装饰工程技术",null,10,5000,null,"https://zsjy.lwvc.edu.cn/info/1026/4495.htm"]
["枣庄科技职业学院",null,"智能焊接技术",null,25,5000,null,"http://zs.zzkjxy.edu.cn/zszc/180.html"]
["枣庄科技职业学院",null,"机电一体化技术",null,15,5000,null,"http://zs.zzkjxy.edu.cn/zszc/180.html"]
["枣庄科技职业学院",null,"汽车检测与维修技术",null,20,5000,null,"http://zs.zzkjxy.edu.cn/zszc/180.html"]
["枣庄科技职业学院",null,"计算机应用技术",null,5,5000,null,"http://zs.zzkjxy.edu.cn/zszc/180.html"]
["枣庄科技职业学院",null,"数字媒体技术",null,5,5000,null,"http://zs.zzkjxy.edu.cn/zszc/180.html"]
["枣庄科技职业学院",null,"大数据技术",null,10,5000,"订单培养，山东诚智数汇信息技术有限责任公司","http://zs.zzkjxy.edu.cn/zszc/180.html"]
["枣庄科技职业学院",null,"建筑工程技术",null,10,5000,"订单培养，天元建设集团","http://zs.zzkjxy.edu.cn/zszc/180.html"]
["枣庄科技职业学院",null,"智慧健康养老服务与管理",null,25,4800,null,"http://zs.zzkjxy.edu.cn/zszc/180.html"]
["枣庄科技职业学院",null,"电子商务",null,15,4800,"订单培养，滕州普利科技集团有限公司","http://zs.zzkjxy.edu.cn/zszc/180.html"]
["枣庄科技职业学院",null,"婴幼儿托育服务与管理",null,20,6000,null,"http://zs.zzkjxy.edu.cn/zszc/180.html"]
["菏泽职业学院",null,"计算机应用技术",null,10,5000,null,"https://www.hezevc.edu.cn/zsjybgs/2024/0124/c1104a13032/page.htm"]
["菏泽职业学院",null,"电子商务",null,10,4800,null,"https://www.hezevc.edu.cn/zsjybgs/2024/0124/c1104a13032/page.htm"]
["菏泽职业学院",null,"大数据与会计",null,10,4800,null,"https://www.hezevc.edu.cn/zsjybgs/2024/0124/c1104a13032/page.htm"]
["菏泽职业学院",null,"音乐表演",null,10,4800,null,"https://www.hezevc.edu.cn/zsjybgs/2024/0124/c1104a13032/page.htm"]
["菏泽职业学院",null,"工程造价",null,10,5000,null,"https://www.hezevc.edu.cn/zsjybgs/2024/0124/c1104a13032/page.htm"]
["菏泽职业学院",null,"药品生物技术",null,10,5000,null,"https://www.hezevc.edu.cn/zsjybgs/2024/0124/c1104a13032/page.htm"]
["菏泽职业学院",null,"城市轨道交通运营管理",null,10,5000,null,"https://www.hezevc.edu.cn/zsjybgs/2024/0124/c1104a13032/page.htm"]
["菏泽职业学院",null,"机电一体化技术",null,10,5000,null,"https://www.hezevc.edu.cn/zsjybgs/2024/0124/c1104a13032/page.htm"]
["菏泽职业学院",null,"建筑工程技术",null,10,5000,null,"https://www.hezevc.edu.cn/zsjybgs/2024/0124/c1104a13032/page.htm"]
["菏泽职业学院",null,"旅游管理(中外合作办学)",null,10,12000,null,"https://www.hezevc.edu.cn/zsjybgs/2024/0124/c1104a13032/page.htm"]
["聊城职业技术学院",null,"无人机测绘技术",null,5,5000,"建筑工程系","https://zsjyw.lcvtc.edu.cn/info/1011/1646.htm"]
["聊城职业技术学院",null,"建筑消防技术","运动专长：5",0,5000,"应急管理学院","https://zsjyw.lcvtc.edu.cn/info/1011/1646.htm"]
["聊城职业技术学院",null,"康复治疗技术","运动专长：10",0,6000,"医学系","https://zsjyw.lcvtc.edu.cn/info/1011/1646.htm"]
["济南工程职业技术学院","A1","建筑工程技术",null,10,5750,"土木工程系","https://zsbgs.jngcxy.edu.cn/info/1008/1704.htm"]
["济南工程职业技术学院","A2","道路与桥梁工程技术",null,10,5000,"土木工程系","https://zsbgs.jngcxy.edu.cn/info/1008/1704.htm"]
["济南工程职业技术学院","A3","工程测量技术",null,10,5000,"土木工程系","https://zsbgs.jngcxy.edu.cn/info/1008/1704.htm"]
["济南工程职业技术学院","A4","光伏工程技术",null,10,5000,"土木工程系","https://zsbgs.jngcxy.edu.cn/info/1008/1704.htm"]
["济南工程职业技术学院","A5","园林工程技术",null,10,5000,"土木工程系","https://zsbgs.jngcxy.edu.cn/info/1008/1704.htm"]
["济南工程职业技术学院","A6","建筑装饰工程技术",null,10,5750,"土木工程系","https://zsbgs.jngcxy.edu.cn/info/1008/1704.htm"]
["济南工程职业技术学院","A8","市场营销",null,5,4800,"工商系","https://zsbgs.jngcxy.edu.cn/info/1008/1704.htm"]
["济南工程职业技术学院","A9","服装设计与工艺",null,10,5000,"工商系","https://zsbgs.jngcxy.edu.cn/info/1008/1704.htm"]
["济南工程职业技术学院","B1","国际经济与贸易",null,10,4800,"工商系","https://zsbgs.jngcxy.edu.cn/info/1008/1704.htm"]
["济南工程职业技术学院","B2","服装与服饰设计",null,10,5000,"工商系","https://zsbgs.jngcxy.edu.cn/info/1008/1704.htm"]
["济南工程职业技术学院","B3","服装陈列与展示设计",null,10,5000,"工商系","https://zsbgs.jngcxy.edu.cn/info/1008/1704.htm"]
["济南工程职业技术学院","B4","电子商务",null,5,4800,"工商系","https://zsbgs.jngcxy.edu.cn/info/1008/1704.htm"]
["济南工程职业技术学院","B5","现代物流管理",null,10,4800,"工商系","https://zsbgs.jngcxy.edu.cn/info/1008/1704.htm"]
["济南工程职业技术学院","B6","机电一体化技术",null,5,5500,"机电工程系","https://zsbgs.jngcxy.edu.cn/info/1008/1704.htm"]
["济南工程职业技术学院","B7","机械制造及自动化",null,10,5000,"机电工程系","https://zsbgs.jngcxy.edu.cn/info/1008/1704.htm"]
["济南工程职业技术学院","B8","电气自动化技术",null,10,5500,"机电工程系","https://zsbgs.jngcxy.edu.cn/info/1008/1704.htm"]
["济南工程职业技术学院","B9","电梯工程技术",null,10,5000,"机电工程系","https://zsbgs.jngcxy.edu.cn/info/1008/1704.htm"]
["济南工程职业技术学院","C1","工业互联网应用",null,10,5000,"机电工程系","https://zsbgs.jngcxy.edu.cn/info/1008/1704.htm"]
["济南工程职业技术学院","C2","汽车制造与试验技术",null,10,5000,"汽车工程系","https://zsbgs.jngcxy.edu.cn/info/1008/1704.htm"]
["济南工程职业技术学院","C3","汽车技术服务与营销",null,5,5000,"汽车工程系","https://zsbgs.jngcxy.edu.cn/info/1008/1704.htm"]
["济南工程职业技术学院","C4","新能源汽车技术",null,10,5000,"汽车工程系","https://zsbgs.jngcxy.edu.cn/info/1008/1704.htm"]
["济南工程职业技术学院","C5","智能网联汽车技术",null,10,5000,"汽车工程系","https://zsbgs.jngcxy.edu.cn/info/1008/1704.htm"]
["济南工程职业技术学院","C6","汽车检测与维修技术",null,10,5000,"汽车工程系","https://zsbgs.jngcxy.edu.cn/info/1008/1704.htm"]
["济南工程职业技术学院","C7","城市轨道交通运营管理",null,5,5000,"轨道交通系","https://zsbgs.jngcxy.edu.cn/info/1008/1704.htm"]
["济南工程职业技术学院","C8","城市轨道交通机电技术",null,5,5000,"轨道交通系","https://zsbgs.jngcxy.edu.cn/info/1008/1704.htm"]
["济南工程职业技术学院","C9","城市轨道交通通信信号技术",null,5,5000,"轨道交通系","https://zsbgs.jngcxy.edu.cn/info/1008/1704.htm"]
["济南工程职业技术学院","D1","城市轨道车辆应用技术",null,5,5000,"轨道交通系","https://zsbgs.jngcxy.edu.cn/info/1008/1704.htm"]
["济南工程职业技术学院","D2","工程造价",null,10,5750,"工程管理系","https://zsbgs.jngcxy.edu.cn/info/1008/1704.htm"]
["济南工程职业技术学院","D3","建设工程监理",null,10,5000,"工程管理系","https://zsbgs.jngcxy.edu.cn/info/1008/1704.htm"]
["济南工程职业技术学院","D4","建设工程管理",null,10,5000,"工程管理系","https://zsbgs.jngcxy.edu.cn/info/1008/1704.htm"]
["济南工程职业技术学院","D5","大数据与会计",null,10,4800,"经济管理系","https://zsbgs.jngcxy.edu.cn/info/1008/1704.htm"]
["济南工程职业技术学院","D6","大数据与财务管理",null,10,4800,"经济管理系","https://zsbgs.jngcxy.edu.cn/info/1008/1704.htm"]
["济南工程职业技术学院","D7","大数据与审计",null,10,4800,"经济管理系","https://zsbgs.jngcxy.edu.cn/info/1008/1704.htm"]
["济南工程职业技术学院","D8","财税大数据应用",null,10,4800,"经济管理系","https://zsbgs.jngcxy.edu.cn/info/1008/1704.htm"]
["济南工程职业技术学院","D9","会展策划与管理",null,15,5000,"艺术设计系","https://zsbgs.jngcxy.edu.cn/info/1008/1704.htm"]
["济南工程职业技术学院","E1","动漫制作技术",null,10,5000,"艺术设计系","https://zsbgs.jngcxy.edu.cn/info/1008/1704.htm"]
["济南工程职业技术学院","E2","数字媒体技术",null,10,5000,"艺术设计系","https://zsbgs.jngcxy.edu.cn/info/1008/1704.htm"]
["济南工程职业技术学院","E3","云计算技术应用",null,10,5000,"信息工程系","https://zsbgs.jngcxy.edu.cn/info/1008/1704.htm"]
["济南工程职业技术学院","E4","移动互联应用技术",null,10,5000,"信息工程系","https://zsbgs.jngcxy.edu.cn/info/1008/1704.htm"]
["济南工程职业技术学院","E5","大数据技术",null,10,5000,"信息工程系","https://zsbgs.jngcxy.edu.cn/info/1008/1704.htm"]
["济南工程职业技术学院","E6","人工智能技术应用",null,10,5000,"信息工程系","https://zsbgs.jngcxy.edu.cn/info/1008/1704.htm"]
["济南工程职业技术学院","G1","动漫制作技术（中德合作办学）",null,10,8800,"中外合作","https://zsbgs.jngcxy.edu.cn/info/1008/1704.htm"]
["济南工程职业技术学院","G2","服装设计与工艺（中德合作办学）",null,5,8800,"中外合作","https://zsbgs.jngcxy.edu.cn/info/1008/1704.htm"]
["济南工程职业技术学院","G3","国际经济与贸易（中德合作办学）",null,10,8800,"中外合作","https://zsbgs.jngcxy.edu.cn/info/1008/1704.htm"]
["山东畜牧兽医职业学院",null,"畜牧兽医",null,9,6000,"动物科技学院","https://zs.sdmy.edu.cn/info/1095/2742.htm"]
["山东畜牧兽医职业学院",null,"畜牧兽医(新希望六和班)",null,7,6000,"动物科技学院","https://zs.sdmy.edu.cn/info/1095/2742.htm"]
["山东畜牧兽医职业学院",null,"畜牧兽医(养离与离病防治方向)益生班",null,15,6000,"动物科技学院","https://zs.sdmy.edu.cn/info/1095/2742.htm"]
["山东畜牧兽医职业学院",null,"畜牧兽医(益客班)",null,5,6000,"动物科技学院","https://zs.sdmy.edu.cn/info/1095/2742.htm"]
["山东畜牧兽医职业学院",null,"畜牧兽医(养离与离病防治方向)中慧班",null,2,6000,"动物科技学院","https://zs.sdmy.edu.cn/info/1095/2742.htm"]
["山东畜牧兽医职业学院",null,"畜牧兽医(马驯养与疾病防治)",null,15,6000,"动物科技学院","https://zs.sdmy.edu.cn/info/1095/2742.htm"]
["山东畜牧兽医职业学院",null,"畜离智能化养殖",null,5,6000,"动物科技学院","https://zs.sdmy.edu.cn/info/1095/2742.htm"]
["山东畜牧兽医职业学院",null,"畜离智能化养殖(凤祥班)",null,7,6000,"动物科技学院","https://zs.sdmy.edu.cn/info/1095/2742.htm"]
["山东畜牧兽医职业学院",null,"水产养殖技术",null,5,5000,"动物科技学院","https://zs.sdmy.edu.cn/info/1095/2742.htm"]
["山东畜牧兽医职业学院",null,"动物营养与饲料",null,5,6000,"动物科技学院","https://zs.sdmy.edu.cn/info/1095/2742.htm"]
["山东畜牧兽医职业学院",null,"动物医学益客班",null,20,6000,"动物医学院","https://zs.sdmy.edu.cn/info/1095/2742.htm"]
["山东畜牧兽医职业学院",null,"动物医学益生班",null,20,6000,"动物医学院","https://zs.sdmy.edu.cn/info/1095/2742.htm"]
["山东畜牧兽医职业学院",null,"动物医学龙大班",null,25,6000,"动物医学院","https://zs.sdmy.edu.cn/info/1095/2742.htm"]
["山东畜牧兽医职业学院",null,"动物医学正大班",null,25,6000,"动物医学院","https://zs.sdmy.edu.cn/info/1095/2742.htm"]
["山东畜牧兽医职业学院",null,"动物防疫与检疫民和班",null,15,6000,"动物医学院","https://zs.sdmy.edu.cn/info/1095/2742.htm"]
["山东畜牧兽医职业学院",null,"野生动植物资源保护与利用",null,15,5000,"宠物科技学院","https://zs.sdmy.edu.cn/info/1095/2742.htm"]
["山东畜牧兽医职业学院",null,"宠物医疗技术",null,15,5750,"宠物科技学院","https://zs.sdmy.edu.cn/info/1095/2742.htm"]
["山东畜牧兽医职业学院",null,"宠物养护与驯导",null,20,5000,"宠物科技学院","https://zs.sdmy.edu.cn/info/1095/2742.htm"]
["山东畜牧兽医职业学院",null,"食品检验检测技术",null,20,5000,"食品与药品科技学院","https://zs.sdmy.edu.cn/info/1095/2742.htm"]
["山东畜牧兽医职业学院",null,"食品药品监督管理",null,10,5000,"食品与药品科技学院","https://zs.sdmy.edu.cn/info/1095/2742.htm"]
["山东畜牧兽医职业学院",null,"药品生产技术",null,10,5000,"食品与药品科技学院","https://zs.sdmy.edu.cn/info/1095/2742.htm"]
["山东畜牧兽医职业学院",null,"药品质量与安全",null,10,5000,"食品与药品科技学院","https://zs.sdmy.edu.cn/info/1095/2742.htm"]
["山东畜牧兽医职业学院",null,"智能控制技术",null,20,5000,"农牧工程与智能化学院","https://zs.sdmy.edu.cn/info/1095/2742.htm"]
["山东畜牧兽医职业学院",null,"现代物流管理",null,20,4800,"农牧工程与智能化学院","https://zs.sdmy.edu.cn/info/1095/2742.htm"]
["山东畜牧兽医职业学院",null,"工业机器人技术",null,20,5000,"农牧工程与智能化学院","https://zs.sdmy.edu.cn/info/1095/2742.htm"]
["山东畜牧兽医职业学院",null,"大数据与会计",null,10,4800,"经济贸易学院","https://zs.sdmy.edu.cn/info/1095/2742.htm"]
["山东畜牧兽医职业学院",null,"现代农业经济管理",null,10,5000,"经济贸易学院","https://zs.sdmy.edu.cn/info/1095/2742.htm"]
["山东畜牧兽医职业学院",null,"大数据与财务管理",null,10,4800,"经济贸易学院","https://zs.sdmy.edu.cn/info/1095/2742.htm"]
["山东畜牧兽医职业学院",null,"金融科技应用",null,10,4800,"经济贸易学院","https://zs.sdmy.edu.cn/info/1095/2742.htm"]
["山东畜牧兽医职业学院",null,"网络营销与直播电商(校企)",null,30,4800,"经济贸易学院","https://zs.sdmy.edu.cn/info/1095/2742.htm"]
["山东畜牧兽医职业学院",null,"电子商务(校企)",null,20,4800,"经济贸易学院","https://zs.sdmy.edu.cn/info/1095/2742.htm"]
["山东畜牧兽医职业学院",null,"电子商务",null,10,4800,"经济贸易学院","https://zs.sdmy.edu.cn/info/1095/2742.htm"]
["山东药品食品职业学院",null,"药品生产技术",null,31,5000,"制药工程系","http://zsxxw.wzq.sddfvc.edu.cn/info/1033/1847.htm"]
["山东药品食品职业学院",null,"化学制药技术",null,40,5000,"制药工程系","http://zsxxw.wzq.sddfvc.edu.cn/info/1033/1847.htm"]
["山东药品食品职业学院",null,"生物产品检验检疫",null,24,5000,"制药工程系","http://zsxxw.wzq.sddfvc.edu.cn/info/1033/1847.htm"]
["山东药品食品职业学院",null,"化妆品经营与管理",null,20,5000,"制药工程系","http://zsxxw.wzq.sddfvc.edu.cn/info/1033/1847.htm"]
["山东药品食品职业学院",null,"化妆品技术",null,20,5000,"制药工程系","http://zsxxw.wzq.sddfvc.edu.cn/info/1033/1847.htm"]
["山东药品食品职业学院",null,"药品质里与安全",null,14,5750,"质量管理系","http://zsxxw.wzq.sddfvc.edu.cn/info/1033/1847.htm"]
["山东药品食品职业学院",null,"质量管理与认证",null,15,4800,"质量管理系","http://zsxxw.wzq.sddfvc.edu.cn/info/1033/1847.htm"]
["山东药品食品职业学院",null,"食品药品监督管理",null,14,5750,"质量管理系","http://zsxxw.wzq.sddfvc.edu.cn/info/1033/1847.htm"]
["山东药品食品职业学院",null,"医学检验技术",null,20,5000,"质量管理系","http://zsxxw.wzq.sddfvc.edu.cn/info/1033/1847.htm"]
["山东药品食品职业学院",null,"食品检验检测技术",null,50,5000,"食品系","http://zsxxw.wzq.sddfvc.edu.cn/info/1033/1847.htm"]
["山东药品食品职业学院",null,"食品质量与安全",null,30,5000,"食品系","http://zsxxw.wzq.sddfvc.edu.cn/info/1033/1847.htm"]
["山东药品食品职业学院",null,"食品生物技术",null,20,5000,"食品系","http://zsxxw.wzq.sddfvc.edu.cn/info/1033/1847.htm"]
["山东药品食品职业学院",null,"医学营养",null,20,5000,"食品系","http://zsxxw.wzq.sddfvc.edu.cn/info/1033/1847.htm"]
["山东药品食品职业学院",null,"药品经营与管理",null,85,5520,"药学系","http://zsxxw.wzq.sddfvc.edu.cn/info/1033/1847.htm"]
["山东药品食品职业学院",null,"药学",null,25,5750,"药学系","http://zsxxw.wzq.sddfvc.edu.cn/info/1033/1847.htm"]
["山东药品食品职业学院",null,"电子商务",null,15,4800,"药学系","http://zsxxw.wzq.sddfvc.edu.cn/info/1033/1847.htm"]
["山东药品食品职业学院",null,"中药学",null,12,5750,"中药系","http://zsxxw.wzq.sddfvc.edu.cn/info/1033/1847.htm"]
["山东药品食品职业学院",null,"中药制药",null,22,5750,"中药系","http://zsxxw.wzq.sddfvc.edu.cn/info/1033/1847.htm"]
["山东药品食品职业学院",null,"中医养生保健",null,18,5750,"中药系","http://zsxxw.wzq.sddfvc.edu.cn/info/1033/1847.htm"]
["山东药品食品职业学院",null,"中医康复技术",null,12,5000,"中药系","http://zsxxw.wzq.sddfvc.edu.cn/info/1033/1847.htm"]
["山东药品食品职业学院",null,"医疗器械维护与管理",null,20,5000,"医疗器械系","http://zsxxw.wzq.sddfvc.edu.cn/info/1033/1847.htm"]
["山东药品食品职业学院",null,"智能医疗装备技术",null,30,5000,"医疗器械系","http://zsxxw.wzq.sddfvc.edu.cn/info/1033/1847.htm"]
["山东药品食品职业学院",null,"制药设备应用技术",null,20,5750,"医疗器械系","http://zsxxw.wzq.sddfvc.edu.cn/info/1033/1847.htm"]
["山东药品食品职业学院",null,"医疗器械经营与服务",null,15,5750,"医疗器械系","http://zsxxw.wzq.sddfvc.edu.cn/info/1033/1847.htm"]
["山东药品食品职业学院",null,"健康管理",null,10,5520,"健康管理系","http://zsxxw.wzq.sddfvc.edu.cn/info/1033/1847.htm"]
["山东药品食品职业学院",null,"老年保健与管理",null,28,5520,"健康管理系","http://zsxxw.wzq.sddfvc.edu.cn/info/1033/1847.htm"]
["山东劳动职业技术学院","A1","模具设计与制造",null,20,5000,null,"http://www.sljzs.cn/index.php?m=Article&a=show&id=480"]
["山东劳动职业技术学院","A2","汽车技术服务与营销",null,30,5000,null,"http://www.sljzs.cn/index.php?m=Article&a=show&id=480"]
["山东劳动职业技术学院","A3","集成电路技术",null,20,5000,null,"http://www.sljzs.cn/index.php?m=Article&a=show&id=480"]
["山东劳动职业技术学院","A4","数字媒体艺术设计",null,50,5000,null,"http://www.sljzs.cn/index.php?m=Article&a=show&id=480"]
["山东劳动职业技术学院","A5","建设工程管理",null,20,5000,null,"http://www.sljzs.cn/index.php?m=Article&a=show&id=480"]
["山东劳动职业技术学院","A6","电子商务",null,50,5280,null,"http://www.sljzs.cn/index.php?m=Article&a=show&id=480"]
["山东劳动职业技术学院","A7","大数据与会计",null,30,4800,null,"http://www.sljzs.cn/index.php?m=Article&a=show&id=480"]
["青岛酒店管理职业技术学院",null,"酒店管理与数字化运营",null,40,6600,null,"https://zsxx.qchm.edu.cn/2024/0124/c6086a75430/page.htm"]
["青岛酒店管理职业技术学院",null,"旅游管理",null,10,6320,null,"https://zsxx.qchm.edu.cn/2024/0124/c6086a75431/page.htm"]
["青岛酒店管理职业技术学院",null,"会展策划与管理",null,20,6600,null,"https://zsxx.qchm.edu.cn/2024/0124/c6086a75432/page.htm"]
["青岛酒店管理职业技术学院",null,"研学旅行管理与服务",null,10,5500,null,"https://zsxx.qchm.edu.cn/2024/0124/c6086a75433/page.htm"]
["青岛酒店管理职业技术学院",null,"烹饪工艺与营养",null,10,6600,null,"https://zsxx.qchm.edu.cn/2024/0124/c6086a75434/page.htm"]
["青岛酒店管理职业技术学院",null,"西式烹饪工艺",null,10,6320,null,"https://zsxx.qchm.edu.cn/2024/0124/c6086a75435/page.htm"]
["青岛酒店管理职业技术学院",null,"中西面点工艺",null,5,6320,null,"https://zsxx.qchm.edu.cn/2024/0124/c6086a75436/page.htm"]
["青岛酒店管理职业技术学院",null,"餐饮智能管理",null,5,5500,null,"https://zsxx.qchm.edu.cn/2024/0124/c6086a75437/page.htm"]
["青岛酒店管理职业技术学院",null,"工程造价",null,20,5500,null,"https://zsxx.qchm.edu.cn/2024/0124/c6086a75438/page.htm"]
["青岛酒店管理职业技术学院",null,"建筑工程技术",null,10,5500,null,"https://zsxx.qchm.edu.cn/2024/0124/c6086a75439/page.htm"]
["青岛酒店管理职业技术学院",null,"新能源装备技术",null,10,5500,null,"https://zsxx.qchm.edu.cn/2024/0124/c6086a75440/page.htm"]
["青岛酒店管理职业技术学院",null,"现代物业管理",null,8,5500,null,"https://zsxx.qchm.edu.cn/2024/0124/c6086a75441/page.htm"]
["青岛酒店管理职业技术学院",null,"电子商务",null,15,6320,null,"https://zsxx.qchm.edu.cn/2024/0124/c6086a75442/page.htm"]
["青岛酒店管理职业技术学院",null,"商务英语",null,15,5500,null,"https://zsxx.qchm.edu.cn/2024/0124/c6086a75443/page.htm"]
["青岛酒店管理职业技术学院",null,"大数据与财务管理",null,42,5500,null,"https://zsxx.qchm.edu.cn/2024/0124/c6086a75444/page.htm"]
["青岛酒店管理职业技术学院",null,"数字媒体技术",null,10,5500,null,"https://zsxx.qchm.edu.cn/2024/0124/c6086a75445/page.htm"]
["青岛酒店管理职业技术学院",null,"计算机应用技术",null,10,5500,null,"https://zsxx.qchm.edu.cn/2024/0124/c6086a75446/page.htm"]
["烟台工程职业技术学院","K9","安全技术与管理",null,2,5000,null,"https://zs.ytetc.edu.cn/news/show-552.html"]
["烟台工程职业技术学院","L1","安全智能监测技术",null,2,5000,null,"https://zs.ytetc.edu.cn/news/show-552.html"]
["烟台工程职业技术学院","L2","应急救援技术",null,2,5000,null,"https://zs.ytetc.edu.cn/news/show-552.html"]
["烟台工程职业技术学院","L3","民航安全技术管理",null,2,5000,null,"https://zs.ytetc.edu.cn/news/show-552.html"]
["烟台工程职业技术学院","K2","工业互联网技术",null,5,5000,null,"https://zs.ytetc.edu.cn/news/show-552.html"]
["烟台工程职业技术学院","K3","数字化设计与制造技术",null,15,5000,null,"https://zs.ytetc.edu.cn/news/show-552.html"]
["烟台工程职业技术学院","K7","工业机器人技术",null,10,5000,null,"https://zs.ytetc.edu.cn/news/show-552.html"]
["烟台工程职业技术学院","K4","机电一体化技术",null,10,5000,null,"https://zs.ytetc.edu.cn/news/show-552.html"]
["烟台工程职业技术学院","K8","人工智能技术应用",null,5,5000,null,"https://zs.ytetc.edu.cn/news/show-552.html"]
["烟台工程职业技术学院","K5","应用电子技术",null,5,5000,null,"https://zs.ytetc.edu.cn/news/show-552.html"]
["烟台工程职业技术学院","K6","智能控制技术",null,5,5000,null,"https://zs.ytetc.edu.cn/news/show-552.html"]
["烟台工程职业技术学院","L4","服装与服饰设计",null,2,5000,null,"https://zs.ytetc.edu.cn/news/show-552.html"]
["烟台工程职业技术学院","L7","环境监测技术",null,2,5000,null,"https://zs.ytetc.edu.cn/news/show-552.html"]
["烟台工程职业技术学院","L5","食品检验检测技术",null,2,5000,null,"https://zs.ytetc.edu.cn/news/show-552.html"]
["烟台工程职业技术学院","L6","婴幼儿托育服务与管理",null,10,5000,null,"https://zs.ytetc.edu.cn/news/show-552.html"]
["烟台工程职业技术学院","L8","应用化工技术",null,2,5000,null,"https://zs.ytetc.edu.cn/news/show-552.html"]
["烟台工程职业技术学院","L9","电子商务",null,10,4800,null,"https://zs.ytetc.edu.cn/news/show-552.html"]
["烟台工程职业技术学院","M1","跨境电子商务",null,10,4800,null,"https://zs.ytetc.edu.cn/news/show-552.html"]
["烟台工程职业技术学院","N2","农村电子商务",null,10,4800,null,"https://zs.ytetc.edu.cn/news/show-552.html"]
["烟台工程职业技术学院","M4","城市轨道车辆应用技术",null,10,5000,null,"https://zs.ytetc.edu.cn/news/show-552.html"]
["烟台工程职业技术学院","M7","城市轨道交通供配电技术",null,10,5000,null,"https://zs.ytetc.edu.cn/news/show-552.html"]
["烟台工程职业技术学院","M8","城市轨道交通通信信号技术",null,10,5000,null,"https://zs.ytetc.edu.cn/news/show-552.html"]
["烟台工程职业技术学院","M5","城市轨道交通运营管理",null,15,5000,null,"https://zs.ytetc.edu.cn/news/show-552.html"]
["烟台工程职业技术学院","M3","汽车检测与维修技术",null,10,5000,null,"https://zs.ytetc.edu.cn/news/show-552.html"]
["烟台工程职业技术学院","M6","新能源汽车技术",null,10,5000,null,"https://zs.ytetc.edu.cn/news/show-552.html"]
["烟台工程职业技术学院","M9","计算机应用技术",null,5,5000,null,"https://zs.ytetc.edu.cn/news/show-552.html"]
["烟台工程职业技术学院","N1","动漫制作技术",null,5,5000,null,"https://zs.ytetc.edu.cn/news/show-552.html"]
["烟台工程职业技术学院","N2","物联网应用技术",null,5,5000,null,"https://zs.ytetc.edu.cn/news/show-552.html"]
["烟台工程职业技术学院","N3","数字媒体技术",null,4,5000,null,"https://zs.ytetc.edu.cn/news/show-552.html"]
["烟台工程职业技术学院","N4","移动互联应用技术",null,5,5000,null,"https://zs.ytetc.edu.cn/news/show-552.html"]
["山东水利职业学院",53,"水利水电工程智能管理",null,30,null,"水利工程系","https://www.sdwcvc.edu.cn/zs/info/1082/2901.htm"]
["山东水利职业学院",54,"智彗水利技术",null,40,null,"水利工程系","https://www.sdwcvc.edu.cn/zs/info/1082/2901.htm"]
["山东水利职业学院",55,"治河与航道工程技术",null,20,null,"水利工程系","https://www.sdwcvc.edu.cn/zs/info/1082/2901.htm"]
["山东水利职业学院",58,"城市轨道交通工程技术",null,20,null,"水利工程系","https://www.sdwcvc.edu.cn/zs/info/1082/2901.htm"]
["山东水利职业学院",59,"工程测量技术",null,20,null,"水利工程系","https://www.sdwcvc.edu.cn/zs/info/1082/2901.htm"]
["山东水利职业学院","C4","水利水电工程智能管理","限招运动专长考生，必须有田径、乒乓球、羽毛球、健美操项目对应的国家二级及以上运动员技术等级称号或省级以上比赛名次，详见招生章程。",10,null,"水利工程系","https://www.sdwcvc.edu.cn/zs/info/1082/2901.htm"]
["山东水利职业学院","C5","工程测量技术","限招运动专长考生，必须有田径、乒乓球、羽毛球、健美操项目对应的国家二级及以上运动员技术等级称号或省级以上比赛名次，详见招生章程。",10,null,"水利工程系","https://www.sdwcvc.edu.cn/zs/info/1082/2901.htm"]
["山东水利职业学院","C6","城市轨道交通工程技术","限招运动专长考生，必须有田径、乒乓球、羽毛球、健美操项目对应的国家二级及以上运动员技术等级称号或省级以上比赛名次，详见招生章程。",10,null,"水利工程系","https://www.sdwcvc.edu.cn/zs/info/1082/2901.htm"]
["山东水利职业学院","D1","机电—体化技术","亚太森博班，学生在录取后与亚太森博签订培养协议，企业每年提供一定资助，毕业后需在企业工作五年。",30,null,"机电工程系","https://www.sdwcvc.edu.cn/zs/info/1082/2901.htm"]
["山东水利职业学院",73,"汽车检测与维修技术",null,40,null,"机电工程系","https://www.sdwcvc.edu.cn/zs/info/1082/2901.htm"]
["山东水利职业学院",77,"电子信息工程技术",null,40,null,"信息工程系","https://www.sdwcvc.edu.cn/zs/info/1082/2901.htm"]
["山东水利职业学院",88,"金融服务与管理",null,40,null,"经济管理系","https://www.sdwcvc.edu.cn/zs/info/1082/2901.htm"]
["山东水利职业学院",89,"酒店管理与数字化运营",null,40,null,"商务管理系","https://www.sdwcvc.edu.cn/zs/info/1082/2901.htm"]
["菏泽家政职业学院",null,"护理",null,65,6000,null,"http://zs.hzjzzyxy.com:8089/acmc-net/zsgl/sycd3_view.do?dataid=dec2b8b7f9c44e9193b2e0c2e42b267d&type=zsgl_zszch"]
["菏泽家政职业学院",null,"助产(只招女生)",null,20,6000,null,"http://zs.hzjzzyxy.com:8089/acmc-net/zsgl/sycd3_view.do?dataid=dec2b8b7f9c44e9193b2e0c2e42b267d&type=zsgl_zszch"]
["菏泽家政职业学院",null,"康复治疗技术",null,10,6000,null,"http://zs.hzjzzyxy.com:8089/acmc-net/zsgl/sycd3_view.do?dataid=dec2b8b7f9c44e9193b2e0c2e42b267d&type=zsgl_zszch"]
["菏泽家政职业学院",null,"中医康复技术",null,10,6000,null,"http://zs.hzjzzyxy.com:8089/acmc-net/zsgl/sycd3_view.do?dataid=dec2b8b7f9c44e9193b2e0c2e42b267d&type=zsgl_zszch"]
["菏泽家政职业学院",null,"口腔医学技术",null,10,6000,null,"http://zs.hzjzzyxy.com:8089/acmc-net/zsgl/sycd3_view.do?dataid=dec2b8b7f9c44e9193b2e0c2e42b267d&type=zsgl_zszch"]
["菏泽家政职业学院",null,"医学影像技术",null,10,6000,null,"http://zs.hzjzzyxy.com:8089/acmc-net/zsgl/sycd3_view.do?dataid=dec2b8b7f9c44e9193b2e0c2e42b267d&type=zsgl_zszch"]
["菏泽家政职业学院",null,"医学检验技术",null,10,6000,null,"http://zs.hzjzzyxy.com:8089/acmc-net/zsgl/sycd3_view.do?dataid=dec2b8b7f9c44e9193b2e0c2e42b267d&type=zsgl_zszch"]
["菏泽家政职业学院",null,"药学",null,10,6000,null,"http://zs.hzjzzyxy.com:8089/acmc-net/zsgl/sycd3_view.do?dataid=dec2b8b7f9c44e9193b2e0c2e42b267d&type=zsgl_zszch"]
["菏泽家政职业学院",null,"早期教育",null,10,4800,null,"http://zs.hzjzzyxy.com:8089/acmc-net/zsgl/sycd3_view.do?dataid=dec2b8b7f9c44e9193b2e0c2e42b267d&type=zsgl_zszch"]
["菏泽家政职业学院",null,"婴幼儿托育服务与管理",null,5,4800,null,"http://zs.hzjzzyxy.com:8089/acmc-net/zsgl/sycd3_view.do?dataid=dec2b8b7f9c44e9193b2e0c2e42b267d&type=zsgl_zszch"]
["菏泽家政职业学院",null,"老年保健与管理",null,10,4800,null,"http://zs.hzjzzyxy.com:8089/acmc-net/zsgl/sycd3_view.do?dataid=dec2b8b7f9c44e9193b2e0c2e42b267d&type=zsgl_zszch"]
["菏泽家政职业学院",null,"智慧健康养老服务与管理",null,5,4800,null,"http://zs.hzjzzyxy.com:8089/acmc-net/zsgl/sycd3_view.do?dataid=dec2b8b7f9c44e9193b2e0c2e42b267d&type=zsgl_zszch"]
["菏泽家政职业学院",null,"现代家政服务与管理",null,5,4800,null,"http://zs.hzjzzyxy.com:8089/acmc-net/zsgl/sycd3_view.do?dataid=dec2b8b7f9c44e9193b2e0c2e42b267d&type=zsgl_zszch"]
["菏泽家政职业学院",null,"社会工作",null,5,4800,null,"http://zs.hzjzzyxy.com:8089/acmc-net/zsgl/sycd3_view.do?dataid=dec2b8b7f9c44e9193b2e0c2e42b267d&type=zsgl_zszch"]
["菏泽家政职业学院",null,"健康大数据管理与服务",null,5,4800,null,"http://zs.hzjzzyxy.com:8089/acmc-net/zsgl/sycd3_view.do?dataid=dec2b8b7f9c44e9193b2e0c2e42b267d&type=zsgl_zszch"]
["菏泽家政职业学院",null,"酒店管理与数字化运营",null,10,4800,null,"http://zs.hzjzzyxy.com:8089/acmc-net/zsgl/sycd3_view.do?dataid=dec2b8b7f9c44e9193b2e0c2e42b267d&type=zsgl_zszch"]
["山东轻工职业学院","1P","现代物流管理",null,30,null,"商务贸易系","http://zhaosheng.sdlivc.edu.cn/info/1024/3794.htm"]
["山东轻工职业学院","2P","药品生产技术",null,30,null,"健康管理系","http://zhaosheng.sdlivc.edu.cn/info/1024/3794.htm"]
["山东轻工职业学院","4P","纺织品检验与贸易",null,30,null,"纺织工程系","http://zhaosheng.sdlivc.edu.cn/info/1024/3794.htm"]
["山东轻工职业学院","4Q","纺织品设计",null,30,null,"纺织工程系","http://zhaosheng.sdlivc.edu.cn/info/1024/3794.htm"]
["山东轻工职业学院","4R","数字化染整技术",null,30,null,"纺织工程系","http://zhaosheng.sdlivc.edu.cn/info/1024/3794.htm"]
["烟台科技学院",null,"机械制造及自动化",null,80,null,"海洋工程学院","https://zs.ytkj.edu.cn/info/1013/2253.htm"]
["烟台科技学院",null,"工业机器人技术",null,25,null,"海洋工程学院","https://zs.ytkj.edu.cn/info/1013/2253.htm"]
["烟台科技学院",null,"计算机应用技术",null,65,null,"数据智能学院","https://zs.ytkj.edu.cn/info/1013/2253.htm"]
["烟台科技学院",null,"计算机网络技术",null,30,null,"数据智能学院","https://zs.ytkj.edu.cn/info/1013/2253.htm"]
["烟台科技学院",null,"大数据技术",null,40,null,"数据智能学院","https://zs.ytkj.edu.cn/info/1013/2253.htm"]
["烟台科技学院",null,"软件技术",null,30,null,"数据智能学院","https://zs.ytkj.edu.cn/info/1013/2253.htm"]
["烟台科技学院",null,"电子商务",null,35,null,"管理学院","https://zs.ytkj.edu.cn/info/1013/2253.htm"]
["烟台科技学院",null,"市场营销",null,30,null,"管理学院","https://zs.ytkj.edu.cn/info/1013/2253.htm"]
["烟台科技学院",null,"旅游管理",null,30,null,"管理学院","https://zs.ytkj.edu.cn/info/1013/2253.htm"]
["烟台科技学院",null,"葡萄酒文化与营销",null,30,null,"管理学院","https://zs.ytkj.edu.cn/info/1013/2253.htm"]
["烟台科技学院",null,"大数据与会计",null,55,null,"财经学院","https://zs.ytkj.edu.cn/info/1013/2253.htm"]
["烟台科技学院",null,"大数据与财务管理",null,40,null,"财经学院","https://zs.ytkj.edu.cn/info/1013/2253.htm"]
["烟台科技学院",null,"艺术设计",null,35,null,"艺术设计学院","https://zs.ytkj.edu.cn/info/1013/2253.htm"]
["烟台科技学院",null,"数字媒体艺术设计",null,50,null,"文化传媒学院","https://zs.ytkj.edu.cn/info/1013/2253.htm"]
["烟台科技学院",null,"广告艺术设计",null,40,null,"文化传媒学院","https://zs.ytkj.edu.cn/info/1013/2253.htm"]
["烟台科技学院",null,"新闻采编与制作",null,30,null,"文化传媒学院","https://zs.ytkj.edu.cn/info/1013/2253.htm"]
["烟台科技学院",null,"商务英语",null,35,null,"人文学院","https://zs.ytkj.edu.cn/info/1013/2253.htm"]
["烟台科技学院",null,"计算机应用技术",null,35,null,"大数据学院","http://zs.tskjxy.edu.cn/page/detail/JBEYJP/9411/58983"]
["烟台科技学院",null,"大数据技术",null,20,null,"大数据学院","http://zs.tskjxy.edu.cn/page/detail/JBEYJP/9411/58983"]
["烟台科技学院",null,"虚拟现实技术应用",null,20,null,"大数据学院","http://zs.tskjxy.edu.cn/page/detail/JBEYJP/9411/58983"]
["烟台科技学院",null,"软件技术",null,20,null,"大数据学院","http://zs.tskjxy.edu.cn/page/detail/JBEYJP/9411/58983"]
["烟台科技学院",null,"计算机网络技术",null,30,null,"大数据学院","http://zs.tskjxy.edu.cn/page/detail/JBEYJP/9411/58983"]
["烟台科技学院",null,"机械制造及自动化",null,40,null,"智能工程学院","http://zs.tskjxy.edu.cn/page/detail/JBEYJP/9411/58983"]
["烟台科技学院",null,"机电一体化技术",null,40,null,"智能工程学院","http://zs.tskjxy.edu.cn/page/detail/JBEYJP/9411/58983"]
["烟台科技学院",null,"电气自动化技术",null,40,null,"智能工程学院","http://zs.tskjxy.edu.cn/page/detail/JBEYJP/9411/58983"]
["烟台科技学院",null,"智能机器人技术",null,20,null,"智能工程学院","http://zs.tskjxy.edu.cn/page/detail/JBEYJP/9411/58983"]
["烟台科技学院",null,"智能控制技术",null,30,null,"智能工程学院","http://zs.tskjxy.edu.cn/page/detail/JBEYJP/9411/58983"]
["烟台科技学院",null,"智能网联汽车技术",null,20,null,"智能工程学院","http://zs.tskjxy.edu.cn/page/detail/JBEYJP/9411/58983"]
["烟台科技学院",null,"建筑工程技术",null,20,null,"建筑工程学院","http://zs.tskjxy.edu.cn/page/detail/JBEYJP/9411/58983"]
["烟台科技学院",null,"工程造价",null,15,null,"建筑工程学院","http://zs.tskjxy.edu.cn/page/detail/JBEYJP/9411/58983"]
["烟台科技学院",null,"智能建造技术",null,10,null,"建筑工程学院","http://zs.tskjxy.edu.cn/page/detail/JBEYJP/9411/58983"]
["烟台科技学院",null,"市政工程技术",null,10,null,"建筑工程学院","http://zs.tskjxy.edu.cn/page/detail/JBEYJP/9411/58983"]
["烟台科技学院",null,"智能互联网络技术",null,30,null,"通信工程学院","http://zs.tskjxy.edu.cn/page/detail/JBEYJP/9411/58983"]
["烟台科技学院",null,"大数据与会计",null,40,null,"淬炼商学院","http://zs.tskjxy.edu.cn/page/detail/JBEYJP/9411/58983"]
["烟台科技学院",null,"大数据与审计",null,20,null,"淬炼商学院","http://zs.tskjxy.edu.cn/page/detail/JBEYJP/9411/58983"]
["烟台科技学院",null,"大数据与财务管理",null,30,null,"淬炼商学院","http://zs.tskjxy.edu.cn/page/detail/JBEYJP/9411/58983"]
["烟台科技学院",null,"旅游管理",null,20,null,"淬炼商学院","http://zs.tskjxy.edu.cn/page/detail/JBEYJP/9411/58983"]
["烟台科技学院",null,"国际经济与贸易",null,20,null,"淬炼商学院","http://zs.tskjxy.edu.cn/page/detail/JBEYJP/9411/58983"]
["烟台科技学院",null,"市场营销",null,20,null,"淬炼商学院","http://zs.tskjxy.edu.cn/page/detail/JBEYJP/9411/58983"]
["烟台科技学院",null,"电子商务",null,20,null,"淬炼商学院","http://zs.tskjxy.edu.cn/page/detail/JBEYJP/9411/58983"]
["烟台科技学院",null,"法律事务",null,40,null,"行政管理学院","http://zs.tskjxy.edu.cn/page/detail/JBEYJP/9411/58983"]
["烟台科技学院",null,"现代文秘",null,30,null,"行政管理学院","http://zs.tskjxy.edu.cn/page/detail/JBEYJP/9411/58983"]
["烟台科技学院",null,"数字媒体艺术设计",null,30,null,"艺术传媒学院","http://zs.tskjxy.edu.cn/page/detail/JBEYJP/9411/58983"]
["烟台科技学院",null,"视觉传达设计",null,30,null,"艺术传媒学院","http://zs.tskjxy.edu.cn/page/detail/JBEYJP/9411/58983"]
["山东经贸职业学院",null,"大数据与审计",null,10,5500,"会计系","http://zsw.sdecu.com/cms/article/artMain.html?id=927&classid=51"]
["山东经贸职业学院",null,"大数据与会计",null,84,5500,"会计系","http://zsw.sdecu.com/cms/article/artMain.html?id=927&classid=51"]
["山东经贸职业学院",null,"统计与会计核算",null,13,5200,"会计系","http://zsw.sdecu.com/cms/article/artMain.html?id=927&classid=51"]
["山东经贸职业学院",null,"大数据与会计（中外合作）",null,10,12000,"会计系","http://zsw.sdecu.com/cms/article/artMain.html?id=927&classid=51"]
["山东经贸职业学院",null,"会计信息管理",null,13,4800,"会计系","http://zsw.sdecu.com/cms/article/artMain.html?id=927&classid=51"]
["山东经贸职业学院",null,"金融科技应用",null,10,4800,"财政金融系","http://zsw.sdecu.com/cms/article/artMain.html?id=927&classid=51"]
["山东经贸职业学院",null,"资产评估与管理",null,11,5500,"财政金融系","http://zsw.sdecu.com/cms/article/artMain.html?id=927&classid=51"]
["山东经贸职业学院",null,"证券实务",null,4,5200,"财政金融系","http://zsw.sdecu.com/cms/article/artMain.html?id=927&classid=51"]
["山东经贸职业学院",null,"大数据与财务管理",null,20,5500,"财政金融系","http://zsw.sdecu.com/cms/article/artMain.html?id=927&classid=51"]
["山东经贸职业学院",null,"金融服务与管理",null,18,5500,"财政金融系","http://zsw.sdecu.com/cms/article/artMain.html?id=927&classid=51"]
["山东经贸职业学院",null,"财税大数据应用",null,5,4800,"财政金融系","http://zsw.sdecu.com/cms/article/artMain.html?id=927&classid=51"]
["山东经贸职业学院",null,"农村新型经济组织管理",null,11,5000,"工商管理系","http://zsw.sdecu.com/cms/article/artMain.html?id=927&classid=51"]
["山东经贸职业学院",null,"市场营销",null,20,4800,"工商管理系","http://zsw.sdecu.com/cms/article/artMain.html?id=927&classid=51"]
["山东经贸职业学院",null,"工商企业管理",null,10,4800,"工商管理系","http://zsw.sdecu.com/cms/article/artMain.html?id=927&classid=51"]
["山东经贸职业学院",null,"连锁经营与管理",null,15,5500,"工商管理系","http://zsw.sdecu.com/cms/article/artMain.html?id=927&classid=51"]
["山东经贸职业学院",null,"人力资源管理",null,10,4800,"工商管理系","http://zsw.sdecu.com/cms/article/artMain.html?id=927&classid=51"]
["山东经贸职业学院",null,"无人机应用技术",null,10,5000,"工商管理系","http://zsw.sdecu.com/cms/article/artMain.html?id=927&classid=51"]
["山东经贸职业学院",null,"电气自动化技术",null,10,5000,"商务工程技术系","http://zsw.sdecu.com/cms/article/artMain.html?id=927&classid=51"]
["山东经贸职业学院",null,"网络营销与直播电商",null,8,4800,"商务工程技术系","http://zsw.sdecu.com/cms/article/artMain.html?id=927&classid=51"]
["山东经贸职业学院",null,"电子商务",null,25,5500,"商务工程技术系","http://zsw.sdecu.com/cms/article/artMain.html?id=927&classid=51"]
["山东经贸职业学院",null,"冷链物流技术与管理",null,8,4800,"商务工程技术系","http://zsw.sdecu.com/cms/article/artMain.html?id=927&classid=51"]
["山东经贸职业学院",null,"现代物流管理",null,10,5500,"商务工程技术系","http://zsw.sdecu.com/cms/article/artMain.html?id=927&classid=51"]
["山东经贸职业学院",null,"电子产品制造技术",null,7,5000,"商务工程技术系","http://zsw.sdecu.com/cms/article/artMain.html?id=927&classid=51"]
["山东经贸职业学院",null,"关务与外贸服务",null,5,5500,"国际商务系","http://zsw.sdecu.com/cms/article/artMain.html?id=927&classid=51"]
["山东经贸职业学院",null,"酒店管理与数字化运营",null,15,4800,"国际商务系","http://zsw.sdecu.com/cms/article/artMain.html?id=927&classid=51"]
["山东经贸职业学院",null,"旅游管理",null,15,4800,"国际商务系","http://zsw.sdecu.com/cms/article/artMain.html?id=927&classid=51"]
["山东经贸职业学院",null,"商务英语",null,3,4800,"国际商务系","http://zsw.sdecu.com/cms/article/artMain.html?id=927&classid=51"]
["山东经贸职业学院",null,"国际经济与贸易",null,10,4800,"国际商务系","http://zsw.sdecu.com/cms/article/artMain.html?id=927&classid=51"]
["山东经贸职业学院",null,"跨境电子商务",null,10,5500,"国际商务系","http://zsw.sdecu.com/cms/article/artMain.html?id=927&classid=51"]
["山东经贸职业学院",null,"空中乘务",null,10,5000,"国际商务系","http://zsw.sdecu.com/cms/article/artMain.html?id=927&classid=51"]
["山东经贸职业学院",null,"智慧健康养老服务与管理",null,5,4800,"国际商务系","http://zsw.sdecu.com/cms/article/artMain.html?id=927&classid=51"]
["山东经贸职业学院",null,"动漫制作技术",null,5,5000,"科学与人文系","http://zsw.sdecu.com/cms/article/artMain.html?id=927&classid=51"]
["山东经贸职业学院",null,"计算机应用技术",null,4,5000,"科学与人文系","http://zsw.sdecu.com/cms/article/artMain.html?id=927&classid=51"]
["山东经贸职业学院",null,"计算机应用技术(中外合作)",null,16,12000,"科学与人文系","http://zsw.sdecu.com/cms/article/artMain.html?id=927&classid=51"]
["山东经贸职业学院",null,"广告艺术设计",null,10,7000,"科学与人文系","http://zsw.sdecu.com/cms/article/artMain.html?id=927&classid=51"]
["烟台汽车工程职业学院","F1","早期教育",null,10,4800,null,"http://zs.ytqcvc.cn/info/1004/1501.htm"]
["烟台汽车工程职业学院","F2","婴幼儿托育服务与管理",null,10,5500,null,"http://zs.ytqcvc.cn/info/1004/1501.htm"]
["烟台汽车工程职业学院","F3","民航安全技术管理",null,10,5000,null,"http://zs.ytqcvc.cn/info/1004/1501.htm"]
["烟台汽车工程职业学院","F4","民航运输服务",null,10,5000,null,"http://zs.ytqcvc.cn/info/1004/1501.htm"]
["烟台汽车工程职业学院","F5","空中乘务",null,15,5000,null,"http://zs.ytqcvc.cn/info/1004/1501.htm"]
["烟台汽车工程职业学院","F6","民航空中安全保卫",null,15,5000,null,"http://zs.ytqcvc.cn/info/1004/1501.htm"]
["烟台汽车工程职业学院","F7","安全技术与管理",null,15,5000,null,"http://zs.ytqcvc.cn/info/1004/1501.htm"]
["烟台汽车工程职业学院","F8","安全智能监测技术",null,15,5000,null,"http://zs.ytqcvc.cn/info/1004/1501.htm"]
["烟台汽车工程职业学院","F9","网络营销与直播电商",null,10,4800,null,"http://zs.ytqcvc.cn/info/1004/1501.htm"]
["烟台汽车工程职业学院","G1","市场营销",null,10,4800,null,"http://zs.ytqcvc.cn/info/1004/1501.htm"]
["烟台汽车工程职业学院","G2","现代物流管理",null,10,4800,null,"http://zs.ytqcvc.cn/info/1004/1501.htm"]
["烟台汽车工程职业学院","G3","数控技术",null,10,5500,null,"http://zs.ytqcvc.cn/info/1004/1501.htm"]
["烟台汽车工程职业学院","G4","机电一体化技术",null,10,5500,null,"http://zs.ytqcvc.cn/info/1004/1501.htm"]
["烟台汽车工程职业学院","G5","工业机器人技术",null,10,5500,null,"http://zs.ytqcvc.cn/info/1004/1501.htm"]
["烟台汽车工程职业学院","G6","机械制造及自动化",null,10,5500,null,"http://zs.ytqcvc.cn/info/1004/1501.htm"]
["烟台汽车工程职业学院","G7","机械设计与制造",null,10,5000,null,"http://zs.ytqcvc.cn/info/1004/1501.htm"]
["烟台汽车工程职业学院","G8","工业互联网应用",null,10,5000,null,"http://zs.ytqcvc.cn/info/1004/1501.htm"]
["烟台汽车工程职业学院","G9","模具设计与制造",null,10,5000,null,"http://zs.ytqcvc.cn/info/1004/1501.htm"]
["烟台汽车工程职业学院","H1","增材制造技术",null,10,5000,null,"http://zs.ytqcvc.cn/info/1004/1501.htm"]
["烟台汽车工程职业学院","H2","现代通信技术",null,15,5000,null,"http://zs.ytqcvc.cn/info/1004/1501.htm"]
["烟台汽车工程职业学院","H3","电梯工程技术",null,15,5000,null,"http://zs.ytqcvc.cn/info/1004/1501.htm"]
["烟台汽车工程职业学院","H4","无人机应用技术",null,10,5000,null,"http://zs.ytqcvc.cn/info/1004/1501.htm"]
["烟台汽车工程职业学院","H5","人工智能技术应用",null,10,5000,null,"http://zs.ytqcvc.cn/info/1004/1501.htm"]
["烟台汽车工程职业学院","H6","智能控制技术",null,10,5000,null,"http://zs.ytqcvc.cn/info/1004/1501.htm"]
["烟台汽车工程职业学院","H7","物联网应用技术",null,10,5500,null,"http://zs.ytqcvc.cn/info/1004/1501.htm"]
["烟台汽车工程职业学院","H8","虚拟现实技术应用",null,10,5000,null,"http://zs.ytqcvc.cn/info/1004/1501.htm"]
["烟台汽车工程职业学院","H9","大数据技术",null,10,5000,null,"http://zs.ytqcvc.cn/info/1004/1501.htm"]
["烟台汽车工程职业学院","I1","汽车制造与试验技术",null,10,5500,null,"http://zs.ytqcvc.cn/info/1004/1501.htm"]
["烟台汽车工程职业学院","I2","汽车造型与改装技术",null,10,5500,null,"http://zs.ytqcvc.cn/info/1004/1501.htm"]
["烟台汽车工程职业学院","I3","智能工程机械运用技术",null,10,5000,null,"http://zs.ytqcvc.cn/info/1004/1501.htm"]
["烟台汽车工程职业学院","I4","汽车技术服务与营销",null,10,5500,null,"http://zs.ytqcvc.cn/info/1004/1501.htm"]
["烟台汽车工程职业学院","I5","新能源汽车技术",null,10,5500,null,"http://zs.ytqcvc.cn/info/1004/1501.htm"]
["烟台汽车工程职业学院","I6","汽车电子技术",null,10,5500,null,"http://zs.ytqcvc.cn/info/1004/1501.htm"]
["烟台汽车工程职业学院","I7","汽车智能技术",null,10,5500,null,"http://zs.ytqcvc.cn/info/1004/1501.htm"]
["烟台汽车工程职业学院","I8","新能源汽车检测与维修技术",null,10,5500,null,"http://zs.ytqcvc.cn/info/1004/1501.htm"]
["烟台汽车工程职业学院","I9","智能网联汽车技术",null,10,5000,null,"http://zs.ytqcvc.cn/info/1004/1501.htm"]
["烟台汽车工程职业学院","J1","智能交通技术",null,10,5000,null,"http://zs.ytqcvc.cn/info/1004/1501.htm"]
["山东外事职业大学",46,"建筑装饰工程技术","威海",5,null,null,"https://zsb.sdws.edu.cn/2024/0129/c410a55354/page.htm"]
["山东外事职业大学",47,"建筑室内设计","威海",15,null,null,"https://zsb.sdws.edu.cn/2024/0129/c410a55354/page.htm"]
["山东外事职业大学",48,"工程造价","威海",15,null,null,"https://zsb.sdws.edu.cn/2024/0129/c410a55354/page.htm"]
["山东外事职业大学",49,"智能机电技术","威海",15,null,null,"https://zsb.sdws.edu.cn/2024/0129/c410a55354/page.htm"]
["山东外事职业大学",50,"空中乘务","济南",5,null,null,"https://zsb.sdws.edu.cn/2024/0129/c410a55354/page.htm"]
["山东外事职业大学",51,"电子信息工程技术","威海",10,null,null,"https://zsb.sdws.edu.cn/2024/0129/c410a55354/page.htm"]
["山东外事职业大学",52,"物联网应用技术","威海",5,null,null,"https://zsb.sdws.edu.cn/2024/0129/c410a55354/page.htm"]
["山东外事职业大学",53,"计算机应用技术","济南",15,null,null,"https://zsb.sdws.edu.cn/2024/0129/c410a55354/page.htm"]
["山东外事职业大学",54,"软件技术","威海",15,null,null,"https://zsb.sdws.edu.cn/2024/0129/c410a55354/page.htm"]
["山东外事职业大学",55,"数字媒体技术","济南",15,null,null,"https://zsb.sdws.edu.cn/2024/0129/c410a55354/page.htm"]
["山东外事职业大学",56,"云计算技术应用","威海",5,null,null,"https://zsb.sdws.edu.cn/2024/0129/c410a55354/page.htm"]
["山东外事职业大学",57,"动漫制作技术","济南",15,null,null,"https://zsb.sdws.edu.cn/2024/0129/c410a55354/page.htm"]
["山东外事职业大学",58,"护理","威海",40,null,null,"https://zsb.sdws.edu.cn/2024/0129/c410a55354/page.htm"]
["山东外事职业大学",59,"要幼儿托育服务与管理","威海",5,null,null,"https://zsb.sdws.edu.cn/2024/0129/c410a55354/page.htm"]
["山东外事职业大学",60,"国际金融","威海",5,null,null,"https://zsb.sdws.edu.cn/2024/0129/c410a55354/page.htm"]
["山东外事职业大学",61,"大数据与会计","威海",15,null,null,"https://zsb.sdws.edu.cn/2024/0129/c410a55354/page.htm"]
["山东外事职业大学",62,"国际经济与贸易","威海",5,null,null,"https://zsb.sdws.edu.cn/2024/0129/c410a55354/page.htm"]
["山东外事职业大学",63,"工商企业管理","威海",10,null,null,"https://zsb.sdws.edu.cn/2024/0129/c410a55354/page.htm"]
["山东外事职业大学",64,"市场营销","威海",5,null,null,"https://zsb.sdws.edu.cn/2024/0129/c410a55354/page.htm"]
["山东外事职业大学",65,"电子商务","威海",15,null,null,"https://zsb.sdws.edu.cn/2024/0129/c410a55354/page.htm"]
["山东外事职业大学",66,"现代物流管理","威海",5,null,null,"https://zsb.sdws.edu.cn/2024/0129/c410a55354/page.htm"]
["山东外事职业大学",67,"旅游管理","威海",5,null,null,"https://zsb.sdws.edu.cn/2024/0129/c410a55354/page.htm"]
["山东外事职业大学",68,"视觉传达设计","济南",15,null,null,"https://zsb.sdws.edu.cn/2024/0129/c410a55354/page.htm"]
["山东外事职业大学",69,"书画艺术","济南",5,null,null,"https://zsb.sdws.edu.cn/2024/0129/c410a55354/page.htm"]
["山东外事职业大学",70,"商务英语","威海",5,null,null,"https://zsb.sdws.edu.cn/2024/0129/c410a55354/page.htm"]
["山东外事职业大学",71,"应用韩语","威海",5,null,null,"https://zsb.sdws.edu.cn/2024/0129/c410a55354/page.htm"]
["山东外事职业大学",72,"商务日语","威海",5,null,null,"https://zsb.sdws.edu.cn/2024/0129/c410a55354/page.htm"]
["山东外事职业大学",73,"体盲艺术表演","济南",5,null,null,"https://zsb.sdws.edu.cn/2024/0129/c410a55354/page.htm"]
["山东外事职业大学",74,"法律事务","济南",15,null,null,"https://zsb.sdws.edu.cn/2024/0129/c410a55354/page.htm"]
["德州科技职业学院","9A","机电一体化技术",null,30,null,null,"https://www.dzkjxy.com/zhaosheng/jianzhang/2024-01-26/7696.html"]
["德州科技职业学院","9B","无人机应用技术",null,30,null,null,"https://www.dzkjxy.com/zhaosheng/jianzhang/2024-01-26/7696.html"]
["德州科技职业学院","9C","新能源汽车技术",null,30,null,null,"https://www.dzkjxy.com/zhaosheng/jianzhang/2024-01-26/7696.html"]
["德州科技职业学院","9D","高速铁路综合维修技术",null,30,null,null,"https://www.dzkjxy.com/zhaosheng/jianzhang/2024-01-26/7696.html"]
["德州科技职业学院","9E","飞机机电设备维修",null,30,null,null,"https://www.dzkjxy.com/zhaosheng/jianzhang/2024-01-26/7696.html"]
["德州科技职业学院","9F","计算机应用技术",null,30,null,null,"https://www.dzkjxy.com/zhaosheng/jianzhang/2024-01-26/7696.html"]
["德州科技职业学院","9G","人工智能技术应用",null,30,null,null,"https://www.dzkjxy.com/zhaosheng/jianzhang/2024-01-26/7696.html"]
["德州科技职业学院","9H","护理",null,30,null,null,"https://www.dzkjxy.com/zhaosheng/jianzhang/2024-01-26/7696.html"]
["德州科技职业学院","9J","电子商务",null,30,null,null,"https://www.dzkjxy.com/zhaosheng/jianzhang/2024-01-26/7696.html"]
["德州科技职业学院","9K","早期教育",null,30,null,null,"https://www.dzkjxy.com/zhaosheng/jianzhang/2024-01-26/7696.html"]
["潍坊环境工程职业学院",null,"环境监测技术",null,10,7800,"生态环境学院","https://www.wfhgzxy.com/"]
["潍坊环境工程职业学院",null,"环境工程技术",null,10,7800,"生态环境学院","https://www.wfhgzxy.com/"]
["潍坊环境工程职业学院",null,"环境管理与评价",null,15,7800,"生态环境学院","https://www.wfhgzxy.com/"]
["潍坊环境工程职业学院",null,"生态环境修复技术",null,15,7800,"生态环境学院","https://www.wfhgzxy.com/"]
["潍坊环境工程职业学院",null,"水净化与安全技术",null,15,7800,"生态环境学院","https://www.wfhgzxy.com/"]
["潍坊环境工程职业学院",null,"化工安全技术",null,15,7800,"生态环境学院","https://www.wfhgzxy.com/"]
["潍坊环境工程职业学院",null,"建筑工程技术",null,10,8800,"生态环境学院","https://www.wfhgzxy.com/"]
["潍坊环境工程职业学院",null,"工程造价",null,10,8800,"生态环境学院","https://www.wfhgzxy.com/"]
["潍坊环境工程职业学院",null,"机械制造及自动化",null,10,8800,"智能制造学院","https://www.wfhgzxy.com/"]
["潍坊环境工程职业学院",null,"工业机器人技术",null,10,8800,"智能制造学院","https://www.wfhgzxy.com/"]
["潍坊环境工程职业学院",null,"机电一体化技术",null,10,8800,"智能制造学院","https://www.wfhgzxy.com/"]
["潍坊环境工程职业学院",null,"智能机电技术",null,10,8800,"智能制造学院","https://www.wfhgzxy.com/"]
["潍坊环境工程职业学院",null,"电气自动化技术",null,10,8800,"智能制造学院","https://www.wfhgzxy.com/"]
["潍坊环境工程职业学院",null,"光伏工程技术",null,10,8800,"智能制造学院","https://www.wfhgzxy.com/"]
["潍坊环境工程职业学院",null,"热能动力工程技术",null,5,8800,"智能制造学院","https://www.wfhgzxy.com/"]
["潍坊环境工程职业学院",null,"人工智能技术应用",null,5,8800,"智能制造学院","https://www.wfhgzxy.com/"]
["潍坊环境工程职业学院",null,"物联网应用技术",null,10,7800,"信息技术学院","https://www.wfhgzxy.com/"]
["潍坊环境工程职业学院",null,"计算机应用技术",null,10,8800,"信息技术学院","https://www.wfhgzxy.com/"]
["潍坊环境工程职业学院",null,"大数据技术",null,10,7800,"信息技术学院","https://www.wfhgzxy.com/"]
["潍坊环境工程职业学院",null,"信息安全技术应用",null,10,7800,"信息技术学院","https://www.wfhgzxy.com/"]
["潍坊环境工程职业学院",null,"虚拟现实技术应用",null,10,7800,"信息技术学院","https://www.wfhgzxy.com/"]
["潍坊环境工程职业学院",null,"电子商务",null,10,8800,"文创商贸学院","https://www.wfhgzxy.com/"]
["潍坊环境工程职业学院",null,"网络直播与运营",null,5,8800,"文创商贸学院","https://www.wfhgzxy.com/"]
["潍坊环境工程职业学院",null,"大数据与财务管理",null,10,8800,"文创商贸学院","https://www.wfhgzxy.com/"]
["潍坊环境工程职业学院",null,"中医康复技术",null,10,8800,"康养服务学院","https://www.wfhgzxy.com/"]
["潍坊环境工程职业学院",null,"婴幼儿托育服务与管理",null,5,8800,"康养服务学院","https://www.wfhgzxy.com/"]
["潍坊环境工程职业学院",null,"空中乘务",null,5,8800,"康养服务学院","https://www.wfhgzxy.com/"]
["潍坊环境工程职业学院",null,"中药学",null,5,8800,"康养服务学院","https://www.wfhgzxy.com/"]
["潍坊环境工程职业学院",null,"康复治疗技术",null,10,8800,"康养服务学院","https://www.wfhgzxy.com/"]
["潍坊环境工程职业学院",null,"机械制造及自动化(国防)",null,5,9800,"国防教育学院","https://www.wfhgzxy.com/"]
["潍坊环境工程职业学院",null,"机电一体化技术(国防)",null,5,9800,"国防教育学院","https://www.wfhgzxy.com/"]
["潍坊环境工程职业学院",null,"电气自动化技术(国防)",null,5,9800,"国防教育学院","https://www.wfhgzxy.com/"]
["潍坊环境工程职业学院",null,"计算机应用技术(国防)",null,5,9800,"国防教育学院","https://www.wfhgzxy.com/"]
["山东力明科技职业学院",35,"中医学",null,25,null,null,"http://edu.6789.com.cn/"]
["山东力明科技职业学院",36,"中药学",null,15,null,null,"http://edu.6789.com.cn/"]
["山东力明科技职业学院",37,"药学",null,15,null,null,"http://edu.6789.com.cn/"]
["山东力明科技职业学院",38,"针灸推拿",null,15,null,null,"http://edu.6789.com.cn/"]
["山东力明科技职业学院",39,"医学检验技术",null,10,null,null,"http://edu.6789.com.cn/"]
["山东力明科技职业学院",40,"医学影像技术",null,10,null,null,"http://edu.6789.com.cn/"]
["山东力明科技职业学院",41,"护理",null,40,null,null,"http://edu.6789.com.cn/"]
["山东力明科技职业学院",42,"计算机应用技术",null,10,null,null,"http://edu.6789.com.cn/"]
["山东力明科技职业学院",43,"婴幼儿托育服务与管理",null,10,null,null,"http://edu.6789.com.cn/"]
["山东力明科技职业学院",44,"眼视光技术",null,10,null,null,"http://edu.6789.com.cn/"]
["山东力明科技职业学院",45,"电子商务",null,10,null,null,"http://edu.6789.com.cn/"]
["山东力明科技职业学院",46,"早期教育",null,5,null,null,"http://edu.6789.com.cn/"]
["山东力明科技职业学院",47,"中医康复技术",null,5,null,null,"http://edu.6789.com.cn/"]
["山东力明科技职业学院",48,"康复治疗技术",null,5,null,null,"http://edu.6789.com.cn/"]
["山东力明科技职业学院",49,"艺术设计",null,5,null,null,"http://edu.6789.com.cn/"]
["山东力明科技职业学院",50,"宠物医疗技术",null,10,null,null,"http://edu.6789.com.cn/"]
["山东化工职业学院","AA","应用化工技术",null,30,null,null,"http://zsjy.qledu.net/info/1244/3641.htm"]
["山东化工职业学院","AB","石油化工技术",null,20,null,null,"http://zsjy.qledu.net/info/1244/3641.htm"]
["山东化工职业学院","AC","高分子材料智能制造技术",null,10,null,null,"http://zsjy.qledu.net/info/1244/3641.htm"]
["山东化工职业学院","AD","精细化工技术",null,15,null,null,"http://zsjy.qledu.net/info/1244/3641.htm"]
["山东化工职业学院","AE","化工安全技术",null,10,null,null,"http://zsjy.qledu.net/info/1244/3641.htm"]
["山东化工职业学院","AF","分析检验技术",null,15,null,null,"http://zsjy.qledu.net/info/1244/3641.htm"]
["山东化工职业学院","AG","海洋化工技术",null,10,null,null,"http://zsjy.qledu.net/info/1244/3641.htm"]
["山东化工职业学院","AH","化学制药技术",null,10,null,null,"http://zsjy.qledu.net/info/1244/3641.htm"]
["山东化工职业学院","AJ","环境工程技术",null,10,null,null,"http://zsjy.qledu.net/info/1244/3641.htm"]
["山东化工职业学院","BB","电气自动化技术",null,10,null,null,"http://zsjy.qledu.net/info/1244/3641.htm"]
["山东化工职业学院","BC","工业过程自动化技术",null,10,null,null,"http://zsjy.qledu.net/info/1244/3641.htm"]
["山东化工职业学院","BD","工业自动化仪表技术",null,10,null,null,"http://zsjy.qledu.net/info/1244/3641.htm"]
["山东化工职业学院","BE","供用电技术",null,10,null,null,"http://zsjy.qledu.net/info/1244/3641.htm"]
["山东化工职业学院","BF","机电一体化技术",null,10,null,null,"http://zsjy.qledu.net/info/1244/3641.htm"]
["山东化工职业学院","BG","工业机器人技术",null,10,null,null,"http://zsjy.qledu.net/info/1244/3641.htm"]
["山东化工职业学院","BH","机械制造及自动化",null,10,null,null,"http://zsjy.qledu.net/info/1244/3641.htm"]
["山东化工职业学院","BJ","应用电子技术",null,10,null,null,"http://zsjy.qledu.net/info/1244/3641.htm"]
["山东化工职业学院","CC","物联网应用技术",null,10,null,null,"http://zsjy.qledu.net/info/1244/3641.htm"]
["山东化工职业学院","CD","数字媒体技术",null,10,null,null,"http://zsjy.qledu.net/info/1244/3641.htm"]
["山东化工职业学院","CE","软件技术",null,10,null,null,"http://zsjy.qledu.net/info/1244/3641.htm"]
["山东化工职业学院","CF","人工智能技术应用",null,10,null,null,"http://zsjy.qledu.net/info/1244/3641.htm"]
["山东化工职业学院","CG","大数据技术",null,"10",null,null,"http://zsjy.qledu.net/info/1244/3641.htm"]
["山东化工职业学院","CH","计算机应用技术",null,10,null,null,"http://zsjy.qledu.net/info/1244/3641.htm"]
["山东化工职业学院","DD","大数据与会计",null,20,null,null,"http://zsjy.qledu.net/info/1244/3641.htm"]
["山东化工职业学院","DE","市场营销",null,20,null,null,"http://zsjy.qledu.net/info/1244/3641.htm"]
["山东化工职业学院","DF","现代物流管理",null,15,null,null,"http://zsjy.qledu.net/info/1244/3641.htm"]
["山东化工职业学院","DG","电子商务",null,15,null,null,"http://zsjy.qledu.net/info/1244/3641.htm"]
["山东化工职业学院","DH","跨境电子商务",null,10,null,null,"http://zsjy.qledu.net/info/1244/3641.htm"]
["山东化工职业学院","DJ","网络营销与直播电商",null,10,null,null,"http://zsjy.qledu.net/info/1244/3641.htm"]
["山东化工职业学院","EE","空中乘务",null,100,null,null,"http://zsjy.qledu.net/info/1244/3641.htm"]
["山东化工职业学院","EF","机场运行服务与管理",null,70,null,null,"http://zsjy.qledu.net/info/1244/3641.htm"]
["山东化工职业学院","EG","高速铁路客运服务",null,70,null,null,"http://zsjy.qledu.net/info/1244/3641.htm"]
["山东理工职业学院","A1","机电一体化技术",null,10,6000,"机电工程学院","http://zsjy.sdpu.edu.cn/info/1009/1821.htm"]
["山东理工职业学院","A2","工业互联网应用",null,10,5000,"机电工程学院","http://zsjy.sdpu.edu.cn/info/1009/1821.htm"]
["山东理工职业学院","A3","汽车检测与维修技术",null,30,6800,"汽车工程学院","http://zsjy.sdpu.edu.cn/info/1009/1821.htm"]
["山东理工职业学院","A4","汽车检测与维修技术(中外合作办学)(中德合作办学)",null,20,10800,"汽车工程学院","http://zsjy.sdpu.edu.cn/info/1009/1821.htm"]
["山东理工职业学院","A5","汽车技术服务与营销",null,30,6800,"汽车工程学院","http://zsjy.sdpu.edu.cn/info/1009/1821.htm"]
["山东理工职业学院","A6","新能源汽车技术",null,40,6800,"汽车工程学院","http://zsjy.sdpu.edu.cn/info/1009/1821.htm"]
["山东理工职业学院","A7","智能网联汽车技术",null,30,6800,"汽车工程学院","http://zsjy.sdpu.edu.cn/info/1009/1821.htm"]
["山东理工职业学院","A8","空中乘务",null,10,4800,"航空学院","http://zsjy.sdpu.edu.cn/info/1009/1821.htm"]
["山东理工职业学院","A9","飞机机电设备维修",null,10,6000,"航空学院","http://zsjy.sdpu.edu.cn/info/1009/1821.htm"]
["山东理工职业学院","B1","无人机应用技术",null,10,6000,"航空学院","http://zsjy.sdpu.edu.cn/info/1009/1821.htm"]
["山东理工职业学院","B2","航海技术",null,20,5000,"航海学院","http://zsjy.sdpu.edu.cn/info/1009/1821.htm"]
["山东理工职业学院","B3","轮机工程技术",null,20,5000,"航海学院","http://zsjy.sdpu.edu.cn/info/1009/1821.htm"]
["山东理工职业学院","B4","国际邮轮乘务管理",null,10,4800,"航海学院","http://zsjy.sdpu.edu.cn/info/1009/1821.htm"]
["山东理工职业学院","B5","计算机应用技术",null,25,5000,"信息工程学院","http://zsjy.sdpu.edu.cn/info/1009/1821.htm"]
["山东理工职业学院","B6","计算机网络技术",null,25,5000,"信息工程学院","http://zsjy.sdpu.edu.cn/info/1009/1821.htm"]
["山东理工职业学院","B7","物联网应用技术",null,25,5000,"信息工程学院","http://zsjy.sdpu.edu.cn/info/1009/1821.htm"]
["山东理工职业学院","B8","光伏工程技术",null,10,6000,"能源与材料工程学院","http://zsjy.sdpu.edu.cn/info/1009/1821.htm"]
["山东理工职业学院","B9","电气自动化技术",null,10,6000,"能源与材料工程学院","http://zsjy.sdpu.edu.cn/info/1009/1821.htm"]
["山东理工职业学院","C1","环境工程技术",null,10,5000,"能酒与材料工程学院","http://zsjy.sdpu.edu.cn/info/1009/1821.htm"]
["山东理工职业学院","C2","应用化工技术",null,10,5000,"能酒与材料工程学院","http://zsjy.sdpu.edu.cn/info/1009/1821.htm"]
["山东理工职业学院","C3","药品生产技术",null,10,5000,"能酒与材料工程学院","http://zsjy.sdpu.edu.cn/info/1009/1821.htm"]
["山东理工职业学院","C4","储能材料技术",null,10,5000,"能酒与材料工程学院","http://zsjy.sdpu.edu.cn/info/1009/1821.htm"]
["山东理工职业学院","C5","分布式发电与智能微电网技术",null,10,5000,"能酒与材料工程学院","http://zsjy.sdpu.edu.cn/info/1009/1821.htm"]
["山东理工职业学院","C5","新能源装备技术",null,10,5000,"能酒与材料工程学院","http://zsjy.sdpu.edu.cn/info/1009/1821.htm"]
["山东理工职业学院","C7","工程造价",null,15,5000,"建筑工程学院","http://zsjy.sdpu.edu.cn/info/1009/1821.htm"]
["山东理工职业学院","C8","古建筑工程技术",null,25,5000,"建筑工程学院","http://zsjy.sdpu.edu.cn/info/1009/1821.htm"]
["山东理工职业学院","C9","大数据与会计",null,30,4800,"金融会计学院","http://zsjy.sdpu.edu.cn/info/1009/1821.htm"]
["山东理工职业学院","D1","大数据与财务管理",null,10,4800,"金融会计学院","http://zsjy.sdpu.edu.cn/info/1009/1821.htm"]
["山东理工职业学院","D2","财税大数据应用",null,20,4800,"金融会计学院","http://zsjy.sdpu.edu.cn/info/1009/1821.htm"]
["山东理工职业学院","D3","金融科技应用",null,20,4800,"金融会计学院","http://zsjy.sdpu.edu.cn/info/1009/1821.htm"]
["山东理工职业学院","D4","市场营销",null,40,4800,"商学院","http://zsjy.sdpu.edu.cn/info/1009/1821.htm"]
["山东理工职业学院","D5","电子商务",null,60,4800,"商学院","http://zsjy.sdpu.edu.cn/info/1009/1821.htm"]
["山东理工职业学院","D6","现代物流管理",null,40,4800,"商学院","http://zsjy.sdpu.edu.cn/info/1009/1821.htm"]
["山东理工职业学院","D7","跨境电子商务",null,30,4800,"商学院","http://zsjy.sdpu.edu.cn/info/1009/1821.htm"]
["山东理工职业学院","D8","视觉传达设计",null,10,6600,"文化旅游与艺术学院","http://zsjy.sdpu.edu.cn/info/1009/1821.htm"]
["山东理工职业学院","D9","环境艺术设计",null,10,6600,"文化旅游与艺术学院","http://zsjy.sdpu.edu.cn/info/1009/1821.htm"]
["山东理工职业学院","E1","宝玉石鉴定与加工",null,10,5000,"文化旅游与艺术学院","http://zsjy.sdpu.edu.cn/info/1009/1821.htm"]
["山东理工职业学院","E2","研学旅行管理与服务",null,15,4800,"文化旅游与艺术学院","http://zsjy.sdpu.edu.cn/info/1009/1821.htm"]
["山东理工职业学院","E3","族游管理",null,35,4800,"文化旅游与艺术学院","http://zsjy.sdpu.edu.cn/info/1009/1821.htm"]
["山东理工职业学院","E4","酒店管理与数字化运营",null,30,4800,"文化旅游与艺术学院","http://zsjy.sdpu.edu.cn/info/1009/1821.htm"]
["山东理工职业学院","E5","知识产权管理",null,30,4800,"知识产权学院","http://zsjy.sdpu.edu.cn/info/1009/1821.htm"]
["山东理工职业学院","E6","大数据与会计(中外合作办学)(中溪合作办学)",null,25,12000,"国际教育学院","http://zsjy.sdpu.edu.cn/info/1009/1821.htm"]
["山东理工职业学院","E7","竖幼儿托育服务与管理",null,5,4800,"中医康养康育学院","http://zsjy.sdpu.edu.cn/info/1009/1821.htm"]
["山东理工职业学院","E8","中医康复技术",null,10,5000,"中医康养康育学院","http://zsjy.sdpu.edu.cn/info/1009/1821.htm"]
["山东理工职业学院","E9","智慧健康养老服务与管理",null,5,4800,"中医康养康育学院","http://zsjy.sdpu.edu.cn/info/1009/1821.htm"]
["曲阜远东职业技术学院",null,"建筑设计",null,4,null,null,"https://www.fareast-edu.net/dept-zsxxw/posts/5050"]
["曲阜远东职业技术学院",null,"古建筑工程技术",null,3,null,null,"https://www.fareast-edu.net/dept-zsxxw/posts/5050"]
["曲阜远东职业技术学院",null,"工程造价",null,4,null,null,"https://www.fareast-edu.net/dept-zsxxw/posts/5050"]
["曲阜远东职业技术学院",null,"电气自动化技术",null,4,null,null,"https://www.fareast-edu.net/dept-zsxxw/posts/5050"]
["曲阜远东职业技术学院",null,"轨道交通通信信号设备制造与维护",null,4,null,null,"https://www.fareast-edu.net/dept-zsxxw/posts/5050"]
["曲阜远东职业技术学院",null,"无人机应用技术",null,4,null,null,"https://www.fareast-edu.net/dept-zsxxw/posts/5050"]
["曲阜远东职业技术学院",null,"新能源汽车技术",null,4,null,null,"https://www.fareast-edu.net/dept-zsxxw/posts/5050"]
["曲阜远东职业技术学院",null,"汽车电子技术",null,4,null,null,"https://www.fareast-edu.net/dept-zsxxw/posts/5050"]
["曲阜远东职业技术学院",null,"高速铁路客运服务",null,4,null,null,"https://www.fareast-edu.net/dept-zsxxw/posts/5050"]
["曲阜远东职业技术学院",null,"空中乘务",null,4,null,null,"https://www.fareast-edu.net/dept-zsxxw/posts/5050"]
["曲阜远东职业技术学院",null,"应用电子技术",null,4,null,null,"https://www.fareast-edu.net/dept-zsxxw/posts/5050"]
["曲阜远东职业技术学院",null,"计算机应用技术",null,4,null,null,"https://www.fareast-edu.net/dept-zsxxw/posts/5050"]
["曲阜远东职业技术学院",null,"计算机网络技术",null,4,null,null,"https://www.fareast-edu.net/dept-zsxxw/posts/5050"]
["曲阜远东职业技术学院",null,"软件技术",null,4,null,null,"https://www.fareast-edu.net/dept-zsxxw/posts/5050"]
["曲阜远东职业技术学院",null,"现代通信技术",null,4,null,null,"https://www.fareast-edu.net/dept-zsxxw/posts/5050"]
["曲阜远东职业技术学院",null,"数据中心运行与管理",null,4,null,null,"https://www.fareast-edu.net/dept-zsxxw/posts/5050"]
["曲阜远东职业技术学院",null,"护理",null,8,null,null,"https://www.fareast-edu.net/dept-zsxxw/posts/5050"]
["曲阜远东职业技术学院",null,"助产",null,1,null,null,"https://www.fareast-edu.net/dept-zsxxw/posts/5050"]
["曲阜远东职业技术学院",null,"药学",null,4,null,null,"https://www.fareast-edu.net/dept-zsxxw/posts/5050"]
["曲阜远东职业技术学院",null,"中药学",null,4,null,null,"https://www.fareast-edu.net/dept-zsxxw/posts/5050"]
["曲阜远东职业技术学院",null,"中医康复技术",null,4,null,null,"https://www.fareast-edu.net/dept-zsxxw/posts/5050"]
["曲阜远东职业技术学院",null,"医学检验技术",null,4,null,null,"https://www.fareast-edu.net/dept-zsxxw/posts/5050"]
["曲阜远东职业技术学院",null,"口腔医学技术",null,3,null,null,"https://www.fareast-edu.net/dept-zsxxw/posts/5050"]
["曲阜远东职业技术学院",null,"康复治疗技术",null,4,null,null,"https://www.fareast-edu.net/dept-zsxxw/posts/5050"]
["曲阜远东职业技术学院",null,"婴幼儿托育服务与管理",null,3,null,null,"https://www.fareast-edu.net/dept-zsxxw/posts/5050"]
["曲阜远东职业技术学院",null,"口腔卫生保健",null,4,null,null,"https://www.fareast-edu.net/dept-zsxxw/posts/5050"]
["曲阜远东职业技术学院",null,"财政支出绩效管理",null,4,null,null,"https://www.fareast-edu.net/dept-zsxxw/posts/5050"]
["曲阜远东职业技术学院",null,"金融服务与管理",null,4,null,null,"https://www.fareast-edu.net/dept-zsxxw/posts/5050"]
["曲阜远东职业技术学院",null,"大数据与会计",null,4,null,null,"https://www.fareast-edu.net/dept-zsxxw/posts/5050"]
["曲阜远东职业技术学院",null,"工商企业管理",null,"4",null,null,"https://www.fareast-edu.net/dept-zsxxw/posts/5050"]
["曲阜远东职业技术学院",null,"市场营销",null,4,null,null,"https://www.fareast-edu.net/dept-zsxxw/posts/5050"]
["曲阜远东职业技术学院",null,"电子商务",null,"5",null,null,"https://www.fareast-edu.net/dept-zsxxw/posts/5050"]
["曲阜远东职业技术学院",null,"网络营销与直播电商",null,4,null,null,"https://www.fareast-edu.net/dept-zsxxw/posts/5050"]
["曲阜远东职业技术学院",null,"旅游管理",null,4,null,null,"https://www.fareast-edu.net/dept-zsxxw/posts/5050"]
["曲阜远东职业技术学院",null,"数字媒体艺术设计",null,4,null,null,"https://www.fareast-edu.net/dept-zsxxw/posts/5050"]
["曲阜远东职业技术学院",null,"环境艺术设计",null,3,null,null,"https://www.fareast-edu.net/dept-zsxxw/posts/5050"]
["曲阜远东职业技术学院",null,"书画艺术",null,3,null,null,"https://www.fareast-edu.net/dept-zsxxw/posts/5050"]
["曲阜远东职业技术学院",null,"动漫设计",null,3,null,null,"https://www.fareast-edu.net/dept-zsxxw/posts/5050"]
["曲阜远东职业技术学院",null,"雕刻艺术设计",null,3,null,null,"https://www.fareast-edu.net/dept-zsxxw/posts/5050"]
["曲阜远东职业技术学院",null,"音乐表演",null,3,null,null,"https://www.fareast-edu.net/dept-zsxxw/posts/5050"]
["曲阜远东职业技术学院",null,"舞蹈表演",null,4,null,null,"https://www.fareast-edu.net/dept-zsxxw/posts/5050"]
["曲阜远东职业技术学院",null,"表演艺术",null,4,null,null,"https://www.fareast-edu.net/dept-zsxxw/posts/5050"]
["曲阜远东职业技术学院",null,"民族美术",null,4,null,null,"https://www.fareast-edu.net/dept-zsxxw/posts/5050"]
["曲阜远东职业技术学院",null,"播音与主持",null,3,null,null,"https://www.fareast-edu.net/dept-zsxxw/posts/5050"]
["曲阜远东职业技术学院",null,"融媒体技术与运营",null,4,null,null,"https://www.fareast-edu.net/dept-zsxxw/posts/5050"]
["曲阜远东职业技术学院",null,"网络直播与运营",null,4,null,null,"https://www.fareast-edu.net/dept-zsxxw/posts/5050"]
["曲阜远东职业技术学院",null,"早期教育",null,5,null,null,"https://www.fareast-edu.net/dept-zsxxw/posts/5050"]
["曲阜远东职业技术学院",null,"中文",null,4,null,null,"https://www.fareast-edu.net/dept-zsxxw/posts/5050"]
["曲阜远东职业技术学院",null,"电子竞技运动与管理",null,4,null,null,"https://www.fareast-edu.net/dept-zsxxw/posts/5050"]
["曲阜远东职业技术学院",null,"社区管理与服务",null,3,null,null,"https://www.fareast-edu.net/dept-zsxxw/posts/5050"]
["曲阜远东职业技术学院",null,"智慧健康养老服务与管理",null,4,null,null,"https://www.fareast-edu.net/dept-zsxxw/posts/5050"]
["山东文化产业职业学院","01","大数据与会计",null,null,11800,"工商管理学院","https://zs.sdcivc.edu.cn/zxgg/5da1f4e3097f4394b008241b5b5fd1c5.htm"]
["山东文化产业职业学院","02","商务管理",null,null,10800,"工商管理学院","https://zs.sdcivc.edu.cn/zxgg/5da1f4e3097f4394b008241b5b5fd1c5.htm"]
["山东文化产业职业学院","03","市场营销",null,null,9800,"工商管理学院","https://zs.sdcivc.edu.cn/zxgg/5da1f4e3097f4394b008241b5b5fd1c5.htm"]
["山东文化产业职业学院","04","跨境电子商务",null,null,12800,"工商管理学院","https://zs.sdcivc.edu.cn/zxgg/5da1f4e3097f4394b008241b5b5fd1c5.htm"]
["山东文化产业职业学院","05","旅游管理",null,null,9800,"工商管理学院","https://zs.sdcivc.edu.cn/zxgg/5da1f4e3097f4394b008241b5b5fd1c5.htm"]
["山东文化产业职业学院","06","酒店管理与数字化运营",null,null,8800,"工商管理学院","https://zs.sdcivc.edu.cn/zxgg/5da1f4e3097f4394b008241b5b5fd1c5.htm"]
["山东文化产业职业学院","07","会展策划与管理",null,null,9800,"工商管理学院","https://zs.sdcivc.edu.cn/zxgg/5da1f4e3097f4394b008241b5b5fd1c5.htm"]
["山东文化产业职业学院","08","康复治疗技术",null,null,11800,"医养健康学院","https://zs.sdcivc.edu.cn/zxgg/5da1f4e3097f4394b008241b5b5fd1c5.htm"]
["山东文化产业职业学院","09","健康大数据管理与服务",null,null,11800,"医养健康学院","https://zs.sdcivc.edu.cn/zxgg/5da1f4e3097f4394b008241b5b5fd1c5.htm"]
["山东文化产业职业学院",10,"健康管理",null,null,11800,"医养健康学院","https://zs.sdcivc.edu.cn/zxgg/5da1f4e3097f4394b008241b5b5fd1c5.htm"]
["山东文化产业职业学院",11,"婴幼儿托育服务与管理",null,null,12800,"医养健康学院","https://zs.sdcivc.edu.cn/zxgg/5da1f4e3097f4394b008241b5b5fd1c5.htm"]
["山东文化产业职业学院",12,"民族传统体育",null,null,14800,"医养健康学院","https://zs.sdcivc.edu.cn/zxgg/5da1f4e3097f4394b008241b5b5fd1c5.htm"]
["山东文化产业职业学院",13,"公共文化服务与管理",null,null,8800,"传媒学院","https://zs.sdcivc.edu.cn/zxgg/5da1f4e3097f4394b008241b5b5fd1c5.htm"]
["山东文化产业职业学院",14,"新闻采编与制作",null,null,9800,"传媒学院","https://zs.sdcivc.edu.cn/zxgg/5da1f4e3097f4394b008241b5b5fd1c5.htm"]
["山东文化产业职业学院",15,"摄影摄像技术",null,null,12800,"传媒学院","https://zs.sdcivc.edu.cn/zxgg/5da1f4e3097f4394b008241b5b5fd1c5.htm"]
["山东文化产业职业学院",16,"融媒体技术与运营",null,null,11800,"传媒学院","https://zs.sdcivc.edu.cn/zxgg/5da1f4e3097f4394b008241b5b5fd1c5.htm"]
["山东文化产业职业学院",17,"网络直播与运营",null,null,12980,"传媒学院","https://zs.sdcivc.edu.cn/zxgg/5da1f4e3097f4394b008241b5b5fd1c5.htm"]
["山东文化产业职业学院",18,"应用日语",null,null,9800,"传媒学院","https://zs.sdcivc.edu.cn/zxgg/5da1f4e3097f4394b008241b5b5fd1c5.htm"]
["山东文化产业职业学院",19,"党务工作",null,null,8800,"传媒学院","https://zs.sdcivc.edu.cn/zxgg/5da1f4e3097f4394b008241b5b5fd1c5.htm"]
["山东文化产业职业学院",20,"现代文秘",null,null,8800,"传媒学院","https://zs.sdcivc.edu.cn/zxgg/5da1f4e3097f4394b008241b5b5fd1c5.htm"]
["山东文化产业职业学院",21,"高速铁路动车组制造与维护",null,null,11800,"轨道交通学院","https://zs.sdcivc.edu.cn/zxgg/5da1f4e3097f4394b008241b5b5fd1c5.htm"]
["山东文化产业职业学院",22,"铁道通信与信息化技术",null,null,10800,"轨道交通学院","https://zs.sdcivc.edu.cn/zxgg/5da1f4e3097f4394b008241b5b5fd1c5.htm"]
["山东文化产业职业学院",23,"高速铁路客运服务",null,null,12800,"轨道交通学院","https://zs.sdcivc.edu.cn/zxgg/5da1f4e3097f4394b008241b5b5fd1c5.htm"]
["山东文化产业职业学院",24,"空中乘务",null,null,12800,"轨道交通学院","https://zs.sdcivc.edu.cn/zxgg/5da1f4e3097f4394b008241b5b5fd1c5.htm"]
["山东文化产业职业学院",25,"城市轨道交通运营管理",null,null,12800,"轨道交通学院","https://zs.sdcivc.edu.cn/zxgg/5da1f4e3097f4394b008241b5b5fd1c5.htm"]
["山东文化产业职业学院",26,"铁路物流管理",null,null,11800,"轨道交通学院","https://zs.sdcivc.edu.cn/zxgg/5da1f4e3097f4394b008241b5b5fd1c5.htm"]
["山东文化产业职业学院",27,"机械制造及自动化",null,null,11800,"智能制造学院","https://zs.sdcivc.edu.cn/zxgg/5da1f4e3097f4394b008241b5b5fd1c5.htm"]
["山东文化产业职业学院",28,"智能机电技术",null,null,11800,"智能制造学院","https://zs.sdcivc.edu.cn/zxgg/5da1f4e3097f4394b008241b5b5fd1c5.htm"]
["山东文化产业职业学院",29,"工业机器人技术",null,null,11800,"智能制造学院","https://zs.sdcivc.edu.cn/zxgg/5da1f4e3097f4394b008241b5b5fd1c5.htm"]
["山东文化产业职业学院",30,"电气自动化技术",null,null,15800,"智能制造学院","https://zs.sdcivc.edu.cn/zxgg/5da1f4e3097f4394b008241b5b5fd1c5.htm"]
["山东文化产业职业学院",31,"无人机应用技术",null,null,10800,"智能制造学院","https://zs.sdcivc.edu.cn/zxgg/5da1f4e3097f4394b008241b5b5fd1c5.htm"]
["山东文化产业职业学院",32,"新能源汽车技术",null,null,10800,"智能制造学院","https://zs.sdcivc.edu.cn/zxgg/5da1f4e3097f4394b008241b5b5fd1c5.htm"]
["山东文化产业职业学院",33,"建筑工程技术",null,null,10800,"信息工程学院","https://zs.sdcivc.edu.cn/zxgg/5da1f4e3097f4394b008241b5b5fd1c5.htm"]
["山东文化产业职业学院",34,"装配式建筑工程技术",null,null,10800,"信息工程学院","https://zs.sdcivc.edu.cn/zxgg/5da1f4e3097f4394b008241b5b5fd1c5.htm"]
["山东文化产业职业学院",35,"大数据技术",null,null,12800,"信息工程学院","https://zs.sdcivc.edu.cn/zxgg/5da1f4e3097f4394b008241b5b5fd1c5.htm"]
["山东文化产业职业学院",36,"动漫制作技术",null,null,13800,"信息工程学院","https://zs.sdcivc.edu.cn/zxgg/5da1f4e3097f4394b008241b5b5fd1c5.htm"]
["山东文化产业职业学院",37,"通信软件技术",null,null,13800,"信息工程学院","https://zs.sdcivc.edu.cn/zxgg/5da1f4e3097f4394b008241b5b5fd1c5.htm"]
["山东文化产业职业学院",38,"物联网应用技术",null,null,12800,"华为现代产业学院","https://zs.sdcivc.edu.cn/zxgg/5da1f4e3097f4394b008241b5b5fd1c5.htm"]
["山东文化产业职业学院",39,"计算机网络技术",null,null,12800,"华为现代产业学院","https://zs.sdcivc.edu.cn/zxgg/5da1f4e3097f4394b008241b5b5fd1c5.htm"]
["山东文化产业职业学院",40,"人工智能技术应用",null,null,12800,"华为现代产业学院","https://zs.sdcivc.edu.cn/zxgg/5da1f4e3097f4394b008241b5b5fd1c5.htm"]
["山东文化产业职业学院",41,"艺术设计",null,null,13800,"艺术学院","https://zs.sdcivc.edu.cn/zxgg/5da1f4e3097f4394b008241b5b5fd1c5.htm"]
["山东文化产业职业学院",42,"数字媒体艺术设计",null,null,13800,"艺术学院","https://zs.sdcivc.edu.cn/zxgg/5da1f4e3097f4394b008241b5b5fd1c5.htm"]
["山东文化产业职业学院",43,"环境艺术设计",null,null,12800,"艺术学院","https://zs.sdcivc.edu.cn/zxgg/5da1f4e3097f4394b008241b5b5fd1c5.htm"]
["山东文化产业职业学院",44,"音乐表演",null,null,48000,"打击乐学院","https://zs.sdcivc.edu.cn/zxgg/5da1f4e3097f4394b008241b5b5fd1c5.htm"]
["烟台黄金职业学院","4N","大数据与财务管理",null,null,9800,"黄金经济与管理领域","https://xb.ytgc.edu.cn/info/1061/2072.htm"]
["烟台黄金职业学院","4P","跨境电子商务",null,null,9800,"黄金经济与管理领域","https://xb.ytgc.edu.cn/info/1061/2072.htm"]
["烟台黄金职业学院","4Q","大数据技术",null,null,9800,"人工智能与互联网信息领域","https://xb.ytgc.edu.cn/info/1061/2072.htm"]
["烟台黄金职业学院","4R","虚拟现实技术应用",null,null,9800,"人工智能与互联网信息领域","https://xb.ytgc.edu.cn/info/1061/2072.htm"]
["烟台黄金职业学院","4S","工业机器人技术",null,null,9800,"制造智能化领域","https://xb.ytgc.edu.cn/info/1061/2072.htm"]
["烟台黄金职业学院","4T","电气自动化技术",null,null,9800,"制造智能化领域","https://xb.ytgc.edu.cn/info/1061/2072.htm"]
["烟台黄金职业学院","4U","表演艺术",null,null,11800,"人文教育领域","https://xb.ytgc.edu.cn/info/1061/2072.htm"]
["烟台黄金职业学院","4V","运动健康指导",null,null,9800,"人文教育领域","https://xb.ytgc.edu.cn/info/1061/2072.htm"]
["烟台黄金职业学院","4W","数字媒体艺术设计",null,null,9800,"珠宝首饰与艺术设计领域","https://xb.ytgc.edu.cn/info/1061/2072.htm"]
["烟台黄金职业学院","4X","艺术设计",null,null,9800,"珠宝首饰与艺术设计领域","https://xb.ytgc.edu.cn/info/1061/2072.htm"]
["烟台黄金职业学院","4Y","无人机测绘技术",null,null,9800,"测绘与资源勘查领域","https://xb.ytgc.edu.cn/info/1061/2072.htm"]
["烟台黄金职业学院","5A","测绘工程技术",null,null,8800,"测绘与资源勘查领域","https://xb.ytgc.edu.cn/info/1061/2072.htm"]
["烟台黄金职业学院","5B","建筑工程技术",null,null,8800,"资源与土木工程领域","https://xb.ytgc.edu.cn/info/1061/2072.htm"]
["烟台黄金职业学院","5C","工程造价",null,null,8800,"资源与土木工程领域","https://xb.ytgc.edu.cn/info/1061/2072.htm"]
["烟台黄金职业学院","5D","环境工程技术",null,null,8800,"环境与材料工程领域","https://xb.ytgc.edu.cn/info/1061/2072.htm"]
["烟台黄金职业学院","5E","新型建筑材料技术",null,null,9800,"环境与材料工程领域","https://xb.ytgc.edu.cn/info/1061/2072.htm"]
["山东圣翰财贸职业学院",24,"旅游管理",null,null,12800,null,"https://www.sdshxy.cn/"]
["山东圣翰财贸职业学院",25,"酒店管理与数字化运营",null,null,12800,null,"https://www.sdshxy.cn/"]
["山东圣翰财贸职业学院",26,"数控技术",null,null,12800,null,"https://www.sdshxy.cn/"]
["山东圣翰财贸职业学院",27,"软件技术",null,null,12800,null,"https://www.sdshxy.cn/"]
["山东圣翰财贸职业学院",28,"婴幼儿托育服务与管理",null,null,13800,null,"https://www.sdshxy.cn/"]
["山东圣翰财贸职业学院",29,"康复治疗技术",null,null,13800,null,"https://www.sdshxy.cn/"]
["山东圣翰财贸职业学院",30,"医学美容技术",null,null,13800,null,"https://www.sdshxy.cn/"]
["山东圣翰财贸职业学院",31,"电子商务",null,null,12800,null,"https://www.sdshxy.cn/"]
["日照航海工程职业学院","1A","物联网应用技术",null,8,9800,null,"http://www.rzmevc.com/info/1034/3986.htm"]
["日照航海工程职业学院","1B","计算机网络技术",null,"15",10800,null,"http://www.rzmevc.com/info/1034/3986.htm"]
["日照航海工程职业学院","1C","软件技术",null,8,9800,null,"http://www.rzmevc.com/info/1034/3986.htm"]
["日照航海工程职业学院","1D","信息安全技术应用",null,8,9800,null,"http://www.rzmevc.com/info/1034/3986.htm"]
["日照航海工程职业学院","1E","融媒体技术与运营",null,15,9800,null,"http://www.rzmevc.com/info/1034/3986.htm"]
["日照航海工程职业学院","1F","网络直播与运营",null,8,9800,null,"http://www.rzmevc.com/info/1034/3986.htm"]
["日照航海工程职业学院",71,"航海技术",null,5,10800,null,"http://www.rzmevc.com/info/1034/3986.htm"]
["日照航海工程职业学院",72,"轮机工程技术",null,5,10800,null,"http://www.rzmevc.com/info/1034/3986.htm"]
["日照航海工程职业学院",73,"港口与航运管理",null,10,8800,null,"http://www.rzmevc.com/info/1034/3986.htm"]
["日照航海工程职业学院",74,"建筑室内设计",null,10,9800,null,"http://www.rzmevc.com/info/1034/3986.htm"]
["日照航海工程职业学院",75,"建筑工程技术",null,15,8800,null,"http://www.rzmevc.com/info/1034/3986.htm"]
["日照航海工程职业学院",76,"工程造价",null,10,8800,null,"http://www.rzmevc.com/info/1034/3986.htm"]
["日照航海工程职业学院",77,"电梯工程技术",null,10,9800,null,"http://www.rzmevc.com/info/1034/3986.htm"]
["日照航海工程职业学院",78,"机电一体化技术",null,20,10800,null,"http://www.rzmevc.com/info/1034/3986.htm"]
["日照航海工程职业学院",79,"智能控制技术",null,9,9800,null,"http://www.rzmevc.com/info/1034/3986.htm"]
["日照航海工程职业学院",80,"新能源汽车技术",null,15,9800,null,"http://www.rzmevc.com/info/1034/3986.htm"]
["日照航海工程职业学院",81,"应急救援技术",null,10,9800,null,"http://www.rzmevc.com/info/1034/3986.htm"]
["日照航海工程职业学院",82,"建筑消防技术",null,20,9800,null,"http://www.rzmevc.com/info/1034/3986.htm"]
["日照航海工程职业学院",83,"高速铁路客运服务",null,10,8800,null,"http://www.rzmevc.com/info/1034/3986.htm"]
["日照航海工程职业学院",84,"国际邮轮乘务管理",null,8,9800,null,"http://www.rzmevc.com/info/1034/3986.htm"]
["日照航海工程职业学院",85,"婴幼儿托育服务与管理",null,15,9800,null,"http://www.rzmevc.com/info/1034/3986.htm"]
["日照航海工程职业学院",86,"大数据与财务管理",null,8,8800,null,"http://www.rzmevc.com/info/1034/3986.htm"]
["日照航海工程职业学院",87,"电子商务",null,10,9800,null,"http://www.rzmevc.com/info/1034/3986.htm"]
["日照航海工程职业学院",88,"现代物流管理",null,8,8800,null,"http://www.rzmevc.com/info/1034/3986.htm"]
["日照航海工程职业学院",89,"酒店管理与数字化运营",null,8,9800,null,"http://www.rzmevc.com/info/1034/3986.htm"]
["日照航海工程职业学院",90,"艺术设计",null,10,9800,null,"http://www.rzmevc.com/info/1034/3986.htm"]
["日照航海工程职业学院",91,"表演艺术",null,8,10800,null,"http://www.rzmevc.com/info/1034/3986.htm"]
["日照航海工程职业学院",92,"药品经营与管理",null,8,8800,null,"http://www.rzmevc.com/info/1034/3986.htm"]
["日照航海工程职业学院",93,"中医养生保健",null,10,8800,null,"http://www.rzmevc.com/info/1034/3986.htm"]
["日照航海工程职业学院",94,"医学检验技术",null,15,9800,null,"http://www.rzmevc.com/info/1034/3986.htm"]
["日照航海工程职业学院",95,"口腔医学技术",null,20,9800,null,"http://www.rzmevc.com/info/1034/3986.htm"]
["日照航海工程职业学院",96,"康复治疗技术",null,10,9800,null,"http://www.rzmevc.com/info/1034/3986.htm"]
["日照航海工程职业学院",97,"健康管理",null,15,8800,null,"http://www.rzmevc.com/info/1034/3986.htm"]
["日照航海工程职业学院",98,"眼视光技术",null,8,8800,null,"http://www.rzmevc.com/info/1034/3986.htm"]
["日照航海工程职业学院",99,"电子信息工程技术",null,8,9800,null,"http://www.rzmevc.com/info/1034/3986.htm"]
["潍坊工商职业学院","A1","电气自动化技术",null,20,8800,null,"http://zjc.wfgsxy.com/info/1090/1754.htm"]
["潍坊工商职业学院","A2","工业机器人技术",null,20,8800,null,"http://zjc.wfgsxy.com/info/1090/1754.htm"]
["潍坊工商职业学院","A3","机电一体化技术",null,20,8800,null,"http://zjc.wfgsxy.com/info/1090/1754.htm"]
["潍坊工商职业学院","A4","机械制造及自动化",null,20,8800,null,"http://zjc.wfgsxy.com/info/1090/1754.htm"]
["潍坊工商职业学院","A5","汽车制造与试验技术",null,20,8800,null,"http://zjc.wfgsxy.com/info/1090/1754.htm"]
["潍坊工商职业学院","A6","数控技术",null,20,8800,null,"http://zjc.wfgsxy.com/info/1090/1754.htm"]
["潍坊工商职业学院","A7","新能源汽车技术",null,20,8800,null,"http://zjc.wfgsxy.com/info/1090/1754.htm"]
["潍坊工商职业学院","B1","工程造价",null,20,8800,null,"http://zjc.wfgsxy.com/info/1090/1754.htm"]
["潍坊工商职业学院","B2","直升机驾驶技术","与山东新锐通用航空公司合作",5,13200,null,"http://zjc.wfgsxy.com/info/1090/1754.htm"]
["潍坊工商职业学院","B3","民航安全技术管理","与山东新锐通用航空公司合作",20,13200,null,"http://zjc.wfgsxy.com/info/1090/1754.htm"]
["潍坊工商职业学院","B4","通用航空器维修","与山东新锐通用航空公司合作",20,13200,null,"http://zjc.wfgsxy.com/info/1090/1754.htm"]
["潍坊工商职业学院","B5","通用航空航务技术","与山东新锐通用航空公司合作",25,13200,null,"http://zjc.wfgsxy.com/info/1090/1754.htm"]
["潍坊工商职业学院","B6","建筑工程技术",null,20,8800,null,"http://zjc.wfgsxy.com/info/1090/1754.htm"]
["潍坊工商职业学院","B7","建筑智能化工程技术",null,10,8800,null,"http://zjc.wfgsxy.com/info/1090/1754.htm"]
["潍坊工商职业学院","B8","建筑装饰工程技术",null,10,8800,null,"http://zjc.wfgsxy.com/info/1090/1754.htm"]
["潍坊工商职业学院","B9","畜牧兽医",null,20,8600,null,"http://zjc.wfgsxy.com/info/1090/1754.htm"]
["潍坊工商职业学院","H1","食品检验检测技术",null,20,8600,null,"http://zjc.wfgsxy.com/info/1090/1754.htm"]
["潍坊工商职业学院","H2","生态农业技术",null,5,8600,null,"http://zjc.wfgsxy.com/info/1090/1754.htm"]
["潍坊工商职业学院","H3","现代农业经济管理",null,5,8600,null,"http://zjc.wfgsxy.com/info/1090/1754.htm"]
["潍坊工商职业学院","C1","大数据与财务管理",null,20,8600,null,"http://zjc.wfgsxy.com/info/1090/1754.htm"]
["潍坊工商职业学院","C2","大数据与会计",null,20,8600,null,"http://zjc.wfgsxy.com/info/1090/1754.htm"]
["潍坊工商职业学院","C3","金融服务与管理",null,10,8600,null,"http://zjc.wfgsxy.com/info/1090/1754.htm"]
["潍坊工商职业学院","C4","大数据与会计",null,20,15000,null,"http://zjc.wfgsxy.com/info/1090/1754.htm"]
["潍坊工商职业学院","C5","电子商务",null,10,8800,null,"http://zjc.wfgsxy.com/info/1090/1754.htm"]
["潍坊工商职业学院","C6","酒店管理与数字化运营",null,10,8600,null,"http://zjc.wfgsxy.com/info/1090/1754.htm"]
["潍坊工商职业学院","C7","旅游管理",null,10,8600,null,"http://zjc.wfgsxy.com/info/1090/1754.htm"]
["潍坊工商职业学院","C8","市场营销",null,10,8600,null,"http://zjc.wfgsxy.com/info/1090/1754.htm"]
["潍坊工商职业学院","E1","口腔医学技术","与山东牙道医疗科技有限公司合作",10,8800,null,"http://zjc.wfgsxy.com/info/1090/1754.htm"]
["潍坊工商职业学院","E2","医学检验技术",null,10,8800,null,"http://zjc.wfgsxy.com/info/1090/1754.htm"]
["潍坊工商职业学院","E3","医学营养",null,10,8800,null,"http://zjc.wfgsxy.com/info/1090/1754.htm"]
["潍坊工商职业学院","E4","医学影像技术",null,10,8800,null,"http://zjc.wfgsxy.com/info/1090/1754.htm"]
["潍坊工商职业学院","E5","中医养生保健",null,10,8800,null,"http://zjc.wfgsxy.com/info/1090/1754.htm"]
["潍坊工商职业学院","F1","服装设计与工艺",null,10,8600,null,"http://zjc.wfgsxy.com/info/1090/1754.htm"]
["潍坊工商职业学院","F2","婴幼儿托育服务与管理",null,30,8800,null,"http://zjc.wfgsxy.com/info/1090/1754.htm"]
["潍坊工商职业学院","G1","大数据技术",null,10,8800,null,"http://zjc.wfgsxy.com/info/1090/1754.htm"]
["潍坊工商职业学院","G2","电子信息工程技术",null,10,8800,null,"http://zjc.wfgsxy.com/info/1090/1754.htm"]
["潍坊工商职业学院","G3","动漫制作技术",null,10,8800,null,"http://zjc.wfgsxy.com/info/1090/1754.htm"]
["潍坊工商职业学院","G4","计算机应用技术",null,20,8800,null,"http://zjc.wfgsxy.com/info/1090/1754.htm"]
["潍坊工商职业学院","G6","软件技术",null,10,8800,null,"http://zjc.wfgsxy.com/info/1090/1754.htm"]
["潍坊工商职业学院","G7","物联网应用技术",null,10,8800,null,"http://zjc.wfgsxy.com/info/1090/1754.htm"]
["潍坊工商职业学院","G8","计算机应用技术",null,10,15000,null,"http://zjc.wfgsxy.com/info/1090/1754.htm"]
["烟台南山学院",43,"大数据技术",null,15,10800,null,"http://zs.nanshan.edu.cn/info/1015/2694.htm"]
["烟台南山学院",44,"软件技术",null,15,10800,null,"http://zs.nanshan.edu.cn/info/1015/2694.htm"]
["烟台南山学院",45,"动漫制作技术",null,10,9800,null,"http://zs.nanshan.edu.cn/info/1015/2694.htm"]
["烟台南山学院",46,"移动互联应用技术",null,15,9800,null,"http://zs.nanshan.edu.cn/info/1015/2694.htm"]
["烟台南山学院",47,"计算机网络技术",null,10,10800,null,"http://zs.nanshan.edu.cn/info/1015/2694.htm"]
["烟台南山学院",48,"电气自动化技术",null,15,9800,null,"http://zs.nanshan.edu.cn/info/1015/2694.htm"]
["烟台南山学院",49,"智慧健康养老服务与管理",null,10,9800,null,"http://zs.nanshan.edu.cn/info/1015/2694.htm"]
["烟台南山学院",50,"社区康复",null,15,9800,null,"http://zs.nanshan.edu.cn/info/1015/2694.htm"]
["烟台南山学院",51,"机电一体化技术",null,20,9800,null,"http://zs.nanshan.edu.cn/info/1015/2694.htm"]
["烟台南山学院",52,"机械制造及自动化",null,10,9800,null,"http://zs.nanshan.edu.cn/info/1015/2694.htm"]
["烟台南山学院",53,"材料成型及控制技术",null,15,9800,null,"http://zs.nanshan.edu.cn/info/1015/2694.htm"]
["烟台南山学院",54,"电子商务",null,10,9800,null,"http://zs.nanshan.edu.cn/info/1015/2694.htm"]
["烟台南山学院",55,"商务数据分析与应用",null,10,9800,null,"http://zs.nanshan.edu.cn/info/1015/2694.htm"]
["烟台南山学院",56,"服装与服饰设计",null,15,11800,null,"http://zs.nanshan.edu.cn/info/1015/2694.htm"]
["烟台南山学院",57,"现代家用纺织品设计",null,10,9800,null,"http://zs.nanshan.edu.cn/info/1015/2694.htm"]
["烟台南山学院",58,"艺术设计",null,15,11800,null,"http://zs.nanshan.edu.cn/info/1015/2694.htm"]
["烟台南山学院",59,"广告艺术设计",null,15,11800,null,"http://zs.nanshan.edu.cn/info/1015/2694.htm"]
["烟台南山学院",60,"工程造价",null,20,9800,null,"http://zs.nanshan.edu.cn/info/1015/2694.htm"]
["烟台南山学院",61,"护理",null,20,10800,null,"http://zs.nanshan.edu.cn/info/1015/2694.htm"]
["烟台南山学院",62,"大数据与财务管理",null,15,9800,null,"http://zs.nanshan.edu.cn/info/1015/2694.htm"]
["烟台南山学院",63,"大数据与会计",null,20,10800,null,"http://zs.nanshan.edu.cn/info/1015/2694.htm"]
["烟台南山学院",64,"高分子材料智能制造技术",null,15,9800,null,"http://zs.nanshan.edu.cn/info/1015/2694.htm"]
["烟台南山学院",65,"石油化工技术",null,15,9800,null,"http://zs.nanshan.edu.cn/info/1015/2694.htm"]
["烟台南山学院",66,"酒店管理与数字化运营",null,10,9800,null,"http://zs.nanshan.edu.cn/info/1015/2694.htm"]
["烟台南山学院",67,"空中乘务",null,10,10800,null,"http://zs.nanshan.edu.cn/info/1015/2694.htm"]
["烟台南山学院",68,"旅游管理",null,10,9800,null,"http://zs.nanshan.edu.cn/info/1015/2694.htm"]
["烟台南山学院",69,"食品生物技术",null,10,9800,null,"http://zs.nanshan.edu.cn/info/1015/2694.htm"]
["烟台南山学院",70,"工商企业管理",null,10,9800,null,"http://zs.nanshan.edu.cn/info/1015/2694.htm"]
["烟台南山学院",71,"市场营销",null,15,9800,null,"http://zs.nanshan.edu.cn/info/1015/2694.htm"]
["烟台南山学院",72,"现代物流管理",null,10,9800,null,"http://zs.nanshan.edu.cn/info/1015/2694.htm"]
["烟台南山学院",73,"婴幼儿托育服务与管理",null,10,10800,null,"http://zs.nanshan.edu.cn/info/1015/2694.htm"]
["烟台南山学院",74,"音乐表演",null,15,12800,null,"http://zs.nanshan.edu.cn/info/1015/2694.htm"]
["烟台南山学院",75,"舞蹈表演",null,10,12800,null,"http://zs.nanshan.edu.cn/info/1015/2694.htm"]
["烟台南山学院",76,"人力资源管理",null,10,9800,null,"http://zs.nanshan.edu.cn/info/1015/2694.htm"]
["烟台南山学院",77,"大数据与审计",null,10,9800,null,"http://zs.nanshan.edu.cn/info/1015/2694.htm"]
["烟台南山学院",78,"金融服务与管理",null,10,9800,null,"http://zs.nanshan.edu.cn/info/1015/2694.htm"]
["烟台南山学院",79,"商务英语",null,10,9800,null,"http://zs.nanshan.edu.cn/info/1015/2694.htm"]
["烟台南山学院",80,"商务日语",null,10,9800,null,"http://zs.nanshan.edu.cn/info/1015/2694.htm"]
["烟台南山学院",81,"高分子合成技术",null,10,9800,null,"http://zs.nanshan.edu.cn/info/1015/2694.htm"]
["滨州科技职业学院","38","大数据技术",null,40,null,null,"https://zs.sdbky.cn/info/1011/1772.htm"]
["滨州科技职业学院","39","大数据与会计",null,30,null,null,"https://zs.sdbky.cn/info/1011/1772.htm"]
["滨州科技职业学院","40","电气自动化技术",null,20,null,null,"https://zs.sdbky.cn/info/1011/1772.htm"]
["滨州科技职业学院","41","电子商务",null,30,null,null,"https://zs.sdbky.cn/info/1011/1772.htm"]
["滨州科技职业学院","42","高速铁路客运服务",null,20,null,null,"https://zs.sdbky.cn/info/1011/1772.htm"]
["滨州科技职业学院","43","机电一体化技术",null,30,null,null,"https://zs.sdbky.cn/info/1011/1772.htm"]
["滨州科技职业学院","44","计算机应用技术",null,40,null,null,"https://zs.sdbky.cn/info/1011/1772.htm"]
["滨州科技职业学院","45","康复治疗技术",null,20,null,null,"https://zs.sdbky.cn/info/1011/1772.htm"]
["滨州科技职业学院","46","空中乘务",null,20,null,null,"https://zs.sdbky.cn/info/1011/1772.htm"]
["滨州科技职业学院","47","口腔医学技术",null,10,null,null,"https://zs.sdbky.cn/info/1011/1772.htm"]
["滨州科技职业学院","48","跨境电子商务",null,30,null,null,"https://zs.sdbky.cn/info/1011/1772.htm"]
["滨州科技职业学院","49","旅游管理",null,10,null,null,"https://zs.sdbky.cn/info/1011/1772.htm"]
["滨州科技职业学院","50","人工智能技术应用",null,30,null,null,"https://zs.sdbky.cn/info/1011/1772.htm"]
["滨州科技职业学院","51","数字媒体技术",null,35,null,null,"https://zs.sdbky.cn/info/1011/1772.htm"]
["滨州科技职业学院","52","网络营销与直播电商",null,20,null,null,"https://zs.sdbky.cn/info/1011/1772.htm"]
["滨州科技职业学院","53","无人机应用技术",null,30,null,null,"https://zs.sdbky.cn/info/1011/1772.htm"]
["滨州科技职业学院","54","新能源汽车技术",null,20,null,null,"https://zs.sdbky.cn/info/1011/1772.htm"]
["滨州科技职业学院","55","眼视光技术",null,15,null,null,"https://zs.sdbky.cn/info/1011/1772.htm"]
["滨州科技职业学院","56","医学检验技术",null,15,null,null,"https://zs.sdbky.cn/info/1011/1772.htm"]
["滨州科技职业学院","57","婴幼儿托育服务与管理",null,10,null,null,"https://zs.sdbky.cn/info/1011/1772.htm"]
["滨州科技职业学院","58","智能控制技术",null,20,null,null,"https://zs.sdbky.cn/info/1011/1772.htm"]
["滨州科技职业学院","59","中药学",null,5,null,null,"https://zs.sdbky.cn/info/1011/1772.htm"]
["山东城市服务职业学院","02","烹饪工艺与营养",null,30,4800,null,"https://sdcc.edu.cn/zhaojiuban/detail/15575"]
["山东城市服务职业学院","04","餐饮智能管理",null,15,4800,null,"https://sdcc.edu.cn/zhaojiuban/detail/15575"]
["山东城市服务职业学院","06","食品检验检测技术",null,20,4800,null,"https://sdcc.edu.cn/zhaojiuban/detail/15575"]
["山东城市服务职业学院","08","食品营养与健康",null,10,4800,null,"https://sdcc.edu.cn/zhaojiuban/detail/15575"]
["山东城市服务职业学院",10,"食品智能加工技术",null,15,4800,null,"https://sdcc.edu.cn/zhaojiuban/detail/15575"]
["山东城市服务职业学院",12,"西式烹饪工艺",null,20,4800,null,"https://sdcc.edu.cn/zhaojiuban/detail/15575"]
["山东城市服务职业学院",14,"中西面点工艺",null,30,4800,null,"https://sdcc.edu.cn/zhaojiuban/detail/15575"]
["山东城市服务职业学院",16,"营养配餐",null,10,4800,null,"https://sdcc.edu.cn/zhaojiuban/detail/15575"]
["山东城市服务职业学院",18,"葡萄酒文化与营销",null,10,4800,null,"https://sdcc.edu.cn/zhaojiuban/detail/15575"]
["山东城市服务职业学院",20,"智能制造装备技术",null,10,5000,null,"https://sdcc.edu.cn/zhaojiuban/detail/15575"]
["山东城市服务职业学院",22,"工业互联网应用",null,10,5000,null,"https://sdcc.edu.cn/zhaojiuban/detail/15575"]
["山东城市服务职业学院",24,"物联网应用技术",null,10,5000,null,"https://sdcc.edu.cn/zhaojiuban/detail/15575"]
["山东城市服务职业学院",26,"智能光电技术应用",null,10,5000,null,"https://sdcc.edu.cn/zhaojiuban/detail/15575"]
["山东城市服务职业学院",27,"大数据与会计",null,20,4800,null,"https://sdcc.edu.cn/zhaojiuban/detail/15575"]
["山东城市服务职业学院",30,"数字媒体技术",null,20,5000,null,"https://sdcc.edu.cn/zhaojiuban/detail/15575"]
["山东城市服务职业学院",32,"美容美体艺术",null,20,7000,null,"https://sdcc.edu.cn/zhaojiuban/detail/15575"]
["山东城市服务职业学院",35,"人物形象设计",null,20,7000,null,"https://sdcc.edu.cn/zhaojiuban/detail/15575"]
["山东城市服务职业学院","39","智慧旅游技术应用",null,20,4800,null,"https://sdcc.edu.cn/zhaojiuban/detail/15575"]

{"sheet":"待更新院校","index":2,"n_rows":15,"n_cols":6,"rows_kept":15,"cut":false,"hidden":false,"merged":[]}
["序号","学校","单独招生\n（普通类）","单独招生\n（退役军人类）","综合评价招生","章程"]
[25,"青岛黄海学院",300,50,200,"https://www.qdhhc.edu.cn/zhaoshengban/p_detail.aspx?id=38653"]
[32,"济宁职业技术学院",400,0,300,"https://www.jnzyjsxy.cn/zsc/info/1005/5301.htm"]
[42,"青岛职业技术学院",775,0,200,"http://www.zsc.qtc.edu.cn/info/1042/1845.htm"]
[45,"东营科技职业学院",730,20,250,"http://ao.dykj.edu.cn/info/1021/1401.htm"]
[46,"山东华宇工学院",700,0,300,"https://zhaosheng.huayu.edu.cn/info/1119/2003.htm"]
[50,"山东艺术设计职业学院",500,0,100]
[53,"山东传媒职业学院",850,50,300]
[54,"青岛航空科技职业学院",1450,0,0,"https://www.qdhkxy.com/zszl/zsdt-View-60-2869.html"]
[61,"山东海事职业学院",1240,40,480,"https://www.sdm.net.cn/"]
[63,"青岛求实职业技术学院",1780,0,100,"http://www.qdqs.com/"]
[66,"山东铝业职业学院",850,10,1400,"https://slxy.chinalco.com.cn/zsjy/4444/202401/t20240109_120286.html"]
[67,"山东英才学院",1500,50,780,"https://www.sdycu.edu.cn/"]
[76,"烟台城市科技职业学院",1000,30,470,"https://www.ytcc.edu.cn/"]
[77,"潍坊食品科技职业学院",1040,0,200,"http://xsc.wfspxy.com/34628.html"]

{"sheet":"2024汇总","index":3,"n_rows":95,"n_cols":11,"rows_kept":95,"cut":false,"hidden":false,"merged":[[0,2,0,4],[0,5,0,7],[0,8,0,10],[0,0,1,0],[0,1,1,1]]}
["序号","学校","2024年招生计划",null,null,"2023年招生计划",null,null,"2024与2023年对比"]
[null,null,"单独招生\n(普通类)","单独招生\n(退役军人类)","综合评价招生","单独招生\n(普通类)","单独招生\n(退役军人类)","综合评价招生","单独招生\n(普通类)","单独招生\n(退役军人类)","综合评价招生"]
[1,"菏泽学院",30,0,0,40,0,0,{"$f":"C3-F3","v":-10},{"$f":"D3-G3","v":0},{"$f":"E3-H3","v":0}]
[2,"山东司法警官职业学院",0,0,100,0,300,200,{"$f":"C4-F4","v":0},{"$f":"D4-G4","v":-300},{"$f":"E4-H4","v":-100}]
[3,"山东职业学院",50,0,100,50,0,50,0,0,50]
[4,"青岛远洋船员职业学院",55,0,65,180,15,130,-125,-15,-65]
[5,"枣庄职业学院",120,0,0,1200,60,200,-1080,-60,-200]
[6,"威海职业学院",110,40,0,450,50,800,-340,-10,-800]
[7,"青岛幼儿师范高等专科学校",0,0,150,0,0,180,0,0,-30]
[8,"济南护理职业学院",160,0,60,160,15,200,0,-15,-140]
[9,"潍坊护理职业学院",100,0,120,400,40,600,-300,-40,-480]
[10,"山东交通职业学院",140,0,120,393,50,541,-253,-50,-421]
[11,"菏泽医学专科学校",100,0,200,50,10,240,50,-10,-40]
[12,"临沂科技职业学院",0,0,300,1200,50,120,-1200,-50,180]
[13,"山东胜利职业学院",130,0,170,200,20,300,-70,-20,-130]
[14,"山东科技职业学院",195,0,195,512,70,688,-317,-70,-493]
[15,"泰山职业技术学院",300,0,100,450,30,150,-150,-30,-50]
[16,"山东工程职业技术大学",400,0,0,900,60,460,-500,-60,-460]
[17,"山东商务职业学院",400,0,0,400,30,400,0,-30,-400]
[18,"山东外国语职业技术大学",420,0,200,200,20,200,220,-20,0]
[19,"山东外贸职业学院",290,10,200,290,10,500,0,0,-300]
[20,"山东服装职业学院",300,0,200,300,20,200,0,-20,0]
[21,"青岛港湾职业技术学院",200,0,300,770,80,750,-570,-80,-450]
[22,"青岛工程职业学院",335,20,145,570,40,380,-235,-20,-235]
[23,"潍坊理工学院",250,30,250,450,200,350,-200,-170,-100]
[24,"山东城市建设职业学院",280,40,180,260,40,300,20,0,-120]
[25,"青岛黄海学院",300,50,200,775,50,225,-475,0,-25]
[26,"山东电子职业技术学院",270,20,300,700,60,700,-430,-40,-400]
[27,"德州职业技术学院",400,0,200,1400,80,300,-1000,-80,-100]
[28,"青岛恒星科技学院",900,0,100,400,30,200,500,-30,-100]
[29,"山东旅游职业学院",450,0,200,680,20,300,-230,-20,-100]
[30,"山东信息职业技术学院",400,0,300,700,50,450,-300,-50,-150]
[31,"临沂职业学院",400,100,200,1000,100,500,-600,0,-300]
[32,"济宁职业技术学院",400,0,300,1000,40,460,-600,-40,-160]
[33,"莱芜职业技术学院",420,0,300,700,50,500,-280,-50,-200]
[34,"枣庄科技职业学院",600,0,150,800,40,200,{"$f":"C36-F36","v":-200},{"$f":"D36-G36","v":-40},{"$f":"E36-H36","v":-50}]
[35,"菏泽职业学院",680,0,100,700,30,50,-20,-30,50]
[36,"聊城职业技术学院",760,20,20,1000,60,300,-240,-40,-280]
[37,"济南工程职业技术学院",340,100,400,820,80,650,-480,20,-250]
[38,"山东畜牧兽医职业学院",400,0,440,500,60,300,-100,-60,140]
[39,"山东药品食品职业学院",180,40,630,300,50,1000,-120,-10,-370]
[40,"山东劳动职业技术学院",670,0,220,850,60,600,-180,-60,-380]
[41,"青岛酒店管理职业技术学院",650,20,250,670,50,250,-20,-30,0]
[42,"青岛职业技术学院",775,0,200,755,50,171,20,-50,29]
[43,"烟台工程职业技术学院",790,10,200,1180,20,300,-390,-10,-100]
[44,"山东水利职业学院",650,0,350,900,100,1300,-250,-100,-950]
[45,"东营科技职业学院",730,20,250,1800,100,400,-1070,-80,-150]
[46,"山东华宇工学院",700,0,300,400,20,0,300,-20,300]
[47,"潍坊工程职业学院",1000,0,0,1330,100,665,-330,-100,-665]
[48,"菏泽家政职业学院",800,40,200,800,40,200,0,0,0]
[49,"山东轻工职业学院",900,0,150,1740,80,260,-840,-80,-110]
[50,"山东艺术设计职业学院",500,0,100,920,50,160,-420,-50,-60]
[51,"烟台科技学院",400,50,680,400,50,680,0,0,0]
[52,"泰山科技学院",400,50,700,400,50,700,0,0,0]
[53,"山东传媒职业学院",850,50,300,880,20,300,-30,30,0]
[54,"青岛航空科技职业学院",1450,0,0,1100,50,100,350,-50,-100]
[55,"山东经贸职业学院",900,0,450,920,60,460,-20,-60,-10]
[56,"烟台汽车工程职业学院",1000,0,400,1775,20,500,-775,-20,-100]
[57,"山东外事职业大学",1200,0,300,1800,100,440,-600,-100,-140]
[58,"德州科技职业学院",1180,20,300,1000,60,440,180,-40,-140]
[59,"潍坊环境工程职业学院",1350,0,300,1250,100,300,100,-100,0]
[60,"山东力明科技职业学院",1430,30,200,1430,30,200,0,0,0]
[61,"山东海事职业学院",1240,40,480,1200,80,480,40,-40,0]
[62,"山东化工职业学院",1250,30,600,1200,80,600,50,-50,0]
[63,"青岛求实职业技术学院",1780,0,100,1700,80,100,80,-80,0]
[64,"山东理工职业学院",1100,0,880,1850,120,1000,-750,-120,-120]
[65,"曲阜远东职业技术学院",1880,0,200,1850,80,150,30,-80,50]
[66,"山东铝业职业学院",850,10,1400,1250,10,1000,{"$f":"C68-F68","v":-400},{"$f":"D68-G68","v":0},{"$f":"E68-H68","v":400}]
[67,"山东英才学院",1500,50,780,1500,100,780,0,-50,0]
[68,"山东文化产业职业学院",1990,0,350,1800,100,440,190,-100,-90]
[69,"烟台黄金职业学院",1860,100,380,1860,100,380,0,0,0]
[70,"山东圣翰财贸职业学院",2030,0,350,1930,100,350,100,-100,0]
[71,"日照航海工程职业学院",1900,100,380,1900,100,380,0,0,0]
[72,"潍坊工商职业学院",1800,0,600,2100,100,300,-300,-100,300]
[73,"烟台南山学院",2500,0,500,3000,160,800,-500,-160,-300]
[74,"滨州科技职业学院",1000,0,500,780,100,200,220,-100,300]
[75,"山东城市服务职业学院",1300,0,300,0,0,0,1300,0,300]
[76,"烟台城市科技职业学院",1000,30,470,0,0,0,1000,30,470]
[77,"潍坊食品科技职业学院",1040,0,200,0,0,0,1040,0,200]
[78,"滨州职业学院",0,0,0,100,50,200,-100,-50,-200]
[79,"东营职业学院",0,0,0,450,50,500,-450,-50,-500]
[80,"济南幼儿师范高等专科学校",0,0,0,0,0,150,0,0,-150]
[81,"济南职业学院",0,0,0,470,50,370,-470,-50,-370]
[82,"齐鲁医药学院",0,0,0,200,30,500,-200,-30,-500]
[83,"青岛电影学院",0,0,0,85,10,35,-85,-10,-35]
[84,"日照职业技术学院",0,0,0,550,50,300,-550,-50,-300]
[85,"山东工业职业学院",0,0,0,950,10,900,-950,-10,-900]
[86,"山东协和学院",0,0,0,2000,100,408,-2000,-100,-408]
[87,"山东医学高等专科学校",0,0,0,100,0,0,-100,0,0]
[88,"山东中医药高等专科学校",0,0,0,0,30,600,0,-30,-600]
[89,"泰山护理职业学院",0,0,0,380,30,370,-380,-30,-370]
[90,"威海海洋职业学院",0,0,0,1000,80,860,-1000,-80,-860]
[91,"烟台文化旅游职业学院",0,0,0,750,30,50,-750,-30,-50]
[92,"烟台职业学院",0,0,0,260,120,520,-260,-120,-520]
[null,"汇总",{"$f":"SUM(C3:C94)","v":55610},{"$f":"SUM(D3:D94)","v":1120},21315,74415,5170,35223,-18805,-4050,-13908]

{"sheet":"2023","index":4,"n_rows":91,"n_cols":5,"rows_kept":91,"cut":false,"hidden":false,"merged":[[0,0,0,4]]}
["2023年高职(专科)单独考试招生与综合评价招生计划"]
["序号","学校","单独招生\n（普通类）","单独招生\n（退役军人类）","综合评价招生"]
[1,"菏泽学院",40,0,0]
[2,"烟台南山学院",3000,160,800]
[3,"齐鲁医药学院",200,30,500]
[4,"山东英才学院",1500,100,780]
[5,"山东协和学院",2000,100,408]
[6,"青岛黄海学院",775,50,225]
[7,"青岛恒星科技学院",400,30,200]
[8,"山东华宇工学院",400,20,0]
[9,"潍坊理工学院",450,200,350]
[10,"泰山科技学院",400,50,700]
[11,"烟台科技学院",400,50,680]
[12,"青岛电影学院",85,10,35]
[13,"山东外事职业大学",1800,100,440]
[14,"山东外国语职业技术大学",200,20,200]
[15,"山东工程职业技术大学",900,60,460]
[16,"山东医学高等专科学校",100,0,0]
[17,"菏泽医学专科学校",50,10,240]
[18,"山东中医药高等专科学校",0,30,600]
[19,"济南幼儿师范高等专科学校",0,0,150]
[20,"青岛酒店管理职业技术学院",670,50,250]
[21,"山东职业学院",50,0,50]
[22,"山东外贸职业学院",290,10,500]
[23,"山东劳动职业技术学院",850,60,600]
[24,"山东经贸职业学院",920,60,460]
[25,"山东科技职业学院",512,70,688]
[26,"山东信息职业技术学院",700,50,450]
[27,"山东畜牧兽医职业学院",500,60,300]
[28,"山东水利职业学院",900,100,1300]
[29,"山东旅游职业学院",680,20,300]
[30,"山东电子职业技术学院",700,60,700]
[31,"山东交通职业学院",393,50,541]
[32,"山东工业职业学院",950,10,900]
[33,"山东药品食品职业学院",300,50,1000]
[34,"山东城市建设职业学院",260,40,300]
[35,"山东商务职业学院",400,30,400]
[36,"山东司法警官职业学院",0,300,200]
[37,"山东传媒职业学院",880,20,300]
[38,"青岛港湾职业技术学院",770,80,750]
[39,"山东胜利职业学院",200,20,300]
[40,"山东化工职业学院",1200,80,600]
[41,"山东铝业职业学院",1250,10,1000]
[42,"济南职业学院",470,50,370]
[43,"青岛职业技术学院",755,50,171]
[44,"济宁职业技术学院",1000,40,460]
[45,"泰山职业技术学院",450,30,150]
[46,"日照职业技术学院",550,50,300]
[47,"莱芜职业技术学院",700,50,500]
[48,"聊城职业技术学院",1000,60,300]
[49,"威海职业学院",450,50,800]
[50,"烟台职业学院",260,120,520]
[51,"东营职业学院",450,50,500]
[52,"滨州职业学院",100,50,200]
[53,"山东服装职业学院",300,20,200]
[54,"济南工程职业技术学院",820,80,650]
[55,"山东轻工职业学院",1740,80,260]
[56,"烟台汽车工程职业学院",1775,20,500]
[57,"烟台工程职业技术学院",1180,20,300]
[58,"德州职业技术学院",1400,80,300]
[59,"菏泽家政职业学院",800,40,200]
[60,"临沂职业学院",1000,100,500]
[61,"枣庄职业学院",1200,60,200]
[62,"山东理工职业学院",1850,120,1000]
[63,"青岛远洋船员职业学院",180,15,130]
[64,"济南护理职业学院",160,15,200]
[65,"潍坊护理职业学院",400,40,600]
[66,"泰山护理职业学院",380,30,370]
[67,"潍坊工程职业学院",1330,100,665]
[68,"菏泽职业学院",700,30,50]
[69,"枣庄科技职业学院",800,40,200]
[70,"威海海洋职业学院",1000,80,860]
[71,"青岛工程职业学院",570,40,380]
[72,"烟台文化旅游职业学院",750,30,50]
[73,"青岛幼儿师范高等专科学校",0,0,180]
[74,"临沂科技职业学院",1200,50,120]
[75,"德州科技职业学院",1000,60,440]
[76,"曲阜远东职业技术学院",1850,80,150]
[77,"东营科技职业学院",1800,100,400]
[78,"山东圣翰财贸职业学院",1930,100,350]
[79,"山东力明科技职业学院",1430,30,200]
[80,"青岛求实职业技术学院",1700,80,100]
[81,"潍坊工商职业学院",2100,100,300]
[82,"山东海事职业学院",1200,80,480]
[83,"山东艺术设计职业学院",920,50,160]
[84,"烟台黄金职业学院",1860,100,380]
[85,"日照航海工程职业学院",1900,100,380]
[86,"山东文化产业职业学院",1800,100,440]
[87,"青岛航空科技职业学院",1100,50,100]
[88,"潍坊环境工程职业学院",1250,100,300]
[89,"滨州科技职业学院",780,100,200]

{"sheet":"2022","index":5,"n_rows":99,"n_cols":7,"rows_kept":99,"cut":false,"hidden":false,"merged":[[0,0,0,6],[1,1,1,4],[1,5,1,6],[2,1,2,2],[2,3,2,4],[1,0,3,0],[2,5,3,5],[2,6,3,6]]}
["2022年高职（专科）单独考试招生与综合评价招生调增限额计划表"]
["学校名称","2022年单独招生计划数",null,null,null,"2022年综合评价"]
[null,"普通类",null,"退役军人类",null,"原计划","调整后"]
[null,"原计划","调整后","原计划","调整后"]
["山东女子学院",0,0,0,0,50,50]
["青岛农业大学海都学院",500,500,0,0,500,500]
["烟台科技学院",590,940,260,260,400,480]
["潍坊科技学院",200,200,0,0,200,200]
["青岛滨海学院",600,600,0,0,600,600]
["烟台南山学院",2850,2850,400,400,1000,1000]
["齐鲁医药学院",300,300,0,0,500,500]
["山东英才学院",1200,1200,1200,1200,600,600]
["山东协和学院",2500,2500,110,110,800,800]
["青岛黄海学院",1550,1550,500,500,500,500]
["青岛工学院",0,0,0,0,200,200]
["齐鲁理工学院",400,400,0,0,200,200]
["青岛恒星科技学院",400,400,0,0,350,350]
["山东华宇工学院",850,850,0,0,60,60]
["山东现代学院",200,200,0,0,0,0]
["潍坊理工学院",900,900,400,400,1015,1015]
["泰山科技学院",400,400,0,0,700,700]
["山东外事职业大学",1200,1200,1000,1000,600,600]
["山东外国语职业技术大学",2050,2050,0,0,1000,1000]
["山东工程职业技术大学",2000,2000,0,0,950,950]
["青岛电影学院",175,175,0,0,175,175]
["菏泽医学专科学校",85,85,15,15,200,200]
["山东中医药高等专科学校",200,200,0,0,800,800]
["济南幼儿师范高等专科学校",0,0,0,0,300,300]
["青岛酒店管理职业技术学院",1070,1070,30,30,400,400]
["山东外贸职业学院",290,390,10,13,500,500]
["山东劳动职业技术学院",900,900,100,100,800,800]
["山东经贸职业学院",1125,1125,0,0,600,600]
["山东科技职业学院",1170,1170,80,80,2000,2000]
["山东信息职业技术学院",950,950,50,50,1000,1000]
["山东畜牧兽医职业学院",800,800,40,40,860,860]
["山东水利职业学院",1000,1400,50,50,1750,1750]
["山东旅游职业学院",525,525,20,20,465,465]
["山东电子职业技术学院",810,810,0,0,1000,1000]
["山东交通职业学院",540,540,50,50,760,760]
["山东工业职业学院",1320,1400,30,30,1000,1000]
["山东药品食品职业学院",800,800,0,0,1400,1550]
["山东城市建设职业学院",745,745,45,45,1100,1100]
["山东商务职业学院",400,400,0,0,1600,1600]
["山东司法警官职业学院",0,0,300,300,200,200]
["山东传媒职业学院",880,1180,20,20,600,700]
["青岛港湾职业技术学院",1140,1300,100,100,650,800]
["山东胜利职业学院",700,700,0,0,600,600]
["山东化工职业学院",1300,1900,100,100,600,600]
["山东铝业职业学院",1410,2500,50,50,800,800]
["济南职业学院",620,740,30,30,550,630]
["青岛职业技术学院",365,365,10,10,260,260]
["济宁职业技术学院",2350,2350,300,300,900,900]
["泰山职业技术学院",1000,1000,700,700,1300,1300]
["日照职业技术学院",450,500,50,50,300,300]
["莱芜职业技术学院",1200,1200,0,0,550,550]
["聊城职业技术学院",1000,1000,100,100,700,700]
["威海职业学院",950,1000,50,50,1000,1050]
["潍坊职业学院",650,650,150,150,1000,1000]
["烟台职业学院",270,270,100,100,730,730]
["东营职业学院",1300,1300,100,100,600,600]
["滨州职业学院",660,660,40,160,500,610]
["淄博职业学院",1000,1120,105,105,1500,1590]
["山东服装职业学院",1240,1240,0,0,1700,1700]
["济南工程职业技术学院",910,1510,40,40,1150,1150]
["山东轻工职业学院",1600,1600,400,400,500,500]
["烟台汽车工程职业学院",2200,2200,50,50,1000,1000]
["烟台工程职业技术学院",1750,1750,100,100,550,550]
["德州职业技术学院",1670,1700,80,80,500,500]
["菏泽家政职业学院",800,800,20,20,156,156]
["临沂职业学院",1000,1000,200,200,800,800]
["枣庄职业学院",800,800,100,100,1200,1200]
["山东理工职业学院",1800,2300,200,200,1500,1500]
["青岛远洋船员职业学院",180,180,0,0,140,140]
["济南护理职业学院",100,100,0,0,240,240]
["潍坊护理职业学院",570,570,30,30,600,600]
["泰山护理职业学院",440,440,0,0,450,450]
["潍坊工程职业学院",1800,1950,150,150,900,900]
["菏泽职业学院",1800,1800,150,150,700,700]
["枣庄科技职业学院",930,930,120,120,200,200]
["威海海洋职业学院",1300,1300,25,25,1000,1000]
["青岛工程职业学院",690,690,0,0,720,720]
["烟台文化旅游职业学院",600,600,50,50,350,350]
["临沂科技职业学院",1175,1700,120,120,700,700]
["德州科技职业学院",1200,1200,0,0,600,600]
["曲阜远东职业技术学院",1450,1450,600,1200,200,200]
["东营科技职业学院",2050,2790,150,10,300,400]
["山东圣翰财贸职业学院",1500,1500,0,0,460,460]
["山东力明科技职业学院",1230,1230,30,30,300,300]
["青岛求实职业技术学院",1900,1900,0,0,100,100]
["潍坊工商职业学院",1400,1600,1000,1000,400,400]
["山东海事职业学院",1200,1200,50,50,430,430]
["山东艺术设计职业学院",1000,1000,300,300,150,150]
["烟台黄金职业学院",2000,2000,0,0,600,600]
["日照航海工程职业学院",1600,1600,200,200,650,650]
["山东文化产业职业学院",1600,2000,0,0,700,700]
["青岛航空科技职业学院",1000,1000,10,10,240,240]
["潍坊环境工程职业学院",800,1380,100,100,400,400]
["滨州科技职业学院",400,400,0,0,350,350]
["合计",92525,99670,10970,11553,61211,62121]